Workbook

Sheet RESUMO MODULO TOTAL
E1: Ministério do Desenvolvimento Regional
E2: Companhia de Desenvolvimento dos Vales do São Francisco e do Parnaíba
N3: =190-117 -> 73
B5: OBRA: | C5: =B52 -> CONTRATAÇÃO DE SERVIÇOS DE CAPA ASFÁLTICA EM CONCRETO BETUMINOSO USINADO A QUENTE (CBUQ), EM VIAS URBANAS E RURAIS INSERIDAS NA ÁREA DE ATUAÇÃO DA CODEVASF, NO ESTADO DO PIAUÍ - REGIÃO SUL | I5: BDI Serviços (%): | L5: =BDI!C16 -> 0.2339
B6: DATA: | C6: 2025-10-01 | I6: BDI Diferenciado Serviços (%): | L6: =BDI!C66 -> 0.15
B7: PRAZO DE EXECUÇÃO: | G7: R$/m² | H7: =L49/H20 ->  | I7: BDI Fornecimentos (%): | L7: =L6 -> 0.15
B8: PLANILHA DE ORÇAMENTAÇÃO
B9: ITEM | C9: CÓDIGO | D9: FONTE | E9: DISCRIMINAÇÃO | F9: TIPO | G9: UNID. | H9: QUANT. | I9: VR.UNIT.S/BDI | J9: PR. UNIT.C/BDI | K9: C. TOT.S/BDI | L9: P. TOT.C/BDI | M9: =L49 -> 
B10: 1 | E10: SERVIÇOS PRELIMINARES | K10: =SUM(K11:K12) -> 378090.3 | L10: =SUM(L11:L12) -> 466519 | M10: =L10/$L$49 -> 
B11: 1.1 | C11: CPU.1 | D11: Codevasf | E11: Mobilização | F11: SERV | G11: kmxfrente | H11: =Mob!B64*Mob!H6 -> 1550 | I11: =Mob!B61 -> 121.9646183 | J11: =TRUNC(_xlfn.IFS(F11="SERV",I11*(1+$L$5),F11="SERV DIF",I11*(1+$L$6),F11="FORN",I11*(1+$L$7)),2) -> 150.49 | K11: =TRUNC(H11*I11,2) -> 189045.15 | L11: =TRUNC(H11*J11,2) -> 233259.5 | N11: INCC | P11: TERRAPLENAGEM | Q11: =(SUMIF(N:N,"TERRAPLENAGEM",L:L)/$L$49) ->  | R11: =(SUMIF(N:N,"TERRAPLENAGEM",L:L)) -> 0
B12: 1.2 | C12: CPU.2 | D12: Codevasf | E12: Desmobilização | F12: SERV | G12: kmxfrente | H12: =Mob!B64*Mob!H6 -> 1550 | I12: =Mob!B61 -> 121.9646183 | J12: =TRUNC(_xlfn.IFS(F12="SERV",I12*(1+$L$5),F12="SERV DIF",I12*(1+$L$6),F12="FORN",I12*(1+$L$7)),2) -> 150.49 | K12: =TRUNC(H12*I12,2) -> 189045.15 | L12: =TRUNC(H12*J12,2) -> 233259.5 | N12: INCC | P12: PAVIMENTAÇÃO | Q12: =SUMIF(N:N,"PAVIMENTAÇÃO",L:L)/$L$49 ->  | R12: =(SUMIF(N:N,"PAVIMENTAÇÃO",L:L)) -> 
B13: 2 | E13: INSTALAÇÃO DE CANTEIRO | K13: =SUM(K14:K15) -> 268992.89 | L13: =SUM(L14:L15) -> 331906.46 | P13: CONSULTORIA | R13: =(SUMIF(N:N,"CONSULTORIA",M:M)) -> 0
B14: 2.1 | C14: Canteiro | D14: Codevasf | E14: Canteiro de Obras | F14: SERV | G14: und | H14: ='MC MODULO'!D10 -> 31 | I14: =' Canteiro'!F11 -> 1245.83 | J14: =TRUNC(_xlfn.IFS(F14="SERV",I14*(1+$L$5),F14="SERV DIF",I14*(1+$L$6),F14="FORN",I14*(1+$L$7)),2) -> 1537.22 | K14: =TRUNC(H14*I14,2) -> 38620.73 | L14: =TRUNC(H14*J14,2) -> 47653.82 | N14: INCC | P14: DRENAGEM | Q14: =SUMIF(N:N,"DRENAGEM",L:L)/$L$49 ->  | R14: =(SUMIF(N:N,"DRENAGEM",L:L)) -> 110112
B15: 2.2 | C15: 103689 | D15: SINAPI | E15: Fornecimento e instalação de placa de obra com chapa galvanizada e estrutura de madeira. af_03/2022_ps | F15: SERV | G15: m² | H15: ='MC MODULO'!H25 -> 496 | I15: =VLOOKUP(C15,'COMP Sint. Sinapi'!$A:$E,4,0) -> 464.46 | J15: =TRUNC(_xlfn.IFS(F15="SERV",I15*(1+$L$5),F15="SERV DIF",I15*(1+$L$6),F15="FORN",I15*(1+$L$7)),2) -> 573.09 | K15: 230372.16 | L15: 284252.64 | N15: INCC | P15: ADMINISTRAÇÃO LOCAL | R15: =(SUMIF(N:N,"ADMINISTRAÇÃO LOCAL",M:M)) -> 0
B16: 3 | E16: ADMINISTRAÇÃO LOCAL DA OBRA | K16: =SUM(K17:K17) -> 977204.95 | L16: =SUM(L17:L17) -> 1205773.19 | P16: SINALIZAÇÃO VERTICAL | R16: =(SUMIF(N:N,"SINALIZAÇÃO VERTICAL",M:M)) -> 0
B17: 3.1 | C17: Adm Local | D17: Codevasf | E17: Administração Local da Obra | F17: SERV | G17: und | H17: 1 | I17: ='Adm Local'!J246 -> 977204.9536 | J17: =TRUNC(_xlfn.IFS(F17="SERV",I17*(1+$L$5),F17="SERV DIF",I17*(1+$L$6),F17="FORN",I17*(1+$L$7)),2) -> 1205773.19 | K17: =TRUNC(H17*I17,2) -> 977204.95 | L17: =TRUNC(H17*J17,2) -> 1205773.19 | N17: INCC | P17: SINALIZAÇÃO HORIZONTAL | R17: =(SUMIF(N:N,"SINALIZAÇÃO HORIZONTAL",M:M)) -> 0
B18: 4 | E18: PAVIMENTAÇÃO | K18: =SUM(K19:K22) -> 5521391.4 | L18: =SUM(L19:L22) -> 6810469.05 | P18: OBRAS COMPLEMENTARES | R18: =(SUMIF(N:N,"OBRAS COMPLEMENTARES",M:M)) -> 0
B19: 4.1 | C19: 4011463 | D19: SICRO | E19: =VLOOKUP(C19,'SINTÉTICO SICRO'!$A$4:$D$1048576,2,0) -> Concreto asfáltico - faixa C-12,5 - areia e brita comerciais | F19: SERV | G19: t | H19: ='MC MODULO'!H33 -> 26040 | I19: =ROUND(IF(C19="CODEVASF",VLOOKUP(D19,'CPU CODEVASF'!E:I,5,FALSE),VLOOKUP(C19,'SINTÉTICO SICRO'!A:D,4,FALSE)),6) -> 200.06 | J19: =TRUNC(_xlfn.IFS(F19="SERV",I19*(1+$L$5),F19="SERV DIF",I19*(1+$L$6),F19="FORN",I19*(1+$L$7)),2) -> 246.85 | K19: =TRUNC(H19*I19,2) -> 5209562.4 | L19: =TRUNC(H19*J19,2) -> 6427974 | N19: PAVIMENTAÇÃO | P19: MOBILIZAÇÃO | R19: =(SUMIF(N:N,"MOBILIZAÇÃO",M:M)) -> 0
B20: 4.2 | C20: 4011353 | D20: SICRO | E20: =VLOOKUP(C20,'SINTÉTICO SICRO'!$A$4:$D$1048576,2,0) -> Pintura de ligação | F20: SERV | G20: m² | H20: ='MC MODULO'!H39 -> 217000 | I20: =ROUND(IF(C20="CODEVASF",VLOOKUP(D20,'CPU CODEVASF'!E:I,5,FALSE),VLOOKUP(C20,'SINTÉTICO SICRO'!A:D,4,FALSE)),6) -> 0.47 | J20: =TRUNC(_xlfn.IFS(F20="SERV",I20*(1+$L$5),F20="SERV DIF",I20*(1+$L$6),F20="FORN",I20*(1+$L$7)),2) -> 0.57 | K20: 101990 | L20: 123690 | N20: PAVIMENTAÇÃO | P20: OBRAS COMPLEMENTARES | R20: =(SUMIF(N:N,"OBRAS COMPLEMENTARES",M:M)) -> 0
B21: 4.3 | C21: 4915663 | D21: SICRO | E21: =VLOOKUP(C21,'SINTÉTICO SICRO'!$A$4:$D$1048576,2,0) -> Fresagem descontínua de revestimento asfáltico - espessura de 5 cm | F21: SERV | G21: m³ | H21: ='MC MODULO'!H45 -> 1085 | I21: =ROUND(IF(C21="CODEVASF",VLOOKUP(D21,'CPU CODEVASF'!E:I,5,FALSE),VLOOKUP(C21,'SINTÉTICO SICRO'!A:D,4,FALSE)),6) -> 97.2 | J21: =TRUNC(_xlfn.IFS(F21="SERV",I21*(1+$L$5),F21="SERV DIF",I21*(1+$L$6),F21="FORN",I21*(1+$L$7)),2) -> 119.93 | K21: 105462 | L21: 130124.05 | N21: PAVIMENTAÇÃO | P21: MOBILIZAÇÃO | R21: =(SUMIF(N:N,"MOBILIZAÇÃO",M:M)) -> 0
B22: 4.4 | C22: 4915618 | D22: SICRO | E22: =VLOOKUP(C22,'SINTÉTICO SICRO'!$A$4:$D$1048576,2,0) -> Recomposição de camada granular do pavimento com material de jazida - 100% Proctor modificado | F22: SERV | G22: m² | H22: ='MC MODULO'!H51 -> 21700 | I22: =ROUND(IF(C22="CODEVASF",VLOOKUP(D22,'CPU CODEVASF'!E:I,5,FALSE),VLOOKUP(C22,'SINTÉTICO SICRO'!A:D,4,FALSE)),6) -> 4.81 | J22: =TRUNC(_xlfn.IFS(F22="SERV",I22*(1+$L$5),F22="SERV DIF",I22*(1+$L$6),F22="FORN",I22*(1+$L$7)),2) -> 5.93 | K22: 104377 | L22: 128681 | N22: PAVIMENTAÇÃO | P22: INCC | Q22: =(SUMIF(N:N,"INCC",L:L))/$L$49 ->  | R22: =(SUMIF(N:N,"INCC",L:L)) -> 3390806.64
B23: 5 | E23: AQUISIÇÃO E TRANSPORTE DO MATERIAL BETUMINOSO | K23: =SUM(K24:K27) -> 7869689.16 | L23: =SUM(L24:L27) -> 
B24: 5.1 | C24: CPU-13 | D24: CODEVASF | E24: AQUISIÇÃO DE CIMENTO ASFALTICO CAP 50/70 | F24: FORN | G24: t | H24: =' CONSUMO DE MAT. B TOTAL'!O16 -> 1443.92 | I24: =ROUND(IF(D24="CODEVASF",VLOOKUP(C24,'CPU CODEVASF'!E:I,5,FALSE),VLOOKUP(D24,'SINTÉTICO SICRO'!A:D,4,FALSE)),6) -> 4414.786243 | J24: =TRUNC(_xlfn.IFS(F24="SERV",I24*(1+$L$5),F24="SERV DIF",I24*(1+$L$6),F24="FORN",I24*(1+$L$7)),2) ->  | K24: =TRUNC(H24*I24,2) -> 6374598.15 | L24: =TRUNC(H24*J24,2) ->  | N24: PAVIMENTAÇÃO
B25: 5.2 | C25: CPU-17 | D25: CODEVASF | E25: TRANSPORTE CAP 50/70 | F25: FORN | G25: t | H25: =H24 -> 1443.92 | I25: =ROUND(IF(D25="CODEVASF",VLOOKUP(C25,'CPU CODEVASF'!E:I,5,FALSE),VLOOKUP(D25,'SINTÉTICO SICRO'!A:D,4,FALSE)),6) -> 771.82 | J25: =TRUNC(_xlfn.IFS(F25="SERV",I25*(1+$L$5),F25="SERV DIF",I25*(1+$L$6),F25="FORN",I25*(1+$L$7)),2) ->  | K25: 1114446.33 | N25: PAVIMENTAÇÃO
B26: 5.3 | C26: CPU-15 | D26: CODEVASF | E26: AQUISIÇÃO DE EMULSÃO ASFÁLTICA RR-1C | F26: FORN | G26: t | H26: =' CONSUMO DE MAT. B TOTAL'!O14 -> 97.65 | I26: =ROUND(IF(D26="CODEVASF",VLOOKUP(C26,'CPU CODEVASF'!E:I,5,FALSE),VLOOKUP(D26,'SINTÉTICO SICRO'!A:D,4,FALSE)),6) -> 3126.231131 | J26: =TRUNC(_xlfn.IFS(F26="SERV",I26*(1+$L$5),F26="SERV DIF",I26*(1+$L$6),F26="FORN",I26*(1+$L$7)),2) ->  | K26: 305276.46 | N26: PAVIMENTAÇÃO
B27: 5.4 | C27: CPU-19 | D27: CODEVASF | E27: TRANSPORTE RR-1C | F27: FORN | G27: t | H27: =H26 -> 97.65 | I27: =ROUND(IF(D27="CODEVASF",VLOOKUP(C27,'CPU CODEVASF'!E:I,5,FALSE),VLOOKUP(D27,'SINTÉTICO SICRO'!A:D,4,FALSE)),6) -> 771.82 | J27: =TRUNC(_xlfn.IFS(F27="SERV",I27*(1+$L$5),F27="SERV DIF",I27*(1+$L$6),F27="FORN",I27*(1+$L$7)),2) ->  | K27: 75368.22 | N27: PAVIMENTAÇÃO
B28: 6 | E28: SINALIZAÇÃO | K28: =SUM(K29:K32) -> 298900.14 | L28: =SUM(L29:L32) -> 368766.39
B29: 6.1 | C29: 5213440 | D29: SICRO | E29: Placa de regulamentação em aço D = 0,60 m - película retrorrefletiva tipo I + SI - fornecimento e implantação | F29: SERV | G29: und | H29: ='MC MODULO'!H58 -> 93 | I29: =ROUND(IF(D29="CODEVASF",VLOOKUP(C29,'CPU CODEVASF'!E:I,5,FALSE),VLOOKUP(C29,'SINTÉTICO SICRO'!A:D,4,FALSE)),6) -> 288.75 | J29: =TRUNC(_xlfn.IFS(F29="SERV",I29*(1+$L$5),F29="SERV DIF",I29*(1+$L$6),F29="FORN",I29*(1+$L$7)),2) -> 356.28 | K29: =TRUNC(H29*I29,2) -> 26853.75 | L29: =TRUNC(H29*J29,2) -> 33134.04 | N29: INCC
B30: 6.2 | C30: 5213464 | D30: SICRO | E30: Placa de advertência em aço, lado de 0,60 m - película retrorrefletiva tipo I + SI - fornecimento e implantação | F30: SERV | G30: und | H30: ='MC MODULO'!H63 -> 93 | I30: =ROUND(IF(D30="CODEVASF",VLOOKUP(C30,'CPU CODEVASF'!E:I,5,FALSE),VLOOKUP(C30,'SINTÉTICO SICRO'!A:D,4,FALSE)),6) -> 288.79 | J30: =TRUNC(_xlfn.IFS(F30="SERV",I30*(1+$L$5),F30="SERV DIF",I30*(1+$L$6),F30="FORN",I30*(1+$L$7)),2) -> 356.33 | K30: 26857.47 | L30: 33138.69 | N30: INCC
B31: 6.3 | C31: 5213863 | D31: SICRO | E31: Suporte metálico galvanizado para placa de advertência ou regulamentação - lado ou diâmetro de 0,60 m - fornecimento e implantação | F31: SERV | G31: und | H31: ='MC MODULO'!H69 -> 186 | I31: =ROUND(IF(D31="CODEVASF",VLOOKUP(C31,'CPU CODEVASF'!E:I,5,FALSE),VLOOKUP(C31,'SINTÉTICO SICRO'!A:D,4,FALSE)),6) -> 475.82 | J31: =TRUNC(_xlfn.IFS(F31="SERV",I31*(1+$L$5),F31="SERV DIF",I31*(1+$L$6),F31="FORN",I31*(1+$L$7)),2) -> 587.11 | K31: 88502.52 | L31: 109202.46 | N31: INCC
B32: 6.4 | C32: 5213400 | D32: SICRO | E32: Pintura de faixa com tinta acrílica - espessura de 0,4 mm | F32: SERV | G32: m² | H32: ='MC MODULO'!H74+'MC MODULO'!H79 -> 7440 | I32: =ROUND(IF(D32="CODEVASF",VLOOKUP(C32,'CPU CODEVASF'!E:I,5,FALSE),VLOOKUP(C32,'SINTÉTICO SICRO'!A:D,4,FALSE)),6) -> 21.06 | J32: =TRUNC(_xlfn.IFS(F32="SERV",I32*(1+$L$5),F32="SERV DIF",I32*(1+$L$6),F32="FORN",I32*(1+$L$7)),2) -> 25.98 | K32: 156686.4 | L32: 193291.2 | N32: INCC
B33: 7 | E33: DRENAGEM | K33: =SUM(K34:K36) -> 151081.6 | L33: =SUM(L34:L36) -> 186173.6
B34: 7.1 | C34: 4915777 | D34: SICRO | E34: =VLOOKUP(C34,'SINTÉTICO SICRO'!$A$4:$D$1048576,2,0) -> Reassentamento manual de meio-fio com material arrancado da pista | F34: SERV | G34: m | H34: ='MC MODULO'!H86 -> 6200 | I34: =ROUND(IF(D34="CODEVASF",VLOOKUP(C34,'CPU CODEVASF'!E:I,5,FALSE),VLOOKUP(C34,'SINTÉTICO SICRO'!A:D,4,FALSE)),6) -> 14.4 | J34: =TRUNC(_xlfn.IFS(F34="SERV",I34*(1+$L$5),F34="SERV DIF",I34*(1+$L$6),F34="FORN",I34*(1+$L$7)),2) -> 17.76 | K34: =TRUNC(H34*I34,2) -> 89280 | L34: =TRUNC(H34*J34,2) -> 110112 | N34: DRENAGEM
B35: 7.2 | C35: 4915708 | D35: SICRO | E35: =VLOOKUP(C35,'SINTÉTICO SICRO'!$A$4:$D$1048576,2,0) -> Limpeza de sarjeta e meio-fio | F35: SERV | G35: m² | H35: ='MC MODULO'!H91 -> 62000 | I35: =ROUND(IF(D35="CODEVASF",VLOOKUP(C35,'CPU CODEVASF'!E:I,5,FALSE),VLOOKUP(C35,'SINTÉTICO SICRO'!A:D,4,FALSE)),6) -> 0.74 | J35: =TRUNC(_xlfn.IFS(F35="SERV",I35*(1+$L$5),F35="SERV DIF",I35*(1+$L$6),F35="FORN",I35*(1+$L$7)),2) -> 0.91 | K35: =TRUNC(H35*I35,2) -> 45880 | L35: =TRUNC(H35*J35,2) -> 56420 | N35: INCC
B36: 7.3 | C36: 4915724 | D36: SICRO | E36: =VLOOKUP(C36,'SINTÉTICO SICRO'!$A$4:$D$1048576,2,0) -> Caiação mecanizada com fixador de cal | F36: SERV | G36: m² | H36: ='MC MODULO'!H96 -> 7440 | I36: =ROUND(IF(D36="CODEVASF",VLOOKUP(C36,'CPU CODEVASF'!E:I,5,FALSE),VLOOKUP(C36,'SINTÉTICO SICRO'!A:D,4,FALSE)),6) -> 2.14 | J36: =TRUNC(_xlfn.IFS(F36="SERV",I36*(1+$L$5),F36="SERV DIF",I36*(1+$L$6),F36="FORN",I36*(1+$L$7)),2) -> 2.64 | K36: 15921.6 | L36: 19641.6 | N36: INCC
B37: 8 | E37: PROJETO EXECUTIVO | K37: =SUM(K38:K38) -> 763840 | L37: =SUM(L38:L38) -> 941780
B38: 8.1 | C38: CPU.7 | D38: Codevasf | E38: Projeto Executivo | F38: SERV | G38: m² | H38: ='MC MODULO'!H110 -> 217000 | I38: ='Projeto Executivo'!G28 -> 3.52 | J38: =TRUNC(_xlfn.IFS(F38="SERV",I38*(1+$L$5),F38="SERV DIF",I38*(1+$L$6),F38="FORN",I38*(1+$L$7)),2) -> 4.34 | K38: =TRUNC(H38*I38,2) -> 763840 | L38: =TRUNC(H38*J38,2) -> 941780 | N38: INCC
B39: 9 | E39: MOMENTO DE TRANSPORTE | K39: =SUM(K40:K48) -> 894961.26 | L39: =SUM(L40:L48) -> 1101580.99
B40: 9.1 | C40: 5914359 | D40: SICRO | E40: =VLOOKUP(C40,'SINTÉTICO SICRO'!$A$4:$D$1048576,2,0) -> Transporte com caminhão basculante de 10 m³ - rodovia em leito natural | F40: SERV | G40: tkm | H40: =SUMIF('MOMENTO DE TRANSPORTE - PRINC'!A:A,'RESUMO MODULO TOTAL'!C40,'MOMENTO DE TRANSPORTE - PRINC'!K:K)+SUMIF('MOMENTO DE TRANSPORTE - AUX'!A:A,'RESUMO MODULO TOTAL'!C40,'MOMENTO DE TRANSPORTE - AUX'!K:K) -> 82029.1248 | I40: =ROUND(IF(D40="CODEVASF",VLOOKUP(C40,'CPU CODEVASF'!E:I,5,FALSE),VLOOKUP(C40,'SINTÉTICO SICRO'!A:D,4,FALSE)),6) -> 1.25 | J40: =TRUNC(_xlfn.IFS(F40="SERV",I40*(1+$L$5),F40="SERV DIF",I40*(1+$L$6),F40="FORN",I40*(1+$L$7)),2) -> 1.54 | K40: =TRUNC(H40*I40,2) -> 102536.4 | L40: =TRUNC(H40*J40,2) -> 126324.85 | N40: PAVIMENTAÇÃO
B41: 9.2 | C41: 5914374 | D41: SICRO | E41: =VLOOKUP(C41,'SINTÉTICO SICRO'!$A$4:$D$1048576,2,0) -> Transporte com caminhão basculante de 10 m³ - rodovia em revestimento primário | F41: SERV | G41: tkm | H41: =SUMIF('MOMENTO DE TRANSPORTE - PRINC'!A:A,'RESUMO MODULO TOTAL'!C41,'MOMENTO DE TRANSPORTE - PRINC'!K:K)+SUMIF('MOMENTO DE TRANSPORTE - AUX'!A:A,'RESUMO MODULO TOTAL'!C41,'MOMENTO DE TRANSPORTE - AUX'!K:K) -> 82029.1248 | I41: =ROUND(IF(D41="CODEVASF",VLOOKUP(C41,'CPU CODEVASF'!E:I,5,FALSE),VLOOKUP(C41,'SINTÉTICO SICRO'!A:D,4,FALSE)),6) -> 1 | J41: =TRUNC(_xlfn.IFS(F41="SERV",I41*(1+$L$5),F41="SERV DIF",I41*(1+$L$6),F41="FORN",I41*(1+$L$7)),2) -> 1.23 | K41: 82029.12 | L41: 100895.82 | N41: PAVIMENTAÇÃO
B42: 9.3 | C42: 5914389 | D42: SICRO | E42: =VLOOKUP(C42,'SINTÉTICO SICRO'!$A$4:$D$1048576,2,0) -> Transporte com caminhão basculante de 10 m³ - rodovia pavimentada | F42: SERV | G42: tkm | H42: =SUMIF('MOMENTO DE TRANSPORTE - PRINC'!A:A,'RESUMO MODULO TOTAL'!C42,'MOMENTO DE TRANSPORTE - PRINC'!K:K)+SUMIF('MOMENTO DE TRANSPORTE - AUX'!A:A,'RESUMO MODULO TOTAL'!C42,'MOMENTO DE TRANSPORTE - AUX'!K:K) -> 656232.9984 | I42: =ROUND(IF(D42="CODEVASF",VLOOKUP(C42,'CPU CODEVASF'!E:I,5,FALSE),VLOOKUP(C42,'SINTÉTICO SICRO'!A:D,4,FALSE)),6) -> 0.82 | J42: =TRUNC(_xlfn.IFS(F42="SERV",I42*(1+$L$5),F42="SERV DIF",I42*(1+$L$6),F42="FORN",I42*(1+$L$7)),2) -> 1.01 | K42: 538111.05 | L42: 662795.32 | N42: PAVIMENTAÇÃO
B43: 9.4 | C43: 5914364 | D43: SICRO | E43: =VLOOKUP(C43,'SINTÉTICO SICRO'!$A$4:$D$1048576,2,0) -> Transporte de cimento ou cal hidratada a granel com caminhão silo de 30 m³ - rodovia em leito natural | F43: SERV | G43: tkm | H43: =SUMIF('MOMENTO DE TRANSPORTE - PRINC'!A:A,'RESUMO MODULO TOTAL'!C43,'MOMENTO DE TRANSPORTE - PRINC'!K:K)+SUMIF('MOMENTO DE TRANSPORTE - AUX'!A:A,'RESUMO MODULO TOTAL'!C43,'MOMENTO DE TRANSPORTE - AUX'!K:K) -> 376.5384 | I43: =ROUND(IF(D43="CODEVASF",VLOOKUP(C43,'CPU CODEVASF'!E:I,5,FALSE),VLOOKUP(C43,'SINTÉTICO SICRO'!A:D,4,FALSE)),6) -> 0.98 | J43: =TRUNC(_xlfn.IFS(F43="SERV",I43*(1+$L$5),F43="SERV DIF",I43*(1+$L$6),F43="FORN",I43*(1+$L$7)),2) -> 1.2 | K43: 369 | L43: 451.84 | N43: PAVIMENTAÇÃO
B44: 9.5 | C44: 5914365 | D44: SICRO | E44: =VLOOKUP(C44,'SINTÉTICO SICRO'!$A$4:$D$1048576,2,0) -> Transporte de cimento ou cal hidratada a granel com caminhão silo de 30 m³ - rodovia em revestimento primário | F44: SERV | G44: tkm | H44: =SUMIF('MOMENTO DE TRANSPORTE - PRINC'!A:A,'RESUMO MODULO TOTAL'!C44,'MOMENTO DE TRANSPORTE - PRINC'!K:K)+SUMIF('MOMENTO DE TRANSPORTE - AUX'!A:A,'RESUMO MODULO TOTAL'!C44,'MOMENTO DE TRANSPORTE - AUX'!K:K) -> 376.5384 | I44: =ROUND(IF(D44="CODEVASF",VLOOKUP(C44,'CPU CODEVASF'!E:I,5,FALSE),VLOOKUP(C44,'SINTÉTICO SICRO'!A:D,4,FALSE)),6) -> 0.78 | J44: =TRUNC(_xlfn.IFS(F44="SERV",I44*(1+$L$5),F44="SERV DIF",I44*(1+$L$6),F44="FORN",I44*(1+$L$7)),2) -> 0.96 | K44: 293.69 | L44: 361.47 | N44: PAVIMENTAÇÃO
B45: 9.6 | C45: 5914366 | D45: SICRO | E45: =VLOOKUP(C45,'SINTÉTICO SICRO'!$A$4:$D$1048576,2,0) -> Transporte de cimento ou cal hidratada a granel com caminhão silo de 30 m³ - rodovia pavimentada | F45: SERV | G45: tkm | H45: =SUMIF('MOMENTO DE TRANSPORTE - PRINC'!A:A,'RESUMO MODULO TOTAL'!C45,'MOMENTO DE TRANSPORTE - PRINC'!K:K)+SUMIF('MOMENTO DE TRANSPORTE - AUX'!A:A,'RESUMO MODULO TOTAL'!C45,'MOMENTO DE TRANSPORTE - AUX'!K:K) -> 3012.3072 | I45: =ROUND(IF(D45="CODEVASF",VLOOKUP(C45,'CPU CODEVASF'!E:I,5,FALSE),VLOOKUP(C45,'SINTÉTICO SICRO'!A:D,4,FALSE)),6) -> 0.68 | J45: =TRUNC(_xlfn.IFS(F45="SERV",I45*(1+$L$5),F45="SERV DIF",I45*(1+$L$6),F45="FORN",I45*(1+$L$7)),2) -> 0.83 | K45: 2048.36 | L45: 2500.21 | N45: PAVIMENTAÇÃO
B46: 9.7 | C46: 5914314 | D46: SICRO | E46: =VLOOKUP(C46,'SINTÉTICO SICRO'!$A$4:$D$1048576,2,0) -> Transporte com caminhão basculante de 6 m³ - rodovia em leito natural | F46: SERV | G46: tkm | H46: =SUMIF('MOMENTO DE TRANSPORTE - PRINC'!A:A,'RESUMO MODULO TOTAL'!C46,'MOMENTO DE TRANSPORTE - PRINC'!K:K)+SUMIF('MOMENTO DE TRANSPORTE - AUX'!A:A,'RESUMO MODULO TOTAL'!C46,'MOMENTO DE TRANSPORTE - AUX'!K:K) -> 17906.406 | I46: =ROUND(IF(D46="CODEVASF",VLOOKUP(C46,'CPU CODEVASF'!E:I,5,FALSE),VLOOKUP(C46,'SINTÉTICO SICRO'!A:D,4,FALSE)),6) -> 1.35 | J46: =TRUNC(_xlfn.IFS(F46="SERV",I46*(1+$L$5),F46="SERV DIF",I46*(1+$L$6),F46="FORN",I46*(1+$L$7)),2) -> 1.66 | K46: 24173.64 | L46: 29724.63 | N46: PAVIMENTAÇÃO
B47: 9.8 | C47: 5914329 | D47: SICRO | E47: =VLOOKUP(C47,'SINTÉTICO SICRO'!$A$4:$D$1048576,2,0) -> Transporte com caminhão basculante de 6 m³ - rodovia em revestimento primário | F47: SERV | G47: tkm | H47: =SUMIF('MOMENTO DE TRANSPORTE - PRINC'!A:A,'RESUMO MODULO TOTAL'!C47,'MOMENTO DE TRANSPORTE - PRINC'!K:K)+SUMIF('MOMENTO DE TRANSPORTE - AUX'!A:A,'RESUMO MODULO TOTAL'!C47,'MOMENTO DE TRANSPORTE - AUX'!K:K) -> 17906.406 | I47: =ROUND(IF(D47="CODEVASF",VLOOKUP(C47,'CPU CODEVASF'!E:I,5,FALSE),VLOOKUP(C47,'SINTÉTICO SICRO'!A:D,4,FALSE)),6) -> 1.08 | J47: =TRUNC(_xlfn.IFS(F47="SERV",I47*(1+$L$5),F47="SERV DIF",I47*(1+$L$6),F47="FORN",I47*(1+$L$7)),2) -> 1.33 | K47: 19338.91 | L47: 23815.51 | N47: PAVIMENTAÇÃO
B48: 9.9 | C48: 5914344 | D48: SICRO | E48: =VLOOKUP(C48,'SINTÉTICO SICRO'!$A$4:$D$1048576,2,0) -> Transporte com caminhão basculante de 6 m³ - rodovia pavimentada | F48: SERV | G48: tkm | H48: =SUMIF('MOMENTO DE TRANSPORTE - PRINC'!A:A,'RESUMO MODULO TOTAL'!C48,'MOMENTO DE TRANSPORTE - PRINC'!K:K)+SUMIF('MOMENTO DE TRANSPORTE - AUX'!A:A,'RESUMO MODULO TOTAL'!C48,'MOMENTO DE TRANSPORTE - AUX'!K:K) -> 143251.248 | I48: =ROUND(IF(D48="CODEVASF",VLOOKUP(C48,'CPU CODEVASF'!E:I,5,FALSE),VLOOKUP(C48,'SINTÉTICO SICRO'!A:D,4,FALSE)),6) -> 0.88 | J48: =TRUNC(_xlfn.IFS(F48="SERV",I48*(1+$L$5),F48="SERV DIF",I48*(1+$L$6),F48="FORN",I48*(1+$L$7)),2) -> 1.08 | K48: 126061.09 | L48: 154711.34 | N48: PAVIMENTAÇÃO
B49: TOTAL GERAL DA OBRA COM BDI | K49: =SUM(K10,K13,K16,K18,K23,K28,K33,K37,K39) -> 17124151.7 | L49: =SUM(L10,L13,L16,L18,L23,L28,L33,L37,L39) -> 
B52: CONTRATAÇÃO DE SERVIÇOS DE CAPA ASFÁLTICA EM CONCRETO BETUMINOSO USINADO A QUENTE (CBUQ), EM VIAS URBANAS E RURAIS INSERIDAS NA ÁREA DE ATUAÇÃO DA CODEVASF, NO ESTADO DO PIAUÍ - REGIÃO SUL
L59: 20463100

Sheet CRONOGRAMA TOTAL
A2: ='RESUMO MODULO TOTAL'!B52 -> CONTRATAÇÃO DE SERVIÇOS DE CAPA ASFÁLTICA EM CONCRETO BETUMINOSO USINADO A QUENTE (CBUQ), EM VIAS URBANAS E RURAIS INSERIDAS NA ÁREA DE ATUAÇÃO DA CODEVASF, NO ESTADO DO PIAUÍ - REGIÃO SUL
A3: Cronograma Físico e Financeiro
A4: Item | B4: Descrição | C4: Total Por Etapa | D4: 30 DIAS | E4: 60 DIAS | F4: 90 DIAS | G4: 120 DIAS | H4: 150 DIAS | I4: 180 DIAS | J4: 210 DIAS | K4: 240 DIAS | L4: 270 DIAS | M4: 300 DIAS | N4: 330 DIAS | O4: 360 DIAS
B5: ='RESUMO MODULO TOTAL'!E10 -> SERVIÇOS PRELIMINARES | C5: =SUM(D5:O5) -> 1 | G5: 0.5 | O5: 0.5
C6: ='RESUMO MODULO TOTAL'!L10 -> 466519 | G6: =$C$6*G5 -> 233259.5 | O6: =$C$6*O5 -> 233259.5 | P6: =SUM(D6:O6) -> 466519 | Q6: =IF(P6=C6,"OK","") -> OK
B7: ='RESUMO MODULO TOTAL'!E13 -> INSTALAÇÃO DE CANTEIRO | C7: =SUM(D7:O7) -> 1 | G7: 0.1 | H7: 0.5 | I7: 0.4
C8: ='RESUMO MODULO TOTAL'!L13 -> 331906.46 | D8: =$C$8*D7 -> 0 | E8: =$C$8*E7 -> 0 | F8: 0 | G8: 33190.646 | H8: 165953.23 | I8: 132762.584 | J8: 0 | K8: 0 | L8: 0 | M8: 0 | N8: 0 | O8: 0 | P8: =SUM(D8:O8) -> 331906.46 | Q8: =IF(P8=C8,"OK","") -> OK
B9: ='RESUMO MODULO TOTAL'!E16 -> ADMINISTRAÇÃO LOCAL DA OBRA | C9: =SUM(D9:O9) ->  | D9: =(D6+D8+D12+D14+D16+D18+D20+D22)/($O$29-$C$10) ->  | E9: =(E6+E8+E12+E14+E16+E18+E20+E22)/($O$29-$C$10) -> 
C10: ='RESUMO MODULO TOTAL'!L16 -> 1205773.19 | D10: =$C$10*D9 ->  | E10: =$C$10*E9 ->  | F10: =$C$10*F9 ->  | P10: =SUM(D10:O10) ->  | Q10: =IF(P10=C10,"OK","") -> 
B11: ='RESUMO MODULO TOTAL'!E18 -> PAVIMENTAÇÃO | C11: =SUM(D11:O11) -> 1 | G11: =1/6 -> 0.1666666667 | H11: =1/6 -> 0.1666666667 | I11: 0.1666666667 | J11: 0.1666666667 | K11: 0.1666666667 | L11: 0.1666666667
C12: ='RESUMO MODULO TOTAL'!L18 -> 6810469.05 | D12: =$C$14*D11 ->  | E12: =$C$12*E11 -> 0 | F12: 0 | G12: 1135078.175 | H12: 1135078.175 | I12: 1135078.175 | J12: 1135078.175 | K12: 1135078.175 | L12: 1135078.175 | M12: 0 | N12: 0 | O12: 0 | P12: =SUM(D12:O12) ->  | Q12: =IF(P12=C12,"OK","") -> 
B13: ='RESUMO MODULO TOTAL'!E23 -> AQUISIÇÃO E TRANSPORTE DO MATERIAL BETUMINOSO | C13: =SUM(D13:O13) -> 1 | G13: =1/6 -> 0.1666666667 | H13: 0.1666666667 | I13: 0.1666666667 | J13: 0.1666666667 | K13: 0.1666666667 | L13: 0.1666666667
C14: ='RESUMO MODULO TOTAL'!L23 ->  | D14: =$C$14*D13 ->  | E14: =$C$14*E13 ->  | P14: =SUM(D14:O14) ->  | Q14: =IF(P14=C14,"OK","") -> 
B15: ='RESUMO MODULO TOTAL'!E28 -> SINALIZAÇÃO | C15: =SUM(D15:O15) -> 1 | O15: 1
C16: ='RESUMO MODULO TOTAL'!L28 -> 368766.39 | D16: =$C$16*D15 -> 0 | E16: =$C$16*E15 -> 0 | F16: 0 | G16: 0 | H16: 0 | I16: 0 | J16: 0 | K16: 0 | L16: 0 | M16: 0 | N16: 0 | O16: 368766.39 | P16: =SUM(D16:O16) -> 368766.39 | Q16: =IF(P16=C16,"OK","") -> OK
B17: ='RESUMO MODULO TOTAL'!E33 -> DRENAGEM | C17: =SUM(D17:O17) -> 1 | M17: 0.5 | N17: 0.5
C18: ='RESUMO MODULO TOTAL'!L33 -> 186173.6 | D18: =$C$18*D17 -> 0 | E18: =$C$18*E17 -> 0 | F18: 0 | G18: 0 | H18: 0 | I18: 0 | J18: 0 | K18: 0 | L18: 0 | M18: 93086.8 | N18: 93086.8 | O18: 0 | P18: =SUM(D18:O18) -> 186173.6 | Q18: =IF(P18=C18,"OK","") -> OK
B19: ='RESUMO MODULO TOTAL'!E37 -> PROJETO EXECUTIVO | C19: =SUM(D19:O19) -> 1 | D19: 0.35 | E19: 0.35 | F19: 0.3
C20: ='RESUMO MODULO TOTAL'!L37 -> 941780 | D20: =$C$20*D19 -> 329623 | E20: =$C$20*E19 -> 329623 | F20: 282534 | G20: 0 | H20: 0 | I20: 0 | J20: 0 | K20: 0 | L20: 0 | M20: 0 | N20: 0 | O20: 0 | P20: =SUM(D20:O20) -> 941780 | Q20: =IF(P20=C20,"OK","") -> OK
B21: ='RESUMO MODULO TOTAL'!E39 -> MOMENTO DE TRANSPORTE | C21: =SUM(D21:O21) -> 1 | G21: =1/6 -> 0.1666666667 | H21: =1/6 -> 0.1666666667 | I21: 0.1666666667 | J21: 0.1666666667 | K21: 0.1666666667 | L21: 0.1666666667
C22: ='RESUMO MODULO TOTAL'!L39 -> 1101580.99 | D22: =$C$22*D21 -> 0 | E22: =$C$22*E21 -> 0 | F22: 0 | G22: 183596.8317 | H22: 183596.8317 | I22: 183596.8317 | J22: 183596.8317 | K22: 183596.8317 | L22: 183596.8317 | M22: 0 | N22: 0 | O22: 0 | P22: =SUM(D22:O22) -> 1101580.99 | Q22: =IF(P22=C22,"OK","") -> OK
A24: Porcentagem | D24: =SUM(D6+D8+D10+D12+D14+D16+D18+D20+D22)/$O$29 ->  | E24: =SUM(E6+E8+E10+E12+E14+E16+E18+E20+E22)/$O$29 -> 
A25: Custo | D25: =$O$29*D24 ->  | E25: =$O$29*E24 ->  | F25: =$O$29*F24 -> 
A26: Porcentagem Acumulado | D26: =D24 ->  | E26: =D26+E24 ->  | F26: =E26+F24 ->  | O26: =N26+O24 -> 
A27: Custo Acumulado | D27: =D25 ->  | E27: =D27+E25 ->  | O27: =INT(N27+O25) -> 
D29: Total Geral | N29: R$ | O29: =INT(C6+C8+C10+C12+C14+C16+C18+C20+C22) -> 
O32: =O27-O29 -> 

Sheet Mob
A4: =#REF! -> 
A5: MOBILIZAÇÃO/DESMOBILIZAÇÃO (MOB) | F5: Frentes de serviços | H5: ='MC MODULO'!G1 -> 31
F6: Distância da Capital ao Canteiro: | H6: 50 | I6: Fica a cargo de cada SR colocar a distancia adequada de acordo com o historico de mobilização
F8: Velocidade média de transporte (pavim.): | H8: 60
A10: Transporte dos equipamentos
A11: CODIGO | B11: EQUIPAMENTO | C11: VEÍCULO TRANSPORTADOR | D11: QTDE | E11: K | F11: FU | G11: CUSTO DO TRANSPORTE
G12: (R$/h) | H12: (R$)/km
A13: E9524 | B13: =VLOOKUP(A13,Equipamentos!$A:$K,2,FALSE) -> Motoniveladora - 93 kW | C13: =IFERROR(INDEX('Tabelas 2 e 3 mob'!A:K,MATCH(A13,'Tabelas 2 e 3 mob'!A:A,0),9),"ERRO") -> E9665 | D13: 0 | E13: 2 | F13: 1 | G13: =IF(C13="Veículo(s) da própria frota.",0,INDEX(Equipamentos!B:K,MATCH(C13,Equipamentos!A:A,0),9)) -> 422.4322 | H13: =((D13*E13*F13)/$H$8)*G13 -> 0
A14: E9526 | B14: =VLOOKUP(A14,Equipamentos!$A:$K,2,FALSE) -> Retroescavadeira de pneus - capacidade da caçamba da pá-carregadeira de 0,76 m³ e da retroescavadeira de 0,29 m³ - 58 kW | C14: =IFERROR(INDEX('Tabelas 2 e 3 mob'!A:K,MATCH(A14,'Tabelas 2 e 3 mob'!A:A,0),9),"ERRO") -> E9665 | D14: 0 | E14: 2 | F14: 1 | G14: =IF(C14="Veículo(s) da própria frota.",0,INDEX(Equipamentos!B:K,MATCH(C14,Equipamentos!A:A,0),9)) -> 422.4322 | H14: =((D14*E14*F14)/$H$8)*G14 -> 0
A15: E9577 | B15: =VLOOKUP(A15,Equipamentos!$A:$K,2,FALSE) -> Trator agrícola sobre pneus - 77 kW | C15: =IFERROR(INDEX('Tabelas 2 e 3 mob'!A:K,MATCH(A15,'Tabelas 2 e 3 mob'!A:A,0),9),"ERRO") -> E9665 | D15: 0 | E15: 2 | F15: 0.5 | G15: =IF(C15="Veículo(s) da própria frota.",0,INDEX(Equipamentos!B:K,MATCH(C15,Equipamentos!A:A,0),9)) -> 422.4322 | H15: 0
A16: E9518 | B16: =VLOOKUP(A16,Equipamentos!$A:$K,2,FALSE) -> Grade de 24 discos rebocável de D = 60 cm (24") | C16: =IFERROR(INDEX('Tabelas 2 e 3 mob'!A:K,MATCH(A16,'Tabelas 2 e 3 mob'!A:A,0),9),"ERRO") -> Veículo(s) da própria frota. | D16: 1 | E16: 2 | F16: 0 | G16: =IF(C16="Veículo(s) da própria frota.",0,INDEX(Equipamentos!B:K,MATCH(C16,Equipamentos!A:A,0),9)) -> 0 | H16: 0
A17: E9530 | B17: =VLOOKUP(A17,Equipamentos!$A:$K,2,FALSE) -> Rolo compactador liso vibratório autopropelido por pneus de 11 t - 97 kW | C17: =IFERROR(INDEX('Tabelas 2 e 3 mob'!A:K,MATCH(A17,'Tabelas 2 e 3 mob'!A:A,0),9),"ERRO") -> E9666 | D17: 0 | E17: 2 | F17: 0.5 | G17: =IF(C17="Veículo(s) da própria frota.",0,INDEX(Equipamentos!B:K,MATCH(C17,Equipamentos!A:A,0),9)) -> 472.1302 | H17: 0
A18: E9558 | B18: =VLOOKUP(A18,Equipamentos!$A:$K,2,FALSE) -> Tanque de estocagem de asfalto com capacidade de 30.000 l | C18: =IFERROR(INDEX('Tabelas 2 e 3 mob'!A:K,MATCH(A18,'Tabelas 2 e 3 mob'!A:A,0),9),"ERRO") -> E9665 | D18: 1 | E18: 2 | F18: 1 | G18: =IF(C18="Veículo(s) da própria frota.",0,INDEX(Equipamentos!B:K,MATCH(C18,Equipamentos!A:A,0),9)) -> 422.4322 | H18: 14.08107333
A19: E9758 | B19: =VLOOKUP(A19,Equipamentos!$A:$K,2,FALSE) -> Vibroacabadora de asfalto sobre pneus - 97 kW | C19: =IFERROR(INDEX('Tabelas 2 e 3 mob'!A:K,MATCH(A19,'Tabelas 2 e 3 mob'!A:A,0),9),"ERRO") -> E9018 | D19: 0 | E19: 2 | F19: 0.5 | G19: =IF(C19="Veículo(s) da própria frota.",0,INDEX(Equipamentos!B:K,MATCH(C19,Equipamentos!A:A,0),9)) -> 561.7271 | H19: 0
A20: E9685 | B20: =VLOOKUP(A20,Equipamentos!$A:$K,2,FALSE) -> Rolo compactador pé de carneiro vibratório autopropelido por pneus de 11,6 t - 82 kW | C20: =IFERROR(INDEX('Tabelas 2 e 3 mob'!A:K,MATCH(A20,'Tabelas 2 e 3 mob'!A:A,0),9),"ERRO") -> E9666 | D20: 0 | E20: 2 | F20: 0.5 | G20: =IF(C20="Veículo(s) da própria frota.",0,INDEX(Equipamentos!B:K,MATCH(C20,Equipamentos!A:A,0),9)) -> 472.1302 | H20: 0
A21: E9605 | B21: =VLOOKUP(A21,Equipamentos!$A:$K,2,FALSE) -> Caminhão tanque com capacidade de 6.000 l - 136 kW | C21: =IFERROR(INDEX('Tabelas 2 e 3 mob'!A:K,MATCH(A21,'Tabelas 2 e 3 mob'!A:A,0),9),"ERRO") -> E9605 | D21: 0 | E21: 1 | F21: 1 | G21: =IF(C21="Veículo(s) da própria frota.",0,INDEX(Equipamentos!B:K,MATCH(C21,Equipamentos!A:A,0),9)) -> 276.8761 | H21: 0
A22: E9579 | B22: =VLOOKUP(A22,Equipamentos!$A:$K,2,FALSE) -> Caminhão basculante com capacidade de 10 m³ - 210 kW | C22: =IFERROR(INDEX('Tabelas 2 e 3 mob'!A:K,MATCH(A22,'Tabelas 2 e 3 mob'!A:A,0),9),"ERRO") -> E9579 | D22: 5 | E22: 1 | F22: 1 | G22: =IF(C22="Veículo(s) da própria frota.",0,INDEX(Equipamentos!B:K,MATCH(C22,Equipamentos!A:A,0),9)) -> 305.7457 | H22: 25.47880833
A23: E9509 | B23: =VLOOKUP(A23,Equipamentos!$A:$K,2,FALSE) -> Caminhão tanque distribuidor de asfalto com capacidade de 6.000 l - 7 kW/136 kW | C23: =IFERROR(INDEX('Tabelas 2 e 3 mob'!A:K,MATCH(A23,'Tabelas 2 e 3 mob'!A:A,0),9),"ERRO") -> E9509 | D23: 1 | E23: 1 | F23: 1 | G23: =IF(C23="Veículo(s) da própria frota.",0,INDEX(Equipamentos!B:K,MATCH(C23,Equipamentos!A:A,0),9)) -> 331.719 | H23: 5.52865
A24: E9762 | B24: =VLOOKUP(A24,Equipamentos!$A:$K,2,FALSE) -> Rolo compactador de pneus autopropelido de 27 t - 85 kW | C24: =IFERROR(INDEX('Tabelas 2 e 3 mob'!A:K,MATCH(A24,'Tabelas 2 e 3 mob'!A:A,0),9),"ERRO") -> E9666 | D24: 1 | E24: 2 | F24: 0.5 | G24: =IF(C24="Veículo(s) da própria frota.",0,INDEX(Equipamentos!B:K,MATCH(C24,Equipamentos!A:A,0),9)) -> 472.1302 | H24: 7.868836667
A25: E9681 | B25: =VLOOKUP(A25,Equipamentos!$A:$K,2,FALSE) -> Rolo compactador liso tandem vibratório autopropelido de 10,4 t - 82 kW | C25: =IFERROR(INDEX('Tabelas 2 e 3 mob'!A:K,MATCH(A25,'Tabelas 2 e 3 mob'!A:A,0),9),"ERRO") -> E9666 | D25: 1 | E25: 2 | F25: 0.5 | G25: =IF(C25="Veículo(s) da própria frota.",0,INDEX(Equipamentos!B:K,MATCH(C25,Equipamentos!A:A,0),9)) -> 472.1302 | H25: 7.868836667
A26: E9545 | B26: =VLOOKUP(A26,Equipamentos!$A:$K,2,FALSE) -> Vibroacabadora de asfalto sobre esteiras - 97 kW | C26: =IFERROR(INDEX('Tabelas 2 e 3 mob'!A:K,MATCH(A26,'Tabelas 2 e 3 mob'!A:A,0),9),"ERRO") -> E9018 | D26: 1 | E26: 2 | F26: 0.5 | G26: =IF(C26="Veículo(s) da própria frota.",0,INDEX(Equipamentos!B:K,MATCH(C26,Equipamentos!A:A,0),9)) -> 561.7271 | H26: 9.362118333
A27: E9571 | B27: =VLOOKUP(A27,Equipamentos!$A:$K,2,FALSE) -> Caminhão tanque com capacidade de 10.000 l - 188 kW | C27: =IFERROR(INDEX('Tabelas 2 e 3 mob'!A:K,MATCH(A27,'Tabelas 2 e 3 mob'!A:A,0),9),"ERRO") -> E9571 | D27: 0 | E27: 1 | F27: 1 | G27: =IF(C27="Veículo(s) da própria frota.",0,INDEX(Equipamentos!B:K,MATCH(C27,Equipamentos!A:A,0),9)) -> 357.5728 | H27: 0
A28: E9514 | B28: =VLOOKUP(A28,Equipamentos!$A:$K,2,FALSE) -> Distribuidor de agregados sobre pneus autopropelido - 130 kW | C28: =IFERROR(INDEX('Tabelas 2 e 3 mob'!A:K,MATCH(A28,'Tabelas 2 e 3 mob'!A:A,0),9),"ERRO") -> E9665 | D28: 0 | E28: 2 | F28: 0.5 | G28: =IF(C28="Veículo(s) da própria frota.",0,INDEX(Equipamentos!B:K,MATCH(C28,Equipamentos!A:A,0),9)) -> 422.4322 | H28: 0
A29: E9511 | B29: =VLOOKUP(A29,Equipamentos!$A:$K,2,FALSE) -> Carregadeira de pneus com capacidade de 3,40 m³ - 195 kW | C29: =IFERROR(INDEX('Tabelas 2 e 3 mob'!A:K,MATCH(A29,'Tabelas 2 e 3 mob'!A:A,0),9),"ERRO") -> E9665 | D29: 0 | E29: 2 | F29: 1 | G29: =IF(C29="Veículo(s) da própria frota.",0,INDEX(Equipamentos!B:K,MATCH(C29,Equipamentos!A:A,0),9)) -> 422.4322 | H29: 0
A30: E9779 | B30: =VLOOKUP(A30,Equipamentos!$A:$K,2,FALSE) -> Grupo gerador - 113 kVA | C30: =IFERROR(INDEX('Tabelas 2 e 3 mob'!A:K,MATCH(A30,'Tabelas 2 e 3 mob'!A:A,0),9),"ERRO") -> Veículo(s) da própria frota. | D30: 1 | E30: 2 | F30: 0 | G30: =IF(C30="Veículo(s) da própria frota.",0,INDEX(Equipamentos!B:K,MATCH(C30,Equipamentos!A:A,0),9)) -> 0 | H30: 0
A31: E9559 | B31: =VLOOKUP(A31,Equipamentos!$A:$K,2,FALSE) -> Aquecedor de fluido térmico - 12 kW | C31: =IFERROR(INDEX('Tabelas 2 e 3 mob'!A:K,MATCH(A31,'Tabelas 2 e 3 mob'!A:A,0),9),"ERRO") -> Veículo(s) da própria frota. | D31: 1 | E31: 2 | F31: 0 | G31: =IF(C31="Veículo(s) da própria frota.",0,INDEX(Equipamentos!B:K,MATCH(C31,Equipamentos!A:A,0),9)) -> 0 | H31: 0
A32: E9584 | B32: =VLOOKUP(A32,Equipamentos!$A:$K,2,FALSE) -> Carregadeira de pneus com capacidade de 1,72 m³ - 113 kW | C32: =IFERROR(INDEX('Tabelas 2 e 3 mob'!A:K,MATCH(A32,'Tabelas 2 e 3 mob'!A:A,0),9),"ERRO") -> E9665 | D32: 0 | E32: 2 | F32: 1 | G32: =IF(C32="Veículo(s) da própria frota.",0,INDEX(Equipamentos!B:K,MATCH(C32,Equipamentos!A:A,0),9)) -> 422.4322 | H32: 0
A33: E9021 | B33: =VLOOKUP(A33,Equipamentos!$A:$K,2,FALSE) -> Grupo gerador - 456 kVA | C33: =IFERROR(INDEX('Tabelas 2 e 3 mob'!A:K,MATCH(A33,'Tabelas 2 e 3 mob'!A:A,0),9),"ERRO") -> E9508 | D33: 1 | E33: 2 | F33: 1 | G33: =IF(C33="Veículo(s) da própria frota.",0,INDEX(Equipamentos!B:K,MATCH(C33,Equipamentos!A:A,0),9)) -> 193.0334 | H33: 6.434446667
A34: E9687 | B34: =VLOOKUP(A34,Equipamentos!$A:$K,2,FALSE) -> Caminhão carroceria com capacidade de 5 t - 120 kW | C34: =IFERROR(INDEX('Tabelas 2 e 3 mob'!A:K,MATCH(A34,'Tabelas 2 e 3 mob'!A:A,0),9),"ERRO") -> E9687 | D34: 1 | E34: 1 | F34: 1 | G34: =IF(C34="Veículo(s) da própria frota.",0,INDEX(Equipamentos!B:K,MATCH(C34,Equipamentos!A:A,0),9)) -> 172.265 | H34: 2.871083333
A35: E9667 | B35: =VLOOKUP(A35,Equipamentos!$A:$K,2,FALSE) -> Caminhão basculante com capacidade de 14 m³ - 210 kW | C35: =IFERROR(INDEX('Tabelas 2 e 3 mob'!A:K,MATCH(A35,'Tabelas 2 e 3 mob'!A:A,0),9),"ERRO") -> E9667 | D35: 0 | E35: 1 | F35: 1 | G35: =IF(C35="Veículo(s) da própria frota.",0,INDEX(Equipamentos!B:K,MATCH(C35,Equipamentos!A:A,0),9)) -> 319.0394 | H35: 0
A36: E9644 | B36: =VLOOKUP(A36,Equipamentos!$A:$K,2,FALSE) -> Caminhão demarcador de faixas com sistema de pintura a frio - 28 kW/129 kW | C36: =IFERROR(INDEX('Tabelas 2 e 3 mob'!A:K,MATCH(A36,'Tabelas 2 e 3 mob'!A:A,0),9),"ERRO") -> E9644 | D36: 1 | E36: 1 | F36: 1 | G36: =IF(C36="Veículo(s) da própria frota.",0,INDEX(Equipamentos!B:K,MATCH(C36,Equipamentos!A:A,0),9)) -> 456.2076 | H36: 7.60346
A37: E9592 | B37: =VLOOKUP(A37,Equipamentos!$A:$K,2,FALSE) -> Caminhão carroceria com capacidade de 15 t - 188 kW | C37: =IFERROR(INDEX('Tabelas 2 e 3 mob'!A:K,MATCH(A37,'Tabelas 2 e 3 mob'!A:A,0),9),"ERRO") -> E9592 | D37: 1 | E37: 1 | F37: 1 | G37: =IF(C37="Veículo(s) da própria frota.",0,INDEX(Equipamentos!B:K,MATCH(C37,Equipamentos!A:A,0),9)) -> 281.2094 | H37: 4.686823333
A38: E9540 | B38: =VLOOKUP(A38,Equipamentos!$A:$K,2,FALSE) -> Trator sobre esteiras com lâmina - 127 kW | C38: =IFERROR(INDEX('Tabelas 2 e 3 mob'!A:K,MATCH(A38,'Tabelas 2 e 3 mob'!A:A,0),9),"ERRO") -> E9018 | D38: 0 | E38: 2 | F38: 0.5 | G38: =IF(C38="Veículo(s) da própria frota.",0,INDEX(Equipamentos!B:K,MATCH(C38,Equipamentos!A:A,0),9)) -> 561.7271 | H38: 0
A39: E9515 | B39: =VLOOKUP(A39,Equipamentos!$A:$K,2,FALSE) -> Escavadeira hidráulica sobre esteiras com caçamba com capacidade de 1,56 m³ - 118 kW | C39: =IFERROR(INDEX('Tabelas 2 e 3 mob'!A:K,MATCH(A39,'Tabelas 2 e 3 mob'!A:A,0),9),"ERRO") -> E9666 | D39: 0 | E39: 2 | F39: 1 | G39: =IF(C39="Veículo(s) da própria frota.",0,INDEX(Equipamentos!B:K,MATCH(C39,Equipamentos!A:A,0),9)) -> 472.1302 | H39: 0
A40: E9506 | B40: =VLOOKUP(A40,Equipamentos!$A:$K,2,FALSE) -> Caminhão basculante com capacidade de 6 m³ - 136 kW | C40: =IFERROR(INDEX('Tabelas 2 e 3 mob'!A:K,MATCH(A40,'Tabelas 2 e 3 mob'!A:A,0),9),"ERRO") -> E9506 | D40: 1 | E40: 1 | F40: 1 | G40: =IF(C40="Veículo(s) da própria frota.",0,INDEX(Equipamentos!B:K,MATCH(C40,Equipamentos!A:A,0),9)) -> 198.0705 | H40: 3.301175
A41: E9256 | B41: =VLOOKUP(A41,Equipamentos!$A:$K,2,FALSE) -> Equipamento para pintura com cal rebocável com dois bicos aplicadores e capacidade de 2.200 l | C41: =IFERROR(INDEX('Tabelas 2 e 3 mob'!A:K,MATCH(A41,'Tabelas 2 e 3 mob'!A:A,0),9),"ERRO") -> Veículo(s) da própria frota. | D41: 1 | E41: 2 | F41: 0 | G41: =IF(C41="Veículo(s) da própria frota.",0,INDEX(Equipamentos!B:K,MATCH(C41,Equipamentos!A:A,0),9)) -> 0 | H41: 0
A42: E9156 | B42: =VLOOKUP(A42,Equipamentos!$A:$K,2,FALSE) -> Soprador de ar costal - 2,6 kW | C42: =IFERROR(INDEX('Tabelas 2 e 3 mob'!A:K,MATCH(A42,'Tabelas 2 e 3 mob'!A:A,0),9),"ERRO") -> Veículo(s) da própria frota. | D42: 1 | E42: 2 | F42: 0 | G42: =IF(C42="Veículo(s) da própria frota.",0,INDEX(Equipamentos!B:K,MATCH(C42,Equipamentos!A:A,0),9)) -> 0 | H42: 0
A43: E9146 | B43: =VLOOKUP(A43,Equipamentos!$A:$K,2,FALSE) -> Caminhão silo com capacidade de 30 m³ - 368 kW | C43: =IFERROR(INDEX('Tabelas 2 e 3 mob'!A:K,MATCH(A43,'Tabelas 2 e 3 mob'!A:A,0),9),"ERRO") -> E9146 | D43: 1 | E43: 1 | F43: 1 | G43: =IF(C43="Veículo(s) da própria frota.",0,INDEX(Equipamentos!B:K,MATCH(C43,Equipamentos!A:A,0),9)) -> 668.498 | H43: 11.14163333
A44: E9599 | B44: =VLOOKUP(A44,Equipamentos!$A:$K,2,FALSE) -> Central de concreto com capacidade de 30 m³/h - dosadora RS | C44: =IFERROR(INDEX('Tabelas 2 e 3 mob'!A:K,MATCH(A44,'Tabelas 2 e 3 mob'!A:A,0),9),"ERRO") -> E9018 | D44: 0 | E44: 2 | F44: 1 | G44: =IF(C44="Veículo(s) da própria frota.",0,INDEX(Equipamentos!B:K,MATCH(C44,Equipamentos!A:A,0),9)) -> 561.7271 | H44: 0
A45: E9103 | B45: =VLOOKUP(A45,Equipamentos!$A:$K,2,FALSE) -> Extrusora para meio-fio de concreto - 10,44 kW | C45: =IFERROR(INDEX('Tabelas 2 e 3 mob'!A:K,MATCH(A45,'Tabelas 2 e 3 mob'!A:A,0),9),"ERRO") -> Veículo(s) da própria frota. | D45: 0 | E45: 2 | F45: 0 | G45: =IF(C45="Veículo(s) da própria frota.",0,INDEX(Equipamentos!B:K,MATCH(C45,Equipamentos!A:A,0),9)) -> 0 | H45: 0
A46: E9071 | B46: =VLOOKUP(A46,Equipamentos!$A:$K,2,FALSE) -> Transportador manual carrinho de mão com capacidade de 80 l | C46: =IFERROR(INDEX('Tabelas 2 e 3 mob'!A:K,MATCH(A46,'Tabelas 2 e 3 mob'!A:A,0),9),"ERRO") -> Veículo(s) da própria frota. | D46: 0 | E46: 2 | F46: 0 | G46: =IF(C46="Veículo(s) da própria frota.",0,INDEX(Equipamentos!B:K,MATCH(C46,Equipamentos!A:A,0),9)) -> 0 | H46: 0
A47: E9064 | B47: =VLOOKUP(A47,Equipamentos!$A:$K,2,FALSE) -> Transportador manual gerica com capacidade de 180 l | C47: =IFERROR(INDEX('Tabelas 2 e 3 mob'!A:K,MATCH(A47,'Tabelas 2 e 3 mob'!A:A,0),9),"ERRO") -> Veículo(s) da própria frota. | D47: 0 | E47: 2 | F47: 0 | G47: =IF(C47="Veículo(s) da própria frota.",0,INDEX(Equipamentos!B:K,MATCH(C47,Equipamentos!A:A,0),9)) -> 0 | H47: 0
A48: E9066 | B48: =VLOOKUP(A48,Equipamentos!$A:$K,2,FALSE) -> Grupo gerador - 14 kVA | C48: =IFERROR(INDEX('Tabelas 2 e 3 mob'!A:K,MATCH(A48,'Tabelas 2 e 3 mob'!A:A,0),9),"ERRO") -> Veículo(s) da própria frota. | D48: 0 | E48: 2 | F48: 0 | G48: =IF(C48="Veículo(s) da própria frota.",0,INDEX(Equipamentos!B:K,MATCH(C48,Equipamentos!A:A,0),9)) -> 0 | H48: 0
A49: E9535 | B49: =VLOOKUP(A49,Equipamentos!$A:$K,2,FALSE) -> Serra circular com bancada - D = 30 cm - 4 kW | C49: =IFERROR(INDEX('Tabelas 2 e 3 mob'!A:K,MATCH(A49,'Tabelas 2 e 3 mob'!A:A,0),9),"ERRO") -> Veículo(s) da própria frota. | D49: 0 | E49: 2 | F49: 0 | G49: =IF(C49="Veículo(s) da própria frota.",0,INDEX(Equipamentos!B:K,MATCH(C49,Equipamentos!A:A,0),9)) -> 0 | H49: 0
A50: E9507 | B50: =VLOOKUP(A50,Equipamentos!$A:$K,2,FALSE) -> Plotadora de recorte com computador e programa computacional | C50: =IFERROR(INDEX('Tabelas 2 e 3 mob'!A:K,MATCH(A50,'Tabelas 2 e 3 mob'!A:A,0),9),"ERRO") -> Veículo(s) da própria frota. | D50: 0 | E50: 2 | F50: 0 | G50: =IF(C50="Veículo(s) da própria frota.",0,INDEX(Equipamentos!B:K,MATCH(C50,Equipamentos!A:A,0),9)) -> 0 | H50: 0
A51: E9568 | B51: =VLOOKUP(A51,Equipamentos!$A:$K,2,FALSE) -> Furadeira de impacto de 12,5 mm - 0,80 kW | C51: =IFERROR(INDEX('Tabelas 2 e 3 mob'!A:K,MATCH(A51,'Tabelas 2 e 3 mob'!A:A,0),9),"ERRO") -> Veículo(s) da própria frota. | D51: 0 | E51: 2 | F51: 0 | G51: =IF(C51="Veículo(s) da própria frota.",0,INDEX(Equipamentos!B:K,MATCH(C51,Equipamentos!A:A,0),9)) -> 0 | H51: 0
A52: E9753 | B52: =VLOOKUP(A52,Equipamentos!$A:$K,2,FALSE) -> Grupo gerador - 23 kVA | C52: =IFERROR(INDEX('Tabelas 2 e 3 mob'!A:K,MATCH(A52,'Tabelas 2 e 3 mob'!A:A,0),9),"ERRO") -> Veículo(s) da própria frota. | D52: 0 | E52: 2 | F52: 0 | G52: =IF(C52="Veículo(s) da própria frota.",0,INDEX(Equipamentos!B:K,MATCH(C52,Equipamentos!A:A,0),9)) -> 0 | H52: 0
A53: E9623 | B53: =VLOOKUP(A53,Equipamentos!$A:$K,2,FALSE) -> Máquina de bancada guilhotina - 4,00 kW | C53: =IFERROR(INDEX('Tabelas 2 e 3 mob'!A:K,MATCH(A53,'Tabelas 2 e 3 mob'!A:A,0),9),"ERRO") -> Veículo(s) da própria frota. | D53: 0 | E53: 2 | F53: 0 | G53: =IF(C53="Veículo(s) da própria frota.",0,INDEX(Equipamentos!B:K,MATCH(C53,Equipamentos!A:A,0),9)) -> 0 | H53: 0
A54: E9622 | B54: =VLOOKUP(A54,Equipamentos!$A:$K,2,FALSE) -> Máquina de bancada universal para corte de chapa - 1,50 kW | C54: =IFERROR(INDEX('Tabelas 2 e 3 mob'!A:K,MATCH(A54,'Tabelas 2 e 3 mob'!A:A,0),9),"ERRO") -> Veículo(s) da própria frota. | D54: 0 | E54: 2 | F54: 0 | G54: =IF(C54="Veículo(s) da própria frota.",0,INDEX(Equipamentos!B:K,MATCH(C54,Equipamentos!A:A,0),9)) -> 0 | H54: 0
A55: E9678 | B55: =VLOOKUP(A55,Equipamentos!$A:$K,2,FALSE) -> Fresadora a frio - 455 kW | C55: =IFERROR(INDEX('Tabelas 2 e 3 mob'!A:K,MATCH(A55,'Tabelas 2 e 3 mob'!A:A,0),9),"ERRO") -> E9666 | D55: 1 | E55: 2 | F55: 1 | G55: =IF(C55="Veículo(s) da própria frota.",0,INDEX(Equipamentos!B:K,MATCH(C55,Equipamentos!A:A,0),9)) -> 472.1302 | H55: 15.73767333
G56: TOTAL | H56: =SUM(H13:H55) -> 121.9646183
A59: CUSTO TOTAL MOBILIZAÇÃO E DESMOBILIZAÇÃO
A60: DESCRIÇÃO | B60: VALOR
A61: Custo Mobilização (km) | B61: =H56 -> 121.9646183
A62: BDI (%) | B62: =BDI!C16 -> 0.2339
A63: Custo Mobilização (R$/km) com BDI | B63: =B61+(B61*B62) -> 150.4921426
A64: Total de Frentes | B64: ='MC MODULO'!G1 -> 31
A65: Custo Mobilização (frentes x distancia) | B65: =B63*H6*B64 -> 233262.821

Sheet Canteiro
A4: CANTEIRO DE OBRAS PARA CONSTRUÇAO RODOVIÁRIA
A5: Descrição dos serviços | B5: Tipo de container | C5: Unidade | D5: Quantidade | E5: Preço unitário (R$) | F5: Total (R$)
A6: Escritório e seção técnica
A7: =VLOOKUP(B7,'INSUMOS SINAPI'!$A:$E,2,0) -> LOCACAO DE CONTAINER 2,30 X 6,00 M, ALT. 2,50 M, PARA ESCRITORIO, SEM DIVISORIAS INTERNAS E SEM SANITARIO (NAO INCLUI MOBILIZACAO/DESMOBILIZACAO) | B7: 10776 | C7: und | D7: 1 | E7: =VLOOKUP(B7,'INSUMOS SINAPI'!$A:$E,5,0) -> 1015.62 | F7: =TRUNC(D7*E7,2) -> 1015.62
A8: Banheiro e vestiário
A9: =VLOOKUP(B9,'INSUMOS SINAPI'!$A:$E,2,0) -> LOCACAO DE CONTAINER 2,30 X 4,30 M, ALT. 2,50 M, PARA SANITARIO, COM 3 BACIAS, 4 CHUVEIROS, 1 LAVATORIO E 1 MICTORIO (NAO INCLUI MOBILIZACAO/DESMOBILIZACAO) | B9: 10777 | C9: und | D9: 1 | E9: =VLOOKUP(B9,'INSUMOS SINAPI'!$A:$E,5,0) -> 1476.04 | F9: =TRUNC(D9*E9,2) -> 1476.04
D10: TOTAL DO CANTEIRO | F10: =SUM(F7:F9) -> 2491.66
D11: DURAÇÃO (MESES) | E11: 0.5 | F11: =F10*E11 -> 1245.83
D12: BDI | F12: =BDI!C16 -> 0.2339
D13: TOTAL DO CANTEIRO (com BDI) | F13: =F11+(F11*F12) -> 1537.229637

Sheet Adm Local
A4: parcela fixa da administração local (mão de obra)
A5: Código | B5: Discriminação | C5: Unidade | D5: Quantidade | F5: Custo Unitário (R$) | H5: Custo Total (R$)
B6: Mão de Obra
B7: Gerência Técnica
B8: Geral
A9: P9955 | B9: Engenheiro chefe | C9: mês | D9: 0.5 | F9: =VLOOKUP(A9,'Pessoal Sicro'!$A$6:$G$118,6,0) -> 34473.2594 | H9: =F9*D9 -> 17236.6297
A10: P9840 | B10: Encarregado geral | C10: mês | D10: 0.5 | F10: =VLOOKUP(A10,'Pessoal Sicro'!$A$6:$G$118,6,0) -> 11501.5121 | H10: =F10*D10 -> 5750.75605
A11: P9897 | B11: Técnico de meio ambiente | C11: mês | D11: 0 | F11: =VLOOKUP(A11,'Pessoal Sicro'!$A$6:$G$118,6,0) -> 8048.5412 | H11: =F11*D11 -> 0
A12: P9948 | B12: Motorista | C12: mês | D12: 0 | F12: =VLOOKUP(A12,'Pessoal Sicro'!$A$6:$G$118,6,0) -> 6008.0336 | H12: =F12*D12 -> 0
A13: P9878 | B13: Secretária | C13: mês | D13: 0 | F13: =VLOOKUP(A13,'Pessoal Sicro'!$A$6:$G$118,6,0) -> 6830.99 | H13: =F13*D13 -> 0
F14: Subtotal do Item 1.1 | H14: =SUM(H9:I13) -> 22987.38575
B15: Auxiliar
A16: P9946 | B16: Engenheiro auxiliar | C16: mês | D16: 1 | F16: =VLOOKUP(A16,'Pessoal Sicro'!$A$6:$G$118,6,0) -> 24874.8163 | H16: =D16*F16 -> 24874.8163
A17: P9903 | B17: Auxiliar técnico | C17: mês | D17: 0 | F17: =VLOOKUP(A17,'Pessoal Sicro'!$A$6:$G$118,6,0) -> 4875.3669 | H17: =D17*F17 -> 0
F18: Subtotal do Item 1.2 | H18: =SUM(H16:I17) -> 24874.8163
B19: Gerência Administrativa
B20: Geral
A21: P9883 | B21: Chefe do setor administrativo | C21: mês | D21: 1 | F21: =VLOOKUP(A21,'Pessoal Sicro'!$A$6:$G$118,6,0) -> 7783.947 | H21: =F21*D21 -> 7783.947
A22: P9809 | B22: Encarregado administrativo | C22: mês | D22: 1 | F22: =VLOOKUP(A22,'Pessoal Sicro'!$A$6:$G$118,6,0) -> 7783.8336 | H22: =F22*D22 -> 7783.8336
A23: P9896 | B23: Porteiro | C23: mês | D23: 0 | F23: =VLOOKUP(A23,'Pessoal Sicro'!$A$6:$G$118,6,0) -> 4344.2089 | H23: =F23*D23 -> 0
A24: P9827 | B24: Vigia | C24: mês | D24: 0 | F24: =VLOOKUP(A24,'Pessoal Sicro'!$A$6:$G$118,6,0) -> 5190.1176 | H24: =F24*D24 -> 0
A25: P9948 | B25: Motorista | C25: mês | D25: 0 | F25: =VLOOKUP(A25,'Pessoal Sicro'!$A$6:$G$118,6,0) -> 6008.0336 | H25: =F25*D25 -> 0
F26: Subtotal do Item 1.3 | H26: =SUM(H21:I25) -> 15567.7806
B27: Auxiliar
A28: P9806 | B28: Auxiliar administrativo | C28: mês | D28: 1 | F28: =VLOOKUP(A28,'Pessoal Sicro'!$A$6:$G$118,6,0) -> 5091.0802 | H28: =F28*D28 -> 5091.0802
A29: P9842 | B29: Faxineiro | C29: mês | D29: 0 | F29: =VLOOKUP(A29,'Pessoal Sicro'!$A$6:$G$118,6,0) -> 4353.3801 | H29: =F29*D29 -> 0
F30: Subtotal do Item 1.4 | H30: =SUM(H28:I29) -> 5091.0802
H31: Total da Mão de Obra da Parcela Fixa | I31: =H30+H26+H18+H14 -> 68521.06285
A33: parcela fixa da administração local (veículos)
A34: Código | B34: Discriminação | C34: Unidade | D34: Quantidade | E34: Utilização Produtiva | F34: Utilização Improdutiva | G34: Custo Horário Produtivo (R$) | H34: Custo Horário Improdutivo (R$) | I34: Custo Total (R$)
A35: 2 | B35: Veículos
B36: Gerência Técnica
A37: 2.1 | B37: Geral
A38: E9093 | B38: Veículo Leve 53 kw | C38: mês | D38: 1 | E38: 44 | F38: 176 | G38: =VLOOKUP(A38,Equipamentos!$A$4:$K$541,10,0) -> 37.9171 | H38: =VLOOKUP(A38,Equipamentos!$A$4:$K$541,11,0) -> 6.7543 | I38: =((E38*G38)+(F38*H38))*D38 -> 2857.1092
A39: E9560 | B39: Ônibus coletivo - 175 kw | C39: mês | D39: 0 | E39: 44 | F39: 176 | G39: =VLOOKUP(A39,Equipamentos!$A$4:$K$541,10,0) -> 353.6381 | H39: =VLOOKUP(A39,Equipamentos!$A$4:$K$541,11,0) -> 106.3423 | I39: =((E39*G39)+(F39*H39))*D39 -> 0
H40: Subtotal do Item 2 | I40: =SUM(I38:I39) -> 2857.1092
A41: 2.2 | B41: Auxiliar
A42: E9093 | B42: Veículo Leve 53 kw | C42: mês | D42: 0 | E42: 44 | F42: 176 | G42: =G38 -> 37.9171 | H42: =H38 -> 6.7543 | I42: =((E42*G42)+(F42*H42))*D42 -> 0
H43: Subtotal do Item 2 | I43: =SUM(I42) -> 0
A44: 2.3 | B44: Gerência Administrativa
A45: E9093 | B45: Veículo Leve 53 kw | C45: mês | D45: 0 | E45: 44 | F45: 176 | G45: =G38 -> 37.9171 | H45: =H38 -> 6.7543 | I45: =((E45*G45)+(F45*H45))*D45 -> 0
H46: Subtotal do Item 2 | I46: =I45 -> 0
H47: Total dos Veículos da Parcela Fixa | I47: =I46+I43+I40 -> 2857.1092
A49: Composição de custo da equipe de produção de terraplenagem
A50: Código | B50: Discriminação | C50: Unidade | D50: Quantidade | F50: Custo Unitário (R$) | H50: Custo Total (R$)
B51: Equipe de Produção de Terraplenagem
A52: 3.1 | B52: Mão de Obra
A53: ='Pessoal Sicro'!A65 -> P9892 | B53: Encarregado de produção | C53: mês | D53: 0 | F53: =VLOOKUP(A53,'Pessoal Sicro'!$A$6:$G$118,6,0) -> 37.107 | H53: =F53*D53 -> 0
F54: Subtotal do Item 3.1 | H54: =SUM(H53:H53) -> 0
A55: Código | B55: Discriminação | C55: Unidade | D55: Quantidade | E55: Utilização Produtiva | F55: Utilização Improdutiva | G55: Custo Horário Produtivo (R$) | H55: Custo Horário Improdutivo (R$) | I55: Custo Total (R$)
A56: 3.2 | B56: Veículos
B57: Veículo Leve 53 kw | C57: mês | D57: 0 | E57: 44 | F57: 176 | G57: =G38 -> 37.9171 | H57: =H38 -> 6.7543 | I57: =((E57*G57)+(F57*H57))*D57 -> 0
H58: Subtotal do Item 3.2 | I58: =SUM(I57:I57) -> 0
H59: Total da Equipe de Produção de Terraplenagem | I59: =I58+H54 -> 0
A61: Composição de custo da equipe de produção de pavimentação
A62: Código | B62: Discriminação | C62: Unidade | D62: Quantidade | F62: Custo Unitário (R$) | H62: Custo Total (R$)
B63: Equipe de Produção de Pavimentação
A64: 3.1 | B64: Mão de Obra
A65: ='Pessoal Sicro'!A70 -> P9901 | B65: Encarregado de produção | C65: mês | D65: 1 | F65: =VLOOKUP(A65,'Pessoal Sicro'!$A$6:$G$118,6,0) -> 8281.7942 | H65: =F65*D65 -> 8281.7942
F66: Subtotal do Item 3.1 | H66: =SUM(H65:H65) -> 8281.7942
A67: Código | B67: Discriminação | C67: Unidade | D67: Quantidade | E67: Utilização Produtiva | F67: Utilização Improdutiva | G67: Custo Horário Produtivo (R$) | H67: Custo Horário Improdutivo (R$) | I67: Custo Total (R$)
A68: 3.2 | B68: Veículos
B69: Veículo Leve 53 kw | C69: mês | D69: 1 | E69: 44 | F69: 176 | G69: =$G$38 -> 37.9171 | H69: =$H$38 -> 6.7543 | I69: =((E69*G69)+(F69*H69))*D69 -> 2857.1092
H70: Subtotal do Item 3.2 | I70: =SUM(I69:I69) -> 2857.1092
H71: Total da Equipe de Produção de Pavimentação | I71: =I70+H66 -> 11138.9034
A73: Composição de custo da equipe de produção de drenagem
A74: Código | B74: Discriminação | C74: Unidade | D74: Quantidade | F74: Custo Unitário (R$) | H74: Custo Total (R$)
B75: Equipe de Produção de Pavimentação
A76: 3.1 | B76: Mão de Obra
A77: ='Pessoal Sicro'!$A$70 -> P9901 | B77: Encarregado de produção | C77: mês | D77: 0 | F77: =VLOOKUP(A77,'Pessoal Sicro'!$A$6:$G$118,6,0) -> 8281.7942 | H77: =F77*D77 -> 0
F78: Subtotal do Item 3.1 | H78: =SUM(H77:H77) -> 0
A79: Código | B79: Discriminação | C79: Unidade | D79: Quantidade | E79: Utilização Produtiva | F79: Utilização Improdutiva | G79: Custo Horário Produtivo (R$) | H79: Custo Horário Improdutivo (R$) | I79: Custo Total (R$)
A80: 3.2 | B80: Veículos
B81: Veículo Leve 53 kw | C81: mês | D81: 0 | E81: 44 | F81: 176 | G81: =$G$38 -> 37.9171 | H81: =$H$38 -> 6.7543 | I81: =((E81*G81)+(F81*H81))*D81 -> 0
H82: Subtotal do Item 3.2 | I82: =SUM(I81:I81) -> 0
H83: Total da Equipe de Produção de Pavimentação | I83: =I82+H78 -> 0
A85: Composição de custo da equipe de produção de sinalização
A86: Código | B86: Discriminação | C86: Unidade | D86: Quantidade | F86: Custo Unitário (R$) | H86: Custo Total (R$)
B87: Equipe de Produção de Pavimentação
A88: 3.1 | B88: Mão de Obra
A89: ='Pessoal Sicro'!$A$70 -> P9901 | B89: Encarregado de produção | C89: mês | D89: 0 | F89: =VLOOKUP(A89,'Pessoal Sicro'!$A$6:$G$118,6,0) -> 8281.7942 | H89: =F89*D89 -> 0
F90: Subtotal do Item 3.1 | H90: =SUM(H89:H89) -> 0
A91: Código | B91: Discriminação | C91: Unidade | D91: Quantidade | E91: Utilização Produtiva | F91: Utilização Improdutiva | G91: Custo Horário Produtivo (R$) | H91: Custo Horário Improdutivo (R$) | I91: Custo Total (R$)
A92: 3.2 | B92: Veículos
B93: Veículo Leve 53 kw | C93: mês | D93: 0 | E93: 44 | F93: 176 | G93: =$G$38 -> 37.9171 | H93: =$H$38 -> 6.7543 | I93: =((E93*G93)+(F93*H93))*D93 -> 0
H94: Subtotal do Item 3.2 | I94: =SUM(I93:I93) -> 0
H95: Total da Equipe de Produção de Pavimentação | I95: =I94+H90 -> 0
A97: Composição de custo da equipe topografia
A98: Código | B98: Discriminação | C98: Unidade | D98: Quantidade | F98: Custo Unitário (R$) | H98: Custo Total (R$)
B99: Equipe de Topografia
A100: 3.1 | B100: Mão de Obra
A101: P9949 | B101: Topográfo | C101: mês | D101: 1.020051335 | F101: =VLOOKUP(A101,'Pessoal Sicro'!$A$6:$G$118,6,0) -> 9340.8044 | H101: =F101*D101 -> 9528.1 | K101: ='RESUMO MODULO TOTAL'!L49 -> 
A102: P9950 | B102: Auxiliar de topografia | C102: mês | D102: 1 | F102: =VLOOKUP(A102,'Pessoal Sicro'!$A$6:$G$118,6,0) -> 6055.7508 | H102: =F102*D102 -> 6055.7508
F103: Subtotal do Item 3.1 | H103: =SUM(H101:I102) -> 15583.8508 | K103: ='RESUMO MODULO TOTAL'!L59 -> 20463100
A104: Código | B104: Discriminação | C104: Unidade | D104: Quantidade | E104: Utilização Produtiva | F104: Utilização Improdutiva | G104: Custo Horário Produtivo (R$) | H104: Custo Horário Improdutivo (R$) | I104: Custo Total (R$)
A105: 3.2 | B105: Veículos | K105: =K103-K101 -> 
B106: Veículo Leve 53 kw | C106: mês | D106: 1 | E106: 44 | F106: 176 | G106: =G38 -> 37.9171 | H106: =H38 -> 6.7543 | I106: =((E106*G106)+(F106*H106))*D106 -> 2857.1092
H107: Subtotal do Item 3.2 | I107: =SUM(I106:I106) -> 2857.1092 | K107: =K105/(1.05*1.2339) -> 
H108: Total da Equipe de Produção de Topografia | I108: =I107+H103 -> 18440.96
K109: =K107/2 -> 
A110: Composição de custo do setor de medicina e segurança do trabalho
A111: Código | B111: Discriminação | C111: Unidade | D111: Quantidade | F111: Custo Unitário (R$) | H111: Custo Total (R$)
A112: 4 | B112: Setor de Medicina e Segurança do Trabalho
A113: P9876 | B113: Técnico de segurança do trabalho | C113: mês | D113: 1 | F113: =VLOOKUP(A113,'Pessoal Sicro'!$A$6:$G$118,6,0) -> 7792.2539 | H113: =F113*D113 -> 7792.2539
A114: P9864 | B114: Engenheiro de segurança do trabalho | C114: mês | D114: 0 | F114: =VLOOKUP(A114,'Pessoal Sicro'!$A$6:$G$118,6,0) -> 24956.0135 | H114: =F114*D114 -> 0
A115: P9851 | B115: Médico do trabalho | C115: mês | D115: 0 | F115: =VLOOKUP(A115,'Pessoal Sicro'!$A$6:$G$118,6,0) -> 18672.6242 | H115: =F115*D115 -> 0
A116: P9951 | B116: Médico de câmara hiperbárica | C116: mês | D116: 0 | F116: =VLOOKUP(A116,'Pessoal Sicro'!$A$6:$G$118,6,0) -> 21262.3001 | H116: =F116*D116 -> 0
F117: Subtotal do Item 4 | H117: =SUM(H113:I116) -> 7792.2539
A119: Parcela Variável - Composição de custo da equipe de frente de serviço
A120: Código | B120: Discriminação | C120: Unidade | D120: Quantidade | F120: Custo Unitário (R$) | H120: Custo Total (R$)
A121: 5 | B121: Equipe de Frente de Serviço | C121: equipexmês
A122: P9875 | B122: Encarregado de Turma | C122: mês | D122: 1 | F122: =VLOOKUP(A122,'Pessoal Sicro'!$A$6:$G$118,6,0) -> 5996.5848 | H122: =F122*D122 -> 5996.5848
A123: P9804 | B123: Apontador | C123: mês | D123: 0.5 | F123: =VLOOKUP(A123,'Pessoal Sicro'!$A$6:$G$118,6,0) -> 5124.1419 | H123: =F123*D123 -> 2562.07095
F124: Subtotal do Item 5 | H124: =SUM(H122:I123) -> 8558.65575
A126: Parcela Variável - Composição de custo da equipe de frente de serviço (Terraplenagem) - Somente Compactação
A127: Código | B127: Discriminação | C127: Unidade | D127: Quantidade | F127: Produção Horária (und/h) | H127: Efs
A128: 5.1 | B128: Equipe de Frente de Serviço | C128: equipexmês
C129: mês | H129: =(D129)/(F129*182.49) -> 
C130: mês | H130: =(D130)/(F130*182.49) -> 
C131: mês | H131: =(D131)/(F131*182.49) -> 
F132: Total de Equipes para Terraplenagem | H132: =SUM(H131:I131) -> 
A134: Parcela Variável - Composição de custo da acompanhamento das frentes de serviço de pavimentação
A135: Código | B135: Discriminação | C135: Unidade | D135: Quantidade | F135: Produção Horária (und/h) | H135: Efs
A136: 5.2 | B136: Equipe de Frente de Serviço | C136: equipe x mês
A137: 4011463 | B137: =VLOOKUP(A137,'SINTÉTICO SICRO'!$A$4:$D$6373,2,0) -> Concreto asfáltico - faixa C-12,5 - areia e brita comerciais | C137: m² | D137: ='RESUMO MODULO TOTAL'!H19 -> 26040 | F137: 99.6 | H137: =(D137)/(F137*182.49) -> 1.432658135
A138: 4011353 | B138: =VLOOKUP(A138,'SINTÉTICO SICRO'!$A$4:$D$6373,2,0) -> Pintura de ligação | C138: m² | D138: ='RESUMO MODULO TOTAL'!H20 -> 217000 | F138: 1500 | H138: 0.7927375016
A139: 4915663 | B139: =VLOOKUP(A139,'SINTÉTICO SICRO'!$A$4:$D$6373,2,0) -> Fresagem descontínua de revestimento asfáltico - espessura de 5 cm | C139: m² | D139: ='RESUMO MODULO TOTAL'!H21 -> 1085 | F139: 49.03 | H139: 0.12126313
A140: 4915618 | B140: =VLOOKUP(A140,'SINTÉTICO SICRO'!$A$4:$D$6373,2,0) -> Recomposição de camada granular do pavimento com material de jazida - 100% Proctor modificado | C140: m³ | D140: ='RESUMO MODULO TOTAL'!H22 -> 21700 | F140: 278.25 | H140: 0.4273517529
F141: Total de Equipes para Pavimentação | H141: =SUM(H137:I140) -> 2.77401052
A143: Parcela Variável - Composição de custo da acompanhamento das frentes de serviço de drenagem
A144: Código | B144: Discriminação | C144: Unidade | D144: Quantidade | F144: Efsdu | H144: Efs
A145: 5.3 | B145: Frentes de Serviço para Drenagem | C145: equipe x mês
A146: 4915777 | B146: =VLOOKUP(A146,'SINTÉTICO SICRO'!$A$4:$D$6373,2,0) -> Reassentamento manual de meio-fio com material arrancado da pista | C146: m | D146: ='RESUMO MODULO TOTAL'!H34 -> 6200 | F146: 0.00021 | H146: =D146*F146 -> 1.302
F147: Total de Equipes para Drenagem | H147: =H146 -> 1.302
A149: Parcela Variável - Composição de custo da acompanhamento das frentes de serviço de sinalização
A150: Código | B150: Discriminação | C150: Unidade | D150: Quantidade | F150: Produção Horária (und/h) | H150: Efs
A151: 5.4 | B151: Frentes de Serviço para Sinalização | C151: equipe x mês
A152: 5213440 | B152: =VLOOKUP(A152,'SINTÉTICO SICRO'!$A$4:$D$6373,2,0) -> Placa de regulamentação em aço D = 0,60 m - película retrorrefletiva tipo I + SI - fornecimento e implantação | C152: Unidade | D152: ='RESUMO MODULO TOTAL'!H29 -> 93 | F152: 3 | H152: =0.2*((D152)/(F152*182.49)) -> 0.03397446435
A153: 5213464 | B153: =VLOOKUP(A153,'SINTÉTICO SICRO'!$A$4:$D$6373,2,0) -> Placa de advertência em aço, lado de 0,60 m - película retrorrefletiva tipo I + SI - fornecimento e implantação | C153: Unidade | D153: ='RESUMO MODULO TOTAL'!H30 -> 93 | F153: 3 | H153: =0.2*((D153)/(F153*182.49)) -> 0.03397446435
A154: 5213400 | B154: =VLOOKUP(A154,'SINTÉTICO SICRO'!$A$4:$D$6373,2,0) -> Pintura de faixa com tinta acrílica - espessura de 0,4 mm | C154: m² | D154: ='RESUMO MODULO TOTAL'!H32 -> 7440 | F154: 177.07 | H154: =0.2*((D154)/(F154*182.49)) -> 0.0460488589
F155: Total de Equipes para Sinalização | H155: =SUM(H152:I154) -> 0.1139977876 | J155: =H155+H147 -> 1.415997788
A157: 3. PARCELA VARIÁVEL - EQUIPE DE CONTROLE TECNOLÓGICO
A158: LABORATÓRIO DE SOLOS
A159: Item | B159: Discriminação | F159: Unidade | G159: Quantidade | H159: Custo Unitário (R$) | I159: Custo Total (R$)
B160: Laboratório de Solos (equipe x mês)
B161: Mão de Obra
A162: P9858 | B162: Laboratorista | F162: func./mês | G162: 1 | H162: =VLOOKUP(A162,'Pessoal Sicro'!$A$6:$G$118,6,0) -> 7946.5291 | I162: =TRUNC(G162*H162,2) -> 7946.52
A163: P9833 | B163: Auxiliar de laboratório | F163: func./mês | G163: 1 | H163: =VLOOKUP(A163,'Pessoal Sicro'!$A$6:$G$118,6,0) -> 6036.3052 | I163: =TRUNC(G163*H163,2) -> 6036.3
H164: Subtotal do Item | I164: =SUM(I162:I163) -> 13982.82
A165: Item | B165: Discriminação | C165: Und | D165: Quant | E165: Utilização Produtiva | F165: Utilização Improdutiva | G165: Horário Produtivo (R$) | H165: Horário Improdutivo (R$) | I165: Total (R$)
B166: Equipe de Controle Tecnológico
B167: Veículos
A168: E9125 | B168: Van furgão a diesel - 93 kW | C168: veic./mês | D168: 1 | E168: 44 | F168: 176 | G168: =VLOOKUP(A168,Equipamentos!$A$4:$K$533,10,0) -> 88.0815 | H168: =VLOOKUP(A168,Equipamentos!$A$4:$K$533,11,0) -> 49.6677 | I168: =D168*((E168*G168)+(F168*H168)) -> 12617.1012
H169: Subtotal do Item | I169: =SUM(I168:I168) -> 12617.1012
H170: Total da Equipe do Laboratório de Solos | I170: =I164+I169 -> 26599.9212
A172: 3. PARCELA VARIÁVEL - EQUIPE DE CONTROLE TECNOLÓGICO
A173: LABORATÓRIO DE ASFALTOS
A174: Item | B174: Discriminação | F174: Unidade | G174: Quantidade | H174: Custo Unitário (R$) | I174: Custo Total (R$)
B175: Laboratório de Solos (equipe x mês)
B176: Mão de Obra
A177: P9858 | B177: Laboratorista | F177: func./mês | G177: 1 | H177: =VLOOKUP(A177,'Pessoal Sicro'!$A$6:$G$118,6,0) -> 7946.5291 | I177: =TRUNC(G177*H177,2) -> 7946.52
A178: P9833 | B178: Auxiliar de laboratório | F178: func./mês | G178: 1 | H178: =VLOOKUP(A178,'Pessoal Sicro'!$A$6:$G$118,6,0) -> 6036.3052 | I178: =TRUNC(G178*H178,2) -> 6036.3
H179: Subtotal do Item | I179: =SUM(I177:I178) -> 13982.82
A180: Item | B180: Discriminação | C180: Und | D180: Quant | E180: Utilização Produtiva | F180: Utilização Improdutiva | G180: Horário Produtivo (R$) | H180: Horário Improdutivo (R$) | I180: Total (R$)
B181: Equipe de Controle Tecnológico
B182: Veículos
A183: E9125 | B183: Van furgão a diesel - 93 kW | C183: veic./mês | D183: 1 | E183: 44 | F183: 176 | G183: =VLOOKUP(A183,Equipamentos!$A$4:$K$533,10,0) -> 88.0815 | H183: =VLOOKUP(A183,Equipamentos!$A$4:$K$533,11,0) -> 49.6677 | I183: =D183*((E183*G183)+(F183*H183)) -> 12617.1012
H184: Subtotal do Item | I184: =SUM(I183:I183) -> 12617.1012
H185: Total da Equipe do Laboratório de Asfaltos | I185: =I179+I184 -> 26599.9212
A187: Equipes de laboratório de solos para pavimentação
A188: Item | B188: Discriminação | F188: Und | G188: Quant | H188: QE | I188: Els
A189: - | B189: - | F189: - | G189: - | H189: - | I189: -
A190: - | B190: - | F190: - | G190: - | H190: - | I190: -
H191: Total de equipes de Laboratório de Solos para Pavimentação | I191: -
A193: Equipes de laboratório de Asfalto
A194: Item | B194: Discriminação | F194: Und | G194: Quant | H194: QE | I194: Ela
A195: 4011463 | B195: =VLOOKUP(A195,'SINTÉTICO SICRO'!A:D,2,0) -> Concreto asfáltico - faixa C-12,5 - areia e brita comerciais | F195: =VLOOKUP(A195,'SINTÉTICO SICRO'!A:D,3,0) -> t | G195: ='RESUMO MODULO TOTAL'!H19 -> 26040 | H195: 9000 | I195: =G195/H195 -> 2.893333333
A196: 4011353 | B196: =VLOOKUP(A196,'SINTÉTICO SICRO'!A:D,2,0) -> Pintura de ligação | F196: =VLOOKUP(A196,'SINTÉTICO SICRO'!A:D,3,0) -> m² | G196: ='RESUMO MODULO TOTAL'!H20 -> 217000 | H196: 3610000 | I196: =G196/H196 -> 0.06011080332
H197: Total de equipes de Laboratório de Asfaltos | I197: =SUM(I195:I196) -> 2.953444137
A199: manutenção do canteiro de obras e acampamentos
A200: Código | B200: Discriminação | C200: Unidade | D200: Quantidade | F200: Custo Unitário (R$) | H200: Custo Total (R$)
B201: Manutenção do Canteiro de Obras e Acampamentos
A202: 6.1 | B202: Mão de Obra
A203: P9952 | B203: Pedreiro | C203: mês | D203: 0 | F203: =VLOOKUP(A203,'Pessoal Sicro'!$A$6:$G$118,6,0) -> 5136.466 | H203: =F203*D203 -> 0
A204: P9954 | B204: Servente | C204: mês | D204: 0 | F204: =VLOOKUP(A204,'Pessoal Sicro'!$A$6:$G$118,6,0) -> 4093.0918 | H204: =F204*D204 -> 0
A205: P9953 | B205: Eletricista | C205: mês | D205: 0 | F205: =VLOOKUP(A205,'Pessoal Sicro'!$A$6:$G$118,6,0) -> 5406.8028 | H205: =F205*D205 -> 0
F206: Subtotal do Item 6.1 | H206: =SUM(H203:I205) -> 0
A208: Código | B208: Discriminação | C208: Unidade | D208: Quantidade | F208: Custo Produtivo (R$) | H208: Custo Total (R$)
A209: 6.2 | B209: Equipamentos
B210: Caminhão guindauto de 6 toneladas | C210: h/mês | D210: 0 | H210: =F210*D210 -> 0
B211: Caminhão tanque de 8.000 litros | C211: h/mês | D211: 0 | H211: =F211*D211 -> 0
A212: E9524 | B212: Motoniveladora | C212: h/mês | D212: 0 | F212: =Equipamentos!J168 -> 70.4857 | H212: =F212*D212 -> 0
F213: Subtotal do Item 6.2 | H213: =SUM(H210:I212) -> 0
G214: Total da Manutenção do Canteiro de Obras e Acampamentos | H214: =H213+H206 -> 0
A218: Resumo das parcelas de administração local
A219: Código | B219: Discriminação | C219: Unidade | D219: Quantidade | F219: Custo Unitário (R$) | H219: Custo Total (R$)
B220: Parcela Fixa
B221: Mão de Obra | C221: mês | D221: 9 | F221: =H14+H18+H26+H30 -> 68521.06285 | H221: =F221*D221 -> 616689.5657
B222: Veículos | C222: mês | D222: 9 | F222: =I47 -> 2857.1092 | H222: =F222*D222 -> 25713.9828
F223: Subtotal do Item 1 | H223: =SUM(H221:I222) -> 642403.5485
... 25 more rows

Sheet Projeto Executivo
A4: COMPOSIÇAO PREÇO PROJETO EXECUTIVO
A6: DISCRIMINAÇAO | F6: Pr. Unit. | G6: Pr. Total
A8: A· EOUIPE TECNICA | G8: =G9+G12 -> 15886.78903
B9: A. 1 - Pessoal de Nível Superior | C9: Unidade | D9: Quantitativo | E9: SICRO e Rel.Custos Gerais | G9: =G10+G11 -> 12722.41548
B10: Engenheiro | C10: mês | D10: 0.4 | E10: P9812 | F10: =VLOOKUP(E10,'Pessoal Sicro'!A:G,6,0) -> 27135.6365 | G10: =F10*D10 -> 10854.2546
B11: Topógrafo | C11: mês | D11: 0.2 | E11: P9949 | F11: =VLOOKUP(E11,'Pessoal Sicro'!A:G,6,0) -> 9340.8044 | G11: =F11*D11 -> 1868.16088
B12: A.2 - Pessoal de Nível Técnico e Aux. | G12: =G13+G14 -> 3164.373546
B13: Auxiliar de topógrafo | C13: mês | D13: 0.12 | E13: P9950 | F13: =VLOOKUP(E13,'Pessoal Sicro'!A:G,6,0) -> 6055.7508 | G13: =F13*D13 -> 726.690096
B14: Auxiliar Técnico/Assistente de Engenharia | C14: mês | D14: 0.5 | E14: P9903 | F14: =VLOOKUP(E14,'Pessoal Sicro'!A:G,6,0) -> 4875.3669 | G14: =F14*D14 -> 2437.68345
A15: B - ENCARGOS SOCIAIS | G15: =G16 -> 0
B16: =CONCATENATE("Taxas ",'ENC. SOCIAIS'!E51,"%") -> Taxas % | C16: JÁ INCLUSAS EM "A"
A17: C - DESPESAS GERAIS | G17: =G18+G20+G19 -> 5328.492285
B18: C.1 - MATERIAIS DE CONSUMO | C18: Estimativa % como referência de equipe técnica com encargos sociais | D18: 0.03 | F18: =G8+G16 -> 15886.78903 | G18: =F18*D18 -> 476.6036708
B19: C.2 - VEÍCULOS (Veículo leve picape 4 x 4 com capacidade de 1,10 t - 147 kW) | C19: h | D19: 40 | E19: E9684 | F19: =VLOOKUP(E19,Equipamentos!A:K,10,0) -> 112.9174 | G19: =F19*D19 -> 4516.696
B20: C.3 - Estação total eletrônica com alcance máximo de 3.000 m | C20: h | D20: 41.40992209 | E20: E9553 | F20: =VLOOKUP(E20,Equipamentos!A:K,10,0) -> 8.0945 | G20: =F20*D20 -> 335.1926144
A21: D - ENSAIOS | G21: =SUM(G22:G25) -> 3450.889244
B22: Laboratorista | C22: mês | D22: 0.2 | E22: P9858 | F22: =VLOOKUP(E22,'Pessoal Sicro'!A:G,6,0) -> 7946.5291 | G22: =F22*D22 -> 1589.30582
B23: Auxiliar de Laboratório | C23: mês | D23: 0.12 | E23: P9833 | F23: =VLOOKUP(E23,'Pessoal Sicro'!A:G,6,0) -> 6036.3052 | G23: =F23*D23 -> 724.356624
B24: Laboratório de solos | C24: mês | D24: 0.12 | E24: B8957 | F24: =VLOOKUP(E24,'Tabelas 1 e 2'!C14:G23,5,0) -> 3597.39 | G24: =F24*D24 -> 431.6868
B25: Laboratório de asfalto | C25: mês | D25: 0.12 | E25: B8955 | F25: =VLOOKUP(E25,'Tabelas 1 e 2'!C15:G24,5,0) -> 5879.5 | G25: =F25*D25 -> 705.54
A26: I - SOMA (A+B+C+D) | G26: =G8+G15+G17+G21 -> 24666.17056
F27: Produtividade (m2) | G27: ='MC MODULO'!C1*'MC MODULO'!C2 -> 7000
F28: Por m²: | G28: =TRUNC(G26/G27,2) -> 3.52

Sheet CONSUMO DE MAT. B TOTAL
A6: CONSUMO DO MATERIAL BETUMINOSO TOTAL
A8: TRECHO | C8: QUANTIDADES | L8: MAT. BETUMINOSO
A9: Inicio (km) | B9: Fim (km) | C9: Extensão (m) | D9: Largura (m) | E9: Espess. (m) | F9: Área (m2) | G9: Volume (m3) | H9: Densidade (t/m3) | I9: Massa (t) | J9: Unid | K9: Quant. | L9: Tipo | M9: Consumo Taxa de Aplicação | N9: Unid. | O9: Quant.
E11: 1 | O11: =ROUND((F11*1.3)/1000,2) -> 0
E12: 1 | G12: =F12*E12 -> 0 | O12: =ROUND((F12*1.2)/1000,2) -> 0
A13: PINTURA DE LIGAÇÃO
E14: 1 | F14: ='MC MODULO'!H39 -> 217000 | G14: =F14*E14 -> 217000 | L14: RR-1C | M14: 0,4 l/m2 | N14: t | O14: =ROUND((F14*0.45)/1000,2) -> 97.65
A15: CBUQ FAIXA "C"
G16: =F16*E16 -> 0 | I16: ='MC MODULO'!H33 -> 26040 | L16: CAP-50/70 | M16: 0.05545 | N16: t | O16: =ROUND((I16*55.45)/1000,2) -> 1443.92
G18: =F18*E18 -> 0

Sheet CPU CODEVASF
A4: ='RESUMO MODULO TOTAL'!B52 -> CONTRATAÇÃO DE SERVIÇOS DE CAPA ASFÁLTICA EM CONCRETO BETUMINOSO USINADO A QUENTE (CBUQ), EM VIAS URBANAS E RURAIS INSERIDAS NA ÁREA DE ATUAÇÃO DA CODEVASF, NO ESTADO DO PIAUÍ - REGIÃO SUL
A5: ='RESUMO MODULO TOTAL'!B52 -> CONTRATAÇÃO DE SERVIÇOS DE CAPA ASFÁLTICA EM CONCRETO BETUMINOSO USINADO A QUENTE (CBUQ), EM VIAS URBANAS E RURAIS INSERIDAS NA ÁREA DE ATUAÇÃO DA CODEVASF, NO ESTADO DO PIAUÍ - REGIÃO SUL | F5: BDI %: | G5: =BDI!C16 -> 0.2339
E6: Encargos Sociais: | G6: Horista | H6: Mensalista
G7: ='ENC. SOCIAIS'!E47/100 -> 1.1333 | H7: ='ENC. SOCIAIS'!F47/100 -> 0.7112
A8: COMPOSIÇÕES DE CUSTO UNITARIO
A9: CPU-13 | B9: CODEVASF | D9: AQUISIÇÃO DE CIMENTO ASFALTICO CAP 50/70 | E9: t | F9: COEF. | G9: PRECO UNITÁRIO (R$) | H9: TOTAL (R$)
D11: CIMENTO ASFALTICO 50/70 | E11: t | F11: 1 | G11: =RESUMO_Transp!V14 -> 4414.786243 | H11: =F11*G11 -> 4414.786243
E12: Sub total: | H12: =SUM(H11) -> 4414.786243
F13: BDI | G13: 0.15 | H13: =H12*G13 -> 662.2179365
G14: Total Serviços: | H14: =H12+H13 -> 5077.00418
E15: =A9 -> CPU-13 | F15: PREÇO UNITÁRIO TOTAL: | H15: =H14 -> 5077.00418 | I15: =H12 -> 4414.786243
A18: CPU-15 | B18: CODEVASF | D18: AQUISIÇÃO DE EMULSÃO ASFÁLTICA RR-1C | E18: t | F18: COEF. | G18: PRECO UNITÁRIO (R$) | H18: TOTAL (R$)
D20: EMULSÃO ASFÁLTICA RR-1C | E20: t | F20: 1 | G20: =RESUMO_Transp!V33 -> 3126.231131 | H20: =F20*G20 -> 3126.231131
E21: Sub total: | H21: =SUM(H20) -> 3126.231131
F22: BDI | G22: 0.15 | H22: =H21*G22 -> 468.9346697
G23: Total Serviços: | H23: =H21+H22 -> 3595.165801
E24: =A18 -> CPU-15 | F24: PREÇO UNITÁRIO TOTAL: | H24: =H23 -> 3595.165801 | I24: =H21 -> 3126.231131
A27: CPU-17 | B27: CODEVASF | D27: TRANSPORTE DE CIMENTO ASFALTICO CAP 50/70 | E27: t | F27: COEF. | G27: PRECO UNITÁRIO (R$) | H27: TOTAL (R$)
D29: TRANSPORTE DE CIMENTO ASFALTICO 50/70 | E29: t | F29: 1 | G29: =RESUMO_Transp!U14 -> 771.82 | H29: =F29*G29 -> 771.82
E30: Sub total: | H30: =SUM(H29) -> 771.82
F31: BDI | G31: 0.15 | H31: =ROUND(H30*G31,2) -> 115.77
G32: Total Serviços: | H32: =H30+H31 -> 887.59
E33: =A27 -> CPU-17 | F33: PREÇO UNITÁRIO TOTAL: | H33: =H32 -> 887.59 | I33: =H30 -> 771.82
A36: CPU-19 | B36: CODEVASF | D36: TRANSPORTE DE EMULSÃO ASFÁLTICA RR-1C | E36: UNID | F36: COEF. | G36: PRECO UNITÁRIO (R$) | H36: TOTAL (R$)
D38: TRANSPORTE DE EMULSÃO ASFÁLTICA RR-1C | E38: t | F38: 1 | G38: =RESUMO_Transp!$U$33 -> 771.82 | H38: =F38*G38 -> 771.82
E39: Sub total: | H39: =SUM(H38) -> 771.82
F40: BDI | G40: 0.15 | H40: =H39*G40 -> 115.773
G41: Total Serviços: | H41: =H39+H40 -> 887.593
E42: =A36 -> CPU-19 | F42: PREÇO UNITÁRIO TOTAL: | H42: =H41 -> 887.593 | I42: =H39 -> 771.82

Sheet BDI
A4: DETALHAMENTO DO BDI - SEM DESONERAÇÃO
A5: ='RESUMO MODULO TOTAL'!B52 -> CONTRATAÇÃO DE SERVIÇOS DE CAPA ASFÁLTICA EM CONCRETO BETUMINOSO USINADO A QUENTE (CBUQ), EM VIAS URBANAS E RURAIS INSERIDAS NA ÁREA DE ATUAÇÃO DA CODEVASF, NO ESTADO DO PIAUÍ - REGIÃO SUL
A6: Descrição dos serviços | B6: Preço de Venda (%) | C6: Custo Direto (%)
A7: ADMINISTRAÇÃO CENTRAL | C7: 0.06
A8: CUSTOS FINANCEIROS | B8: 0.0102
A9: RISCOS | B9: 0.0025
A10: SEGUROS E GARANTIAS CONTRATUAIS | B10: 0.005
A11: LUCRO OPERACIONAL | C11: 0.07
A12: PIS | B12: 0.0065
A13: COFINS | B13: 0.03
A14: ISSQN | B14: 0.03
A15: Contribuição Previdenciaria | B15: 0
B16: BDI | C16: =ROUND(((1+(C7+C11))/(1-(B8+B9+B10+B12+B13+B14+B15))-1),4) -> 0.2339
A17: Observação: | B17: O percentual de ISSQN aqui utilizado consiste apenas em um referencial médio.
B18: O valor real do ISSQN a ser adotado deve ser aquele proveniente das alíquotas dos municípios situados na área de influência das obras.
A54: DETALHAMENTO DO BDI DIFERENCIADO - SEM DESONERAÇÃO
A55: =A5 -> CONTRATAÇÃO DE SERVIÇOS DE CAPA ASFÁLTICA EM CONCRETO BETUMINOSO USINADO A QUENTE (CBUQ), EM VIAS URBANAS E RURAIS INSERIDAS NA ÁREA DE ATUAÇÃO DA CODEVASF, NO ESTADO DO PIAUÍ - REGIÃO SUL
A56: DESCRIÇÃO DOS SERVIÇOS | B56: PREÇO DE VENDA (%) | C56: CUSTO DIRETO (%)
A57: ADMINISTRAÇÃO CENTRAL | C57: 0.0377
A58: DESPESA FINANCEIRAS | B58: 0.0102
A59: SEGUROS E GARANTIAS CONTRATUAIS | B59: 0.0025
A60: RISCOS | B60: 0.005
A61: LUCRO OPERACIONAL | C61: 0.05
A62: PIS | B62: 0.0065
A63: COFINS | B63: 0.03
A64: ISSQN | B64: 0
A65: Contribuição Previdenciaria | B65: 0
B66: BDI | C66: =ROUND((1+(C57+C61))/(1-(B58+B59+B60+B62+B63+B64+B65))-1,4) -> 0.15
A67: Fonte da composição, valores de referência e fórmula do BDI: Instrução Normativa N° 62/DNIT SEDE

Sheet ENC. SOCIAIS
A5: ='RESUMO MODULO TOTAL'!B52 -> CONTRATAÇÃO DE SERVIÇOS DE CAPA ASFÁLTICA EM CONCRETO BETUMINOSO USINADO A QUENTE (CBUQ), EM VIAS URBANAS E RURAIS INSERIDAS NA ÁREA DE ATUAÇÃO DA CODEVASF, NO ESTADO DO PIAUÍ - REGIÃO SUL
A7: DETALHAMENTO DOS ENCARGOS SOCIAIS (%)
A8: VIGÊNCIA A PARTIR DE 12/2023 | C8: COM DESONERAÇÃO | E8: SEM DESONERAÇÃO
C10: HORISTA | D10: MENSALISTA | E10: HORISTA | F10: MENSALISTA
A12: GRUPO A
A13: A1 | B13: INSS | C13: 0 | D13: 0 | E13: 20 | F13: 20
A14: A2 | B14: SESI | C14: 1.5 | D14: 1.5 | E14: 1.5 | F14: 1.5
A15: A3 | B15: SENAI | C15: 1 | D15: 1 | E15: 1 | F15: 1
A16: A4 | B16: INCRA | C16: 0.2 | D16: 0.2 | E16: 0.2 | F16: 0.2
A17: A5 | B17: SEBRAE | C17: 0.6 | D17: 0.6 | E17: 0.6 | F17: 0.6
A18: A6 | B18: Salário Educação | C18: 2.5 | D18: 2.5 | E18: 2.5 | F18: 2.5
A19: A7 | B19: Seguro Contra Acidentes de Trabalho | C19: 3 | D19: 3 | E19: 3 | F19: 3
A20: A8 | B20: FGTS | C20: 8 | D20: 8 | E20: 8 | F20: 8
A21: A9 | B21: SECONCI | C21: 1 | D21: 1 | E21: 0
A22: A | B22: Total | C22: =SUM(C13:C21) -> 17.8 | D22: =SUM(D13:D21) -> 17.8 | E22: =SUM(E13:E21) -> 36.8 | F22: =SUM(F13:F21) -> 36.8
A23: GRUPO B
A24: B1 | B24: Repouso Semanal Remunerado | C24: 17.88 | D24: - | E24: 17.82 | F24: -
A25: B2 | B25: Feriados | C25: 3.94 | D25: - | E25: 3.95 | F25: -
A26: B3 | B26: Auxílio-enfermidade | C26: 0.91 | D26: 0.69 | E26: 0.86 | F26: 0.65
A27: B4 | B27: 13° salário | C27: 10.98 | D27: 8.33 | E27: 10.96 | F27: 8.33
A28: B5 | B28: Licença-paternidade | C28: 0.07 | D28: 0.06 | E28: 0.07 | F28: 0.05
A29: B6 | B29: Faltas Justificadas | C29: 0.73 | D29: 0.56 | E29: 0.73 | F29: 0.56
A30: B7 | B30: Dias de chuva | C30: 1.45 | D30: - | E30: 1.17 | F30: -
A31: B8 | B31: Auxílio Acidente de Trabalho | C31: 0.11 | D31: 0.09 | E31: 0.1 | F31: 0.07
A32: B9 | B32: Férias Gozadas | C32: 11.35 | D32: 8.62 | E32: 11.71 | F32: 8.9
A33: B10 | B33: Salário Maternidade | C33: 0.03 | D33: 0.03 | E33: 0.03 | F33: 0.03 | L33: =(#REF!)/(1+#REF!) ->  | M33: =(#REF!) -> 
A34: B | B34: Total | C34: =SUM(C24:C33) -> 47.45 | D34: =SUM(D24:D33) -> 18.38 | E34: =SUM(E24:E33) -> 47.4 | F34: =SUM(F24:F33) -> 18.59
A35: GRUPO C
A36: C1 | B36: Aviso Prévio Indenizado | C36: 6.76 | D36: 5.14 | E36: 5.3 | F36: 4.03
A37: C2 | B37: Aviso Prévio Trabalhado | C37: 0.16 | D37: 0.12 | E37: 0.12 | F37: 0.09
A38: C3 | B38: Férias Indenizadas | C38: 2.28 | D38: 1.73 | E38: 2.46 | F38: 1.87
A39: C4 | B39: Depósito Rescisão Sem Justa Causa | C39: 3.81 | D39: 2.89 | E39: 2.89 | F39: 2.2
A40: C5 | B40: Indenização Adicional | C40: 0.57 | D40: 0.43 | E40: 0.45 | F40: 0.34
A41: C | B41: Total | C41: =SUM(C36:C40) -> 13.58 | D41: =SUM(D36:D40) -> 10.31 | E41: =SUM(E36:E40) -> 11.22 | F41: =SUM(F36:F40) -> 8.53
A42: GRUPO D
A43: D1 | B43: Reincidência de A sobre B | C43: 8.45 | D43: 3.27 | E43: 17.44 | F43: 6.84
A44: D2 | B44: Reincidência de Grupo A sobre Aviso Prévio Trabalhado e Reincidência do FGTS sobre Aviso Prévio Indenizado | C44: 0.57 | D44: 0.43 | E44: 0.47 | F44: 0.36
A45: D | B45: Total | C45: =SUM(C43:C44) -> 9.02 | D45: =SUM(D43:D44) -> 3.7 | E45: =SUM(E43:E44) -> 17.91 | F45: =SUM(F43:F44) -> 7.2
A47: T O T A L (%) | C47: =C22+C34+C41+C45 -> 87.85 | D47: =D22+D34+D41+D45 -> 50.19 | E47: =E22+E34+E41+E45 -> 113.33 | F47: =F22+F34+F41+F45 -> 71.12
H51: Fonte: Sinapi Cálculos e Parâmetros 5ª Edição - Atualizada em Agosto 2023

Sheet Transporte Cap 50-70
C5: MEMÓRIA DE CÁLCULO
C10: REAJUSTE | F10: TIPOLOGIA DO MATERIAL | I10: CIMENTOS ASFÁLTICOS CAP-50-70 | M10: IMPOSTOS | N10: COFINS | O10: 0.0065 | P10: 0.0065
G11: ÍNDICE DE PAVIMENTAÇÃO DNIT | H11: 2014-07-01 | I11: ÍNDICE INICIAL | J11: 270.237 | N11: PIS | O11: 0.03 | P11: 0.03 | T11: LEGENDA | AC11: As empresas tributadas pelo Lucro Presumido pagam 0,65% de PIS e 3% de COFINS
H12: 2025-08-01 | I12: ÍNDICE FINAL | J12: 589.643 | N12: ICMS | O12: 0.18 | P12: 0.18 | Q12: =1-(O12/1) -> 0.82 | R12: =1-(P12/1) -> 0.82 | S12: =1-(Q12/1) -> 0.18 | T12: ENTRADA DE DADOS | AC12: As empresas tributadas pelo Lucro Real pagam 1,65% de PIS e 7,60% de COFINS
G13: Data ANP | H13: 2025-07-01
C14: DATA-BASE | D14: PRODUTOS | E14: LOCALIDADES | J14: CUSTO ANP (R$/Kg) | L14: CUSTO ANP | M14: IMPOSTOS DO PRODUTO | N14: CUSTO DO PRODUTO COM IMPOSTOS | O14: DMT's | P14: DMT's FLUVIAL | Q14: CUSTO DO TRANSPORTE RODOVIA PAVIMENTADA | R14: CUSTO DO TRANSPORTE FLUVIAL | S14: CUSTO DO TRANSPORTE TOTAL | T14: ICMS | U14: ATUALIZAÇÃO DO CUSTO DE TRANSPORTE | V14: CUSTO DO TRANSPORTE RODOVIA PAVIMENTADA COM IMPOSTOS E ATUALIZAÇÃO MONETÁRIA | W14: PEDÁGIO | Y14: TOTAL TRANSPORTE | Z14: AQUISIÇÃO DO PRODUTO | AA14: TOTAL GERAL ( TRANSP + AQUISIÇÃO) | AC14: 1 | AD14: 2 | AE14: 3
C15: =H12 -> 2025-08-01 | E15: REFINARIAS | F15: ENDEREÇO | G15: ESTADO | H15: CIDADE | I15: DESTINO | J15: ESTADO | K15: REGIÃO | L15: R$/t | M15: R$/t | N15: R$/t | O15: KM | P15: KM | Q15: R$/t | R15: R$/t | S15: R$/t | T15: R$/t | U15: R$/t | V15: R$/t | W15: CUSTO | X15: R$/t | Y15: R$/t | Z15: R$/t | AA15: R$/t | AC15: TOTAL GERAL ( TRANSP + AQUISIÇÃO) | AD15: TOTAL TRANSPORTE | AE15: AQUISIÇÃO DO PRODUTO
B16: =AA16 -> 5419.51078 | C16: 1 | D16: =I10 -> CIMENTOS ASFÁLTICOS CAP-50-70 | E16: Refinaria Abreu e Lima | F16: Rodovia PE 60, Km 10 - Ipojuca - PE CEP:55590-000 | G16: Pernambuco | H16: IPOJUCA - PE | I16: BOM JESUS-PI | J16: =VLOOKUP('Transporte Cap 50-70'!G16,OFFSET('ANP ESTADO'!$A$1,MATCH('Transporte Cap 50-70'!$I$10,'ANP ESTADO'!B:B,0)+MATCH('Transporte Cap 50-70'!$H$13,OFFSET('ANP ESTADO'!$A$1,MATCH('Transporte Cap 50-70'!$I$10,'ANP ESTADO'!B:B,0),0,100000,1),0),2,100000,2),2,FALSE) -> - | K16: =VLOOKUP($H$13,OFFSET('ANP REGIÃO'!$A$9,MATCH('Transporte Cap 50-70'!$I$10,'ANP REGIÃO'!A:A,0),1,10000,10000),MATCH('Transporte Cap 50-70'!AH16,'ANP REGIÃO'!$B$8:$G$8,0),FALSE) -> 3.53904078 | L16: =IF(AND(J16="-",K16="-"),"",IF(AND(J16<>0,K16="-"),J16*1000,IF(AND(J16="-",K16<>0),K16*1000,IF(AND(J16<>0,K16<>0),J16*1000,"")))) -> 3539.04078 | M16: =ROUND(((L16/(1-$O$10-$O$11-$O$12+($O$11+$O$10)*$O$12)-L16)),2) -> 940.36 | N16: =L16+M16 -> 4479.40078 | O16: 1290 | P16: 0 | Q16: =ROUND((26.939+0.253*O16),2) -> 353.31 | S16: =Q16+R16 -> 353.31 | T16: =TRUNC(S16*($O$12/(1-$O$12)),2) -> 77.55 | U16: =TRUNC(IF($J$11="","",(($J$12-$J$11)/$J$11)*(S16+T16)),2) -> 509.25 | V16: =S16+T16+U16 -> 940.11 | X16: =EVEN((' CONSUMO DE MAT. B TOTAL'!$O$16)*2/28)*W16/(' CONSUMO DE MAT. B TOTAL'!$O$16) -> 0 | Y16: =IF(AND(S16="",T16=""),"",V16+X16) -> 940.11 | Z16: =IF(OR(L16="",M16=""),"",L16+M16) -> 4479.40078 | AA16: =IF(OR(Y16="",Z16=""),"",Y16+Z16) -> 5419.51078 | AC16: =AA16 -> 5419.51078 | AD16: =Y16 -> 940.11 | AE16: =Z16 -> 4479.40078 | AH16: =IF(OR(G16=$D$54,G16=$D$55,G16=$D$57,G16=$D$63,G16=$D$47,G16=$D$43,G16=$D$39,G16=$D$52,G16=$D$42),"NORDESTE",IF(OR(G16=$D$38,G16=$D$40,G16=$D$41,G16=$D$51,G16=$D$59,G16=$D$60,G16=$D$64),"NORTE",IF(OR(G16=$D$44,G16=$D$46,G16=$D$48,G16=$D$49),"CENTRO-OESTE",IF(OR(G16=$D$62,G16=$D$56,G16=$D$50,G16=$D$45),"SUDESTE",IF(OR(G16=$D$61,G16=$D$53,G16=$D$58),"SUL",""))))) -> NORDESTE
B17: =AA17 -> 5399.98078 | C17: 3 | E17: Refinaria Potiguar Clara Camarão | F17: Rodovia RN 221, KM 25 - Guamaré - RN CEP:59598-000 | G17: Rio Grande do Norte | H17: GUAMARÉ - RN | I17: BOM JESUS-PI | J17: =VLOOKUP('Transporte Cap 50-70'!G17,OFFSET('ANP ESTADO'!$A$1,MATCH('Transporte Cap 50-70'!$I$10,'ANP ESTADO'!B:B,0)+MATCH('Transporte Cap 50-70'!$H$13,OFFSET('ANP ESTADO'!$A$1,MATCH('Transporte Cap 50-70'!$I$10,'ANP ESTADO'!B:B,0),0,100000,1),0),2,100000,2),2,FALSE) -> - | K17: =VLOOKUP($H$13,OFFSET('ANP REGIÃO'!$A$9,MATCH('Transporte Cap 50-70'!$I$10,'ANP REGIÃO'!A:A,0),1,10000,10000),MATCH('Transporte Cap 50-70'!AH17,'ANP REGIÃO'!$B$8:$G$8,0),FALSE) -> 3.53904078 | L17: =IF(AND(J17="-",K17=""),"",IF(AND(J17<>0,K17=""),J17*1000,IF(AND(J17="-",K17<>0),K17*1000,IF(AND(J17<>0,K17<>0),J17*1000,"")))) -> 3539.04078 | M17: =ROUND(((L17/(1-$O$10-$O$11-$O$12+($O$11+$O$10)*$O$12)-L17)),2) -> 940.36 | N17: =L17+M17 -> 4479.40078 | O17: 1261 | P17: 0 | Q17: 345.97 | S17: =Q17+R17 -> 345.97 | T17: =TRUNC(S17*($O$12/(1-$O$12)),2) -> 75.94 | U17: =TRUNC(IF($J$11="","",(($J$12-$J$11)/$J$11)*(S17+T17)),2) -> 498.67 | V17: =S17+T17+U17 -> 920.58 | X17: =EVEN((' CONSUMO DE MAT. B TOTAL'!$O$16)*2/28)*W17/(' CONSUMO DE MAT. B TOTAL'!$O$16) -> 0 | Y17: =IF(AND(S17="",T17=""),"",V17+X17) -> 920.58 | Z17: 4479.40078 | AA17: =IF(OR(Y17="",Z17=""),"",Y17+Z17) -> 5399.98078 | AC17: =AA17 -> 5399.98078 | AD17: =Y17 -> 920.58 | AE17: =Z17 -> 4479.40078 | AH17: =IF(OR(G17=$D$54,G17=$D$55,G17=$D$57,G17=$D$63,G17=$D$47,G17=$D$43,G17=$D$39,G17=$D$52,G17=$D$42),"NORDESTE",IF(OR(G17=$D$38,G17=$D$40,G17=$D$41,G17=$D$51,G17=$D$59,G17=$D$60,G17=$D$64),"NORTE",IF(OR(G17=$D$44,G17=$D$46,G17=$D$48,G17=$D$49),"CENTRO-OESTE",IF(OR(G17=$D$62,G17=$D$56,G17=$D$50,G17=$D$45),"SUDESTE",IF(OR(G17=$D$61,G17=$D$53,G17=$D$58),"SUL",""))))) -> NORDESTE
B18: 5269.263906 | C18: 4 | E18: Refinaria Landulpho Alves (RLAM) | F18: Rodovia BA 523, KM 4 – Mataripe São Francisco do Conde - BA CEP:43900-000 | G18: Bahia | H18: SÃO FRANCISCO DO CONDE - BA | I18: BOM JESUS-PI | J18: =VLOOKUP('Transporte Cap 50-70'!G18,OFFSET('ANP ESTADO'!$A$1,MATCH('Transporte Cap 50-70'!$I$10,'ANP ESTADO'!B:B,0)+MATCH('Transporte Cap 50-70'!$H$13,OFFSET('ANP ESTADO'!$A$1,MATCH('Transporte Cap 50-70'!$I$10,'ANP ESTADO'!B:B,0),0,100000,1),0),2,100000,2),2,FALSE) -> 3.580963906 | K18: =VLOOKUP($H$13,OFFSET('ANP REGIÃO'!$A$9,MATCH('Transporte Cap 50-70'!$I$10,'ANP REGIÃO'!A:A,0),1,10000,10000),MATCH('Transporte Cap 50-70'!AH18,'ANP REGIÃO'!$B$8:$G$8,0),FALSE) -> 3.53904078 | L18: 3580.963906 | M18: 951.5 | N18: 4532.463906 | O18: 988 | P18: 0 | Q18: 276.9 | S18: 276.9 | T18: 60.78 | U18: 399.12 | V18: 736.8 | X18: =EVEN((' CONSUMO DE MAT. B TOTAL'!$O$16)*2/28)*W18/(' CONSUMO DE MAT. B TOTAL'!$O$16) -> 0 | Y18: 736.8 | Z18: 4532.463906 | AA18: 5269.263906 | AC18: 5269.263906 | AD18: 736.8 | AE18: 4532.463906 | AH18: NORDESTE
B19: 5186.606243 | C19: 5 | E19: Refinaria Lubrificantes e Derivados do Nordeste (Lubnor) | F19: Av. Leite Barbosa, s/nº - Mucuripe Fortaleza - Ceará CEP:60180-420 | G19: Ceará | H19: FORTALEZA - CE | I19: BOM JESUS-PI | J19: =VLOOKUP('Transporte Cap 50-70'!G19,OFFSET('ANP ESTADO'!$A$1,MATCH('Transporte Cap 50-70'!$I$10,'ANP ESTADO'!B:B,0)+MATCH('Transporte Cap 50-70'!$H$13,OFFSET('ANP ESTADO'!$A$1,MATCH('Transporte Cap 50-70'!$I$10,'ANP ESTADO'!B:B,0),0,100000,1),0),2,100000,2),2,FALSE) -> 3.487986243 | K19: =VLOOKUP($H$13,OFFSET('ANP REGIÃO'!$A$9,MATCH('Transporte Cap 50-70'!$I$10,'ANP REGIÃO'!A:A,0),1,10000,10000),MATCH('Transporte Cap 50-70'!AH19,'ANP REGIÃO'!$B$8:$G$8,0),FALSE) -> 3.53904078 | L19: 3487.986243 | M19: 926.8 | N19: 4414.786243 | O19: 1040 | P19: 0 | Q19: 290.06 | S19: 290.06 | T19: 63.67 | U19: 418.09 | V19: 771.82 | X19: =EVEN((' CONSUMO DE MAT. B TOTAL'!$O$16)*2/28)*W19/(' CONSUMO DE MAT. B TOTAL'!$O$16) -> 0 | Y19: 771.82 | Z19: 4414.786243 | AA19: 5186.606243 | AC19: 5186.606243 | AD19: 771.82 | AE19: 4414.786243 | AH19: NORDESTE
B20: 5959.082803 | C20: 6 | E20: Refinaria Capuava (Recap) | F20: Av. Alberto Soares Sampaio, 2122-A Capuava – Mauá - SP | G20: São Paulo | H20: MAUÁ - SP | I20: BOM JESUS-PI | J20: =VLOOKUP('Transporte Cap 50-70'!G20,OFFSET('ANP ESTADO'!$A$1,MATCH('Transporte Cap 50-70'!$I$10,'ANP ESTADO'!B:B,0)+MATCH('Transporte Cap 50-70'!$H$13,OFFSET('ANP ESTADO'!$A$1,MATCH('Transporte Cap 50-70'!$I$10,'ANP ESTADO'!B:B,0),0,100000,1),0),2,100000,2),2,FALSE) -> 3.543552803 | K20: =VLOOKUP($H$13,OFFSET('ANP REGIÃO'!$A$9,MATCH('Transporte Cap 50-70'!$I$10,'ANP REGIÃO'!A:A,0),1,10000,10000),MATCH('Transporte Cap 50-70'!AH20,'ANP REGIÃO'!$B$8:$G$8,0),FALSE) -> 3.660438996 | L20: 3543.552803 | M20: 941.56 | N20: 4485.112803 | O20: 2083 | P20: 0 | Q20: 553.94 | S20: 553.94 | T20: 121.59 | U20: 798.44 | V20: 1473.97 | X20: =EVEN((' CONSUMO DE MAT. B TOTAL'!$O$16)*2/28)*W20/(' CONSUMO DE MAT. B TOTAL'!$O$16) -> 0 | Y20: 1473.97 | Z20: 4485.112803 | AA20: 5959.082803 | AC20: 5959.082803 | AD20: 1473.97 | AE20: 4485.112803 | AH20: SUDESTE
B21: 5874.683148 | C21: 7 | E21: Refinaria Duque de Caxias (Reduc) | F21: Rodovia Washington Luiz, km 113,7 Campos Elíseos – Duque de Caxias - RJ CEP:25213-005 | G21: Rio de Janeiro | H21: DUQUE DE CAXIAS - RJ | I21: BOM JESUS-PI | J21: =VLOOKUP('Transporte Cap 50-70'!G21,OFFSET('ANP ESTADO'!$A$1,MATCH('Transporte Cap 50-70'!$I$10,'ANP ESTADO'!B:B,0)+MATCH('Transporte Cap 50-70'!$H$13,OFFSET('ANP ESTADO'!$A$1,MATCH('Transporte Cap 50-70'!$I$10,'ANP ESTADO'!B:B,0),0,100000,1),0),2,100000,2),2,FALSE) -> 3.534843148 | K21: =VLOOKUP($H$13,OFFSET('ANP REGIÃO'!$A$9,MATCH('Transporte Cap 50-70'!$I$10,'ANP REGIÃO'!A:A,0),1,10000,10000),MATCH('Transporte Cap 50-70'!AH21,'ANP REGIÃO'!$B$8:$G$8,0),FALSE) -> 3.660438996 | L21: 3534.843148 | M21: 939.25 | N21: 4474.093148 | O21: 1974 | P21: 0 | Q21: 526.36 | S21: 526.36 | T21: 115.54 | U21: 758.69 | V21: 1400.59 | X21: =EVEN((' CONSUMO DE MAT. B TOTAL'!$O$16)*2/28)*W21/(' CONSUMO DE MAT. B TOTAL'!$O$16) -> 0 | Y21: 1400.59 | Z21: 4474.093148 | AA21: 5874.683148 | AC21: 5874.683148 | AD21: 1400.59 | AE21: 4474.093148 | AH21: SUDESTE
B22: 7010.445702 | C22: 8 | E22: Refinaria Alberto Pasqualini (Refap) | F22: Avenida Getúlio Vargas, 11001 - Bairro Brigadeira Canoas - RS - Brasil CEP:92420-221 | G22: Rio Grande do Sul | H22: CANOAS - RS | I22: BOM JESUS-PI | J22: =VLOOKUP('Transporte Cap 50-70'!G22,OFFSET('ANP ESTADO'!$A$1,MATCH('Transporte Cap 50-70'!$I$10,'ANP ESTADO'!B:B,0)+MATCH('Transporte Cap 50-70'!$H$13,OFFSET('ANP ESTADO'!$A$1,MATCH('Transporte Cap 50-70'!$I$10,'ANP ESTADO'!B:B,0),0,100000,1),0),2,100000,2),2,FALSE) -> 3.801895702 | K22: =VLOOKUP($H$13,OFFSET('ANP REGIÃO'!$A$9,MATCH('Transporte Cap 50-70'!$I$10,'ANP REGIÃO'!A:A,0),1,10000,10000),MATCH('Transporte Cap 50-70'!AH22,'ANP REGIÃO'!$B$8:$G$8,0),FALSE) -> 3.75274843 | L22: 3801.895702 | M22: 1010.2 | N22: 4812.095702 | O22: 3159 | P22: 0 | Q22: 826.17 | S22: 826.17 | T22: 181.35 | U22: 1190.83 | V22: 2198.35 | X22: =EVEN((' CONSUMO DE MAT. B TOTAL'!$O$16)*2/28)*W22/(' CONSUMO DE MAT. B TOTAL'!$O$16) -> 0 | Y22: 2198.35 | Z22: 4812.095702 | AA22: 7010.445702 | AC22: 7010.445702 | AD22: 2198.35 | AE22: 4812.095702 | AH22: SUL
B23: 6447.154648 | C23: 9 | E23: Unidade de Industrialização do Xisto (SIX) | F23: Rodovia do Xisto, BR 476, km 153 São Mateus do Sul – PR CEP 83900-000 | G23: Paraná | H23: SÃO MATEUS DO SUL - PR | I23: BOM JESUS-PI | J23: =VLOOKUP('Transporte Cap 50-70'!G23,OFFSET('ANP ESTADO'!$A$1,MATCH('Transporte Cap 50-70'!$I$10,'ANP ESTADO'!B:B,0)+MATCH('Transporte Cap 50-70'!$H$13,OFFSET('ANP ESTADO'!$A$1,MATCH('Transporte Cap 50-70'!$I$10,'ANP ESTADO'!B:B,0),0,100000,1),0),2,100000,2),2,FALSE) -> 3.738764648 | K23: =VLOOKUP($H$13,OFFSET('ANP REGIÃO'!$A$9,MATCH('Transporte Cap 50-70'!$I$10,'ANP REGIÃO'!A:A,0),1,10000,10000),MATCH('Transporte Cap 50-70'!AH23,'ANP REGIÃO'!$B$8:$G$8,0),FALSE) -> 3.75274843 | L23: 3738.764648 | M23: 993.43 | N23: 4732.194648 | O23: 2441 | P23: 0 | Q23: 644.51 | S23: 644.51 | T23: 141.47 | U23: 928.98 | V23: 1714.96 | X23: =EVEN((' CONSUMO DE MAT. B TOTAL'!$O$16)*2/28)*W23/(' CONSUMO DE MAT. B TOTAL'!$O$16) -> 0 | Y23: 1714.96 | Z23: 4732.194648 | AA23: 6447.154648 | AC23: 6447.154648 | AD23: 1714.96 | AE23: 4732.194648 | AH23: SUL
B24: 5921.719474 | C24: 10 | E24: Refinaria Gabriel Passos (Regap) | F24: Av. Refinaria Gabriel Passos, 690 Distrito Industrial Paulo Camilo Sul Betim - MG CEP:32669-205 | G24: Minas Gerais | H24: BETIM - MG | I24: BOM JESUS-PI | J24: =VLOOKUP('Transporte Cap 50-70'!G24,OFFSET('ANP ESTADO'!$A$1,MATCH('Transporte Cap 50-70'!$I$10,'ANP ESTADO'!B:B,0)+MATCH('Transporte Cap 50-70'!$H$13,OFFSET('ANP ESTADO'!$A$1,MATCH('Transporte Cap 50-70'!$I$10,'ANP ESTADO'!B:B,0),0,100000,1),0),2,100000,2),2,FALSE) -> 3.789559474 | K24: =VLOOKUP($H$13,OFFSET('ANP REGIÃO'!$A$9,MATCH('Transporte Cap 50-70'!$I$10,'ANP REGIÃO'!A:A,0),1,10000,10000),MATCH('Transporte Cap 50-70'!AH24,'ANP REGIÃO'!$B$8:$G$8,0),FALSE) -> 3.660438996 | L24: 3789.559474 | M24: 1006.93 | N24: 4796.489474 | O24: 1565 | P24: 0 | Q24: 422.88 | S24: 422.88 | T24: 92.82 | U24: 609.53 | V24: 1125.23 | X24: =EVEN((' CONSUMO DE MAT. B TOTAL'!$O$16)*2/28)*W24/(' CONSUMO DE MAT. B TOTAL'!$O$16) -> 0 | Y24: 1125.23 | Z24: 4796.489474 | AA24: 5921.719474 | AC24: 5921.719474 | AD24: 1125.23 | AE24: 4796.489474 | AH24: SUDESTE
B25: 6461.994648 | C25: 11 | E25: Refinaria Presidente Getúlio Vargas (Repar) | F25: Rodovia do Xisto, BR 476, km 16 Araucária - PR CEP:83707-440 | G25: Paraná | H25: ARAUCÁRIA - PR | I25: BOM JESUS-PI | J25: =VLOOKUP('Transporte Cap 50-70'!G25,OFFSET('ANP ESTADO'!$A$1,MATCH('Transporte Cap 50-70'!$I$10,'ANP ESTADO'!B:B,0)+MATCH('Transporte Cap 50-70'!$H$13,OFFSET('ANP ESTADO'!$A$1,MATCH('Transporte Cap 50-70'!$I$10,'ANP ESTADO'!B:B,0),0,100000,1),0),2,100000,2),2,FALSE) -> 3.738764648 | K25: =VLOOKUP($H$13,OFFSET('ANP REGIÃO'!$A$9,MATCH('Transporte Cap 50-70'!$I$10,'ANP REGIÃO'!A:A,0),1,10000,10000),MATCH('Transporte Cap 50-70'!AH25,'ANP REGIÃO'!$B$8:$G$8,0),FALSE) -> 3.75274843 | L25: 3738.764648 | M25: 993.43 | N25: 4732.194648 | O25: 2463 | P25: 0 | Q25: 650.08 | S25: 650.08 | T25: 142.7 | U25: 937.02 | V25: 1729.8 | X25: =EVEN((' CONSUMO DE MAT. B TOTAL'!$O$16)*2/28)*W25/(' CONSUMO DE MAT. B TOTAL'!$O$16) -> 0 | Y25: 1729.8 | Z25: 4732.194648 | AA25: 6461.994648 | AC25: 6461.994648 | AD25: 1729.8 | AE25: 4732.194648 | AH25: SUL
B26: 5979.942803 | C26: 12 | E26: Refinaria Presidente Bernardes (RPBC) | F26: Av. 9 de abril, 777 - Jardim das Indústrias Cubatão - SP CEP:11505-000 | G26: São Paulo | H26: CUBATÃO - SP | I26: BOM JESUS-PI | J26: =VLOOKUP('Transporte Cap 50-70'!G26,OFFSET('ANP ESTADO'!$A$1,MATCH('Transporte Cap 50-70'!$I$10,'ANP ESTADO'!B:B,0)+MATCH('Transporte Cap 50-70'!$H$13,OFFSET('ANP ESTADO'!$A$1,MATCH('Transporte Cap 50-70'!$I$10,'ANP ESTADO'!B:B,0),0,100000,1),0),2,100000,2),2,FALSE) -> 3.543552803 | K26: =VLOOKUP($H$13,OFFSET('ANP REGIÃO'!$A$9,MATCH('Transporte Cap 50-70'!$I$10,'ANP REGIÃO'!A:A,0),1,10000,10000),MATCH('Transporte Cap 50-70'!AH26,'ANP REGIÃO'!$B$8:$G$8,0),FALSE) -> 3.660438996 | L26: 3543.552803 | M26: 941.56 | N26: 4485.112803 | O26: 2114 | P26: 0 | Q26: 561.78 | S26: 561.78 | T26: 123.31 | U26: 809.74 | V26: 1494.83 | X26: =EVEN((' CONSUMO DE MAT. B TOTAL'!$O$16)*2/28)*W26/(' CONSUMO DE MAT. B TOTAL'!$O$16) -> 0 | Y26: 1494.83 | Z26: 4485.112803 | AA26: 5979.942803 | AC26: 5979.942803 | AD26: 1494.83 | AE26: 4485.112803 | AH26: SUDESTE
B27: 5868.872803 | C27: 13 | E27: Refinaria de Paulínia (Replan) | F27: Rodovia SP 332 - Km. 130 Bonfim - Paulínia – SP CEP:13140-000 | G27: São Paulo | H27: PAULÍNIA - SP | I27: BOM JESUS-PI | J27: =VLOOKUP('Transporte Cap 50-70'!G27,OFFSET('ANP ESTADO'!$A$1,MATCH('Transporte Cap 50-70'!$I$10,'ANP ESTADO'!B:B,0)+MATCH('Transporte Cap 50-70'!$H$13,OFFSET('ANP ESTADO'!$A$1,MATCH('Transporte Cap 50-70'!$I$10,'ANP ESTADO'!B:B,0),0,100000,1),0),2,100000,2),2,FALSE) -> 3.543552803 | K27: =VLOOKUP($H$13,OFFSET('ANP REGIÃO'!$A$9,MATCH('Transporte Cap 50-70'!$I$10,'ANP REGIÃO'!A:A,0),1,10000,10000),MATCH('Transporte Cap 50-70'!AH27,'ANP REGIÃO'!$B$8:$G$8,0),FALSE) -> 3.660438996 | L27: 3543.552803 | M27: 941.56 | N27: 4485.112803 | O27: 1949 | P27: 0 | Q27: 520.04 | S27: 520.04 | T27: 114.15 | U27: 749.57 | V27: 1383.76 | X27: =EVEN((' CONSUMO DE MAT. B TOTAL'!$O$16)*2/28)*W27/(' CONSUMO DE MAT. B TOTAL'!$O$16) -> 0 | Y27: 1383.76 | Z27: 4485.112803 | AA27: 5868.872803 | AC27: 5868.872803 | AD27: 1383.76 | AE27: 4485.112803 | AH27: SUDESTE
B28: 5977.252803 | C28: 14 | E28: Refinaria Henrique Lage (Revap) | F28: Rodovia Presidente Dutra, KM 143, S/N Bairro Jardim Diamante - São José dos Campos – SP CEP:12223-900 | G28: São Paulo | H28: SÃO JOSÉ DOS CAMPOS - SP | I28: BOM JESUS-PI | J28: =VLOOKUP('Transporte Cap 50-70'!G28,OFFSET('ANP ESTADO'!$A$1,MATCH('Transporte Cap 50-70'!$I$10,'ANP ESTADO'!B:B,0)+MATCH('Transporte Cap 50-70'!$H$13,OFFSET('ANP ESTADO'!$A$1,MATCH('Transporte Cap 50-70'!$I$10,'ANP ESTADO'!B:B,0),0,100000,1),0),2,100000,2),2,FALSE) -> 3.543552803 | K28: =VLOOKUP($H$13,OFFSET('ANP REGIÃO'!$A$9,MATCH('Transporte Cap 50-70'!$I$10,'ANP REGIÃO'!A:A,0),1,10000,10000),MATCH('Transporte Cap 50-70'!AH28,'ANP REGIÃO'!$B$8:$G$8,0),FALSE) -> 3.660438996 | L28: 3543.552803 | M28: 941.56 | N28: 4485.112803 | O28: 2110 | P28: 0 | Q28: 560.77 | S28: 560.77 | T28: 123.09 | U28: 808.28 | V28: 1492.14 | X28: =EVEN((' CONSUMO DE MAT. B TOTAL'!$O$16)*2/28)*W28/(' CONSUMO DE MAT. B TOTAL'!$O$16) -> 0 | Y28: 1492.14 | Z28: 4485.112803 | AA28: 5977.252803 | AC28: 5977.252803 | AD28: 1492.14 | AE28: 4485.112803 | AH28: SUDESTE
D38: Acre
D39: Alagoas
D40: Amapá
D41: Amazonas
D42: Bahia
D43: Ceará
D44: Distrito Federal
D45: Espírito Santo
D46: Goiás
D47: Maranhão
D48: Mato Grosso
D49: Mato Grosso do Sul
D50: Minas Gerais
D51: Pará
D52: Paraíba
D53: Paraná
D54: Pernambuco
D55: Piauí
D56: Rio de Janeiro
D57: Rio Grande do Norte
D58: Rio Grande do Sul
D59: Rondônia
D60: Roraima
D61: Santa Catarina
D62: São Paulo
D63: Sergipe
D64: Tocantins
D68: ASFALTOS DILUÍDOS CM-30
D69: ASFALTOS DILUÍDOS CM-70
D70: ASFALTOS DILUÍDOS CR-250
D71: ASFALTOS DILUÍDOS CR-70
D72: CAP MODIFICADO POR BORRACHA DE PNEU AB22
D73: CAP MODIFICADO POR BORRACHA DE PNEU AB8
D74: CAP MODIFICADO POR POLÍMERO 55-75-E
D75: CAP MODIFICADO POR POLÍMERO 60-85-E
D76: CAP MODIFICADO POR POLÍMERO 65-90-E
D77: CIMENTOS ASFÁLTICOS CAP-150-200
D78: CIMENTOS ASFÁLTICOS CAP-30-45
D79: CIMENTOS ASFÁLTICOS CAP-50-70
D80: CIMENTOS ASFÁLTICOS CAP-85-100
D81: EMULSÃO ASFÁLTICA CATIÔNICA DE RUPTURA CONTROLADA PARA SERVIÇO DE LAMA ASFÁLTICA
D82: EMULSÃO ASFÁLTICA DE RUPTURA LENTA CATIÔNICA PARA SERVIÇO DE LAMA ASFÁLTICA
D83: EMULSÃO ASFÁLTICA DE RUPTURA LENTA DE CARGA NEUTRA PARA SERVIÇO DE LAMA ASFÁLTICA
D84: EMULSÃO ASFÁLTICA PARA SERVIÇO DE IMPRIMAÇÃO
D85: EMULSÕES ASF. MOD. POR POLÍMEROS RC1C-E
D86: EMULSÕES ASF. MOD. POR POLÍMEROS RL1C-E
D87: EMULSÕES ASF. MOD. POR POLÍMEROS RM1C-E
D88: EMULSÕES ASF. MOD. POR POLÍMEROS RR1C-E
D89: EMULSÕES ASF. MOD. POR POLÍMEROS RR2C-E
D90: EMULSÕES ASFÁLTICAS RL-1C
D91: EMULSÕES ASFÁLTICAS RM-1C
D92: EMULSÕES ASFÁLTICAS RM-2C
D93: EMULSÕES ASFÁLTICAS RR-1C
D94: EMULSÕES ASFÁLTICAS RR-2C

Sheet Transporte RR-1C
C5: MEMÓRIA DE CÁLCULO
F10: TIPOLOGIA DO MATERIAL | I10: EMULSÕES ASFÁLTICAS RR-1C | M10: IMPOSTOS | N10: COFINS | O10: 0.0065 | P10: 0.0065
G11: ÍNDICE DE PAVIMENTAÇÃO DNIT | H11: 2014-07-01 | I11: ÍNDICE INICIAL | J11: 270.237 | N11: PIS | O11: 0.03 | P11: 0.03 | T11: LEGENDA | AC11: As empresas tributadas pelo Lucro Presumido pagam 0,65% de PIS e 3% de COFINS
H12: ='Transporte Cap 50-70'!H12 -> 2025-08-01 | I12: ÍNDICE FINAL | J12: ='Transporte Cap 50-70'!J12 -> 589.643 | N12: ICMS | O12: 0.18 | P12: 0.18 | Q12: =1-(O12/1) -> 0.82 | R12: =1-(P12/1) -> 0.82 | S12: =1-(Q12/1) -> 0.18 | T12: ENTRADA DE DADOS | AC12: As empresas tributadas pelo Lucro Real pagam 1,65% de PIS e 7,60% de COFINS
G13: Data ANP | H13: ='Transporte Cap 50-70'!H13 -> 2025-07-01
C14: DATA-BASE | D14: PRODUTOS | E14: LOCALIDADES | J14: CUSTO ANP (R$/Kg) | L14: CUSTO ANP | M14: IMPOSTOS DO PRODUTO | N14: CUSTO DO PRODUTO COM IMPOSTOS | O14: DMT's | P14: DMT'S FLUVIAL | Q14: CUSTO DO TRANSPORTE RODOVIA PAVIMENTADA | R14: CUSTO DO TRANSPORTE FLUVIAL | S14: CUSTO DO TRANSPORTE TOTAL | T14: ICMS | U14: ATUALIZAÇÃO DO CUSTO DE TRANSPORTE | V14: CUSTO DO TRANSPORTE RODOVIA PAVIMENTADA COM IMPOSTOS E ATUALIZAÇÃO MONETÁRIA | W14: PEDÁGIO | Y14: TOTAL TRANSPORTE | Z14: AQUISIÇÃO DO PRODUTO | AA14: TOTAL GERAL ( TRANSP + AQUISIÇÃO) | AC14: 1 | AD14: 2 | AE14: 3
C15: =H12 -> 2025-08-01 | E15: REFINARIAS | F15: ENDEREÇO | G15: ESTADO | H15: CIDADE | I15: DESTINO | J15: ESTADO | K15: REGIÃO | L15: R$/t | M15: R$/t | N15: R$/t | O15: KM | P15: KM | Q15: R$/t | R15: R$/t | S15: R$/t | T15: R$/t | U15: R$/t | V15: R$/t | W15: CUSTO | X15: R$/t | Y15: R$/t | Z15: R$/t | AA15: R$/t | AC15: TOTAL GERAL ( TRANSP + AQUISIÇÃO) | AD15: TOTAL TRANSPORTE | AE15: AQUISIÇÃO DO PRODUTO
B16: =AA16 -> 4292.192209 | C16: 1 | D16: =I10 -> EMULSÕES ASFÁLTICAS RR-1C | E16: Refinaria Abreu e Lima | F16: Rodovia PE 60, Km 10 - Ipojuca - PE CEP:55590-000 | G16: Pernambuco | H16: IPOJUCA - PE | I16: ='Transporte Cap 50-70'!I16 -> BOM JESUS-PI | J16: =VLOOKUP(G16,OFFSET('ANP ESTADO'!$A$1,MATCH($I$10,'ANP ESTADO'!B:B,0)+MATCH($H$13,OFFSET('ANP ESTADO'!$A$1,MATCH($I$10,'ANP ESTADO'!B:B,0),0,100000,1),0),2,100000,2),2,FALSE) -> - | K16: =VLOOKUP($H$13,OFFSET('ANP REGIÃO'!$A$9,MATCH('Transporte RR-1C'!$I$10,'ANP REGIÃO'!A:A,0),1,10000,10000),MATCH('Transporte RR-1C'!AH16,'ANP REGIÃO'!$B$8:$G$8,0),FALSE) -> 2.648382209 | L16: =IF(AND(J16="-",K16="-"),"",IF(AND(J16<>0,K16="-"),J16*1000,IF(AND(J16="-",K16<>0),K16*1000,IF(AND(J16<>0,K16<>0),J16*1000,"")))) -> 2648.382209 | M16: =ROUND(((L16/(1-$O$10-$O$11-$O$12+($O$11+$O$10)*$O$12)-L16)),2) -> 703.7 | N16: =L16+M16 -> 3352.082209 | O16: 1290 | P16: 0 | Q16: =ROUND((26.939+0.253*O16),2) -> 353.31 | S16: =R16+Q16 -> 353.31 | T16: =TRUNC(S16*($O$12/(1-$O$12)),2) -> 77.55 | U16: =TRUNC(IF($J$11="","",(($J$12-$J$11)/$J$11)*(Q16+T16)),2) -> 509.25 | V16: =S16+T16+U16 -> 940.11 | X16: =EVEN(' CONSUMO DE MAT. B TOTAL'!$O$14*2/28)*W16/' CONSUMO DE MAT. B TOTAL'!$O$14 -> 0 | Y16: =IF(AND(Q16="",T16=""),"",V16+X16) -> 940.11 | Z16: =IF(OR(L16="",M16=""),"",L16+M16) -> 3352.082209 | AA16: =IF(OR(Y16="",Z16=""),"",Y16+Z16) -> 4292.192209 | AC16: =AA16 -> 4292.192209 | AD16: =Y16 -> 940.11 | AE16: =Z16 -> 3352.082209 | AH16: =IF(OR(G16=$D$61,G16=$D$62,G16=$D$64,G16=$D$70,G16=$D$54,G16=$D$50,G16=$D$46,G16=$D$59,G16=$D$49),"NORDESTE",IF(OR(G16=$D$45,G16=$D$47,G16=$D$48,G16=$D$58,G16=$D$66,G16=$D$67,G16=$D$71),"NORTE",IF(OR(G16=$D$51,G16=$D$53,G16=$D$55,G16=$D$56),"CENTRO-OESTE",IF(OR(G16=$D$69,G16=$D$63,G16=$D$57,G16=$D$52),"SUDESTE",IF(OR(G16=$D$68,G16=$D$60,G16=$D$65),"SUL",""))))) -> NORDESTE
B17: =AA17 -> 4346.961063 | C17: 2 | E17: STRATURA ASFALTOS S/A | F17: AVENIDA PRESIDENTE WILSON, 08 - JUNDIAÍ - CEP:75115-100 | G17: Goiás | H17: ANÁPOLIS - GO | I17: =I16 -> BOM JESUS-PI | J17: =VLOOKUP(G17,OFFSET('ANP ESTADO'!$A$1,MATCH($I$10,'ANP ESTADO'!B:B,0)+MATCH($H$13,OFFSET('ANP ESTADO'!$A$1,MATCH($I$10,'ANP ESTADO'!B:B,0),0,100000,1),0),2,100000,2),2,FALSE) -> 2.726231063 | K17: =VLOOKUP($H$13,OFFSET('ANP REGIÃO'!$A$9,MATCH('Transporte RR-1C'!$I$10,'ANP REGIÃO'!A:A,0),1,10000,10000),MATCH('Transporte RR-1C'!AH17,'ANP REGIÃO'!$B$8:$G$8,0),FALSE) -> 2.846437607 | L17: =IF(AND(J17="-",K17="-"),"",IF(AND(J17<>0,K17="-"),J17*1000,IF(AND(J17="-",K17<>0),K17*1000,IF(AND(J17<>0,K17<>0),J17*1000,"")))) -> 2726.231063 | M17: =ROUND(((L17/(1-$O$10-$O$11-$O$12+($O$11+$O$10)*$O$12)-L17)),2) -> 724.39 | N17: =L17+M17 -> 3450.621063 | O17: 1225 | P17: 0 | Q17: =ROUND((26.939+0.253*O17),2) -> 336.86 | S17: =R17+Q17 -> 336.86 | T17: =TRUNC(S17*($O$12/(1-$O$12)),2) -> 73.94 | U17: =TRUNC(IF($J$11="","",(($J$12-$J$11)/$J$11)*(Q17+T17)),2) -> 485.54 | V17: =S17+T17+U17 -> 896.34 | X17: =EVEN(' CONSUMO DE MAT. B TOTAL'!$O$14*2/28)*W17/' CONSUMO DE MAT. B TOTAL'!$O$14 -> 0 | Y17: 896.34 | Z17: 3450.621063 | AA17: =IF(OR(Y17="",Z17=""),"",Y17+Z17) -> 4346.961063 | AC17: =AA17 -> 4346.961063 | AD17: =Y17 -> 896.34 | AE17: 3450.621063 | AH17: =IF(OR(G17=$D$61,G17=$D$62,G17=$D$64,G17=$D$70,G17=$D$54,G17=$D$50,G17=$D$46,G17=$D$59,G17=$D$49),"NORDESTE",IF(OR(G17=$D$45,G17=$D$47,G17=$D$48,G17=$D$58,G17=$D$66,G17=$D$67,G17=$D$71),"NORTE",IF(OR(G17=$D$51,G17=$D$53,G17=$D$55,G17=$D$56),"CENTRO-OESTE",IF(OR(G17=$D$69,G17=$D$63,G17=$D$57,G17=$D$52),"SUDESTE",IF(OR(G17=$D$68,G17=$D$60,G17=$D$65),"SUL",""))))) -> CENTRO-OESTE
B18: 4392.081063 | C18: 3 | E18: DISTRIBUIDORA BRASILEIRA DE ASFALTO SA - DISBRAL | F18: VIA PRIMARIA 8, S/N QD-18, MODS. 24/47 - DAIAG - CEP:74980-970 | G18: Goiás | H18: APARECIDA DE GOIANIA - GO | I18: =I17 -> BOM JESUS-PI | J18: =VLOOKUP(G18,OFFSET('ANP ESTADO'!$A$1,MATCH($I$10,'ANP ESTADO'!B:B,0)+MATCH($H$13,OFFSET('ANP ESTADO'!$A$1,MATCH($I$10,'ANP ESTADO'!B:B,0),0,100000,1),0),2,100000,2),2,FALSE) -> 2.726231063 | K18: =VLOOKUP($H$13,OFFSET('ANP REGIÃO'!$A$9,MATCH('Transporte RR-1C'!$I$10,'ANP REGIÃO'!A:A,0),1,10000,10000),MATCH('Transporte RR-1C'!AH18,'ANP REGIÃO'!$B$8:$G$8,0),FALSE) -> 2.846437607 | L18: 2726.231063 | M18: 724.39 | N18: 3450.621063 | O18: 1292 | P18: 0 | Q18: 353.82 | S18: 353.82 | T18: 77.66 | U18: 509.98 | V18: 941.46 | X18: =EVEN(' CONSUMO DE MAT. B TOTAL'!$O$14*2/28)*W18/' CONSUMO DE MAT. B TOTAL'!$O$14 -> 0 | Y18: 941.46 | Z18: 3450.621063 | AA18: 4392.081063 | AC18: 4392.081063 | AD18: 941.46 | AE18: 3450.621063 | AH18: CENTRO-OESTE
A19: 2403 | B19: 4396.101063 | C19: 4 | E19: INDÚSTRIA NACIONAL DE ASFALTOS LTDA. | F19: VIA PRIMEIRA E SEGUNDA 3, S/N.º LOTES 01 A 10 - DISTRITO AGROINDUSTRIAL - CEP:75370-000 | G19: Goiás | H19: GOIANIRA - GO | I19: BOM JESUS-PI | J19: =VLOOKUP(G19,OFFSET('ANP ESTADO'!$A$1,MATCH($I$10,'ANP ESTADO'!B:B,0)+MATCH($H$13,OFFSET('ANP ESTADO'!$A$1,MATCH($I$10,'ANP ESTADO'!B:B,0),0,100000,1),0),2,100000,2),2,FALSE) -> 2.726231063 | K19: =VLOOKUP($H$13,OFFSET('ANP REGIÃO'!$A$9,MATCH('Transporte RR-1C'!$I$10,'ANP REGIÃO'!A:A,0),1,10000,10000),MATCH('Transporte RR-1C'!AH19,'ANP REGIÃO'!$B$8:$G$8,0),FALSE) -> 2.846437607 | L19: 2726.231063 | M19: 724.39 | N19: 3450.621063 | O19: 1298 | P19: 0 | Q19: 355.33 | S19: 355.33 | T19: 77.99 | U19: 512.16 | V19: 945.48 | X19: =EVEN(' CONSUMO DE MAT. B TOTAL'!$O$14*2/28)*W19/' CONSUMO DE MAT. B TOTAL'!$O$14 -> 0 | Y19: 945.48 | Z19: 3450.621063 | AA19: 4396.101063 | AC19: 4396.101063 | AD19: 945.48 | AE19: 3450.621063 | AH19: CENTRO-OESTE
B20: 4407.097075 | C20: 5 | E20: STRATURA ASFALTOS S/A | F20: RUA VICTOR RODRIGUES RESENDE, 333 - DISTRITO IND. DE UBERLÂNDIA - CEP:38405-440 | G20: Minas Gerais | H20: UBERLANDIA - MG | I20: BOM JESUS-PI | J20: =VLOOKUP(G20,OFFSET('ANP ESTADO'!$A$1,MATCH($I$10,'ANP ESTADO'!B:B,0)+MATCH($H$13,OFFSET('ANP ESTADO'!$A$1,MATCH($I$10,'ANP ESTADO'!B:B,0),0,100000,1),0),2,100000,2),2,FALSE) -> 2.645017075 | K20: =VLOOKUP($H$13,OFFSET('ANP REGIÃO'!$A$9,MATCH('Transporte RR-1C'!$I$10,'ANP REGIÃO'!A:A,0),1,10000,10000),MATCH('Transporte RR-1C'!AH20,'ANP REGIÃO'!$B$8:$G$8,0),FALSE) -> 2.89412797 | L20: 2645.017075 | M20: 702.81 | N20: 3347.827075 | O20: 1467 | P20: 0 | Q20: 398.09 | S20: 398.09 | T20: 87.38 | U20: 573.8 | V20: 1059.27 | X20: =EVEN(' CONSUMO DE MAT. B TOTAL'!$O$14*2/28)*W20/' CONSUMO DE MAT. B TOTAL'!$O$14 -> 0 | Y20: 1059.27 | Z20: 3347.827075 | AA20: 4407.097075 | AC20: 4407.097075 | AD20: 1059.27 | AE20: 3347.827075 | AH20: SUDESTE
B21: 4407.097075 | C21: 6 | E21: BETUNEL INDÚSTRIA E COMÉRCIO LTDA. | F21: RUA VICTOR RODRIGUES DE REZENDE, 185 - DISTRITO INDUSTRIAL - CEP:38402-334 | G21: Minas Gerais | H21: UBERLANDIA - MG | I21: BOM JESUS-PI | J21: =VLOOKUP(G21,OFFSET('ANP ESTADO'!$A$1,MATCH($I$10,'ANP ESTADO'!B:B,0)+MATCH($H$13,OFFSET('ANP ESTADO'!$A$1,MATCH($I$10,'ANP ESTADO'!B:B,0),0,100000,1),0),2,100000,2),2,FALSE) -> 2.645017075 | K21: =VLOOKUP($H$13,OFFSET('ANP REGIÃO'!$A$9,MATCH('Transporte RR-1C'!$I$10,'ANP REGIÃO'!A:A,0),1,10000,10000),MATCH('Transporte RR-1C'!AH21,'ANP REGIÃO'!$B$8:$G$8,0),FALSE) -> 2.89412797 | L21: 2645.017075 | M21: 702.81 | N21: 3347.827075 | O21: 1467 | P21: 0 | Q21: 398.09 | S21: 398.09 | T21: 87.38 | U21: 573.8 | V21: 1059.27 | X21: =EVEN(' CONSUMO DE MAT. B TOTAL'!$O$14*2/28)*W21/' CONSUMO DE MAT. B TOTAL'!$O$14 -> 0 | Y21: 1059.27 | Z21: 3347.827075 | AA21: 4407.097075 | AC21: 4407.097075 | AD21: 1059.27 | AE21: 3347.827075 | AH21: SUDESTE
B22: 4272.662209 | C22: 7 | E22: Refinaria Potiguar Clara Camarão | F22: Rodovia RN 221, KM 25 - Guamaré - RN CEP:59598-000 | G22: Rio Grande do Norte | H22: GUAMARÉ - RN | I22: BOM JESUS-PI | J22: =VLOOKUP(G22,OFFSET('ANP ESTADO'!$A$1,MATCH($I$10,'ANP ESTADO'!B:B,0)+MATCH($H$13,OFFSET('ANP ESTADO'!$A$1,MATCH($I$10,'ANP ESTADO'!B:B,0),0,100000,1),0),2,100000,2),2,FALSE) -> - | K22: =VLOOKUP($H$13,OFFSET('ANP REGIÃO'!$A$9,MATCH('Transporte RR-1C'!$I$10,'ANP REGIÃO'!A:A,0),1,10000,10000),MATCH('Transporte RR-1C'!AH22,'ANP REGIÃO'!$B$8:$G$8,0),FALSE) -> 2.648382209 | L22: =IF(AND(J22="-",K22="-"),"",IF(AND(J22<>0,K22="-"),J22*1000,IF(AND(J22="-",K22<>0),K22*1000,IF(AND(J22<>0,K22<>0),J22*1000,"")))) -> 2648.382209 | M22: 703.7 | N22: 3352.082209 | O22: 1261 | P22: 0 | Q22: 345.97 | S22: 345.97 | T22: 75.94 | U22: 498.67 | V22: 920.58 | X22: =EVEN(' CONSUMO DE MAT. B TOTAL'!$O$14*2/28)*W22/' CONSUMO DE MAT. B TOTAL'!$O$14 -> 0 | Y22: 920.58 | Z22: 3352.082209 | AA22: 4272.662209 | AH22: NORDESTE
B23: 4479.797075 | C23: 8 | E23: DISTRIBUIDORA BRASILEIRA DE ASFALTO SA - DISBRAL | F23: SÃO JUDAS TADEU, 288 - DISTRITO INDUSTRIAL - CEP:32450-000 | G23: Minas Gerais | H23: SARZEDO - MG | I23: BOM JESUS-PI | J23: =VLOOKUP(G23,OFFSET('ANP ESTADO'!$A$1,MATCH($I$10,'ANP ESTADO'!B:B,0)+MATCH($H$13,OFFSET('ANP ESTADO'!$A$1,MATCH($I$10,'ANP ESTADO'!B:B,0),0,100000,1),0),2,100000,2),2,FALSE) -> 2.645017075 | K23: =VLOOKUP($H$13,OFFSET('ANP REGIÃO'!$A$9,MATCH('Transporte RR-1C'!$I$10,'ANP REGIÃO'!A:A,0),1,10000,10000),MATCH('Transporte RR-1C'!AH23,'ANP REGIÃO'!$B$8:$G$8,0),FALSE) -> 2.89412797 | L23: 2645.017075 | M23: 702.81 | N23: 3347.827075 | O23: 1575 | P23: 0 | Q23: 425.41 | S23: 425.41 | T23: 93.38 | U23: 613.18 | V23: 1131.97 | X23: =EVEN(' CONSUMO DE MAT. B TOTAL'!$O$14*2/28)*W23/' CONSUMO DE MAT. B TOTAL'!$O$14 -> 0 | Y23: 1131.97 | Z23: 3347.827075 | AA23: 4479.797075 | AH23: SUDESTE
B24: 4695.727047 | C24: 9 | E24: 'INDÚSTRIA NACIONAL DE ASFALTOS LTDA. | F24: INDÚSTRIA NACIONAL DE ASFALTOS LTDA - CEP:77053-080 | G24: Tocantins | H24: PALMAS - TO | I24: BOM JESUS-PI | J24: =VLOOKUP(G24,OFFSET('ANP ESTADO'!$A$1,MATCH($I$10,'ANP ESTADO'!B:B,0)+MATCH($H$13,OFFSET('ANP ESTADO'!$A$1,MATCH($I$10,'ANP ESTADO'!B:B,0),0,100000,1),0),2,100000,2),2,FALSE) -> 3.243247047 | K24: =VLOOKUP($H$13,OFFSET('ANP REGIÃO'!$A$9,MATCH('Transporte RR-1C'!$I$10,'ANP REGIÃO'!A:A,0),1,10000,10000),MATCH('Transporte RR-1C'!AH24,'ANP REGIÃO'!$B$8:$G$8,0),FALSE) -> 3.739354755 | L24: 3243.247047 | M24: 861.77 | N24: 4105.017047 | O24: 771 | P24: 0 | Q24: 222 | S24: 222 | T24: 48.73 | U24: =TRUNC(IF($J$11="","",(($J$12-$J$11)/$J$11)*(Q24+T24)),2) -> 319.98 | V24: 590.71 | X24: =EVEN(' CONSUMO DE MAT. B TOTAL'!$O$14*2/28)*W24/' CONSUMO DE MAT. B TOTAL'!$O$14 -> 0 | Y24: 590.71 | Z24: 4105.017047 | AA24: 4695.727047 | AH24: NORTE
B25: 5119.489477 | C25: 10 | E25: 'NTA - NOVAS TÉCNICAS DE ASFALTOS S/A | F25: RUA SOFIA ATAURI FADIN, 150 SALA A - B. SANTA TEREZINHA - CEP:13140-000 | G25: São Paulo | H25: PAULINIA - SP | I25: BOM JESUS-PI | J25: =VLOOKUP(G25,OFFSET('ANP ESTADO'!$A$1,MATCH($I$10,'ANP ESTADO'!B:B,0)+MATCH($H$13,OFFSET('ANP ESTADO'!$A$1,MATCH($I$10,'ANP ESTADO'!B:B,0),0,100000,1),0),2,100000,2),2,FALSE) -> 2.951489477 | K25: =VLOOKUP($H$13,OFFSET('ANP REGIÃO'!$A$9,MATCH('Transporte RR-1C'!$I$10,'ANP REGIÃO'!A:A,0),1,10000,10000),MATCH('Transporte RR-1C'!AH25,'ANP REGIÃO'!$B$8:$G$8,0),FALSE) -> 2.89412797 | L25: 2951.489477 | M25: 784.24 | N25: 3735.729477 | O25: 1949 | P25: 0 | Q25: 520.04 | S25: 520.04 | T25: 114.15 | U25: 749.57 | V25: 1383.76 | X25: =EVEN(' CONSUMO DE MAT. B TOTAL'!$O$14*2/28)*W25/' CONSUMO DE MAT. B TOTAL'!$O$14 -> 0 | Y25: 1383.76 | Z25: 3735.729477 | AA25: 5119.489477 | AC25: 5119.489477 | AD25: 1383.76 | AE25: 3735.729477 | AH25: SUDESTE
B26: 5170.639477 | C26: 11 | E26: COMPANHIA BRASILEIRA DE ASFALTOS DA AMAZÔNIA - IMPORTAÇÃO E EXPORTAÇÃO | F26: Avenida Doutor Olindo Dártora 2451, Galpão 02, Morro Grande - CEP:07726-555 | G26: São Paulo | H26: CAIEIRAS - SP | I26: BOM JESUS-PI | J26: =VLOOKUP(G26,OFFSET('ANP ESTADO'!$A$1,MATCH($I$10,'ANP ESTADO'!B:B,0)+MATCH($H$13,OFFSET('ANP ESTADO'!$A$1,MATCH($I$10,'ANP ESTADO'!B:B,0),0,100000,1),0),2,100000,2),2,FALSE) -> 2.951489477 | K26: =VLOOKUP($H$13,OFFSET('ANP REGIÃO'!$A$9,MATCH('Transporte RR-1C'!$I$10,'ANP REGIÃO'!A:A,0),1,10000,10000),MATCH('Transporte RR-1C'!AH26,'ANP REGIÃO'!$B$8:$G$8,0),FALSE) -> 2.89412797 | L26: 2951.489477 | M26: 784.24 | N26: 3735.729477 | O26: 2025 | P26: 0 | Q26: 539.26 | S26: 539.26 | T26: 118.37 | U26: 777.28 | V26: 1434.91 | X26: =EVEN(' CONSUMO DE MAT. B TOTAL'!$O$14*2/28)*W26/' CONSUMO DE MAT. B TOTAL'!$O$14 -> 0 | Y26: 1434.91 | Z26: 3735.729477 | AA26: 5170.639477 | AH26: SUDESTE
B27: 4088.882209 | C27: 12 | E27: Refinaria Landulpho Alves (RLAM) | F27: Rodovia BA 523, KM 4 – Mataripe São Francisco do Conde - BA CEP:43900-000 | G27: Bahia | H27: SÃO FRANCISCO DO CONDE - BA | I27: BOM JESUS-PI | J27: =VLOOKUP(G27,OFFSET('ANP ESTADO'!$A$1,MATCH($I$10,'ANP ESTADO'!B:B,0)+MATCH($H$13,OFFSET('ANP ESTADO'!$A$1,MATCH($I$10,'ANP ESTADO'!B:B,0),0,100000,1),0),2,100000,2),2,FALSE) -> - | K27: =VLOOKUP($H$13,OFFSET('ANP REGIÃO'!$A$9,MATCH('Transporte RR-1C'!$I$10,'ANP REGIÃO'!A:A,0),1,10000,10000),MATCH('Transporte RR-1C'!AH27,'ANP REGIÃO'!$B$8:$G$8,0),FALSE) -> 2.648382209 | L27: 2648.382209 | M27: 703.7 | N27: 3352.082209 | O27: 988 | P27: 0 | Q27: 276.9 | S27: 276.9 | T27: 60.78 | U27: 399.12 | V27: 736.8 | X27: =EVEN(' CONSUMO DE MAT. B TOTAL'!$O$14*2/28)*W27/' CONSUMO DE MAT. B TOTAL'!$O$14 -> 0 | Y27: 736.8 | Z27: 3352.082209 | AA27: 4088.882209 | AH27: NORDESTE
B28: 3898.051131 | C28: 13 | E28: Refinaria Lubrificantes e Derivados do Nordeste (Lubnor) | F28: Av. Leite Barbosa, s/nº - Mucuripe Fortaleza - Ceará CEP:60180-420 | G28: Ceará | H28: FORTALEZA - CE | I28: BOM JESUS-PI | J28: =VLOOKUP(G28,OFFSET('ANP ESTADO'!$A$1,MATCH($I$10,'ANP ESTADO'!B:B,0)+MATCH($H$13,OFFSET('ANP ESTADO'!$A$1,MATCH($I$10,'ANP ESTADO'!B:B,0),0,100000,1),0),2,100000,2),2,FALSE) -> 2.469941131 | K28: =VLOOKUP($H$13,OFFSET('ANP REGIÃO'!$A$9,MATCH('Transporte RR-1C'!$I$10,'ANP REGIÃO'!A:A,0),1,10000,10000),MATCH('Transporte RR-1C'!AH28,'ANP REGIÃO'!$B$8:$G$8,0),FALSE) -> 2.648382209 | L28: 2469.941131 | M28: 656.29 | N28: 3126.231131 | O28: 1040 | P28: 0 | Q28: 290.06 | S28: 290.06 | T28: 63.67 | U28: 418.09 | V28: 771.82 | X28: =EVEN(' CONSUMO DE MAT. B TOTAL'!$O$14*2/28)*W28/' CONSUMO DE MAT. B TOTAL'!$O$14 -> 0 | Y28: 771.82 | Z28: 3126.231131 | AA28: 3898.051131 | AH28: NORDESTE
B29: 6461.965751 | C29: 14 | E29: BETUNEL INDÚSTRIA E COMÉRCIO LTDA. | F29: RUA N ESQUINA COM RUA X, S/N QD. IND. 7 L 01/08 - DIST. IND. - CEP:78015-285 | G29: Mato Grosso | H29: CUIABA - MT | I29: =I28 -> BOM JESUS-PI | J29: =VLOOKUP(G29,OFFSET('ANP ESTADO'!$A$1,MATCH($I$10,'ANP ESTADO'!B:B,0)+MATCH($H$13,OFFSET('ANP ESTADO'!$A$1,MATCH($I$10,'ANP ESTADO'!B:B,0),0,100000,1),0),2,100000,2),2,FALSE) -> 3.917475751 | K29: =VLOOKUP($H$13,OFFSET('ANP REGIÃO'!$A$9,MATCH('Transporte RR-1C'!$I$10,'ANP REGIÃO'!A:A,0),1,10000,10000),MATCH('Transporte RR-1C'!AH29,'ANP REGIÃO'!$B$8:$G$8,0),FALSE) -> 2.846437607 | L29: 3917.475751 | M29: 1040.91 | N29: 4958.385751 | O29: 2127 | P29: 0 | Q29: 565.07 | S29: 565.07 | T29: 124.03 | U29: 814.48 | V29: 1503.58 | X29: =EVEN(' CONSUMO DE MAT. B TOTAL'!$O$14*2/28)*W29/' CONSUMO DE MAT. B TOTAL'!$O$14 -> 0 | Y29: 1503.58 | Z29: 4958.385751 | AA29: 6461.965751 | AH29: CENTRO-OESTE
B30: 6466.015751 | C30: 15 | E30: EMAM - EMULSÕES E TRANSPORTES LTDA. | F30: RODOVIA DOS IMIGRANTES, S/Nº KM 8,6 - - CEP:60035-351 | G30: Mato Grosso | H30: VARZEA GRANDE - MT | I30: BOM JESUS-PI | J30: =VLOOKUP(G30,OFFSET('ANP ESTADO'!$A$1,MATCH($I$10,'ANP ESTADO'!B:B,0)+MATCH($H$13,OFFSET('ANP ESTADO'!$A$1,MATCH($I$10,'ANP ESTADO'!B:B,0),0,100000,1),0),2,100000,2),2,FALSE) -> 3.917475751 | K30: =VLOOKUP($H$13,OFFSET('ANP REGIÃO'!$A$9,MATCH('Transporte RR-1C'!$I$10,'ANP REGIÃO'!A:A,0),1,10000,10000),MATCH('Transporte RR-1C'!AH30,'ANP REGIÃO'!$B$8:$G$8,0),FALSE) -> 2.846437607 | L30: 3917.475751 | M30: 1040.91 | N30: 4958.385751 | O30: 2133 | P30: 0 | Q30: 566.59 | S30: 566.59 | T30: 124.37 | U30: 816.67 | V30: 1507.63 | X30: =EVEN(' CONSUMO DE MAT. B TOTAL'!$O$14*2/28)*W30/' CONSUMO DE MAT. B TOTAL'!$O$14 -> 0 | Y30: 1507.63 | Z30: 4958.385751 | AA30: 6466.015751 | AC30: 6466.015751 | AD30: 1507.63 | AE30: 4958.385751 | AH30: CENTRO-OESTE
B31: 5242.689477 | C31: 16 | E31: VIAPOL LTDA. | F31: VITO ARDITO, 6401 KM 118,5 - JARDIM CAMPO GRANDE - CEP:12282-535 | G31: São Paulo | H31: CACAPAVA - SP | I31: BOM JESUS-PI | J31: =VLOOKUP(G31,OFFSET('ANP ESTADO'!$A$1,MATCH($I$10,'ANP ESTADO'!B:B,0)+MATCH($H$13,OFFSET('ANP ESTADO'!$A$1,MATCH($I$10,'ANP ESTADO'!B:B,0),0,100000,1),0),2,100000,2),2,FALSE) -> 2.951489477 | K31: =VLOOKUP($H$13,OFFSET('ANP REGIÃO'!$A$9,MATCH('Transporte RR-1C'!$I$10,'ANP REGIÃO'!A:A,0),1,10000,10000),MATCH('Transporte RR-1C'!AH31,'ANP REGIÃO'!$B$8:$G$8,0),FALSE) -> 2.89412797 | L31: 2951.489477 | M31: 784.24 | N31: 3735.729477 | O31: 2132 | P31: 0 | Q31: 566.34 | S31: 566.34 | T31: 124.31 | U31: 816.31 | V31: 1506.96 | X31: =EVEN(' CONSUMO DE MAT. B TOTAL'!$O$14*2/28)*W31/' CONSUMO DE MAT. B TOTAL'!$O$14 -> 0 | Y31: 1506.96 | Z31: 3735.729477 | AA31: 5242.689477 | AC31: 5242.689477 | AD31: 1506.96 | AE31: 3735.729477 | AH31: SUDESTE
B32: 5063.71797 | C32: 17 | E32: STRATURA ASFALTOS S/A | F32: RUA LUIS DE CAMÕES, 26 - CAMPOS ELÍSEOS - CEP:25225-030 | G32: Rio de Janeiro | H32: DUQUE DE CAXIAS - RJ | I32: BOM JESUS-PI | J32: =VLOOKUP(G32,OFFSET('ANP ESTADO'!$A$1,MATCH($I$10,'ANP ESTADO'!B:B,0)+MATCH($H$13,OFFSET('ANP ESTADO'!$A$1,MATCH($I$10,'ANP ESTADO'!B:B,0),0,100000,1),0),2,100000,2),2,FALSE) -> - | K32: =VLOOKUP($H$13,OFFSET('ANP REGIÃO'!$A$9,MATCH('Transporte RR-1C'!$I$10,'ANP REGIÃO'!A:A,0),1,10000,10000),MATCH('Transporte RR-1C'!AH32,'ANP REGIÃO'!$B$8:$G$8,0),FALSE) -> 2.89412797 | L32: 2894.12797 | M32: 769 | N32: 3663.12797 | O32: 1974 | P32: 0 | Q32: 526.36 | S32: 526.36 | T32: 115.54 | U32: 758.69 | V32: 1400.59 | X32: =EVEN(' CONSUMO DE MAT. B TOTAL'!$O$14*2/28)*W32/' CONSUMO DE MAT. B TOTAL'!$O$14 -> 0 | Y32: 1400.59 | Z32: 3663.12797 | AA32: 5063.71797 | AC32: 5063.71797 | AD32: 1400.59 | AE32: 3663.12797 | AH32: SUDESTE
B33: 5074.49797 | C33: 18 | E33: PROBITEC - PRODUTOS BETUMINOSOS E TECNOLOGIA DE APLICAÇÃO LTDA. | F33: AVENIDA CANAL DA PAVUNA, 620 - PAVUNA - CEP:21535-630 | G33: Rio de Janeiro | H33: RIO DE JANEIRO - RJ | I33: BOM JESUS-PI | J33: =VLOOKUP(G33,OFFSET('ANP ESTADO'!$A$1,MATCH($I$10,'ANP ESTADO'!B:B,0)+MATCH($H$13,OFFSET('ANP ESTADO'!$A$1,MATCH($I$10,'ANP ESTADO'!B:B,0),0,100000,1),0),2,100000,2),2,FALSE) -> - | K33: =VLOOKUP($H$13,OFFSET('ANP REGIÃO'!$A$9,MATCH('Transporte RR-1C'!$I$10,'ANP REGIÃO'!A:A,0),1,10000,10000),MATCH('Transporte RR-1C'!AH33,'ANP REGIÃO'!$B$8:$G$8,0),FALSE) -> 2.89412797 | L33: 2894.12797 | M33: 769 | N33: 3663.12797 | O33: 1990 | P33: 0 | Q33: 530.41 | S33: 530.41 | T33: 116.43 | U33: 764.53 | V33: 1411.37 | X33: =EVEN(' CONSUMO DE MAT. B TOTAL'!$O$14*2/28)*W33/' CONSUMO DE MAT. B TOTAL'!$O$14 -> 0 | Y33: 1411.37 | Z33: 3663.12797 | AA33: 5074.49797 | AC33: 5074.49797 | AD33: 1411.37 | AE33: 3663.12797 | AH33: SUDESTE
B34: 4997.919787 | C34: 19 | E34: CASA DO ASFALTO DISTRIBUIDORA, INDÚSTRIA E COMÉRCIO DE ASFALTO LTDA. | F34: BR 376, PARQUE INDUSTRIAL, S/N LOTE 6/7/7-A-3-1 - GL.PATR.MARIALVA - CEP:86990-000 | G34: Paraná | H34: MARIALVA - PR | I34: BOM JESUS-PI | J34: =VLOOKUP(G34,OFFSET('ANP ESTADO'!$A$1,MATCH($I$10,'ANP ESTADO'!B:B,0)+MATCH($H$13,OFFSET('ANP ESTADO'!$A$1,MATCH($I$10,'ANP ESTADO'!B:B,0),0,100000,1),0),2,100000,2),2,FALSE) -> 2.719289787 | K34: =VLOOKUP($H$13,OFFSET('ANP REGIÃO'!$A$9,MATCH('Transporte RR-1C'!$I$10,'ANP REGIÃO'!A:A,0),1,10000,10000),MATCH('Transporte RR-1C'!AH34,'ANP REGIÃO'!$B$8:$G$8,0),FALSE) -> 2.740695116 | L34: 2719.289787 | M34: 722.54 | N34: 3441.829787 | O34: 2205 | P34: 0 | Q34: 584.8 | S34: 584.8 | T34: 128.37 | U34: 842.92 | V34: 1556.09 | X34: =EVEN(' CONSUMO DE MAT. B TOTAL'!$O$14*2/28)*W34/' CONSUMO DE MAT. B TOTAL'!$O$14 -> 0 | Y34: 1556.09 | Z34: 3441.829787 | AA34: 4997.919787 | AC34: 4997.919787 | AD34: 1556.09 | AE34: 3441.829787 | AH34: SUL
B35: 5075.339787 | C35: 20 | E35: PETROBRAS DISTRIBUIDORA S.A. | F35: RUA MAQUINISTA ELEODORO JACINTO, 100 - OFICINAS - CEP:84045-170 | G35: Paraná | H35: PONTA GROSSA - PR | I35: BOM JESUS-PI | J35: =VLOOKUP(G35,OFFSET('ANP ESTADO'!$A$1,MATCH($I$10,'ANP ESTADO'!B:B,0)+MATCH($H$13,OFFSET('ANP ESTADO'!$A$1,MATCH($I$10,'ANP ESTADO'!B:B,0),0,100000,1),0),2,100000,2),2,FALSE) -> 2.719289787 | K35: =VLOOKUP($H$13,OFFSET('ANP REGIÃO'!$A$9,MATCH('Transporte RR-1C'!$I$10,'ANP REGIÃO'!A:A,0),1,10000,10000),MATCH('Transporte RR-1C'!AH35,'ANP REGIÃO'!$B$8:$G$8,0),FALSE) -> 2.740695116 | L35: 2719.289787 | M35: 722.54 | N35: 3441.829787 | O35: 2320 | P35: 0 | Q35: 613.9 | S35: 613.9 | T35: 134.75 | U35: 884.86 | V35: 1633.51 | X35: =EVEN(' CONSUMO DE MAT. B TOTAL'!$O$14*2/28)*W35/' CONSUMO DE MAT. B TOTAL'!$O$14 -> 0 | Y35: 1633.51 | Z35: 3441.829787 | AA35: 5075.339787 | AC35: 5075.339787 | AD35: 1633.51 | AE35: 3441.829787 | AH35: SUL
D45: Acre
D46: Alagoas
D47: Amapá
D48: Amazonas
D49: Bahia
D50: Ceará
D51: Distrito Federal
D52: Espírito Santo
D53: Goiás
D54: Maranhão
D55: Mato Grosso
D56: Mato Grosso do Sul
D57: Minas Gerais
D58: Pará
D59: Paraíba
D60: Paraná
D61: Pernambuco
D62: Piauí
D63: Rio de Janeiro
D64: Rio Grande do Norte
D65: Rio Grande do Sul
D66: Rondônia
D67: Roraima
D68: Santa Catarina
D69: São Paulo
D70: Sergipe
D71: Tocantins
D75: ASFALTOS DILUÍDOS CM-30
D76: ASFALTOS DILUÍDOS CM-70
D77: ASFALTOS DILUÍDOS CR-250
D78: ASFALTOS DILUÍDOS CR-70
D79: CAP MODIFICADO POR BORRACHA DE PNEU AB22
D80: CAP MODIFICADO POR BORRACHA DE PNEU AB8
D81: CAP MODIFICADO POR POLÍMERO 55-75-E
D82: CAP MODIFICADO POR POLÍMERO 60-85-E
D83: CAP MODIFICADO POR POLÍMERO 65-90-E
D84: CIMENTOS ASFÁLTICOS CAP-150-200
D85: CIMENTOS ASFÁLTICOS CAP-30-45
D86: CIMENTOS ASFÁLTICOS CAP-50-70
D87: CIMENTOS ASFÁLTICOS CAP-85-100
D88: EMULSÃO ASFÁLTICA CATIÔNICA DE RUPTURA CONTROLADA PARA SERVIÇO DE LAMA ASFÁLTICA
D89: EMULSÃO ASFÁLTICA DE RUPTURA LENTA CATIÔNICA PARA SERVIÇO DE LAMA ASFÁLTICA
D90: EMULSÃO ASFÁLTICA DE RUPTURA LENTA DE CARGA NEUTRA PARA SERVIÇO DE LAMA ASFÁLTICA
D91: EMULSÃO ASFÁLTICA PARA SERVIÇO DE IMPRIMAÇÃO
D92: EMULSÕES ASF. MOD. POR POLÍMEROS RC1C-E
D93: EMULSÕES ASF. MOD. POR POLÍMEROS RL1C-E
D94: EMULSÕES ASF. MOD. POR POLÍMEROS RM1C-E
D95: EMULSÕES ASF. MOD. POR POLÍMEROS RR1C-E
D96: EMULSÕES ASF. MOD. POR POLÍMEROS RR2C-E
D97: EMULSÕES ASFÁLTICAS RL-1C
D98: EMULSÕES ASFÁLTICAS RM-1C
D99: EMULSÕES ASFÁLTICAS RM-2C
D100: EMULSÕES ASFÁLTICAS RR-1C
D101: EMULSÕES ASFÁLTICAS RR-2C

Sheet RESUMO_Transp
B8: REAJUSTE | E8: TIPOLOGIA DO MATERIAL | G8: LIGANTE BETUMINOSO | K8: IMPOSTOS | L8: COFINS | M8: ='Transporte Cap 50-70'!O10 -> 0.0065
C9: DATA INICIAL | F9: 2014-07-01 | G9: ÍNDICE INICIAL | H9: ='Transporte Cap 50-70'!J11 -> 270.237 | L9: PIS | M9: ='Transporte Cap 50-70'!O11 -> 0.03 | P9: LEGENDA
C10: DATA FINAL | F10: ='Transporte Cap 50-70'!H13 -> 2025-07-01 | G10: ÍNDICE FINAL | H10: ='Transporte Cap 50-70'!J12 -> 589.643 | L10: ICMS | M10: ='Transporte Cap 50-70'!O12 -> 0.18 | P10: ENTRADA DE DADOS
B12: DATA-BASE | C12: PRODUTOS | D12: LOCALIDADES | H12: CUSTO ANP (R$/Kg) | J12: CUSTO ANP | K12: IMPOSTOS DO PRODUTO | L12: CUSTO DO PRODUTO COM IMPOSTOS | M12: DMT's | N12: DMT's FLUVIAL | O12: CUSTO DO TRANSPORTE TOTAL | P12: ICMS | Q12: ATUALIZAÇÃO DO CUSTO DE TRANSPORTE | R12: CUSTO DO TRANSPORTE RODOVIA PAVIMENTADA COM IMPOSTOS E ATUALIZAÇÃO MONETÁRIA | S12: PEDÁGIO | U12: TOTAL TRANSPORTE | V12: TOTAL PRODUTO | W12: TOTAL GERAL
B13: =F10 -> 2025-07-01 | D13: REFINARIAS | E13: ENDEREÇO | F13: ORIGEM REFINARIAS / DISTRIBUIDORAS | G13: DESTINO | H13: ESTADO | I13: REGIÃO | J13: R$/t | K13: R$/t | L13: R$/t | M13: KM | N13: KM | O13: R$/t | P13: R$/t | Q13: R$/t | R13: R$/t | S13: CUSTO POR EIXO | T13: R$/t | U13: R$/t | V13: R$/t | W13: R$/t
B14: 1 | C14: CAP 50/70 | D14: Refinaria Abreu e Lima | E14: Rodovia PE 60, Km 10 - Ipojuca - PE CEP:55590-000 | F14: =VLOOKUP($W14,'Transporte Cap 50-70'!$B:$AA,7,FALSE) -> FORTALEZA - CE | G14: =VLOOKUP($W14,'Transporte Cap 50-70'!$B:$AA,8,FALSE) -> BOM JESUS-PI | H14: =VLOOKUP($W14,'Transporte Cap 50-70'!$B:$AA,9,FALSE) -> 3.487986243 | I14: =VLOOKUP($W14,'Transporte Cap 50-70'!$B:$AA,10,FALSE) -> 3.53904078 | J14: =VLOOKUP($W14,'Transporte Cap 50-70'!$B:$AA,11,FALSE) -> 3487.986243 | K14: =VLOOKUP($W14,'Transporte Cap 50-70'!$B:$AA,12,FALSE) -> 926.8 | L14: =VLOOKUP($W14,'Transporte Cap 50-70'!$B:$AA,13,FALSE) -> 4414.786243 | M14: =VLOOKUP($W14,'Transporte Cap 50-70'!$B:$AA,14,FALSE) -> 1040 | N14: =VLOOKUP($W14,'Transporte Cap 50-70'!$B:$AA,15,FALSE) -> 0 | O14: =VLOOKUP(W14,'Transporte Cap 50-70'!$B$16:$AA$28,18,0) -> 290.06 | P14: =VLOOKUP(W14,'Transporte Cap 50-70'!$B$16:$AA$28,19,0) -> 63.67 | Q14: =VLOOKUP(W14,'Transporte Cap 50-70'!$B$16:$AA$28,20,0) -> 418.09 | R14: =VLOOKUP(W14,'Transporte Cap 50-70'!$B$16:$AA$28,21,0) -> 771.82 | S14: =VLOOKUP(W14,'Transporte Cap 50-70'!$B$16:$AA$28,22,0) -> 0 | T14: =VLOOKUP(W14,'Transporte Cap 50-70'!$B$16:$AA$28,23,0) -> 0 | U14: =VLOOKUP(W14,'Transporte Cap 50-70'!$B$16:$AA$28,24,0) -> 771.82 | V14: =VLOOKUP(W14,'Transporte Cap 50-70'!$B$16:$AA$28,25,0) -> 4414.786243 | W14: =SMALL('Transporte Cap 50-70'!$AA:$AA,1) -> 5186.606243
B15: 2 | D15: Refinaria Potiguar Clara Camarão | E15: Rodovia RN 221, KM 25 - Guamaré - RN CEP:59598-000 | F15: =VLOOKUP($W15,'Transporte Cap 50-70'!$B:$AA,7,FALSE) -> SÃO FRANCISCO DO CONDE - BA | G15: =VLOOKUP($W15,'Transporte Cap 50-70'!$B:$AA,8,FALSE) -> BOM JESUS-PI | H15: =VLOOKUP($W15,'Transporte Cap 50-70'!$B:$AA,9,FALSE) -> 3.580963906 | I15: =VLOOKUP($W15,'Transporte Cap 50-70'!$B:$AA,10,FALSE) -> 3.53904078 | J15: =VLOOKUP($W15,'Transporte Cap 50-70'!$B:$AA,11,FALSE) -> 3580.963906 | K15: =VLOOKUP($W15,'Transporte Cap 50-70'!$B:$AA,12,FALSE) -> 951.5 | L15: =VLOOKUP($W15,'Transporte Cap 50-70'!$B:$AA,13,FALSE) -> 4532.463906 | M15: =VLOOKUP($W15,'Transporte Cap 50-70'!$B:$AA,14,FALSE) -> 988 | N15: =VLOOKUP($W15,'Transporte Cap 50-70'!$B:$AA,15,FALSE) -> 0 | O15: =VLOOKUP(W15,'Transporte Cap 50-70'!$B$16:$AA$28,18,0) -> 276.9 | P15: =VLOOKUP(W15,'Transporte Cap 50-70'!$B$16:$AA$28,19,0) -> 60.78 | Q15: =VLOOKUP(W15,'Transporte Cap 50-70'!$B$16:$AA$28,20,0) -> 399.12 | R15: =VLOOKUP(W15,'Transporte Cap 50-70'!$B$16:$AA$28,21,0) -> 736.8 | S15: =VLOOKUP(W15,'Transporte Cap 50-70'!$B$16:$AA$28,22,0) -> 0 | T15: =VLOOKUP(W15,'Transporte Cap 50-70'!$B$16:$AA$28,23,0) -> 0 | U15: =VLOOKUP(W15,'Transporte Cap 50-70'!$B$16:$AA$28,24,0) -> 736.8 | V15: =VLOOKUP(W15,'Transporte Cap 50-70'!$B$16:$AA$28,25,0) -> 4532.463906 | W15: =SMALL('Transporte Cap 50-70'!$AA:$AA,2) -> 5269.263906
B16: 3 | D16: Complexo Petroquímico do Rio de Janeiro (Comperj) | E16: Rodovia Estadual RJ-116 - Km 5,2 - Acesso A-1, s/n, Complemento Sambaetiba - Zona Urbana do 4º Distrito de Itaboraí - RJ CEP:24841-203 | F16: =VLOOKUP($W16,'Transporte Cap 50-70'!$B:$AA,7,FALSE) -> GUAMARÉ - RN | G16: =VLOOKUP($W16,'Transporte Cap 50-70'!$B:$AA,8,FALSE) -> BOM JESUS-PI | H16: =VLOOKUP($W16,'Transporte Cap 50-70'!$B:$AA,9,FALSE) -> - | I16: =VLOOKUP($W16,'Transporte Cap 50-70'!$B:$AA,10,FALSE) -> 3.53904078 | J16: =VLOOKUP($W16,'Transporte Cap 50-70'!$B:$AA,11,FALSE) -> 3539.04078 | K16: =VLOOKUP($W16,'Transporte Cap 50-70'!$B:$AA,12,FALSE) -> 940.36 | L16: =VLOOKUP($W16,'Transporte Cap 50-70'!$B:$AA,13,FALSE) -> 4479.40078 | M16: =VLOOKUP($W16,'Transporte Cap 50-70'!$B:$AA,14,FALSE) -> 1261 | N16: =VLOOKUP($W16,'Transporte Cap 50-70'!$B:$AA,15,FALSE) -> 0 | O16: =VLOOKUP(W16,'Transporte Cap 50-70'!$B$16:$AA$28,18,0) -> 345.97 | P16: =VLOOKUP(W16,'Transporte Cap 50-70'!$B$16:$AA$28,19,0) -> 75.94 | Q16: =VLOOKUP(W16,'Transporte Cap 50-70'!$B$16:$AA$28,20,0) -> 498.67 | R16: =VLOOKUP(W16,'Transporte Cap 50-70'!$B$16:$AA$28,21,0) -> 920.58 | S16: =VLOOKUP(W16,'Transporte Cap 50-70'!$B$16:$AA$28,22,0) -> 0 | T16: =VLOOKUP(W16,'Transporte Cap 50-70'!$B$16:$AA$28,23,0) -> 0 | U16: =VLOOKUP(W16,'Transporte Cap 50-70'!$B$16:$AA$28,24,0) -> 920.58 | V16: =VLOOKUP(W16,'Transporte Cap 50-70'!$B$16:$AA$28,25,0) -> 4479.40078 | W16: =SMALL('Transporte Cap 50-70'!$AA:$AA,3) -> 5399.98078
B17: 4 | F17: =VLOOKUP($W17,'Transporte Cap 50-70'!$B:$AA,7,FALSE) -> IPOJUCA - PE | G17: =VLOOKUP($W17,'Transporte Cap 50-70'!$B:$AA,8,FALSE) -> BOM JESUS-PI | H17: =VLOOKUP($W17,'Transporte Cap 50-70'!$B:$AA,9,FALSE) -> - | I17: =VLOOKUP($W17,'Transporte Cap 50-70'!$B:$AA,10,FALSE) -> 3.53904078 | J17: =VLOOKUP($W17,'Transporte Cap 50-70'!$B:$AA,11,FALSE) -> 3539.04078 | K17: =VLOOKUP($W17,'Transporte Cap 50-70'!$B:$AA,12,FALSE) -> 940.36 | L17: =VLOOKUP($W17,'Transporte Cap 50-70'!$B:$AA,13,FALSE) -> 4479.40078 | M17: =VLOOKUP($W17,'Transporte Cap 50-70'!$B:$AA,14,FALSE) -> 1290 | N17: =VLOOKUP($W17,'Transporte Cap 50-70'!$B:$AA,15,FALSE) -> 0 | O17: =VLOOKUP(W17,'Transporte Cap 50-70'!$B$16:$AA$28,18,0) -> 353.31 | P17: =VLOOKUP(W17,'Transporte Cap 50-70'!$B$16:$AA$28,19,0) -> 77.55 | Q17: =VLOOKUP(W17,'Transporte Cap 50-70'!$B$16:$AA$28,20,0) -> 509.25 | R17: =VLOOKUP(W17,'Transporte Cap 50-70'!$B$16:$AA$28,21,0) -> 940.11 | S17: =VLOOKUP(W17,'Transporte Cap 50-70'!$B$16:$AA$28,22,0) -> 0 | T17: =VLOOKUP(W17,'Transporte Cap 50-70'!$B$16:$AA$28,23,0) -> 0 | U17: =VLOOKUP(W17,'Transporte Cap 50-70'!$B$16:$AA$28,24,0) -> 940.11 | V17: =VLOOKUP(W17,'Transporte Cap 50-70'!$B$16:$AA$28,25,0) -> 4479.40078 | W17: =SMALL('Transporte Cap 50-70'!$AA:$AA,4) -> 5419.51078
B18: 5 | F18: =VLOOKUP($W18,'Transporte Cap 50-70'!$B:$AA,7,FALSE) -> PAULÍNIA - SP | G18: =VLOOKUP($W18,'Transporte Cap 50-70'!$B:$AA,8,FALSE) -> BOM JESUS-PI | H18: =VLOOKUP($W18,'Transporte Cap 50-70'!$B:$AA,9,FALSE) -> 3.543552803 | I18: =VLOOKUP($W18,'Transporte Cap 50-70'!$B:$AA,10,FALSE) -> 3.660438996 | J18: =VLOOKUP($W18,'Transporte Cap 50-70'!$B:$AA,11,FALSE) -> 3543.552803 | K18: =VLOOKUP($W18,'Transporte Cap 50-70'!$B:$AA,12,FALSE) -> 941.56 | L18: =VLOOKUP($W18,'Transporte Cap 50-70'!$B:$AA,13,FALSE) -> 4485.112803 | M18: =VLOOKUP($W18,'Transporte Cap 50-70'!$B:$AA,14,FALSE) -> 1949 | N18: =VLOOKUP($W18,'Transporte Cap 50-70'!$B:$AA,15,FALSE) -> 0 | O18: =VLOOKUP(W18,'Transporte Cap 50-70'!$B$16:$AA$28,18,0) -> 520.04 | P18: =VLOOKUP(W18,'Transporte Cap 50-70'!$B$16:$AA$28,19,0) -> 114.15 | Q18: =VLOOKUP(W18,'Transporte Cap 50-70'!$B$16:$AA$28,20,0) -> 749.57 | R18: =VLOOKUP(W18,'Transporte Cap 50-70'!$B$16:$AA$28,21,0) -> 1383.76 | S18: =VLOOKUP(W18,'Transporte Cap 50-70'!$B$16:$AA$28,22,0) -> 0 | T18: =VLOOKUP(W18,'Transporte Cap 50-70'!$B$16:$AA$28,23,0) -> 0 | U18: =VLOOKUP(W18,'Transporte Cap 50-70'!$B$16:$AA$28,24,0) -> 1383.76 | V18: =VLOOKUP(W18,'Transporte Cap 50-70'!$B$16:$AA$28,25,0) -> 4485.112803 | W18: =SMALL('Transporte Cap 50-70'!$AA:$AA,5) -> 5868.872803
B19: 6 | F19: =VLOOKUP($W19,'Transporte Cap 50-70'!$B:$AA,7,FALSE) -> DUQUE DE CAXIAS - RJ | G19: =VLOOKUP($W19,'Transporte Cap 50-70'!$B:$AA,8,FALSE) -> BOM JESUS-PI | H19: =VLOOKUP($W19,'Transporte Cap 50-70'!$B:$AA,9,FALSE) -> 3.534843148 | I19: =VLOOKUP($W19,'Transporte Cap 50-70'!$B:$AA,10,FALSE) -> 3.660438996 | J19: =VLOOKUP($W19,'Transporte Cap 50-70'!$B:$AA,11,FALSE) -> 3534.843148 | K19: =VLOOKUP($W19,'Transporte Cap 50-70'!$B:$AA,12,FALSE) -> 939.25 | L19: =VLOOKUP($W19,'Transporte Cap 50-70'!$B:$AA,13,FALSE) -> 4474.093148 | M19: =VLOOKUP($W19,'Transporte Cap 50-70'!$B:$AA,14,FALSE) -> 1974 | N19: =VLOOKUP($W19,'Transporte Cap 50-70'!$B:$AA,15,FALSE) -> 0 | O19: =VLOOKUP(W19,'Transporte Cap 50-70'!$B$16:$AA$28,18,0) -> 526.36 | P19: =VLOOKUP(W19,'Transporte Cap 50-70'!$B$16:$AA$28,19,0) -> 115.54 | Q19: =VLOOKUP(W19,'Transporte Cap 50-70'!$B$16:$AA$28,20,0) -> 758.69 | R19: =VLOOKUP(W19,'Transporte Cap 50-70'!$B$16:$AA$28,21,0) -> 1400.59 | S19: =VLOOKUP(W19,'Transporte Cap 50-70'!$B$16:$AA$28,22,0) -> 0 | T19: =VLOOKUP(W19,'Transporte Cap 50-70'!$B$16:$AA$28,23,0) -> 0 | U19: =VLOOKUP(W19,'Transporte Cap 50-70'!$B$16:$AA$28,24,0) -> 1400.59 | V19: =VLOOKUP(W19,'Transporte Cap 50-70'!$B$16:$AA$28,25,0) -> 4474.093148 | W19: =SMALL('Transporte Cap 50-70'!$AA:$AA,6) -> 5874.683148
R20: =VLOOKUP(W20,'Transporte Cap 50-70'!$B$16:$AA$28,21,0) ->  | U20: =VLOOKUP(W20,'Transporte Cap 50-70'!$B$16:$AA$28,24,0) -> 
R21: =VLOOKUP(W21,'Transporte Cap 50-70'!$B$16:$AA$28,21,0) ->  | U21: =VLOOKUP(W21,'Transporte Cap 50-70'!$B$16:$AA$28,24,0) -> 
R22: =VLOOKUP(W22,'Transporte Cap 50-70'!$B$16:$AA$28,21,0) ->  | U22: =VLOOKUP(W22,'Transporte Cap 50-70'!$B$16:$AA$28,24,0) -> 
R23: =VLOOKUP(W23,'Transporte Cap 50-70'!$B$16:$AA$28,21,0) ->  | U23: =VLOOKUP(W23,'Transporte Cap 50-70'!$B$16:$AA$28,24,0) -> 
R24: =VLOOKUP(W24,'Transporte Cap 50-70'!$B$16:$AA$28,21,0) ->  | U24: =VLOOKUP(W24,'Transporte Cap 50-70'!$B$16:$AA$28,24,0) -> 
B25: 1 | C25: CAP MODIF. C/ POLÍMERO 60/85 | D25: Refinaria Abreu e Lima | E25: Rodovia PE 60, Km 10 - Ipojuca - PE CEP:55590-000 | G25: Palmas - TO | H25: 2.261894948 | I25: 2.353413905 | J25: 2261.894948 | K25: 393.19 | L25: 2655.084948 | M25: 1181 | N25: 1181 | O25: 325.73 | P25: 44.41 | Q25: 202.55 | R25: =VLOOKUP(W25,'Transporte Cap 50-70'!$B$16:$AA$28,21,0) ->  | S25: 102 | T25: 102 | U25: =VLOOKUP(W25,'Transporte Cap 50-70'!$B$16:$AA$28,24,0) ->  | V25: 2655.084948 | W25: 3329.774948
B26: 2 | D26: Refinaria Potiguar Clara Camarão | E26: Rodovia RN 221, KM 25 - Guamaré - RN CEP:59598-000 | F26: UBERLANDIA - MG | G26: Palmas - TO | H26: 2.261894948 | I26: 2.353413905 | J26: 2261.894948 | K26: 393.19 | L26: 2655.084948 | M26: 1182 | N26: 1182 | O26: 325.98 | P26: 44.45 | Q26: 202.71 | R26: =VLOOKUP(W26,'Transporte Cap 50-70'!$B$16:$AA$28,21,0) ->  | S26: 102 | T26: 102 | U26: =VLOOKUP(W26,'Transporte Cap 50-70'!$B$16:$AA$28,24,0) ->  | V26: 2655.084948 | W26: 3330.224948
B27: 3 | D27: Complexo Petroquímico do Rio de Janeiro (Comperj) | E27: Rodovia Estadual RJ-116 - Km 5,2 - Acesso A-1, s/n, Complemento Sambaetiba - Zona Urbana do 4º Distrito de Itaboraí - RJ CEP:24841-203 | F27: GOIANIRA - GO | G27: Palmas - TO | I27: 2.555206955 | J27: 2555.206955 | K27: 444.18 | L27: 2999.386955 | M27: 814 | N27: 814 | O27: 232.88 | P27: 31.75 | Q27: 144.81 | R27: =VLOOKUP(W27,'Transporte Cap 50-70'!$B$16:$AA$28,21,0) ->  | S27: 0 | T27: 0 | U27: =VLOOKUP(W27,'Transporte Cap 50-70'!$B$16:$AA$28,24,0) ->  | V27: 2999.386955 | W27: 3408.826955
B28: 4 | F28: BRASÍLIA - DF | G28: Palmas - TO | I28: 2.555206955 | J28: 2555.206955 | K28: 444.18 | L28: 2999.386955 | M28: 822 | N28: 822 | O28: 234.9 | P28: 32.03 | Q28: 146.07 | R28: =VLOOKUP(W28,'Transporte Cap 50-70'!$B$16:$AA$28,21,0) ->  | S28: 0 | T28: 0 | U28: =VLOOKUP(W28,'Transporte Cap 50-70'!$B$16:$AA$28,24,0) ->  | V28: 2999.386955 | W28: 3412.386955
B29: 5 | F29: APARECIDA DE GOIANIA - GO | G29: Palmas - TO | I29: 2.555206955 | J29: 2555.206955 | K29: 444.18 | L29: 2999.386955 | M29: 842 | N29: 842 | O29: 239.96 | P29: 32.72 | Q29: 149.22 | R29: =VLOOKUP(W29,'Transporte Cap 50-70'!$B$16:$AA$28,21,0) ->  | S29: 0 | T29: 0 | U29: =VLOOKUP(W29,'Transporte Cap 50-70'!$B$16:$AA$28,24,0) ->  | V29: 2999.386955 | W29: 3421.286955
B30: 6 | F30: ANÁPOLIS - GO | G30: Palmas - TO | I30: 2.555206955 | J30: 2555.206955 | K30: 444.18 | L30: 2999.386955 | M30: 950 | N30: 950 | O30: 267.28 | P30: 36.44 | Q30: 166.21 | R30: =VLOOKUP(W30,'Transporte Cap 50-70'!$B$16:$AA$28,21,0) ->  | S30: 0 | T30: 0 | U30: =VLOOKUP(W30,'Transporte Cap 50-70'!$B$16:$AA$28,24,0) ->  | V30: 2999.386955 | W30: 3469.316955
B33: 1 | C33: RR1-C | D33: Refinaria Abreu e Lima | E33: Rodovia PE 60, Km 10 - Ipojuca - PE CEP:55590-000 | F33: =VLOOKUP($W33,'Transporte RR-1C'!$B:$AA,7,FALSE) -> FORTALEZA - CE | G33: =VLOOKUP($W33,'Transporte RR-1C'!$B:$AA,8,FALSE) -> BOM JESUS-PI | H33: =VLOOKUP($W33,'Transporte RR-1C'!$B:$AA,9,FALSE) -> 2.469941131 | I33: =VLOOKUP($W33,'Transporte RR-1C'!$B:$AA,10,FALSE) -> 2.648382209 | J33: =VLOOKUP($W33,'Transporte RR-1C'!$B:$AA,11,FALSE) -> 2469.941131 | K33: =VLOOKUP($W33,'Transporte RR-1C'!$B:$AA,12,FALSE) -> 656.29 | L33: =VLOOKUP($W33,'Transporte RR-1C'!$B:$AA,13,FALSE) -> 3126.231131 | M33: =VLOOKUP($W33,'Transporte RR-1C'!$B:$AA,14,FALSE) -> 1040 | N33: =VLOOKUP($W33,'Transporte RR-1C'!$B:$AA,15,FALSE) -> 0 | O33: =VLOOKUP($W33,'Transporte RR-1C'!$B:$AA,18,FALSE) -> 290.06 | P33: =VLOOKUP($W33,'Transporte RR-1C'!$B:$AA,19,FALSE) -> 63.67 | Q33: =VLOOKUP($W33,'Transporte RR-1C'!$B:$AA,20,FALSE) -> 418.09 | R33: =VLOOKUP($W33,'Transporte RR-1C'!$B:$AA,21,FALSE) -> 771.82 | S33: =VLOOKUP($W33,'Transporte RR-1C'!$B:$AA,22,FALSE) -> 0 | T33: =VLOOKUP($W33,'Transporte RR-1C'!$B:$AA,23,FALSE) -> 0 | U33: =VLOOKUP($W$33,'Transporte RR-1C'!$B$16:$AA$35,24,0) -> 771.82 | V33: =VLOOKUP(W33,'Transporte RR-1C'!$B$16:$AA$35,25,0) -> 3126.231131 | W33: =SMALL('Transporte RR-1C'!$AA:$AA,1) -> 3898.051131
B34: 2 | D34: Refinaria Potiguar Clara Camarão | E34: Rodovia RN 221, KM 25 - Guamaré - RN CEP:59598-000 | F34: =VLOOKUP($W34,'Transporte RR-1C'!$B:$AA,7,FALSE) -> SÃO FRANCISCO DO CONDE - BA | G34: =VLOOKUP($W34,'Transporte RR-1C'!$B:$AA,8,FALSE) -> BOM JESUS-PI | H34: =VLOOKUP($W34,'Transporte RR-1C'!$B:$AA,9,FALSE) -> - | I34: =VLOOKUP($W34,'Transporte RR-1C'!$B:$AA,10,FALSE) -> 2.648382209 | J34: =VLOOKUP($W34,'Transporte RR-1C'!$B:$AA,11,FALSE) -> 2648.382209 | K34: =VLOOKUP($W34,'Transporte RR-1C'!$B:$AA,12,FALSE) -> 703.7 | L34: =VLOOKUP($W34,'Transporte RR-1C'!$B:$AA,13,FALSE) -> 3352.082209 | M34: =VLOOKUP($W34,'Transporte RR-1C'!$B:$AA,14,FALSE) -> 988 | N34: =VLOOKUP($W34,'Transporte RR-1C'!$B:$AA,15,FALSE) -> 0 | O34: =VLOOKUP($W34,'Transporte RR-1C'!$B:$AA,18,FALSE) -> 276.9 | P34: =VLOOKUP($W34,'Transporte RR-1C'!$B:$AA,19,FALSE) -> 60.78 | Q34: =VLOOKUP($W34,'Transporte RR-1C'!$B:$AA,20,FALSE) -> 399.12 | R34: =VLOOKUP($W34,'Transporte RR-1C'!$B:$AA,21,FALSE) -> 736.8 | S34: =VLOOKUP($W34,'Transporte RR-1C'!$B:$AA,22,FALSE) -> 0 | T34: =VLOOKUP($W34,'Transporte RR-1C'!$B:$AA,23,FALSE) -> 0 | U34: =VLOOKUP($W$33,'Transporte RR-1C'!$B$16:$AA$35,24,0) -> 771.82 | V34: =VLOOKUP(W34,'Transporte RR-1C'!$B$16:$AA$35,25,0) -> 3352.082209 | W34: =SMALL('Transporte RR-1C'!$AA:$AA,2) -> 4088.882209
B35: 3 | D35: Complexo Petroquímico do Rio de Janeiro (Comperj) | E35: Rodovia Estadual RJ-116 - Km 5,2 - Acesso A-1, s/n, Complemento Sambaetiba - Zona Urbana do 4º Distrito de Itaboraí - RJ CEP:24841-203 | F35: =VLOOKUP($W35,'Transporte RR-1C'!$B:$AA,7,FALSE) -> GUAMARÉ - RN | G35: =VLOOKUP($W35,'Transporte RR-1C'!$B:$AA,8,FALSE) -> BOM JESUS-PI | H35: =VLOOKUP($W35,'Transporte RR-1C'!$B:$AA,9,FALSE) -> - | I35: =VLOOKUP($W35,'Transporte RR-1C'!$B:$AA,10,FALSE) -> 2.648382209 | J35: =VLOOKUP($W35,'Transporte RR-1C'!$B:$AA,11,FALSE) -> 2648.382209 | K35: =VLOOKUP($W35,'Transporte RR-1C'!$B:$AA,12,FALSE) -> 703.7 | L35: =VLOOKUP($W35,'Transporte RR-1C'!$B:$AA,13,FALSE) -> 3352.082209 | M35: =VLOOKUP($W35,'Transporte RR-1C'!$B:$AA,14,FALSE) -> 1261 | N35: =VLOOKUP($W35,'Transporte RR-1C'!$B:$AA,15,FALSE) -> 0 | O35: =VLOOKUP($W35,'Transporte RR-1C'!$B:$AA,18,FALSE) -> 345.97 | P35: =VLOOKUP($W35,'Transporte RR-1C'!$B:$AA,19,FALSE) -> 75.94 | Q35: =VLOOKUP($W35,'Transporte RR-1C'!$B:$AA,20,FALSE) -> 498.67 | R35: =VLOOKUP($W35,'Transporte RR-1C'!$B:$AA,21,FALSE) -> 920.58 | S35: =VLOOKUP($W35,'Transporte RR-1C'!$B:$AA,22,FALSE) -> 0 | T35: =VLOOKUP($W35,'Transporte RR-1C'!$B:$AA,23,FALSE) -> 0 | U35: =VLOOKUP($W$33,'Transporte RR-1C'!$B$16:$AA$35,24,0) -> 771.82 | V35: =VLOOKUP(W35,'Transporte RR-1C'!$B$16:$AA$35,25,0) -> 3352.082209 | W35: =SMALL('Transporte RR-1C'!$AA:$AA,3) -> 4272.662209
B36: 4 | D36: Refinaria Abreu e Lima | E36: Rodovia PE 60, Km 10 - Ipojuca - PE CEP:55590-000 | F36: =VLOOKUP($W36,'Transporte RR-1C'!$B:$AA,7,FALSE) -> IPOJUCA - PE | G36: =VLOOKUP($W36,'Transporte RR-1C'!$B:$AA,8,FALSE) -> BOM JESUS-PI | H36: =VLOOKUP($W36,'Transporte RR-1C'!$B:$AA,9,FALSE) -> - | I36: =VLOOKUP($W36,'Transporte RR-1C'!$B:$AA,10,FALSE) -> 2.648382209 | J36: =VLOOKUP($W36,'Transporte RR-1C'!$B:$AA,11,FALSE) -> 2648.382209 | K36: =VLOOKUP($W36,'Transporte RR-1C'!$B:$AA,12,FALSE) -> 703.7 | L36: =VLOOKUP($W36,'Transporte RR-1C'!$B:$AA,13,FALSE) -> 3352.082209 | M36: =VLOOKUP($W36,'Transporte RR-1C'!$B:$AA,14,FALSE) -> 1290 | N36: =VLOOKUP($W36,'Transporte RR-1C'!$B:$AA,15,FALSE) -> 0 | O36: =VLOOKUP($W36,'Transporte RR-1C'!$B:$AA,18,FALSE) -> 353.31 | P36: =VLOOKUP($W36,'Transporte RR-1C'!$B:$AA,19,FALSE) -> 77.55 | Q36: =VLOOKUP($W36,'Transporte RR-1C'!$B:$AA,20,FALSE) -> 509.25 | R36: =VLOOKUP($W36,'Transporte RR-1C'!$B:$AA,21,FALSE) -> 940.11 | S36: =VLOOKUP($W36,'Transporte RR-1C'!$B:$AA,22,FALSE) -> 0 | T36: =VLOOKUP($W36,'Transporte RR-1C'!$B:$AA,23,FALSE) -> 0 | U36: =VLOOKUP($W$33,'Transporte RR-1C'!$B$16:$AA$35,24,0) -> 771.82 | V36: =VLOOKUP(W36,'Transporte RR-1C'!$B$16:$AA$35,25,0) -> 3352.082209 | W36: =SMALL('Transporte RR-1C'!$AA:$AA,4) -> 4292.192209
B37: 5 | D37: Refinaria Potiguar Clara Camarão | E37: Rodovia RN 221, KM 25 - Guamaré - RN CEP:59598-000 | F37: =VLOOKUP($W37,'Transporte RR-1C'!$B:$AA,7,FALSE) -> ANÁPOLIS - GO | G37: =VLOOKUP($W37,'Transporte RR-1C'!$B:$AA,8,FALSE) -> BOM JESUS-PI | H37: =VLOOKUP($W37,'Transporte RR-1C'!$B:$AA,9,FALSE) -> 2.726231063 | I37: =VLOOKUP($W37,'Transporte RR-1C'!$B:$AA,10,FALSE) -> 2.846437607 | J37: =VLOOKUP($W37,'Transporte RR-1C'!$B:$AA,11,FALSE) -> 2726.231063 | K37: =VLOOKUP($W37,'Transporte RR-1C'!$B:$AA,12,FALSE) -> 724.39 | L37: =VLOOKUP($W37,'Transporte RR-1C'!$B:$AA,13,FALSE) -> 3450.621063 | M37: =VLOOKUP($W37,'Transporte RR-1C'!$B:$AA,14,FALSE) -> 1225 | N37: =VLOOKUP($W37,'Transporte RR-1C'!$B:$AA,15,FALSE) -> 0 | O37: =VLOOKUP($W37,'Transporte RR-1C'!$B:$AA,18,FALSE) -> 336.86 | P37: =VLOOKUP($W37,'Transporte RR-1C'!$B:$AA,19,FALSE) -> 73.94 | Q37: =VLOOKUP($W37,'Transporte RR-1C'!$B:$AA,20,FALSE) -> 485.54 | R37: =VLOOKUP($W37,'Transporte RR-1C'!$B:$AA,21,FALSE) -> 896.34 | S37: =VLOOKUP($W37,'Transporte RR-1C'!$B:$AA,22,FALSE) -> 0 | T37: =VLOOKUP($W37,'Transporte RR-1C'!$B:$AA,23,FALSE) -> 0 | U37: =VLOOKUP($W$33,'Transporte RR-1C'!$B$16:$AA$35,24,0) -> 771.82 | V37: =VLOOKUP(W37,'Transporte RR-1C'!$B$16:$AA$35,25,0) -> 3450.621063 | W37: =SMALL('Transporte RR-1C'!$AA:$AA,5) -> 4346.961063
B38: 6 | D38: Complexo Petroquímico do Rio de Janeiro (Comperj) | E38: Rodovia Estadual RJ-116 - Km 5,2 - Acesso A-1, s/n, Complemento Sambaetiba - Zona Urbana do 4º Distrito de Itaboraí - RJ CEP:24841-203 | F38: =VLOOKUP($W38,'Transporte RR-1C'!$B:$AA,7,FALSE) -> APARECIDA DE GOIANIA - GO | G38: =VLOOKUP($W38,'Transporte RR-1C'!$B:$AA,8,FALSE) -> BOM JESUS-PI | H38: =VLOOKUP($W38,'Transporte RR-1C'!$B:$AA,9,FALSE) -> 2.726231063 | I38: =VLOOKUP($W38,'Transporte RR-1C'!$B:$AA,10,FALSE) -> 2.846437607 | J38: =VLOOKUP($W38,'Transporte RR-1C'!$B:$AA,11,FALSE) -> 2726.231063 | K38: =VLOOKUP($W38,'Transporte RR-1C'!$B:$AA,12,FALSE) -> 724.39 | L38: =VLOOKUP($W38,'Transporte RR-1C'!$B:$AA,13,FALSE) -> 3450.621063 | M38: =VLOOKUP($W38,'Transporte RR-1C'!$B:$AA,14,FALSE) -> 1292 | N38: =VLOOKUP($W38,'Transporte RR-1C'!$B:$AA,15,FALSE) -> 0 | O38: =VLOOKUP($W38,'Transporte RR-1C'!$B:$AA,18,FALSE) -> 353.82 | P38: =VLOOKUP($W38,'Transporte RR-1C'!$B:$AA,19,FALSE) -> 77.66 | Q38: =VLOOKUP($W38,'Transporte RR-1C'!$B:$AA,20,FALSE) -> 509.98 | R38: =VLOOKUP($W38,'Transporte RR-1C'!$B:$AA,21,FALSE) -> 941.46 | S38: =VLOOKUP($W38,'Transporte RR-1C'!$B:$AA,22,FALSE) -> 0 | T38: =VLOOKUP($W38,'Transporte RR-1C'!$B:$AA,23,FALSE) -> 0 | U38: =VLOOKUP($W$33,'Transporte RR-1C'!$B$16:$AA$35,24,0) -> 771.82 | V38: =VLOOKUP(W38,'Transporte RR-1C'!$B$16:$AA$35,25,0) -> 3450.621063 | W38: =SMALL('Transporte RR-1C'!$AA:$AA,6) -> 4392.081063

Sheet MOMENTO DE TRANSPORTE - PRINC
B5: ='RESUMO MODULO TOTAL'!B52 -> CONTRATAÇÃO DE SERVIÇOS DE CAPA ASFÁLTICA EM CONCRETO BETUMINOSO USINADO A QUENTE (CBUQ), EM VIAS URBANAS E RURAIS INSERIDAS NA ÁREA DE ATUAÇÃO DA CODEVASF, NO ESTADO DO PIAUÍ - REGIÃO SUL
B6: ESTADO: | D6: DATA BASE: | E6: ='RESUMO MODULO TOTAL'!C6 -> 2025-10-01
C8: RESUMO DO TRANSPORTE PRINCIPAL
B9: CODIGO | C9: DESCRIÇÃO | D9: TKM
B10: 5914359 | C10: =VLOOKUP(B10,'SINTÉTICO SICRO'!$A:$D,2,0) -> Transporte com caminhão basculante de 10 m³ - rodovia em leito natural | D10: =ROUND(SUMIF('MOMENTO DE TRANSPORTE - PRINC'!A:A,B10,'MOMENTO DE TRANSPORTE - PRINC'!K:K),2) -> 57288
B11: 5914374 | C11: =VLOOKUP(B11,'SINTÉTICO SICRO'!$A:$D,2,0) -> Transporte com caminhão basculante de 10 m³ - rodovia em revestimento primário | D11: =ROUND(SUMIF('MOMENTO DE TRANSPORTE - PRINC'!A:A,B11,'MOMENTO DE TRANSPORTE - PRINC'!K:K),2) -> 57288
B12: 5914389 | C12: =VLOOKUP(B12,'SINTÉTICO SICRO'!$A:$D,2,0) -> Transporte com caminhão basculante de 10 m³ - rodovia pavimentada | D12: =ROUND(SUMIF('MOMENTO DE TRANSPORTE - PRINC'!A:A,B12,'MOMENTO DE TRANSPORTE - PRINC'!K:K),2) -> 458304
B13: 5914314 | C13: =VLOOKUP(B13,'SINTÉTICO SICRO'!$A:$D,2,0) -> Transporte com caminhão basculante de 6 m³ - rodovia em leito natural | D13: =ROUND(SUMIF('MOMENTO DE TRANSPORTE - PRINC'!A:A,B13,'MOMENTO DE TRANSPORTE - PRINC'!K:K),2) -> 17906.41
B14: 5914329 | C14: =VLOOKUP(B14,'SINTÉTICO SICRO'!$A:$D,2,0) -> Transporte com caminhão basculante de 6 m³ - rodovia em revestimento primário | D14: =ROUND(SUMIF('MOMENTO DE TRANSPORTE - PRINC'!A:A,B14,'MOMENTO DE TRANSPORTE - PRINC'!K:K),2) -> 17906.41
B15: 5914344 | C15: =VLOOKUP(B15,'SINTÉTICO SICRO'!$A:$D,2,0) -> Transporte com caminhão basculante de 6 m³ - rodovia pavimentada | D15: =ROUND(SUMIF('MOMENTO DE TRANSPORTE - PRINC'!A:A,B15,'MOMENTO DE TRANSPORTE - PRINC'!K:K),2) -> 143251.25
B17: TIPO (P, RP ou LN) | C17: DMT ESTIMADA
B18: P | C18: 20
B20: COMPOSIÇÕES PRINCIPAIS
B21: SISTEMA DE CUSTOS REFERENCIAIS DE OBRAS - SICRO
B22: Custo Unitário de Referência | E22: =$E$6 -> 2025-10-01 | I22: Quantitativo | K22: t
B23: 4011463 | C23: =VLOOKUP(B23,'SINTÉTICO SICRO'!$A:$D,2,0) -> Concreto asfáltico - faixa C-12,5 - areia e brita comerciais | I23: =SUMIF('RESUMO MODULO TOTAL'!$C$9:$C$48,B23,'RESUMO MODULO TOTAL'!H9:$H$48)*0.8 -> 20832
B24: D - ATIVIDADES AUXILIARES | D24: Quantidade | E24: Unidade
B25: 6416078 | C25: Usinagem de concreto asfáltico - faixa C-12,5 - areia e brita comerciais | D25: 1 | E25: t
B27: F - MOMENTO DE TRANSPORTE | D27: Quantidade | E27: Unidade | F27: CÓDIGO TRANSPORTE
F28: LN | G28: RP | H28: P | I28: TIPO (P, RP ou LN) | J28: DMT ESTIMADA (km) | K28: QUANTITATIVO TOTAL DE TRANSPORTE (tkm)
A29: =IF(I29="P",H29,IF(I29="RP",G29,IF(I29="LN",F29,""))) -> 5914389 | B29: 6416078 | C29: Usinagem de concreto asfáltico - faixa C-12,5 - areia e brita comerciais - Caminhão basculante 10 m³ | D29: 1 | E29: tkm | F29: 5914359 | G29: 5914374 | H29: 5914389 | I29: =$B$18 -> P | J29: =$C$18 -> 20 | K29: =IF(ISBLANK(J29),"",J29*D29)*I23 -> 416640
A30: =IF(I30="P",H30,IF(I30="RP",G30,IF(I30="LN",F30,""))) -> 
B31: Obs.
B32: SISTEMA DE CUSTOS REFERENCIAIS DE OBRAS - SICRO
B33: Custo Unitário de Referência | E33: =$E$6 -> 2025-10-01 | I33: Quantitativo | K33: m³
B34: 4915663 | C34: =VLOOKUP(B34,'SINTÉTICO SICRO'!$A:$D,2,0) -> Fresagem descontínua de revestimento asfáltico - espessura de 5 cm | I34: =SUMIF('RESUMO MODULO TOTAL'!$C$9:$C$48,B34,'RESUMO MODULO TOTAL'!$H$9:$H$48)*0.8 -> 868 | L34: ='RESUMO MODULO TOTAL'!H21*0.8 -> 868
B35: D - ATIVIDADES AUXILIARES | D35: Quantidade | E35: Unidade
B38: F - MOMENTO DE TRANSPORTE | D38: Quantidade | E38: Unidade | F38: CÓDIGO TRANSPORTE
F39: LN | G39: RP | H39: P | I39: TIPO (P, RP ou LN) | J39: DMT ESTIMADA (km) | K39: QUANTITATIVO TOTAL DE TRANSPORTE (tkm)
A40: =IF(I40="P",H40,IF(I40="RP",G40,IF(I40="LN",F40,""))) -> 5914389 | B40: M3507 | C40: Revestimento asfáltico - Caminhão basculante 10 m³ | D40: 2.4 | E40: tkm | F40: 5914359 | G40: 5914374 | H40: 5914389 | I40: =$B$18 -> P | J40: =$C$18 -> 20 | K40: =IF(ISBLANK(J40),"",J40*D40)*I34 -> 41664
A41: =IF(I41="P",H41,IF(I41="RP",G41,IF(I41="LN",F41,""))) -> 
B42: Obs.
B43: COMPOSIÇÕES PRINCIPAIS
B44: SISTEMA DE CUSTOS REFERENCIAIS DE OBRAS - SICRO
B45: Custo Unitário de Referência | E45: =$E$6 -> 2025-10-01 | I45: Quantitativo | K45: m²
B46: 4915618 | C46: =VLOOKUP(B46,'SINTÉTICO SICRO'!$A:$D,2,0) -> Recomposição de camada granular do pavimento com material de jazida - 100% Proctor modificado | I46: =SUMIF('RESUMO MODULO TOTAL'!$C$9:$C$48,B46,'RESUMO MODULO TOTAL'!$H$9:$H$48)*0.8 -> 17360
B47: D - ATIVIDADES AUXILIARES | D47: Quantidade | E47: Unidade
B48: 4016096 | C48: =VLOOKUP(B48,'SINTÉTICO SICRO'!$A:$D,2,0) -> Escavação e carga de material de jazida com escavadeira hidráulica de 1,56 m³ | D48: 0.22005 | E48: t
B50: F - MOMENTO DE TRANSPORTE | D50: Quantidade | E50: Unidade | F50: CÓDIGO TRANSPORTE
F51: LN | G51: RP | H51: P | I51: TIPO (P, RP ou LN) | J51: DMT ESTIMADA (km) | K51: QUANTITATIVO TOTAL DE TRANSPORTE (tkm)
A52: =IF(I52="P",H52,IF(I52="RP",G52,IF(I52="LN",F52,""))) -> 5914344 | B52: 4016096 | C52: Escavação e carga de material de jazida com escavadeira hidráulica de 1,56 m³ - Caminhão basculante 6 m³ | D52: 0.41259 | E52: tkm | F52: 5914314 | G52: 5914329 | H52: 5914344 | I52: =$B$18 -> P | J52: =$C$18 -> 20 | K52: =IF(ISBLANK(J52),"",J52*D52)*I46 -> 143251.248
A53: =IF(I53="P",H53,IF(I53="RP",G53,IF(I53="LN",F53,""))) -> 
B54: Obs.
B55: TIPO (P, RP ou LN) | C55: DMT ESTIMADA
B56: LN | C56: 20
B58: COMPOSIÇÕES PRINCIPAIS
B59: SISTEMA DE CUSTOS REFERENCIAIS DE OBRAS - SICRO
B60: Custo Unitário de Referência | E60: =$E$6 -> 2025-10-01 | I60: Quantitativo | K60: t
B61: 4011463 | C61: =VLOOKUP(B61,'SINTÉTICO SICRO'!$A:$D,2,0) -> Concreto asfáltico - faixa C-12,5 - areia e brita comerciais | I61: =SUMIF('RESUMO MODULO TOTAL'!$C$9:$C$48,B61,'RESUMO MODULO TOTAL'!$H$9:$H$48)*0.1 -> 2604
B62: D - ATIVIDADES AUXILIARES | D62: Quantidade | E62: Unidade
B63: 6416078 | C63: =VLOOKUP(B63,'SINTÉTICO SICRO'!$A:$D,2,0) -> Usinagem de concreto asfáltico - faixa C-12,5 - areia e brita comerciais | D63: 1 | E63: t
B65: F - MOMENTO DE TRANSPORTE | D65: Quantidade | E65: Unidade | F65: CÓDIGO TRANSPORTE
F66: LN | G66: RP | H66: P | I66: TIPO (P, RP ou LN) | J66: DMT ESTIMADA (km) | K66: QUANTITATIVO TOTAL DE TRANSPORTE (tkm)
A67: =IF(I67="P",H67,IF(I67="RP",G67,IF(I67="LN",F67,""))) -> 5914359 | B67: 6416078 | C67: Usinagem de concreto asfáltico - faixa C-12,5 - areia e brita comerciais - Caminhão basculante 10 m³ | D67: 1 | E67: tkm | F67: 5914359 | G67: 5914374 | H67: 5914389 | I67: =$B$56 -> LN | J67: =$C$56 -> 20 | K67: =IF(ISBLANK(J67),"",J67*D67)*I61 -> 52080
A68: =IF(I68="P",H68,IF(I68="RP",G68,IF(I68="LN",F68,""))) -> 
B69: Obs.
B70: SISTEMA DE CUSTOS REFERENCIAIS DE OBRAS - SICRO
B71: Custo Unitário de Referência | E71: =$E$6 -> 2025-10-01 | I71: Quantitativo | K71: m³
B72: 4915663 | C72: =VLOOKUP(B72,'SINTÉTICO SICRO'!$A:$D,2,0) -> Fresagem descontínua de revestimento asfáltico - espessura de 5 cm | I72: =SUMIF('RESUMO MODULO TOTAL'!$C$9:$C$48,B72,'RESUMO MODULO TOTAL'!$H$9:$H$48)*0.1 -> 108.5
B73: D - ATIVIDADES AUXILIARES | D73: Quantidade | E73: Unidade
B76: F - MOMENTO DE TRANSPORTE | D76: Quantidade | E76: Unidade | F76: CÓDIGO TRANSPORTE
F77: LN | G77: RP | H77: P | I77: TIPO (P, RP ou LN) | J77: DMT ESTIMADA (km) | K77: QUANTITATIVO TOTAL DE TRANSPORTE (tkm)
A78: =IF(I78="P",H78,IF(I78="RP",G78,IF(I78="LN",F78,""))) -> 5914359 | B78: M3507 | C78: Revestimento asfáltico - Caminhão basculante 10 m³ | D78: 2.4 | E78: tkm | F78: 5914359 | G78: 5914374 | H78: 5914389 | I78: =$B$56 -> LN | J78: =$C$56 -> 20 | K78: =IF(ISBLANK(J78),"",J78*D78)*I72 -> 5208
A79: =IF(I79="P",H79,IF(I79="RP",G79,IF(I79="LN",F79,""))) -> 
B80: Obs.
B81: COMPOSIÇÕES PRINCIPAIS
B82: SISTEMA DE CUSTOS REFERENCIAIS DE OBRAS - SICRO
B83: Custo Unitário de Referência | E83: =$E$6 -> 2025-10-01 | I83: Quantitativo | K83: m²
B84: 4915618 | C84: =VLOOKUP(B84,'SINTÉTICO SICRO'!$A:$D,2,0) -> Recomposição de camada granular do pavimento com material de jazida - 100% Proctor modificado | I84: =SUMIF('RESUMO MODULO TOTAL'!$C$9:$C$48,B84,'RESUMO MODULO TOTAL'!$H$9:$H$48)*0.1 -> 2170
B85: D - ATIVIDADES AUXILIARES | D85: Quantidade | E85: Unidade
B86: 4016096 | C86: =VLOOKUP(B86,'SINTÉTICO SICRO'!$A:$D,2,0) -> Escavação e carga de material de jazida com escavadeira hidráulica de 1,56 m³ | D86: 0.22005 | E86: t
B88: F - MOMENTO DE TRANSPORTE | D88: Quantidade | E88: Unidade | F88: CÓDIGO TRANSPORTE
F89: LN | G89: RP | H89: P | I89: TIPO (P, RP ou LN) | J89: DMT ESTIMADA (km) | K89: QUANTITATIVO TOTAL DE TRANSPORTE (tkm)
A90: =IF(I90="P",H90,IF(I90="RP",G90,IF(I90="LN",F90,""))) -> 5914314 | B90: 4016096 | C90: Escavação e carga de material de jazida com escavadeira hidráulica de 1,56 m³ - Caminhão basculante 6 m³ | D90: 0.41259 | E90: tkm | F90: 5914314 | G90: 5914329 | H90: 5914344 | I90: =$B$56 -> LN | J90: =$C$56 -> 20 | K90: =IF(ISBLANK(J90),"",J90*D90)*I84 -> 17906.406
A91: =IF(I91="P",H91,IF(I91="RP",G91,IF(I91="LN",F91,""))) -> 
B92: Obs.
B93: TIPO (P, RP ou LN) | C93: DMT ESTIMADA
B94: RP | C94: 20
B96: COMPOSIÇÕES PRINCIPAIS
B97: SISTEMA DE CUSTOS REFERENCIAIS DE OBRAS - SICRO
B98: Custo Unitário de Referência | E98: =$E$6 -> 2025-10-01 | I98: Quantitativo | K98: t
B99: 4011463 | C99: =VLOOKUP(B99,'SINTÉTICO SICRO'!$A:$D,2,0) -> Concreto asfáltico - faixa C-12,5 - areia e brita comerciais | I99: =SUMIF('RESUMO MODULO TOTAL'!$C$9:$C$48,B99,'RESUMO MODULO TOTAL'!$H$9:$H$48)*0.1 -> 2604
B100: D - ATIVIDADES AUXILIARES | D100: Quantidade | E100: Unidade
B101: 6416078 | C101: =VLOOKUP(B101,'SINTÉTICO SICRO'!$A:$D,2,0) -> Usinagem de concreto asfáltico - faixa C-12,5 - areia e brita comerciais | D101: 1 | E101: t
B103: F - MOMENTO DE TRANSPORTE | D103: Quantidade | E103: Unidade | F103: CÓDIGO TRANSPORTE
F104: LN | G104: RP | H104: P | I104: TIPO (P, RP ou LN) | J104: DMT ESTIMADA (km) | K104: QUANTITATIVO TOTAL DE TRANSPORTE (tkm)
A105: =IF(I105="P",H105,IF(I105="RP",G105,IF(I105="LN",F105,""))) -> 5914374 | B105: 6416078 | C105: Usinagem de concreto asfáltico - faixa C-12,5 - areia e brita comerciais - Caminhão basculante 10 m³ | D105: 1 | E105: tkm | F105: 5914359 | G105: 5914374 | H105: 5914389 | I105: =$B$94 -> RP | J105: =$C$94 -> 20 | K105: =IF(ISBLANK(J105),"",J105*D105)*I99 -> 52080
A106: =IF(I106="P",H106,IF(I106="RP",G106,IF(I106="LN",F106,""))) -> 
B107: Obs.
B108: SISTEMA DE CUSTOS REFERENCIAIS DE OBRAS - SICRO
B109: Custo Unitário de Referência | E109: =$E$6 -> 2025-10-01 | I109: Quantitativo | K109: m³
B110: 4915663 | C110: =VLOOKUP(B110,'SINTÉTICO SICRO'!$A:$D,2,0) -> Fresagem descontínua de revestimento asfáltico - espessura de 5 cm | I110: =SUMIF('RESUMO MODULO TOTAL'!$C$9:$C$48,B110,'RESUMO MODULO TOTAL'!$H$9:$H$48)*0.1 -> 108.5
B111: D - ATIVIDADES AUXILIARES | D111: Quantidade | E111: Unidade
B114: F - MOMENTO DE TRANSPORTE | D114: Quantidade | E114: Unidade | F114: CÓDIGO TRANSPORTE
F115: LN | G115: RP | H115: P | I115: TIPO (P, RP ou LN) | J115: DMT ESTIMADA (km) | K115: QUANTITATIVO TOTAL DE TRANSPORTE (tkm)
A116: =IF(I116="P",H116,IF(I116="RP",G116,IF(I116="LN",F116,""))) -> 5914374 | B116: M3507 | C116: Revestimento asfáltico - Caminhão basculante 10 m³ | D116: 2.4 | E116: tkm | F116: 5914359 | G116: 5914374 | H116: 5914389 | I116: =$B$94 -> RP | J116: =$C$94 -> 20 | K116: =IF(ISBLANK(J116),"",J116*D116)*I110 -> 5208
A117: =IF(I117="P",H117,IF(I117="RP",G117,IF(I117="LN",F117,""))) -> 
B118: Obs.
B119: COMPOSIÇÕES PRINCIPAIS
B120: SISTEMA DE CUSTOS REFERENCIAIS DE OBRAS - SICRO
B121: Custo Unitário de Referência | E121: =$E$6 -> 2025-10-01 | I121: Quantitativo | K121: m²
B122: 4915618 | C122: =VLOOKUP(B122,'SINTÉTICO SICRO'!$A:$D,2,0) -> Recomposição de camada granular do pavimento com material de jazida - 100% Proctor modificado | I122: =SUMIF('RESUMO MODULO TOTAL'!$C$9:$C$48,B122,'RESUMO MODULO TOTAL'!$H$9:$H$48)*0.1 -> 2170
B123: D - ATIVIDADES AUXILIARES | D123: Quantidade | E123: Unidade
B124: 4016096 | C124: =VLOOKUP(B124,'SINTÉTICO SICRO'!$A:$D,2,0) -> Escavação e carga de material de jazida com escavadeira hidráulica de 1,56 m³ | D124: 0.22005 | E124: t
B126: F - MOMENTO DE TRANSPORTE | D126: Quantidade | E126: Unidade | F126: CÓDIGO TRANSPORTE
F127: LN | G127: RP | H127: P | I127: TIPO (P, RP ou LN) | J127: DMT ESTIMADA (km) | K127: QUANTITATIVO TOTAL DE TRANSPORTE (tkm)
A128: =IF(I128="P",H128,IF(I128="RP",G128,IF(I128="LN",F128,""))) -> 5914329 | B128: 4016096 | C128: Escavação e carga de material de jazida com escavadeira hidráulica de 1,56 m³ - Caminhão basculante 6 m³ | D128: 0.41259 | E128: tkm | F128: 5914314 | G128: 5914329 | H128: 5914344 | I128: =$B$94 -> RP | J128: =$C$94 -> 20 | K128: =IF(ISBLANK(J128),"",J128*D128)*I122 -> 17906.406
A129: =IF(I129="P",H129,IF(I129="RP",G129,IF(I129="LN",F129,""))) -> 
B130: Obs.

Sheet MOMENTO DE TRANSPORTE - AUX
B4: ='RESUMO MODULO TOTAL'!B52 -> CONTRATAÇÃO DE SERVIÇOS DE CAPA ASFÁLTICA EM CONCRETO BETUMINOSO USINADO A QUENTE (CBUQ), EM VIAS URBANAS E RURAIS INSERIDAS NA ÁREA DE ATUAÇÃO DA CODEVASF, NO ESTADO DO PIAUÍ - REGIÃO SUL
B5: ESTADO: | D5: DATA BASE: | E5: ='RESUMO MODULO TOTAL'!C6 -> 2025-10-01
B7: RESUMO DO TRANSPORTE AUXILIAR
B8: CODIGO | C8: DESCRIÇÃO | D8: TKM
B9: 5914359 | C9: =VLOOKUP(B9,'SINTÉTICO SICRO'!$A:$D,2,0) -> Transporte com caminhão basculante de 10 m³ - rodovia em leito natural | D9: =ROUND(SUMIF(A:A,B9,K:K),2) -> 24741.12
B10: 5914374 | C10: =VLOOKUP(B10,'SINTÉTICO SICRO'!$A:$D,2,0) -> Transporte com caminhão basculante de 10 m³ - rodovia em revestimento primário | D10: 24741.12
B11: 5914389 | C11: =VLOOKUP(B11,'SINTÉTICO SICRO'!$A:$D,2,0) -> Transporte com caminhão basculante de 10 m³ - rodovia pavimentada | D11: 197929
B12: 5914364 | C12: =VLOOKUP(B12,'SINTÉTICO SICRO'!$A:$D,2,0) -> Transporte de cimento ou cal hidratada a granel com caminhão silo de 30 m³ - rodovia em leito natural | D12: 376.54
B13: 5914365 | C13: =VLOOKUP(B13,'SINTÉTICO SICRO'!$A:$D,2,0) -> Transporte de cimento ou cal hidratada a granel com caminhão silo de 30 m³ - rodovia em revestimento primário | D13: 376.54
B14: 5914366 | C14: =VLOOKUP(B14,'SINTÉTICO SICRO'!$A:$D,2,0) -> Transporte de cimento ou cal hidratada a granel com caminhão silo de 30 m³ - rodovia pavimentada | D14: 3012.31
B16: TIPO (P, RP ou LN) | C16: DMT ATÉ 50 KM NÃO DEVE SER PAGA | D16: SOMENTE DEVE SER ADICIONADO A DISTÂNCIA EXCEDENTE A 50 KM
B17: P | D17: 10
B19: SISTEMA DE CUSTOS REFERENCIAIS DE OBRAS - SICRO | I19: Quantitivo
B20: Custo Unitário de Referência | E20: =$E$5 -> 2025-10-01 | I20: (Coeficiente na composição principal) x (quantidade da principal no orçamento) | K20: t
B21: 6416078 | C21: =VLOOKUP(B21,'SINTÉTICO SICRO'!$A:$D,2,0) -> Usinagem de concreto asfáltico - faixa C-12,5 - areia e brita comerciais | I21: =('MOMENTO DE TRANSPORTE - PRINC'!D25*VLOOKUP(C30,'RESUMO MODULO TOTAL'!$C$9:$J$48,6,FALSE))*0.8 -> 20832
B22: F - MOMENTO DE TRANSPORTE | D22: Quantidade | E22: Unidade | F22: DMT
F23: LN | G23: RP | H23: P | I23: TIPO (P, RP ou LN) | J23: DMT ESTIMADA (km) | K23: QUANTITATIVO TOTAL DE TRANSPORTE DE MATERIAL (tkm)
A24: =IF(I24="P",H24,IF(I24="RP",G24,IF(I24="LN",F24,""))) -> 5914389 | B24: M0028 | C24: Areia média - Caminhão basculante 10 m³ | D24: 0.04052 | E24: tkm | F24: 5914359 | G24: 5914374 | H24: 5914389 | I24: =$B$17 -> P | J24: =$D$17 -> 10 | K24: =IF(ISBLANK(J24),"",J24*(D24*$I$21)) -> 8441.1264
A25: =IF(I25="P",H25,IF(I25="RP",G25,IF(I25="LN",F25,""))) -> 5914389 | B25: M0005 | C25: Brita 0 - Caminhão basculante 10 m³ | D25: 0.13505 | E25: tkm | F25: 5914359 | G25: 5914374 | H25: 5914389 | I25: P | J25: 10 | K25: =IF(ISBLANK(J25),"",J25*(D25*$I$21)) -> 28133.616
A26: 5914389 | B26: M0191 | C26: Brita 1 - Caminhão basculante 10 m³ | D26: 0.04823 | E26: tkm | F26: 5914359 | G26: 5914374 | H26: 5914389 | I26: P | J26: 10 | K26: 10047.2736
A27: 5914366 | B27: M0344 | C27: Cal hidratada - a granel - Caminhão silo 30 m³ | D27: 0.01446 | E27: tkm | F27: 5914364 | G27: 5914365 | H27: 5914366 | I27: P | J27: 10 | K27: 3012.3072
A28: 5914389 | B28: M1103 | C28: Pedrisco - Caminhão basculante 10 m³ | D28: 0.22185 | E28: tkm | F28: 5914359 | G28: 5914374 | H28: 5914389 | I28: P | J28: 10 | K28: 46215.792
A29: 5914389 | B29: M1135 | C29: Pó de pedra - Caminhão basculante 10 m³ | D29: 0.50447 | E29: tkm | F29: 5914359 | G29: 5914374 | H29: 5914389 | I29: P | J29: 10 | K29: =IF(ISBLANK(J29),"",J29*(D29*$I$21)) -> 105091.1904
A30: =IF(I30="P",H30,IF(I30="RP",G30,IF(I30="LN",F30,""))) ->  | B30: PRINCIPAL: | C30: ='MOMENTO DE TRANSPORTE - PRINC'!B23 -> 4011463
B31: SISTEMA DE CUSTOS REFERENCIAIS DE OBRAS - SICRO | I31: Quantitivo
B32: Custo Unitário de Referência | E32: =$E$5 -> 2025-10-01 | I32: (Coeficiente na composição principal) x (quantidade da principal no orçamento) | K32: m³
B33: 4016096 | C33: =VLOOKUP(B33,'SINTÉTICO SICRO'!$A:$D,2,0) -> Escavação e carga de material de jazida com escavadeira hidráulica de 1,56 m³
B34: F - MOMENTO DE TRANSPORTE | D34: '' | E34: Unidade | F34: DMT
F35: LN | G35: RP | H35: P | I35: TIPO (P, RP ou LN) | J35: DMT ESTIMADA (km) | K35: QUANTITATIVO TOTAL DE TRANSPORTE DE MATERIAL (tkm)
A36: =IF(I36="P",H36,IF(I36="RP",G36,IF(I36="LN",F36,""))) ->  | E36: tkm | K36: =IF(ISBLANK(J36),"",J36*(D36*#REF!)) -> 
B37: PRINCIPAL: | C37: ='MOMENTO DE TRANSPORTE - PRINC'!B46 -> 4915618
B38: TIPO (P, RP ou LN) | C38: DMT ATÉ 50 KM NÃO DEVE SER PAGA | D38: DMT ACIMA DE 50 KM
B39: LN | C39: 0 | D39: 10
B41: SISTEMA DE CUSTOS REFERENCIAIS DE OBRAS - SICRO | I41: Quantitivo
B42: Custo Unitário de Referência | E42: =$E$5 -> 2025-10-01 | I42: (Coeficiente na composição principal) x (quantidade da principal no orçamento) | K42: t
B43: 6416078 | C43: =VLOOKUP(B43,'SINTÉTICO SICRO'!$A:$D,2,0) -> Usinagem de concreto asfáltico - faixa C-12,5 - areia e brita comerciais | I43: =('MOMENTO DE TRANSPORTE - PRINC'!D25*VLOOKUP(C52,'RESUMO MODULO TOTAL'!$C$9:$J$48,6,FALSE))*0.1 -> 2604
B44: F - MOMENTO DE TRANSPORTE | D44: Quantidade | E44: Unidade | F44: DMT
F45: LN | G45: RP | H45: P | I45: TIPO (P, RP ou LN) | J45: DMT ESTIMADA (km) | K45: QUANTITATIVO TOTAL DE TRANSPORTE DE MATERIAL (tkm)
A46: =IF(I46="P",H46,IF(I46="RP",G46,IF(I46="LN",F46,""))) -> 5914359 | B46: M0028 | C46: Areia média - Caminhão basculante 10 m³ | D46: 0.04052 | E46: tkm | F46: 5914359 | G46: 5914374 | H46: 5914389 | I46: =$B$39 -> LN | J46: =$D$39 -> 10 | K46: =IF(ISBLANK(J46),"",J46*(D46*$I$43)) -> 1055.1408
A47: 5914359 | B47: M0005 | C47: Brita 0 - Caminhão basculante 10 m³ | D47: 0.13505 | E47: tkm | F47: 5914359 | G47: 5914374 | H47: 5914389 | I47: =$B$39 -> LN | J47: =$D$39 -> 10 | K47: =IF(ISBLANK(J47),"",J47*(D47*$I$43)) -> 3516.702
A48: 5914359 | B48: M0191 | C48: Brita 1 - Caminhão basculante 10 m³ | D48: 0.04823 | E48: tkm | F48: 5914359 | G48: 5914374 | H48: 5914389 | I48: LN | J48: 10 | K48: 1255.9092
A49: 5914364 | B49: M0344 | C49: Cal hidratada - a granel - Caminhão silo 30 m³ | D49: 0.01446 | E49: tkm | F49: 5914364 | G49: 5914365 | H49: 5914366 | I49: LN | J49: 10 | K49: 376.5384
A50: 5914359 | B50: M1103 | C50: Pedrisco - Caminhão basculante 10 m³ | D50: 0.22185 | E50: tkm | F50: 5914359 | G50: 5914374 | H50: 5914389 | I50: LN | J50: 10 | K50: 5776.974
A51: 5914359 | B51: M1135 | C51: Pó de pedra - Caminhão basculante 10 m³ | D51: 0.50447 | E51: tkm | F51: 5914359 | G51: 5914374 | H51: 5914389 | I51: LN | J51: 10 | K51: =IF(ISBLANK(J51),"",J51*(D51*$I$43)) -> 13136.3988
B52: PRINCIPAL: | C52: ='MOMENTO DE TRANSPORTE - PRINC'!B23 -> 4011463
B53: SISTEMA DE CUSTOS REFERENCIAIS DE OBRAS - SICRO | I53: Quantitivo
B54: Custo Unitário de Referência | E54: =$E$5 -> 2025-10-01 | I54: (Coeficiente na composição principal) x (quantidade da principal no orçamento) | K54: m³
B55: 4016096 | C55: =VLOOKUP(B55,'SINTÉTICO SICRO'!$A:$D,2,0) -> Escavação e carga de material de jazida com escavadeira hidráulica de 1,56 m³
B56: F - MOMENTO DE TRANSPORTE | D56: '' | E56: Unidade | F56: DMT
F57: LN | G57: RP | H57: P | I57: TIPO (P, RP ou LN) | J57: DMT ESTIMADA (km) | K57: QUANTITATIVO TOTAL DE TRANSPORTE DE MATERIAL (tkm)
A58: =IF(I58="P",H58,IF(I58="RP",G58,IF(I58="LN",F58,""))) ->  | E58: tkm | K58: =IF(ISBLANK(J58),"",J58*(D58*#REF!)) -> 
B59: PRINCIPAL: | C59: ='MOMENTO DE TRANSPORTE - PRINC'!B46 -> 4915618
B60: TIPO (P, RP ou LN) | C60: DMT ATÉ 50 KM NÃO DEVE SER PAGA | D60: DMT ACIMA DE 50 KM
B61: RP | C61: 0 | D61: 10
B63: SISTEMA DE CUSTOS REFERENCIAIS DE OBRAS - SICRO | I63: Quantitivo
B64: Custo Unitário de Referência | E64: =$E$5 -> 2025-10-01 | I64: (Coeficiente na composição principal) x (quantidade da principal no orçamento) | K64: t
B65: 6416078 | C65: =VLOOKUP(B65,'SINTÉTICO SICRO'!$A:$D,2,0) -> Usinagem de concreto asfáltico - faixa C-12,5 - areia e brita comerciais | I65: =('MOMENTO DE TRANSPORTE - PRINC'!D25*VLOOKUP(C74,'RESUMO MODULO TOTAL'!$C$9:$J$48,6,FALSE))*0.1 -> 2604
B66: F - MOMENTO DE TRANSPORTE | D66: Quantidade | E66: Unidade | F66: DMT
F67: LN | G67: RP | H67: P | I67: TIPO (P, RP ou LN) | J67: DMT ESTIMADA (km) | K67: QUANTITATIVO TOTAL DE TRANSPORTE DE MATERIAL (tkm)
A68: =IF(I68="P",H68,IF(I68="RP",G68,IF(I68="LN",F68,""))) -> 5914374 | B68: M0028 | C68: Areia média - Caminhão basculante 10 m³ | D68: 0.04052 | E68: tkm | F68: 5914359 | G68: 5914374 | H68: 5914389 | I68: =$B$61 -> RP | J68: =$D$61 -> 10 | K68: =IF(ISBLANK(J68),"",J68*(D68*$I$65)) -> 1055.1408
A69: 5914374 | B69: M0005 | C69: Brita 0 - Caminhão basculante 10 m³ | D69: 0.13505 | E69: tkm | F69: 5914359 | G69: 5914374 | H69: 5914389 | I69: =$B$61 -> RP | J69: =$D$61 -> 10 | K69: =IF(ISBLANK(J69),"",J69*(D69*$I$65)) -> 3516.702
A70: 5914374 | B70: M0191 | C70: Brita 1 - Caminhão basculante 10 m³ | D70: 0.04823 | E70: tkm | F70: 5914359 | G70: 5914374 | H70: 5914389 | I70: RP | J70: 10 | K70: 1255.9092
A71: 5914365 | B71: M0344 | C71: Cal hidratada - a granel - Caminhão silo 30 m³ | D71: 0.01446 | E71: tkm | F71: 5914364 | G71: 5914365 | H71: 5914366 | I71: RP | J71: 10 | K71: 376.5384
A72: 5914374 | B72: M1103 | C72: Pedrisco - Caminhão basculante 10 m³ | D72: 0.22185 | E72: tkm | F72: 5914359 | G72: 5914374 | H72: 5914389 | I72: RP | J72: 10 | K72: 5776.974
A73: 5914374 | B73: M1135 | C73: Pó de pedra - Caminhão basculante 10 m³ | D73: 0.50447 | E73: tkm | F73: 5914359 | G73: 5914374 | H73: 5914389 | I73: RP | J73: 10 | K73: =IF(ISBLANK(J73),"",J73*(D73*$I$65)) -> 13136.3988
B74: PRINCIPAL: | C74: ='MOMENTO DE TRANSPORTE - PRINC'!B23 -> 4011463
B75: SISTEMA DE CUSTOS REFERENCIAIS DE OBRAS - SICRO | I75: Quantitivo
B76: Custo Unitário de Referência | E76: =$E$5 -> 2025-10-01 | I76: (Coeficiente na composição principal) x (quantidade da principal no orçamento) | K76: m³
B77: 4016096 | C77: =VLOOKUP(B77,'SINTÉTICO SICRO'!$A:$D,2,0) -> Escavação e carga de material de jazida com escavadeira hidráulica de 1,56 m³
B78: F - MOMENTO DE TRANSPORTE | D78: '' | E78: Unidade | F78: DMT
F79: LN | G79: RP | H79: P | I79: TIPO (P, RP ou LN) | J79: DMT ESTIMADA (km) | K79: QUANTITATIVO TOTAL DE TRANSPORTE DE MATERIAL (tkm)
A80: =IF(I80="P",H80,IF(I80="RP",G80,IF(I80="LN",F80,""))) ->  | E80: tkm | K80: =IF(ISBLANK(J80),"",J80*(D80*#REF!)) -> 
B81: PRINCIPAL: | C81: ='MOMENTO DE TRANSPORTE - PRINC'!B46 -> 4915618
A82: =IF(I82="P",H82,IF(I82="RP",G82,IF(I82="LN",F82,""))) -> 
M103: =(#REF!) -> 

Sheet MEDICAO EM TKM
A5: PLANILHA DE MEDIÇAO DE TKM
A7: 4011463 | B7: =VLOOKUP(A7,'SINTÉTICO SICRO'!A:D,2,0) -> Concreto asfáltico - faixa C-12,5 - areia e brita comerciais
A8: MOMENTO DE TRANSPORTE | C8: Quantidade (tkm) | D8: Area executada (m2) | E8: 7000
F9: =E8/('MC MODULO'!C1*'MC MODULO'!C2) -> 1
A10: 5914389 | B10: =VLOOKUP(A10,'SINTÉTICO SICRO'!A:D,2,0) -> Transporte com caminhão basculante de 10 m³ - rodovia pavimentada | C10: ='MOMENTO DE TRANSPORTE - PRINC'!K29+SUMIF('MOMENTO DE TRANSPORTE - AUX'!$A$24:$A$29,'MEDICAO EM TKM'!A10,'MOMENTO DE TRANSPORTE - AUX'!$K$24:$K$29) -> 614568.9984 | D10: =C10*$F$9 -> 614568.9984
A11: 5914359 | B11: =VLOOKUP(A11,'SINTÉTICO SICRO'!A:D,2,0) -> Transporte com caminhão basculante de 10 m³ - rodovia em leito natural | C11: ='MOMENTO DE TRANSPORTE - PRINC'!K67+SUMIF('MOMENTO DE TRANSPORTE - AUX'!$A$46:$A$51,'MEDICAO EM TKM'!A11,'MOMENTO DE TRANSPORTE - AUX'!$K$46:$K$51) -> 76821.1248 | D11: 76821.1248
A12: 5914374 | B12: =VLOOKUP(A12,'SINTÉTICO SICRO'!A:D,2,0) -> Transporte com caminhão basculante de 10 m³ - rodovia em revestimento primário | C12: ='MOMENTO DE TRANSPORTE - PRINC'!K105+SUMIF('MOMENTO DE TRANSPORTE - AUX'!$A$68:$A$73,'MEDICAO EM TKM'!A12,'MOMENTO DE TRANSPORTE - AUX'!$K$68:$K$73) -> 76821.1248 | D12: 76821.1248
A13: 5914366 | B13: =VLOOKUP(A13,'SINTÉTICO SICRO'!A:D,2,0) -> Transporte de cimento ou cal hidratada a granel com caminhão silo de 30 m³ - rodovia pavimentada | C13: =SUMIF('MOMENTO DE TRANSPORTE - AUX'!$A$24:$A$29,'MEDICAO EM TKM'!A13,'MOMENTO DE TRANSPORTE - AUX'!K24:K29) -> 3012.3072 | D13: 3012.3072
A14: 5914364 | B14: =VLOOKUP(A14,'SINTÉTICO SICRO'!A:D,2,0) -> Transporte de cimento ou cal hidratada a granel com caminhão silo de 30 m³ - rodovia em leito natural | C14: =SUMIF('MOMENTO DE TRANSPORTE - AUX'!$A$46:$A$51,'MEDICAO EM TKM'!A14,'MOMENTO DE TRANSPORTE - AUX'!$K$46:$K$51) -> 376.5384 | D14: 376.5384
A15: 5914365 | B15: =VLOOKUP(A15,'SINTÉTICO SICRO'!A:D,2,0) -> Transporte de cimento ou cal hidratada a granel com caminhão silo de 30 m³ - rodovia em revestimento primário | C15: =SUMIF('MOMENTO DE TRANSPORTE - AUX'!$A$68:$A$73,'MEDICAO EM TKM'!A15,'MOMENTO DE TRANSPORTE - AUX'!$K$68:$K$73) -> 376.5384 | D15: 376.5384
A17: 4011353 | B17: =VLOOKUP(A17,'SINTÉTICO SICRO'!A:D,2,0) -> Pintura de ligação
A18: MOMENTO DE TRANSPORTE | C18: Quantidade (tkm)
A22: 4915663 | B22: =VLOOKUP(A22,'SINTÉTICO SICRO'!A:D,2,0) -> Fresagem descontínua de revestimento asfáltico - espessura de 5 cm
A23: MOMENTO DE TRANSPORTE | C23: Quantidade (tkm) | D23: Área Executada (m2) | E23: =E8 -> 7000
D24: espessura (m) | E24: 0.05 | F24: =(E23*E24)/'RESUMO MODULO TOTAL'!H21 -> 0.3225806452
A25: 5914389 | B25: =VLOOKUP(A25,'SINTÉTICO SICRO'!A:D,2,0) -> Transporte com caminhão basculante de 10 m³ - rodovia pavimentada | C25: ='MOMENTO DE TRANSPORTE - PRINC'!$K$40 -> 41664 | D25: =C25*$F$24 -> 13440
A26: 5914359 | B26: =VLOOKUP(A26,'SINTÉTICO SICRO'!A:D,2,0) -> Transporte com caminhão basculante de 10 m³ - rodovia em leito natural | C26: ='MOMENTO DE TRANSPORTE - PRINC'!$K$78 -> 5208 | D26: =C26*$F$24 -> 1680
A27: 5914374 | B27: =VLOOKUP(A27,'SINTÉTICO SICRO'!A:D,2,0) -> Transporte com caminhão basculante de 10 m³ - rodovia em revestimento primário | C27: ='MOMENTO DE TRANSPORTE - PRINC'!$K$116 -> 5208 | D27: =C27*$F$24 -> 1680
A29: 4915618 | B29: =VLOOKUP(A29,'SINTÉTICO SICRO'!A:D,2,0) -> Recomposição de camada granular do pavimento com material de jazida - 100% Proctor modificado
A30: MOMENTO DE TRANSPORTE | D30: Quantidade (tkm)
A34: 5213440 | B34: Placa de regulamentação em aço D = 0,60 m - película retrorrefletiva tipo I + SI - fornecimento e implantação
A35: MOMENTO DE TRANSPORTE | D35: Quantidade (tkm)
A39: 5213464 | B39: =VLOOKUP(A39,'SINTÉTICO SICRO'!A:D,2,0) -> Placa de advertência em aço, lado de 0,60 m - película retrorrefletiva tipo I + SI - fornecimento e implantação
A40: MOMENTO DE TRANSPORTE | D40: Quantidade (tkm)
A44: 5213863 | B44: =VLOOKUP(A44,'SINTÉTICO SICRO'!A:D,2,0) -> Suporte metálico galvanizado para placa de advertência ou regulamentação - lado ou diâmetro de 0,60 m - fornecimento e implantação
A45: MOMENTO DE TRANSPORTE | D45: Quantidade (tkm)
A49: 5213400 | B49: =VLOOKUP(A49,'SINTÉTICO SICRO'!A:D,2,0) -> Pintura de faixa com tinta acrílica - espessura de 0,4 mm
A50: MOMENTO DE TRANSPORTE | D50: Quantidade (tkm)
A54: 4915777 | B54: =VLOOKUP(A54,'SINTÉTICO SICRO'!A:D,2,0) -> Reassentamento manual de meio-fio com material arrancado da pista
A55: MOMENTO DE TRANSPORTE | D55: Quantidade (tkm)
A58: 4915708 | B58: =VLOOKUP(A58,'SINTÉTICO SICRO'!A:D,2,0) -> Limpeza de sarjeta e meio-fio
A59: MOMENTO DE TRANSPORTE | D59: Quantidade (tkm)
A62: 4915724 | B62: =VLOOKUP(A62,'SINTÉTICO SICRO'!A:D,2,0) -> Caiação mecanizada com fixador de cal
A63: MOMENTO DE TRANSPORTE | D63: Quantidade (tkm)

Sheet MC MODULO
A1: Extensão | B1: = | C1: 1000 | D1: m | F1: QUANTIDADE DE MODULOS | G1: 31
A2: Largura | B2: = | C2: 7 | D2: m
J3: ='RESUMO MODULO TOTAL'!L49 -> 
A4: Extensão | B4: = | C4: 1 | D4: km
B6: MOBUILIZAÇÃO
A7: 1 | B7: Implantação da obra
B9: Módulos(un) | D9: Módulos(un)
B10: =G1 -> 31 | C10: = | D10: =B10 -> 31
A12: 2 | B12: Administração da obra
B14: Módulos(un) | D14: Módulos(un)
B15: =G1 -> 31 | C15: = | D15: =B15 -> 31
A17: 3 | B17: Canteiro de Obras e Almoxarifado
B19: Módulos(un) | D19: Módulos(un)
B20: =G1 -> 31 | C20: = | D20: =B20 -> 31
A22: 4 | B22: Placa de Obra em Chapa de Aço Galvanizado
B24: Módulos(un) | C24: Comprimento(m) | D24: Largura (m) | H24: Total de Area de placa (m²)
B25: =G1 -> 31 | C25: 2 | D25: 4 | H25: =C25*D25*B25*2 -> 496
B28: PAVIMENTAÇÃO
A30: 5 | B30: Concreto asfáltico - faixa C - areia e brita comerciais
B32: Extensão (m) | C32: Largura (m) | D32: Espessura (m) | E32: Densidade (t/m³) | F32: A | H32: Volume (t)
B33: =$C$1*G1 -> 31000 | C33: =$C$2 -> 7 | D33: 0.05 | E33: 2.4 | G33: = | H33: =B33*C33*D33*E33 -> 26040
A36: 7 | B36: Pintura de ligação
B38: Extensão (m) | D38: Largura (m) | H38: area (m2)
B39: =$C$1*G1 -> 31000 | C39: x | D39: =$C$2 -> 7 | G39: = | H39: =B39*D39 -> 217000
A42: 9 | B42: Fresagem descontínua de revestimento asfáltico - espessura de 5 cm
B44: Extensão (m) | D44: Largura (m) | E44: Espessura (m) | H44: Volume (m3)
B45: =$C$1*G1 -> 31000 | C45: x | D45: =$C$2 -> 7 | E45: 0.05 | F45: 0.1 | G45: = | H45: =B45*D45*E45*F45 -> 1085
A48: 9 | B48: Recomposição de camada granular do pavimento com material de jazida
B50: Extensão (m) | D50: Largura (m) | H50: area (m2)
B51: =$C$1*G1 -> 31000 | C51: x | D51: =$C$2 -> 7 | F51: =F45 -> 0.1 | G51: = | H51: =B51*D51*F51 -> 21700
B53: SINALIZAÇÃO
A55: 14 | B55: Fornecimento e implantação de placa de regulamentação em aço D = 0,60 m - película retrorrefletiva tipo I + SI
B57: Extensão (km) | D57: Quant. (un) | H57: Quant. (un)
B58: =$C$4*$G$1 -> 31 | C58: x | D58: 3 | G58: = | H58: =B58*D58 -> 93
A60: 14 | B60: Placa de advertência em aço, lado de 0,60 m - película retrorrefletiva tipo I + SI - fornecimento e implantação
B62: Extensão (km) | D62: Quant. (un) | H62: Quant. (un)
B63: =$C$4*$G$1 -> 31 | C63: x | D63: 3 | G63: = | H63: =B63*D63 -> 93
A66: 15 | B66: Fornecimento e implantação de suporte metálico galvanizado para placa de regulamentação - D = 0,60 m
B68: Extensão (km) | D68: Quant. (un) | H68: Quant. (un)
B69: =$C$4*$G$1 -> 31 | C69: x | G69: = | H69: =H58+H63 -> 186
A71: 16 | B71: Pintura de faixa com tinta acrílica - espessura de 0,4 mm (bordos)
B73: Extensão (m) | D73: Espessura (m) | H73: Quant. (m²)
B74: =C1*G1 -> 31000 | C74: x | D74: 0.1 | G74: = | H74: =B74*D74*2 -> 6200
A76: 16 | B76: Pintura de faixa com tinta acrílica - espessura de 0,4 mm (faixa central)
H78: Quant. (m²)
H79: =B74*D74*0.4 -> 1240
B82: DRENAGEM
A83: 17 | B83: Reassentamento manual de meio fio com material arrancado da pista
B85: Extensão (m) | D85: Quant. (un) | G85: 0.1 | H85: Extensão(m)
B86: =$C$1*$G$1 -> 31000 | C86: x | D86: 2 | G86: = | H86: =B86*D86*G85 -> 6200
A88: 18 | B88: Limpeza de sarjeta e meio-fio
B90: Extensão (m) | D90: Quant. (un) | H90: Extensão(m)
B91: =$C$1*$G$1 -> 31000 | C91: x | D91: 2 | G91: = | H91: =B91*D91 -> 62000
A93: 19 | B93: Caiação mecanizada com fixador de cal
B95: Extensão (m) | D95: Perimetro (m) | H95: Area (m²)
B96: =$C$1*$G$1 -> 31000 | C96: x | D96: =0.24 -> 0.24 | G96: = | H96: =B96*D96 -> 7440
B99: SERVIÇOS COMPLEMENTARES
A100: 20
B102: Extensão (m) | D102: Largura (m) | G102: 0.1 | H102: extensão (m)
B103: =$C$1*G1 -> 31000 | C103: x | D103: 1 | E103: x | G103: = | H103: =G102*B103 -> 3100
B106: PROJETO EXECUTIVO
A107: 21 | B107: Projeto Executivo
B109: Extensão (m) | D109: Largura (m) | F109: Quant. (un) | H109: Área (m²)
B110: =$C$1*G1 -> 31000 | C110: x | D110: =C2 -> 7 | E110: x | F110: 1 | G110: = | H110: =B110*D110 -> 217000
B112: CONTROLE TECNOLOGICO - OBRA
A113: 22 | B113: Projeto Executivo
B115: Extensão (m) | D115: Largura (m) | F115: Quant. (un) | H115: meses
G116: = | H116: =0.5*G1 -> 15.5
E132: Perímetro caiação = 0,09 + 0,15

Sheet ANP ESTADO
A1: Agência Nacional do Petróleo, Gás Natural e Biocombustíveis
A2: Superintendência de Defesa da Concorrência
A5: PREÇO MÉDIO MENSAL PONDERADO PRATICADO PELOS DISTRIBUIDORES DE PRODUTOS ASFÁLTICOS (R$/KG)
A7: Importante: | B7: Quando não houver declaração de venda do produto selecionado, ou quando a declaração de venda do produto ocorrer por menos de 03 (três) distribuidoras, a tabela indicará campo vazio.
A8: Mês | B8: Produto | C8: Estado | D8: Preço
A9: 2013-01-01 | B9: ASFALTOS DILUÍDOS CM-30 | C9: Acre | D9: -
A10: 2013-01-01 | B10: ASFALTOS DILUÍDOS CM-30 | C10: Alagoas | D10: -
A11: 2013-01-01 | B11: ASFALTOS DILUÍDOS CM-30 | C11: Amapá | D11: -
A12: 2013-01-01 | B12: ASFALTOS DILUÍDOS CM-30 | C12: Amazonas | D12: 1.453527021
A13: 2013-01-01 | B13: ASFALTOS DILUÍDOS CM-30 | C13: Bahia | D13: 1.464044142
A14: 2013-01-01 | B14: ASFALTOS DILUÍDOS CM-30 | C14: Ceará | D14: 1.447997934
A15: 2013-01-01 | B15: ASFALTOS DILUÍDOS CM-30 | C15: Distrito Federal | D15: -
A16: 2013-01-01 | B16: ASFALTOS DILUÍDOS CM-30 | C16: Espírito Santo | D16: -
A17: 2013-01-01 | B17: ASFALTOS DILUÍDOS CM-30 | C17: Goiás | D17: 1.686383065
A18: 2013-01-01 | B18: ASFALTOS DILUÍDOS CM-30 | C18: Maranhão | D18: -
A19: 2013-01-01 | B19: ASFALTOS DILUÍDOS CM-30 | C19: Mato Grosso | D19: -
A20: 2013-01-01 | B20: ASFALTOS DILUÍDOS CM-30 | C20: Mato Grosso do Sul | D20: -
A21: 2013-01-01 | B21: ASFALTOS DILUÍDOS CM-30 | C21: Minas Gerais | D21: 1.451106114
A22: 2013-01-01 | B22: ASFALTOS DILUÍDOS CM-30 | C22: Pará | D22: -
A23: 2013-01-01 | B23: ASFALTOS DILUÍDOS CM-30 | C23: Paraíba | D23: -
A24: 2013-01-01 | B24: ASFALTOS DILUÍDOS CM-30 | C24: Paraná | D24: 1.520125031
A25: 2013-01-01 | B25: ASFALTOS DILUÍDOS CM-30 | C25: Pernambuco | D25: -
A26: 2013-01-01 | B26: ASFALTOS DILUÍDOS CM-30 | C26: Piauí | D26: -
A27: 2013-01-01 | B27: ASFALTOS DILUÍDOS CM-30 | C27: Rio de Janeiro | D27: 1.330475106
A28: 2013-01-01 | B28: ASFALTOS DILUÍDOS CM-30 | C28: Rio Grande do Norte | D28: -
A29: 2013-01-01 | B29: ASFALTOS DILUÍDOS CM-30 | C29: Rio Grande do Sul | D29: 1.598611074
A30: 2013-01-01 | B30: ASFALTOS DILUÍDOS CM-30 | C30: Rondônia | D30: -
A31: 2013-01-01 | B31: ASFALTOS DILUÍDOS CM-30 | C31: Roraima | D31: -
A32: 2013-01-01 | B32: ASFALTOS DILUÍDOS CM-30 | C32: Santa Catarina | D32: -
A33: 2013-01-01 | B33: ASFALTOS DILUÍDOS CM-30 | C33: São Paulo | D33: 1.471008423
A34: 2013-01-01 | B34: ASFALTOS DILUÍDOS CM-30 | C34: Sergipe | D34: -
A35: 2013-01-01 | B35: ASFALTOS DILUÍDOS CM-30 | C35: Tocantins | D35: -
A36: 2013-02-01 | B36: ASFALTOS DILUÍDOS CM-30 | C36: Acre | D36: -
A37: 2013-02-01 | B37: ASFALTOS DILUÍDOS CM-30 | C37: Alagoas | D37: -
A38: 2013-02-01 | B38: ASFALTOS DILUÍDOS CM-30 | C38: Amapá | D38: -
A39: 2013-02-01 | B39: ASFALTOS DILUÍDOS CM-30 | C39: Amazonas | D39: 1.485578179
A40: 2013-02-01 | B40: ASFALTOS DILUÍDOS CM-30 | C40: Bahia | D40: 1.457014101
A41: 2013-02-01 | B41: ASFALTOS DILUÍDOS CM-30 | C41: Ceará | D41: 1.413192336
A42: 2013-02-01 | B42: ASFALTOS DILUÍDOS CM-30 | C42: Distrito Federal | D42: -
A43: 2013-02-01 | B43: ASFALTOS DILUÍDOS CM-30 | C43: Espírito Santo | D43: -
A44: 2013-02-01 | B44: ASFALTOS DILUÍDOS CM-30 | C44: Goiás | D44: 1.667459711
A45: 2013-02-01 | B45: ASFALTOS DILUÍDOS CM-30 | C45: Maranhão | D45: -
A46: 2013-02-01 | B46: ASFALTOS DILUÍDOS CM-30 | C46: Mato Grosso | D46: -
A47: 2013-02-01 | B47: ASFALTOS DILUÍDOS CM-30 | C47: Mato Grosso do Sul | D47: -
A48: 2013-02-01 | B48: ASFALTOS DILUÍDOS CM-30 | C48: Minas Gerais | D48: 1.452121117
A49: 2013-02-01 | B49: ASFALTOS DILUÍDOS CM-30 | C49: Pará | D49: -
A50: 2013-02-01 | B50: ASFALTOS DILUÍDOS CM-30 | C50: Paraíba | D50: -
A51: 2013-02-01 | B51: ASFALTOS DILUÍDOS CM-30 | C51: Paraná | D51: 1.493783173
A52: 2013-02-01 | B52: ASFALTOS DILUÍDOS CM-30 | C52: Pernambuco | D52: -
A53: 2013-02-01 | B53: ASFALTOS DILUÍDOS CM-30 | C53: Piauí | D53: -
A54: 2013-02-01 | B54: ASFALTOS DILUÍDOS CM-30 | C54: Rio de Janeiro | D54: 1.418234901
A55: 2013-02-01 | B55: ASFALTOS DILUÍDOS CM-30 | C55: Rio Grande do Norte | D55: -
A56: 2013-02-01 | B56: ASFALTOS DILUÍDOS CM-30 | C56: Rio Grande do Sul | D56: 1.435861782
A57: 2013-02-01 | B57: ASFALTOS DILUÍDOS CM-30 | C57: Rondônia | D57: -
A58: 2013-02-01 | B58: ASFALTOS DILUÍDOS CM-30 | C58: Roraima | D58: -
A59: 2013-02-01 | B59: ASFALTOS DILUÍDOS CM-30 | C59: Santa Catarina | D59: -
A60: 2013-02-01 | B60: ASFALTOS DILUÍDOS CM-30 | C60: São Paulo | D60: 1.434190204
A61: 2013-02-01 | B61: ASFALTOS DILUÍDOS CM-30 | C61: Sergipe | D61: -
A62: 2013-02-01 | B62: ASFALTOS DILUÍDOS CM-30 | C62: Tocantins | D62: -
A63: 2013-03-01 | B63: ASFALTOS DILUÍDOS CM-30 | C63: Acre | D63: -
A64: 2013-03-01 | B64: ASFALTOS DILUÍDOS CM-30 | C64: Alagoas | D64: -
A65: 2013-03-01 | B65: ASFALTOS DILUÍDOS CM-30 | C65: Amapá | D65: -
A66: 2013-03-01 | B66: ASFALTOS DILUÍDOS CM-30 | C66: Amazonas | D66: 1.507923921
A67: 2013-03-01 | B67: ASFALTOS DILUÍDOS CM-30 | C67: Bahia | D67: 1.449440325
A68: 2013-03-01 | B68: ASFALTOS DILUÍDOS CM-30 | C68: Ceará | D68: 1.401607485
A69: 2013-03-01 | B69: ASFALTOS DILUÍDOS CM-30 | C69: Distrito Federal | D69: -
A70: 2013-03-01 | B70: ASFALTOS DILUÍDOS CM-30 | C70: Espírito Santo | D70: -
A71: 2013-03-01 | B71: ASFALTOS DILUÍDOS CM-30 | C71: Goiás | D71: 1.661758701
A72: 2013-03-01 | B72: ASFALTOS DILUÍDOS CM-30 | C72: Maranhão | D72: -
A73: 2013-03-01 | B73: ASFALTOS DILUÍDOS CM-30 | C73: Mato Grosso | D73: -
A74: 2013-03-01 | B74: ASFALTOS DILUÍDOS CM-30 | C74: Mato Grosso do Sul | D74: -
A75: 2013-03-01 | B75: ASFALTOS DILUÍDOS CM-30 | C75: Minas Gerais | D75: 1.44324333
A76: 2013-03-01 | B76: ASFALTOS DILUÍDOS CM-30 | C76: Pará | D76: -
A77: 2013-03-01 | B77: ASFALTOS DILUÍDOS CM-30 | C77: Paraíba | D77: -
A78: 2013-03-01 | B78: ASFALTOS DILUÍDOS CM-30 | C78: Paraná | D78: 1.468995996
A79: 2013-03-01 | B79: ASFALTOS DILUÍDOS CM-30 | C79: Pernambuco | D79: -
A80: 2013-03-01 | B80: ASFALTOS DILUÍDOS CM-30 | C80: Piauí | D80: -
A81: 2013-03-01 | B81: ASFALTOS DILUÍDOS CM-30 | C81: Rio de Janeiro | D81: 1.438055574
A82: 2013-03-01 | B82: ASFALTOS DILUÍDOS CM-30 | C82: Rio Grande do Norte | D82: -
A83: 2013-03-01 | B83: ASFALTOS DILUÍDOS CM-30 | C83: Rio Grande do Sul | D83: 1.581425878
A84: 2013-03-01 | B84: ASFALTOS DILUÍDOS CM-30 | C84: Rondônia | D84: -
A85: 2013-03-01 | B85: ASFALTOS DILUÍDOS CM-30 | C85: Roraima | D85: -
A86: 2013-03-01 | B86: ASFALTOS DILUÍDOS CM-30 | C86: Santa Catarina | D86: -
A87: 2013-03-01 | B87: ASFALTOS DILUÍDOS CM-30 | C87: São Paulo | D87: 1.466061702
A88: 2013-03-01 | B88: ASFALTOS DILUÍDOS CM-30 | C88: Sergipe | D88: -
A89: 2013-03-01 | B89: ASFALTOS DILUÍDOS CM-30 | C89: Tocantins | D89: -
A90: 2013-04-01 | B90: ASFALTOS DILUÍDOS CM-30 | C90: Acre | D90: -
A91: 2013-04-01 | B91: ASFALTOS DILUÍDOS CM-30 | C91: Alagoas | D91: -
A92: 2013-04-01 | B92: ASFALTOS DILUÍDOS CM-30 | C92: Amapá | D92: -
A93: 2013-04-01 | B93: ASFALTOS DILUÍDOS CM-30 | C93: Amazonas | D93: 1.484796656
A94: 2013-04-01 | B94: ASFALTOS DILUÍDOS CM-30 | C94: Bahia | D94: 1.454836546
A95: 2013-04-01 | B95: ASFALTOS DILUÍDOS CM-30 | C95: Ceará | D95: 1.387073962
A96: 2013-04-01 | B96: ASFALTOS DILUÍDOS CM-30 | C96: Distrito Federal | D96: -
A97: 2013-04-01 | B97: ASFALTOS DILUÍDOS CM-30 | C97: Espírito Santo | D97: -
A98: 2013-04-01 | B98: ASFALTOS DILUÍDOS CM-30 | C98: Goiás | D98: 1.673481836
A99: 2013-04-01 | B99: ASFALTOS DILUÍDOS CM-30 | C99: Maranhão | D99: -
A100: 2013-04-01 | B100: ASFALTOS DILUÍDOS CM-30 | C100: Mato Grosso | D100: 1.921938422
A101: 2013-04-01 | B101: ASFALTOS DILUÍDOS CM-30 | C101: Mato Grosso do Sul | D101: -
A102: 2013-04-01 | B102: ASFALTOS DILUÍDOS CM-30 | C102: Minas Gerais | D102: 1.456556683
A103: 2013-04-01 | B103: ASFALTOS DILUÍDOS CM-30 | C103: Pará | D103: -
A104: 2013-04-01 | B104: ASFALTOS DILUÍDOS CM-30 | C104: Paraíba | D104: -
A105: 2013-04-01 | B105: ASFALTOS DILUÍDOS CM-30 | C105: Paraná | D105: 1.534419498
A106: 2013-04-01 | B106: ASFALTOS DILUÍDOS CM-30 | C106: Pernambuco | D106: -
A107: 2013-04-01 | B107: ASFALTOS DILUÍDOS CM-30 | C107: Piauí | D107: -
A108: 2013-04-01 | B108: ASFALTOS DILUÍDOS CM-30 | C108: Rio de Janeiro | D108: 1.418419516
A109: 2013-04-01 | B109: ASFALTOS DILUÍDOS CM-30 | C109: Rio Grande do Norte | D109: -
A110: 2013-04-01 | B110: ASFALTOS DILUÍDOS CM-30 | C110: Rio Grande do Sul | D110: 1.572582456
A111: 2013-04-01 | B111: ASFALTOS DILUÍDOS CM-30 | C111: Rondônia | D111: -
A112: 2013-04-01 | B112: ASFALTOS DILUÍDOS CM-30 | C112: Roraima | D112: -
A113: 2013-04-01 | B113: ASFALTOS DILUÍDOS CM-30 | C113: Santa Catarina | D113: -
A114: 2013-04-01 | B114: ASFALTOS DILUÍDOS CM-30 | C114: São Paulo | D114: 1.475764348
A115: 2013-04-01 | B115: ASFALTOS DILUÍDOS CM-30 | C115: Sergipe | D115: -
A116: 2013-04-01 | B116: ASFALTOS DILUÍDOS CM-30 | C116: Tocantins | D116: -
A117: 2013-05-01 | B117: ASFALTOS DILUÍDOS CM-30 | C117: Acre | D117: -
A118: 2013-05-01 | B118: ASFALTOS DILUÍDOS CM-30 | C118: Alagoas | D118: -
A119: 2013-05-01 | B119: ASFALTOS DILUÍDOS CM-30 | C119: Amapá | D119: -
A120: 2013-05-01 | B120: ASFALTOS DILUÍDOS CM-30 | C120: Amazonas | D120: -
A121: 2013-05-01 | B121: ASFALTOS DILUÍDOS CM-30 | C121: Bahia | D121: 1.492587424
A122: 2013-05-01 | B122: ASFALTOS DILUÍDOS CM-30 | C122: Ceará | D122: 1.376263021
A123: 2013-05-01 | B123: ASFALTOS DILUÍDOS CM-30 | C123: Distrito Federal | D123: -
A124: 2013-05-01 | B124: ASFALTOS DILUÍDOS CM-30 | C124: Espírito Santo | D124: -
A125: 2013-05-01 | B125: ASFALTOS DILUÍDOS CM-30 | C125: Goiás | D125: 1.668214819
A126: 2013-05-01 | B126: ASFALTOS DILUÍDOS CM-30 | C126: Maranhão | D126: -
A127: 2013-05-01 | B127: ASFALTOS DILUÍDOS CM-30 | C127: Mato Grosso | D127: 1.903098159
A128: 2013-05-01 | B128: ASFALTOS DILUÍDOS CM-30 | C128: Mato Grosso do Sul | D128: -
A129: 2013-05-01 | B129: ASFALTOS DILUÍDOS CM-30 | C129: Minas Gerais | D129: 1.464709716
A130: 2013-05-01 | B130: ASFALTOS DILUÍDOS CM-30 | C130: Pará | D130: -
A131: 2013-05-01 | B131: ASFALTOS DILUÍDOS CM-30 | C131: Paraíba | D131: -
A132: 2013-05-01 | B132: ASFALTOS DILUÍDOS CM-30 | C132: Paraná | D132: 1.489027849
A133: 2013-05-01 | B133: ASFALTOS DILUÍDOS CM-30 | C133: Pernambuco | D133: -
A134: 2013-05-01 | B134: ASFALTOS DILUÍDOS CM-30 | C134: Piauí | D134: -
A135: 2013-05-01 | B135: ASFALTOS DILUÍDOS CM-30 | C135: Rio de Janeiro | D135: 1.399256048
A136: 2013-05-01 | B136: ASFALTOS DILUÍDOS CM-30 | C136: Rio Grande do Norte | D136: -
A137: 2013-05-01 | B137: ASFALTOS DILUÍDOS CM-30 | C137: Rio Grande do Sul | D137: 1.539636961
A138: 2013-05-01 | B138: ASFALTOS DILUÍDOS CM-30 | C138: Rondônia | D138: -
A139: 2013-05-01 | B139: ASFALTOS DILUÍDOS CM-30 | C139: Roraima | D139: -
A140: 2013-05-01 | B140: ASFALTOS DILUÍDOS CM-30 | C140: Santa Catarina | D140: -
A141: 2013-05-01 | B141: ASFALTOS DILUÍDOS CM-30 | C141: São Paulo | D141: 1.451215936
A142: 2013-05-01 | B142: ASFALTOS DILUÍDOS CM-30 | C142: Sergipe | D142: -
A143: 2013-05-01 | B143: ASFALTOS DILUÍDOS CM-30 | C143: Tocantins | D143: -
A144: 2013-06-01 | B144: ASFALTOS DILUÍDOS CM-30 | C144: Acre | D144: -
A145: 2013-06-01 | B145: ASFALTOS DILUÍDOS CM-30 | C145: Alagoas | D145: -
A146: 2013-06-01 | B146: ASFALTOS DILUÍDOS CM-30 | C146: Amapá | D146: -
A147: 2013-06-01 | B147: ASFALTOS DILUÍDOS CM-30 | C147: Amazonas | D147: 1.586325818
A148: 2013-06-01 | B148: ASFALTOS DILUÍDOS CM-30 | C148: Bahia | D148: 1.44812907
A149: 2013-06-01 | B149: ASFALTOS DILUÍDOS CM-30 | C149: Ceará | D149: 1.382700989
A150: 2013-06-01 | B150: ASFALTOS DILUÍDOS CM-30 | C150: Distrito Federal | D150: -
A151: 2013-06-01 | B151: ASFALTOS DILUÍDOS CM-30 | C151: Espírito Santo | D151: -
A152: 2013-06-01 | B152: ASFALTOS DILUÍDOS CM-30 | C152: Goiás | D152: 1.699613867
A153: 2013-06-01 | B153: ASFALTOS DILUÍDOS CM-30 | C153: Maranhão | D153: -
A154: 2013-06-01 | B154: ASFALTOS DILUÍDOS CM-30 | C154: Mato Grosso | D154: 1.915975658
A155: 2013-06-01 | B155: ASFALTOS DILUÍDOS CM-30 | C155: Mato Grosso do Sul | D155: -
A156: 2013-06-01 | B156: ASFALTOS DILUÍDOS CM-30 | C156: Minas Gerais | D156: 1.475366896
A157: 2013-06-01 | B157: ASFALTOS DILUÍDOS CM-30 | C157: Pará | D157: -
A158: 2013-06-01 | B158: ASFALTOS DILUÍDOS CM-30 | C158: Paraíba | D158: -
A159: 2013-06-01 | B159: ASFALTOS DILUÍDOS CM-30 | C159: Paraná | D159: 1.432166974
A160: 2013-06-01 | B160: ASFALTOS DILUÍDOS CM-30 | C160: Pernambuco | D160: -
A161: 2013-06-01 | B161: ASFALTOS DILUÍDOS CM-30 | C161: Piauí | D161: -
A162: 2013-06-01 | B162: ASFALTOS DILUÍDOS CM-30 | C162: Rio de Janeiro | D162: 1.527420226
A163: 2013-06-01 | B163: ASFALTOS DILUÍDOS CM-30 | C163: Rio Grande do Norte | D163: -
A164: 2013-06-01 | B164: ASFALTOS DILUÍDOS CM-30 | C164: Rio Grande do Sul | D164: 1.59868349
A165: 2013-06-01 | B165: ASFALTOS DILUÍDOS CM-30 | C165: Rondônia | D165: -
A166: 2013-06-01 | B166: ASFALTOS DILUÍDOS CM-30 | C166: Roraima | D166: -
A167: 2013-06-01 | B167: ASFALTOS DILUÍDOS CM-30 | C167: Santa Catarina | D167: -
A168: 2013-06-01 | B168: ASFALTOS DILUÍDOS CM-30 | C168: São Paulo | D168: 1.432748187
A169: 2013-06-01 | B169: ASFALTOS DILUÍDOS CM-30 | C169: Sergipe | D169: -
A170: 2013-06-01 | B170: ASFALTOS DILUÍDOS CM-30 | C170: Tocantins | D170: -
A171: 2013-07-01 | B171: ASFALTOS DILUÍDOS CM-30 | C171: Acre | D171: -
A172: 2013-07-01 | B172: ASFALTOS DILUÍDOS CM-30 | C172: Alagoas | D172: -
A173: 2013-07-01 | B173: ASFALTOS DILUÍDOS CM-30 | C173: Amapá | D173: -
A174: 2013-07-01 | B174: ASFALTOS DILUÍDOS CM-30 | C174: Amazonas | D174: 1.509890931
A175: 2013-07-01 | B175: ASFALTOS DILUÍDOS CM-30 | C175: Bahia | D175: 1.436150016
A176: 2013-07-01 | B176: ASFALTOS DILUÍDOS CM-30 | C176: Ceará | D176: 1.424835845
A177: 2013-07-01 | B177: ASFALTOS DILUÍDOS CM-30 | C177: Distrito Federal | D177: -
A178: 2013-07-01 | B178: ASFALTOS DILUÍDOS CM-30 | C178: Espírito Santo | D178: -
A179: 2013-07-01 | B179: ASFALTOS DILUÍDOS CM-30 | C179: Goiás | D179: 1.663778454
A180: 2013-07-01 | B180: ASFALTOS DILUÍDOS CM-30 | C180: Maranhão | D180: -
A181: 2013-07-01 | B181: ASFALTOS DILUÍDOS CM-30 | C181: Mato Grosso | D181: 1.930589551
A182: 2013-07-01 | B182: ASFALTOS DILUÍDOS CM-30 | C182: Mato Grosso do Sul | D182: -
A183: 2013-07-01 | B183: ASFALTOS DILUÍDOS CM-30 | C183: Minas Gerais | D183: 1.476572352
A184: 2013-07-01 | B184: ASFALTOS DILUÍDOS CM-30 | C184: Pará | D184: -
A185: 2013-07-01 | B185: ASFALTOS DILUÍDOS CM-30 | C185: Paraíba | D185: -
A186: 2013-07-01 | B186: ASFALTOS DILUÍDOS CM-30 | C186: Paraná | D186: 1.477167274
A187: 2013-07-01 | B187: ASFALTOS DILUÍDOS CM-30 | C187: Pernambuco | D187: -
A188: 2013-07-01 | B188: ASFALTOS DILUÍDOS CM-30 | C188: Piauí | D188: -
A189: 2013-07-01 | B189: ASFALTOS DILUÍDOS CM-30 | C189: Rio de Janeiro | D189: 1.584464713
A190: 2013-07-01 | B190: ASFALTOS DILUÍDOS CM-30 | C190: Rio Grande do Norte | D190: -
A191: 2013-07-01 | B191: ASFALTOS DILUÍDOS CM-30 | C191: Rio Grande do Sul | D191: 1.612487925
A192: 2013-07-01 | B192: ASFALTOS DILUÍDOS CM-30 | C192: Rondônia | D192: -
A193: 2013-07-01 | B193: ASFALTOS DILUÍDOS CM-30 | C193: Roraima | D193: -
A194: 2013-07-01 | B194: ASFALTOS DILUÍDOS CM-30 | C194: Santa Catarina | D194: -
A195: 2013-07-01 | B195: ASFALTOS DILUÍDOS CM-30 | C195: São Paulo | D195: 1.507844909
A196: 2013-07-01 | B196: ASFALTOS DILUÍDOS CM-30 | C196: Sergipe | D196: -
A197: 2013-07-01 | B197: ASFALTOS DILUÍDOS CM-30 | C197: Tocantins | D197: -
A198: 2013-08-01 | B198: ASFALTOS DILUÍDOS CM-30 | C198: Acre | D198: -
A199: 2013-08-01 | B199: ASFALTOS DILUÍDOS CM-30 | C199: Alagoas | D199: -
A200: 2013-08-01 | B200: ASFALTOS DILUÍDOS CM-30 | C200: Amapá | D200: -
A201: 2013-08-01 | B201: ASFALTOS DILUÍDOS CM-30 | C201: Amazonas | D201: 1.509275641
A202: 2013-08-01 | B202: ASFALTOS DILUÍDOS CM-30 | C202: Bahia | D202: 1.416699323
A203: 2013-08-01 | B203: ASFALTOS DILUÍDOS CM-30 | C203: Ceará | D203: 1.447403364
... 4297 more rows

Sheet ANP REGIÃO
A1: Agência Nacional do Petróleo, Gás Natural e Biocombustíveis
A2: Superintendência de Defesa da Concorrência
A6: PREÇO MÉDIO MENSAL PONDERADO PRATICADO PELOS DISTRIBUIDORES DE PRODUTOS ASFÁLTICOS (R$/KG)
A8: Produto | B8: Mês | C8: Norte | D8: Nordeste | E8: Centro-Oeste | F8: Sudeste | G8: Sul | H8: Brasil
A9: ASFALTOS DILUÍDOS CM-30 | B9: 2008-11-01 | C9: 1.775468292 | D9: 1.55087853 | E9: 2.022143291 | F9: 1.55449367 | G9: 1.584532899 | H9: 1.64286837
A10: ASFALTOS DILUÍDOS CM-30 | B10: 2008-12-01 | C10: 1.806837667 | D10: 1.509118192 | E10: 2.013020124 | F10: 1.610902223 | G10: 1.607187591 | H10: 1.637581471
A11: ASFALTOS DILUÍDOS CM-30 | B11: 2009-01-01 | C11: 1.497052858 | D11: 1.504296346 | E11: 1.963097671 | F11: 1.524672247 | G11: 1.585137209 | H11: 1.564945876
A12: ASFALTOS DILUÍDOS CM-30 | B12: 2009-02-01 | C12: 1.42787112 | D12: 1.497693283 | E12: 1.981065098 | F12: 1.583490231 | G12: 1.595924062 | H12: 1.565451036
A13: ASFALTOS DILUÍDOS CM-30 | B13: 2009-03-01 | C13: 1.404941405 | D13: 1.497647987 | E13: 1.893430263 | F13: 1.52754782 | G13: 1.588720029 | H13: 1.532713147
A14: ASFALTOS DILUÍDOS CM-30 | B14: 2009-04-01 | C14: 1.410510748 | D14: 1.484826261 | E14: 1.909226429 | F14: 1.464149371 | G14: 1.553831928 | H14: 1.516717648
A15: ASFALTOS DILUÍDOS CM-30 | B15: 2009-05-01 | C15: 1.480355678 | D15: 1.466898928 | E15: 1.891590435 | F15: 1.435443718 | G15: 1.54161118 | H15: 1.537574371
A16: ASFALTOS DILUÍDOS CM-30 | B16: 2009-06-01 | C16: 1.580751039 | D16: 1.444888837 | E16: 1.842074119 | F16: 1.424264315 | G16: 1.501526696 | H16: 1.541315575
A17: ASFALTOS DILUÍDOS CM-30 | B17: 2009-07-01 | C17: 1.905432476 | D17: 1.482618211 | E17: 1.949046345 | F17: 1.584435299 | G17: 1.610310436 | H17: 1.651032523
A18: ASFALTOS DILUÍDOS CM-30 | B18: 2009-08-01 | C18: 1.716995184 | D18: 1.423854915 | E18: 1.712385478 | F18: 1.418000805 | G18: 1.520643497 | H18: 1.504911469
A19: ASFALTOS DILUÍDOS CM-30 | B19: 2009-09-01 | C19: 1.64329494 | D19: 1.445317761 | E19: 1.731518803 | F19: 1.419374251 | G19: 1.500735895 | H19: 1.50552312
A20: ASFALTOS DILUÍDOS CM-30 | B20: 2009-10-01 | C20: 1.588031924 | D20: 1.458932649 | E20: 1.762015056 | F20: 1.429024419 | G20: 1.513753831 | H20: 1.511681904
A21: ASFALTOS DILUÍDOS CM-30 | B21: 2009-11-01 | C21: 1.639348604 | D21: 1.449059777 | E21: 1.772650817 | F21: 1.434122677 | G21: 1.526043188 | H21: 1.499657392
A22: ASFALTOS DILUÍDOS CM-30 | B22: 2009-12-01 | C22: 1.664266853 | D22: 1.441966636 | E22: 1.890574802 | F22: 1.429077727 | G22: 1.520539334 | H22: 1.508864598
A23: ASFALTOS DILUÍDOS CM-30 | B23: 2010-01-01 | C23: 1.842506144 | D23: 1.454977129 | E23: 1.865022447 | F23: 1.414817608 | G23: 1.474450765 | H23: 1.497735227
A24: ASFALTOS DILUÍDOS CM-30 | B24: 2010-02-01 | C24: 1.709886915 | D24: 1.442956487 | E24: 1.919844741 | F24: 1.433146251 | G24: 1.500882448 | H24: 1.496542251
A25: ASFALTOS DILUÍDOS CM-30 | B25: 2010-03-01 | C25: 1.535743416 | D25: 1.448880499 | E25: 1.935062728 | F25: 1.435026116 | G25: 1.480618635 | H25: 1.486789802
A26: ASFALTOS DILUÍDOS CM-30 | B26: 2010-04-01 | C26: 1.710046479 | D26: 1.440300254 | E26: 1.911935961 | F26: 1.421102153 | G26: 1.481270937 | H26: 1.511086431
A27: ASFALTOS DILUÍDOS CM-30 | B27: 2010-05-01 | C27: 1.755610465 | D27: 1.435277221 | E27: 1.873293889 | F27: 1.406944432 | G27: 1.48177605 | H27: 1.537170565
A28: ASFALTOS DILUÍDOS CM-30 | B28: 2010-06-01 | C28: 1.602224314 | D28: 1.396004336 | E28: 1.731734721 | F28: 1.399996227 | G28: 1.49193962 | H28: 1.498073418
A29: ASFALTOS DILUÍDOS CM-30 | B29: 2010-07-01 | C29: 1.559901627 | D29: 1.381016708 | E29: 1.732688214 | F29: 1.402904856 | G29: 1.473854427 | H29: 1.490075269
A30: ASFALTOS DILUÍDOS CM-30 | B30: 2010-08-01 | C30: 1.526639389 | D30: 1.38817836 | E30: 1.738946087 | F30: 1.398751236 | G30: 1.455749849 | H30: 1.495828516
A31: ASFALTOS DILUÍDOS CM-30 | B31: 2010-09-01 | C31: 1.565378829 | D31: 1.408204664 | E31: 1.757027378 | F31: 1.411642875 | G31: 1.487257745 | H31: 1.512257128
A32: ASFALTOS DILUÍDOS CM-30 | B32: 2010-10-01 | C32: 1.481711294 | D32: 1.404357715 | E32: 1.751159947 | F32: 1.403489437 | G32: 1.469340847 | H32: 1.49988826
A33: ASFALTOS DILUÍDOS CM-30 | B33: 2010-11-01 | C33: 1.519267672 | D33: 1.410130904 | E33: 1.779405625 | F33: 1.421283822 | G33: 1.458559112 | H33: 1.481658635
A34: ASFALTOS DILUÍDOS CM-30 | B34: 2010-12-01 | C34: 1.559287556 | D34: 1.40982051 | E34: 1.825185618 | F34: 1.417673572 | G34: 1.473243884 | H34: 1.469113031
A35: ASFALTOS DILUÍDOS CM-30 | B35: 2011-01-01 | C35: 1.525923305 | D35: 1.445794092 | E35: 1.774600924 | F35: 1.403274235 | G35: 1.466002814 | H35: 1.457256066
A36: ASFALTOS DILUÍDOS CM-30 | B36: 2011-02-01 | C36: 1.552825112 | D36: 1.392094259 | E36: 1.763836123 | F36: 1.385194937 | G36: 1.44955884 | H36: 1.426250478
A37: ASFALTOS DILUÍDOS CM-30 | B37: 2011-03-01 | C37: 1.469219693 | D37: 1.369442916 | E37: 1.696017922 | F37: 1.353812804 | G37: 1.435170694 | H37: 1.400130249
A38: ASFALTOS DILUÍDOS CM-30 | B38: 2011-04-01 | C38: 1.470570262 | D38: 1.373220492 | E38: 1.650829394 | F38: 1.345928103 | G38: 1.42199894 | H38: 1.400493522
A39: ASFALTOS DILUÍDOS CM-30 | B39: 2011-05-01 | C39: 1.428528955 | D39: 1.322646267 | E39: 1.700380913 | F39: 1.345068163 | G39: 1.439361431 | H39: 1.428058019
A40: ASFALTOS DILUÍDOS CM-30 | B40: 2011-06-01 | C40: 1.407622163 | D40: 1.305708657 | E40: 1.741843669 | F40: 1.354620495 | G40: 1.399501693 | H40: 1.44029982
A41: ASFALTOS DILUÍDOS CM-30 | B41: 2011-07-01 | C41: 1.259234065 | D41: 1.312033305 | E41: 1.737489696 | F41: 1.33656388 | G41: 1.422474887 | H41: 1.420839252
A42: ASFALTOS DILUÍDOS CM-30 | B42: 2011-08-01 | C42: 1.470680061 | D42: 1.299778765 | E42: 1.727443485 | F42: 1.341477821 | G42: 1.353018352 | H42: 1.425675534
A43: ASFALTOS DILUÍDOS CM-30 | B43: 2011-09-01 | C43: 1.56132872 | D43: 1.321196084 | E43: 1.729821548 | F43: 1.357451483 | G43: 1.395684798 | H43: 1.455202413
A44: ASFALTOS DILUÍDOS CM-30 | B44: 2011-10-01 | C44: 1.520569722 | D44: 1.326218736 | E44: 1.71738046 | F44: 1.332691392 | G44: 1.3577774 | H44: 1.442295871
A45: ASFALTOS DILUÍDOS CM-30 | B45: 2011-11-01 | C45: 1.465886334 | D45: 1.337041154 | E45: 1.741004886 | F45: 1.345486103 | G45: 1.447580565 | H45: 1.445354137
A46: ASFALTOS DILUÍDOS CM-30 | B46: 2011-12-01 | C46: 1.470883899 | D46: 1.335587636 | E46: 1.778724141 | F46: 1.408293068 | G46: 1.428112306 | H46: 1.422418604
A47: ASFALTOS DILUÍDOS CM-30 | B47: 2012-01-01 | C47: 1.384955015 | D47: 1.350130156 | E47: 1.780783883 | F47: 1.421354107 | G47: 1.430352474 | H47: 1.394658167
A48: ASFALTOS DILUÍDOS CM-30 | B48: 2012-02-01 | C48: 1.332181678 | D48: 1.368143891 | E48: 1.741020394 | F48: 1.400200985 | G48: 1.425400986 | H48: 1.410605707
A49: ASFALTOS DILUÍDOS CM-30 | B49: 2012-03-01 | C49: 1.411621867 | D49: 1.349122214 | E49: 1.620096006 | F49: 1.393295764 | G49: 1.406130569 | H49: 1.409768786
A50: ASFALTOS DILUÍDOS CM-30 | B50: 2012-04-01 | C50: 1.549007912 | D50: 1.383976456 | E50: 1.640712752 | F50: 1.404716397 | G50: 1.440617793 | H50: 1.45608482
A51: ASFALTOS DILUÍDOS CM-30 | B51: 2012-05-01 | C51: 1.596178941 | D51: 1.386362272 | E51: 1.712061183 | F51: 1.39923955 | G51: 1.448350887 | H51: 1.498461969
A52: ASFALTOS DILUÍDOS CM-30 | B52: 2012-06-01 | C52: 1.701432576 | D52: 1.388053518 | E52: 1.740352007 | F52: 1.422118749 | G52: 1.449196072 | H52: 1.527722717
A53: ASFALTOS DILUÍDOS CM-30 | B53: 2012-07-01 | C53: 1.652026742 | D53: 1.39436857 | E53: 1.718644846 | F53: 1.439670261 | G53: 1.46187567 | H53: 1.523069159
A54: ASFALTOS DILUÍDOS CM-30 | B54: 2012-08-01 | C54: 1.689998835 | D54: 1.40333785 | E54: 1.741895041 | F54: 1.421723369 | G54: 1.445685799 | H54: 1.536533078
A55: ASFALTOS DILUÍDOS CM-30 | B55: 2012-09-01 | C55: 1.690177972 | D55: 1.421500003 | E55: 1.780920724 | F55: 1.445180432 | G55: 1.483645866 | H55: 1.549410653
A56: ASFALTOS DILUÍDOS CM-30 | B56: 2012-10-01 | C56: 1.574840342 | D56: 1.417066109 | E56: 1.794832036 | F56: 1.451304526 | G56: 1.482037109 | H56: 1.550631802
A57: ASFALTOS DILUÍDOS CM-30 | B57: 2012-11-01 | C57: 1.655163526 | D57: 1.455878748 | E57: 1.840129766 | F57: 1.461204615 | G57: 1.483499722 | H57: 1.552500776
A58: ASFALTOS DILUÍDOS CM-30 | B58: 2012-12-01 | C58: 1.714876125 | D58: 1.435854741 | E58: 1.804066573 | F58: 1.45222765 | G58: 1.509417648 | H58: 1.523411999
A59: ASFALTOS DILUÍDOS CM-30 | B59: 2013-01-01 | C59: 1.495776335 | D59: 1.449494588 | E59: 1.854050525 | F59: 1.44638752 | G59: 1.563753675 | H59: 1.502137259
A60: ASFALTOS DILUÍDOS CM-30 | B60: 2013-02-01 | C60: 1.635067666 | D60: 1.420609638 | E60: 1.731071498 | F60: 1.442746356 | G60: 1.461828405 | H60: 1.4739561
A61: ASFALTOS DILUÍDOS CM-30 | B61: 2013-03-01 | C61: 1.646229098 | D61: 1.413299983 | E61: 1.83828087 | F61: 1.450015152 | G61: 1.525760413 | H61: 1.506542904
A62: ASFALTOS DILUÍDOS CM-30 | B62: 2013-04-01 | C62: 1.581864474 | D62: 1.399189564 | E62: 1.793825113 | F62: 1.458704755 | G62: 1.551913702 | H62: 1.523623636
A63: ASFALTOS DILUÍDOS CM-30 | B63: 2013-05-01 | C63: 1.815646773 | D63: 1.390143517 | E63: 1.812783313 | F63: 1.44951052 | G63: 1.504233457 | H63: 1.549918592
A64: ASFALTOS DILUÍDOS CM-30 | B64: 2013-06-01 | C64: 1.631101583 | D64: 1.383186536 | E64: 1.816642105 | F64: 1.474232641 | G64: 1.503043689 | H64: 1.581049429
A65: ASFALTOS DILUÍDOS CM-30 | B65: 2013-07-01 | C65: 1.86596563 | D65: 1.422051117 | E65: 1.793072753 | F65: 1.498018808 | G65: 1.533391901 | H65: 1.59880513
A66: ASFALTOS DILUÍDOS CM-30 | B66: 2013-08-01 | C66: 1.700325546 | D66: 1.435094415 | E66: 1.821452614 | F66: 1.511722868 | G66: 1.530793596 | H66: 1.606176585
A67: ASFALTOS DILUÍDOS CM-30 | B67: 2013-09-01 | C67: 1.562873733 | D67: 1.472197748 | E67: 1.879842712 | F67: 1.542652867 | G67: 1.490667543 | H67: 1.627945893
A68: ASFALTOS DILUÍDOS CM-30 | B68: 2013-10-01 | C68: 1.648504013 | D68: 1.472152345 | E68: 1.825494997 | F68: 1.501177682 | G68: 1.48378912 | H68: 1.597538775
A69: ASFALTOS DILUÍDOS CM-30 | B69: 2013-11-01 | C69: 1.619179062 | D69: 1.486413317 | E69: 1.844012679 | F69: 1.496326809 | G69: 1.506096878 | H69: 1.581665844
A70: ASFALTOS DILUÍDOS CM-30 | B70: 2013-12-01 | C70: 1.633358293 | D70: 1.494818097 | E70: 1.897197176 | F70: 1.502864538 | G70: 1.517074296 | H70: 1.572475244
A71: ASFALTOS DILUÍDOS CM-30 | B71: 2014-01-01 | C71: 1.688311265 | D71: 1.494181305 | E71: 1.798355903 | F71: 1.484202293 | G71: 1.533353813 | H71: 1.542909737
A72: ASFALTOS DILUÍDOS CM-30 | B72: 2014-02-01 | C72: 1.598304434 | D72: 1.479706587 | E72: 1.814390215 | F72: 1.514829392 | G72: 1.522800588 | H72: 1.528970287
A73: ASFALTOS DILUÍDOS CM-30 | B73: 2014-03-01 | C73: 1.648287687 | D73: 1.472852501 | E73: 1.76657319 | F73: 1.513020673 | G73: 1.506185248 | H73: 1.530181178
A74: ASFALTOS DILUÍDOS CM-30 | B74: 2014-04-01 | C74: 1.534459987 | D74: 1.493898767 | E74: 1.757271278 | F74: 1.533021309 | G74: 1.524275274 | H74: 1.550566305
A75: ASFALTOS DILUÍDOS CM-30 | B75: 2014-05-01 | C75: 1.58658327 | D75: 1.490834685 | E75: 1.804339251 | F75: 1.501138131 | G75: 1.567043824 | H75: 1.586452272
A76: ASFALTOS DILUÍDOS CM-30 | B76: 2014-06-01 | C76: 1.658277164 | D76: 1.505801121 | E76: 1.839593445 | F76: 1.5068632 | G76: 1.523776953 | H76: 1.636070702
A77: ASFALTOS DILUÍDOS CM-30 | B77: 2014-07-01 | C77: 1.890299542 | D77: 1.500730514 | E77: 1.708277865 | F77: 1.487293964 | G77: 1.505956069 | H77: 1.587065158
A78: ASFALTOS DILUÍDOS CM-30 | B78: 2014-08-01 | C78: 1.632741832 | D78: 1.501945324 | E78: 1.671203189 | F78: 1.482359341 | G78: 1.506327366 | H78: 1.557910377
A79: ASFALTOS DILUÍDOS CM-30 | B79: 2014-09-01 | C79: 1.66956717 | D79: 1.546830427 | E79: 1.864797016 | F79: 1.496764585 | G79: 1.570533242 | H79: 1.639281057
A80: ASFALTOS DILUÍDOS CM-30 | B80: 2014-10-01 | C80: 1.742876916 | D80: 1.508978569 | E80: 1.746650466 | F80: 1.470773645 | G80: 1.454273462 | H80: 1.57912022
A81: ASFALTOS DILUÍDOS CM-30 | B81: 2014-11-01 | C81: 1.864723419 | D81: 1.57943059 | E81: 1.749156218 | F81: 1.465084479 | G81: 1.529147988 | H81: 1.601359821
A82: ASFALTOS DILUÍDOS CM-30 | B82: 2014-12-01 | C82: 1.812671914 | D82: 1.704844348 | E82: 1.963310066 | F82: 1.623676702 | G82: 1.649644659 | H82: 1.718826981
A83: ASFALTOS DILUÍDOS CM-30 | B83: 2015-01-01 | C83: 2.154807062 | D83: 2.023760447 | E83: 2.318863736 | F83: 1.866588967 | G83: 1.898380434 | H83: 2.007792032
A84: ASFALTOS DILUÍDOS CM-30 | B84: 2015-02-01 | C84: 2.260238625 | D84: 2.005673765 | E84: 2.393875762 | F84: 1.854519766 | G84: 1.927395107 | H84: 2.007653781
A85: ASFALTOS DILUÍDOS CM-30 | B85: 2015-03-01 | C85: 2.124176462 | D85: 1.968822849 | E85: 2.279643254 | F85: 1.887760911 | G85: 1.930217145 | H85: 1.984816916
A86: ASFALTOS DILUÍDOS CM-30 | B86: 2015-04-01 | C86: 2.030049505 | D86: 2.001506448 | E86: 2.379118903 | F86: 1.85245167 | G86: 1.949025254 | H86: 1.98064321
A87: ASFALTOS DILUÍDOS CM-30 | B87: 2015-05-01 | C87: 2.507271651 | D87: 1.946869908 | E87: 2.254758192 | F87: 1.807470001 | G87: 2.016929536 | H87: 2.005474234
A88: ASFALTOS DILUÍDOS CM-30 | B88: 2015-06-01 | C88: 2.248320042 | D88: 1.944259736 | E88: 2.314331796 | F88: 1.846998595 | G88: 1.968565125 | H88: 2.042581344
A89: ASFALTOS DILUÍDOS CM-30 | B89: 2015-07-01 | C89: 1.992222758 | D89: 1.992791635 | E89: 2.046769953 | F89: 1.782648603 | G89: 1.931671385 | H89: 1.942627362
A90: ASFALTOS DILUÍDOS CM-30 | B90: 2015-08-01 | C90: 2.307605931 | D90: 2.038089127 | E90: 2.252748105 | F90: 1.828097705 | G90: 1.939824481 | H90: 2.08193616
A91: ASFALTOS DILUÍDOS CM-30 | B91: 2015-09-01 | C91: 2.314289704 | D91: 2.095307531 | E91: 2.344561987 | F91: 1.942551091 | G91: 2.005352614 | H91: 2.168175541
A92: ASFALTOS DILUÍDOS CM-30 | B92: 2015-10-01 | C92: 2.329456663 | D92: 2.170570012 | E92: 2.43273012 | F92: 2.035624751 | G92: 2.110261148 | H92: 2.237533782
A93: ASFALTOS DILUÍDOS CM-30 | B93: 2015-11-01 | C93: 2.606056566 | D93: 2.437098304 | E93: 2.711612141 | F93: 2.280113896 | G93: 2.326446297 | H93: 2.474998781
A94: ASFALTOS DILUÍDOS CM-30 | B94: 2015-12-01 | C94: 2.635374006 | D94: 2.395920309 | E94: 2.693528386 | F94: 2.272528129 | G94: 2.330740659 | H94: 2.452848156
A95: ASFALTOS DILUÍDOS CM-30 | B95: 2016-01-01 | C95: 2.715863993 | D95: 2.373861647 | E95: 2.844670602 | F95: 2.263650658 | G95: 2.232631691 | H95: 2.400563394
A96: ASFALTOS DILUÍDOS CM-30 | B96: 2016-02-01 | C96: 2.80468316 | D96: 2.466846816 | E96: 2.791787007 | F96: 2.295637115 | G96: 2.346556173 | H96: 2.464348548
A97: ASFALTOS DILUÍDOS CM-30 | B97: 2016-03-01 | C97: 2.5805021 | D97: 2.470678753 | E97: 2.707688025 | F97: 2.235301999 | G97: 2.383115972 | H97: 2.423563924
A98: ASFALTOS DILUÍDOS CM-30 | B98: 2016-04-01 | C98: 2.942006312 | D98: 2.740742032 | E98: 2.759071855 | F98: 2.544439178 | G98: 2.710751632 | H98: 2.680274833
A99: ASFALTOS DILUÍDOS CM-30 | B99: 2016-05-01 | C99: 3.010579472 | D99: 2.650277047 | E99: 2.857121361 | F99: 2.575583152 | G99: 2.770413362 | H99: 2.70973327
A100: ASFALTOS DILUÍDOS CM-30 | B100: 2016-06-01 | C100: 2.909179844 | D100: 2.621385041 | E100: 2.943487281 | F100: 2.659109515 | G100: 2.684759555 | H100: 2.743619517
A101: ASFALTOS DILUÍDOS CM-30 | B101: 2016-07-01 | C101: 2.985740381 | D101: 2.591644045 | E101: 2.98927803 | F101: 2.604396599 | G101: 2.660884423 | H101: 2.745135539
A102: ASFALTOS DILUÍDOS CM-30 | B102: 2016-08-01 | C102: 2.935243919 | D102: 2.623917329 | E102: 2.970490854 | F102: 2.679486504 | G102: 2.727025649 | H102: 2.781385962
A103: ASFALTOS DILUÍDOS CM-30 | B103: 2016-09-01 | C103: 2.649136821 | D103: 2.521054851 | E103: 2.781583925 | F103: 2.51393313 | G103: 2.371271501 | H103: 2.595617128
A104: ASFALTOS DILUÍDOS CM-30 | B104: 2016-10-01 | C104: 2.626109257 | D104: 2.444469093 | E104: 2.781617873 | F104: 2.507383127 | G104: 2.38325399 | H104: 2.566999037
A105: ASFALTOS DILUÍDOS CM-30 | B105: 2016-11-01 | C105: 2.535087408 | D105: 2.374145527 | E105: 2.952768674 | F105: 2.481263765 | G105: 2.382206771 | H105: 2.542842366
A106: ASFALTOS DILUÍDOS CM-30 | B106: 2016-12-01 | C106: 2.50039107 | D106: 2.253413483 | E106: 3.038519458 | F106: 2.589438892 | G106: 2.395593424 | H106: 2.476439295
A107: ASFALTOS DILUÍDOS CM-30 | B107: 2017-01-01 | C107: 2.392875504 | D107: 2.232695674 | E107: 3.089080971 | F107: 2.535744039 | G107: 2.378694833 | H107: 2.374216192
A108: ASFALTOS DILUÍDOS CM-30 | B108: 2017-02-01 | C108: 2.68039414 | D108: 2.271897225 | E108: 2.764408032 | F108: 2.573933685 | G108: 2.384644398 | H108: 2.470721466
A109: ASFALTOS DILUÍDOS CM-30 | B109: 2017-03-01 | C109: 2.23884121 | D109: 2.386958079 | E109: 2.667220252 | F109: 2.372165947 | G109: 2.30121887 | H109: 2.378796986
A110: ASFALTOS DILUÍDOS CM-30 | B110: 2017-04-01 | C110: 2.420191398 | D110: 2.307969596 | E110: 2.794093014 | F110: 2.258409912 | G110: 2.256434297 | H110: 2.380268484
A111: ASFALTOS DILUÍDOS CM-30 | B111: 2017-05-01 | C111: 2.432106692 | D111: 2.167919128 | E111: 2.699836936 | F111: 2.255387192 | G111: 2.204026958 | H111: 2.361515909
A112: ASFALTOS DILUÍDOS CM-30 | B112: 2017-06-01 | C112: 2.428301776 | D112: 2.181938689 | E112: 2.756672055 | F112: 2.234549022 | G112: 2.305778546 | H112: 2.44553453
A113: ASFALTOS DILUÍDOS CM-30 | B113: 2017-07-01 | C113: 2.453752061 | D113: 2.218075334 | E113: 2.694625022 | F113: 2.414329247 | G113: 2.269601102 | H113: 2.473436106
A114: ASFALTOS DILUÍDOS CM-30 | B114: 2017-08-01 | C114: 2.447930976 | D114: 2.153112031 | E114: 2.595349952 | F114: 2.302919065 | G114: 2.170148667 | H114: 2.380876423
A115: ASFALTOS DILUÍDOS CM-30 | B115: 2017-09-01 | C115: 2.494551504 | D115: 2.14243989 | E115: 2.623166503 | F115: 2.371308095 | G115: 2.303698507 | H115: 2.393542204
A116: ASFALTOS DILUÍDOS CM-30 | B116: 2017-10-01 | C116: 2.349953944 | D116: 2.18056004 | E116: 2.614160957 | F116: 2.415254962 | G116: 2.20079573 | H116: 2.367947121
A117: ASFALTOS DILUÍDOS CM-30 | B117: 2017-11-01 | C117: 2.670126991 | D117: 2.433169195 | E117: 2.908627464 | F117: 2.58469482 | G117: 2.415192709 | H117: 2.602101348
A118: ASFALTOS DILUÍDOS CM-30 | B118: 2017-12-01 | C118: 2.587352645 | D118: 2.425358882 | E118: 2.906633765 | F118: 2.602890298 | G118: 2.42288976 | H118: 2.531764464
A119: ASFALTOS DILUÍDOS CM-30 | B119: 2018-01-01 | C119: 2.950360755 | D119: 2.662862923 | E119: 2.875953993 | F119: 2.620738484 | G119: 2.646955252 | H119: 2.735956369
A120: ASFALTOS DILUÍDOS CM-30 | B120: 2018-02-01 | C120: 2.677899567 | D120: 2.672498164 | E120: 2.942595474 | F120: 2.62043113 | G120: 2.567885662 | H120: 2.668369933
A121: ASFALTOS DILUÍDOS CM-30 | B121: 2018-03-01 | C121: 2.733363025 | D121: 2.589050022 | E121: 2.809172556 | F121: 2.561928393 | G121: 2.575946067 | H121: 2.634876584
A122: ASFALTOS DILUÍDOS CM-30 | B122: 2018-04-01 | C122: 2.75780112 | D122: 2.669553602 | E122: 2.773908242 | F122: 2.59547006 | G122: 2.556042394 | H122: 2.6643302
A123: ASFALTOS DILUÍDOS CM-30 | B123: 2018-05-01 | C123: 2.841213362 | D123: 2.672025877 | E123: 2.884501482 | F123: 2.686718021 | G123: 2.736485103 | H123: 2.77737896
A124: ASFALTOS DILUÍDOS CM-30 | B124: 2018-06-01 | C124: 3.008444789 | D124: 2.919605178 | E124: 3.158454886 | F124: 2.84673108 | G124: 2.953523993 | H124: 2.982291635
A125: ASFALTOS DILUÍDOS CM-30 | B125: 2018-07-01 | C125: 3.268237549 | D125: 3.036524094 | E125: 3.399360399 | F125: 3.026467598 | G125: 3.19779631 | H125: 3.164126546
A126: ASFALTOS DILUÍDOS CM-30 | B126: 2018-08-01 | C126: 3.56441315 | D126: 3.415193769 | E126: 3.707706206 | F126: 3.425079349 | G126: 3.356722461 | H126: 3.515558112
A127: ASFALTOS DILUÍDOS CM-30 | B127: 2018-09-01 | C127: 3.173913778 | D127: 3.445064118 | E127: 3.73526324 | F127: 3.385816186 | G127: 3.607309454 | H127: 3.483238429
A128: ASFALTOS DILUÍDOS CM-30 | B128: 2018-10-01 | C128: 3.487778119 | D128: 3.460508804 | E128: 3.721444057 | F128: 3.432525565 | G128: 3.60602088 | H128: 3.545390344
A129: ASFALTOS DILUÍDOS CM-30 | B129: 2018-11-01 | C129: 4.047272484 | D129: 3.814893312 | E129: 4.280131586 | F129: 4.178126777 | G129: 3.967681367 | H129: 3.990147183
A130: ASFALTOS DILUÍDOS CM-30 | B130: 2018-12-01 | C130: 3.951491146 | D130: 3.967113195 | E130: 4.341144202 | F130: 3.916766066 | G130: 3.911993357 | H130: 3.999742654
A131: ASFALTOS DILUÍDOS CM-30 | B131: 2019-01-01 | C131: 3.796855325 | D131: 3.870018889 | E131: 4.201901762 | F131: 3.954196997 | G131: 3.976786028 | H131: 3.933951911
A132: ASFALTOS DILUÍDOS CM-30 | B132: 2019-02-01 | C132: 3.516584073 | D132: 4.090361178 | E132: 4.498422953 | F132: 4.469942475 | G132: 4.254590254 | H132: 4.188544679
A133: ASFALTOS DILUÍDOS CM-30 | B133: 2019-03-01 | C133: 4.216758117 | D133: 4.361910728 | E133: 4.907194889 | F133: 4.398717729 | G133: 4.290823922 | H133: 4.360295279
A134: ASFALTOS DILUÍDOS CM-30 | B134: 2019-04-01 | C134: 4.281648205 | D134: 4.234661428 | E134: 4.531627215 | F134: 4.43722653 | G134: 4.466881471 | H134: 4.38082044
A135: ASFALTOS DILUÍDOS CM-30 | B135: 2019-05-01 | C135: 4.287644659 | D135: 4.190699738 | E135: 4.857910872 | F135: 4.267461963 | G135: 4.633806379 | H135: 4.366402151
A136: ASFALTOS DILUÍDOS CM-30 | B136: 2019-06-01 | C136: 4.475609892 | D136: 3.965052934 | E136: 4.66272934 | F136: 4.350600604 | G136: 4.211229921 | H136: 4.319323669
A137: ASFALTOS DILUÍDOS CM-30 | B137: 2019-07-01 | C137: 4.394498989 | D137: 4.058039305 | E137: 4.834221945 | F137: 4.094659414 | G137: 4.233003281 | H137: 4.346977757
A138: ASFALTOS DILUÍDOS CM-30 | B138: 2019-08-01 | C138: 4.48173504 | D138: 3.910662496 | E138: 4.576329081 | F138: 4.11161654 | G138: 4.255419985 | H138: 4.258345083
A139: ASFALTOS DILUÍDOS CM-30 | B139: 2019-09-01 | C139: 4.439578796 | D139: 3.859904896 | E139: 4.495256968 | F139: 4.111321475 | G139: 4.117359152 | H139: 4.251607085
A140: ASFALTOS DILUÍDOS CM-30 | B140: 2019-10-01 | C140: 4.335888631 | D140: 3.772324962 | E140: 4.459242357 | F140: 4.056084115 | G140: 3.942458011 | H140: 4.07740702
A141: ASFALTOS DILUÍDOS CM-30 | B141: 2019-11-01 | C141: 4.316238692 | D141: 3.910245509 | E141: 4.581841077 | F141: 4.07902404 | G141: 4.106621274 | H141: 4.094561212
A142: ASFALTOS DILUÍDOS CM-30 | B142: 2019-12-01 | C142: 4.199435972 | D142: 3.980119663 | E142: 4.673774805 | F142: 4.434268142 | G142: 3.986410312 | H142: 4.164691616
A143: ASFALTOS DILUÍDOS CM-30 | B143: 2020-01-01 | C143: 3.59298003 | D143: 3.895320617 | E143: 4.685420623 | F143: 4.387074674 | G143: 4.124467668 | H143: 4.053338937
A144: ASFALTOS DILUÍDOS CM-30 | B144: 2020-02-01 | C144: 3.642667016 | D144: 3.877395187 | E144: 4.438194543 | F144: 3.699944607 | G144: 3.778164011 | H144: 3.839010438
A145: ASFALTOS DILUÍDOS CM-30 | B145: 2020-03-01 | C145: 4.676668339 | D145: 3.791138977 | E145: 4.289222343 | F145: 3.718402734 | G145: 3.60908619 | H145: 3.93117068
A146: ASFALTOS DILUÍDOS CM-30 | B146: 2020-04-01 | C146: 4.313362837 | D146: 3.6957655 | E146: 4.255395321 | F146: 3.865895531 | G146: 3.732253382 | H146: 3.964125211
A147: ASFALTOS DILUÍDOS CM-30 | B147: 2020-05-01 | C147: 3.249134658 | D147: 3.637769912 | E147: 4.113544882 | F147: 3.760550026 | G147: 3.710618099 | H147: 3.65617504
A148: ASFALTOS DILUÍDOS CM-30 | B148: 2020-06-01 | C148: 4.017903076 | D148: 3.567031492 | E148: 4.277369171 | F148: 3.937886485 | G148: 3.625830069 | H148: 3.924524506
A149: ASFALTOS DILUÍDOS CM-30 | B149: 2020-07-01 | C149: 3.840497509 | D149: 3.51327048 | E149: 4.21549069 | F149: 3.954223886 | G149: 3.688841275 | H149: 3.843774448
A150: ASFALTOS DILUÍDOS CM-30 | B150: 2020-08-01 | C150: 4.174467203 | D150: 3.465394219 | E150: 4.277710211 | F150: 4.06746494 | G150: 3.62858863 | H150: 3.947166917
A151: ASFALTOS DILUÍDOS CM-30 | B151: 2020-09-01 | C151: 4.167371331 | D151: 3.746360816 | E151: 4.167424356 | F151: 3.795621791 | G151: 3.627729935 | H151: 3.973129945
A152: ASFALTOS DILUÍDOS CM-30 | B152: 2020-10-01 | C152: 4.408099527 | D152: 3.718989878 | E152: 4.278979192 | F152: 4.008746906 | G152: 3.591048183 | H152: 4.03964377
A153: ASFALTOS DILUÍDOS CM-30 | B153: 2020-11-01 | C153: 4.056306006 | D153: 3.969209281 | E153: 4.547900893 | F153: 4.27945542 | G153: 3.973347244 | H153: 4.175826149
A154: ASFALTOS DILUÍDOS CM-30 | B154: 2020-12-01 | C154: 4.132064138 | D154: 3.851632751 | E154: 4.426704386 | F154: 3.906236422 | G154: 3.8709398 | H154: 4.035347374
A155: ASFALTOS DILUÍDOS CM-30 | B155: 2021-01-01 | C155: 3.489836333 | D155: 3.951525937 | E155: 4.628269702 | F155: 4.011577011 | G155: 3.935136638 | H155: 3.917092391
A156: ASFALTOS DILUÍDOS CM-30 | B156: 2021-02-01 | C156: 4.099318116 | D156: 4.267109523 | E156: 4.832061615 | F156: 4.414202706 | G156: 4.149048932 | H156: 4.26819704
A157: ASFALTOS DILUÍDOS CM-30 | B157: 2021-03-01 | C157: 4.528355792 | D157: 4.239831731 | E157: 4.926314562 | F157: 4.269697839 | G157: 4.130655409 | H157: 4.377833785
A158: ASFALTOS DILUÍDOS CM-30 | B158: 2021-04-01 | C158: 4.349271867 | D158: 4.086995154 | E158: 4.477597522 | F158: 4.156113398 | G158: 4.044189822 | H158: 4.253361798
A159: ASFALTOS DILUÍDOS CM-30 | B159: 2021-05-01 | C159: 4.488889413 | D159: 4.707945815 | E159: 5.101489686 | F159: 4.784034896 | G159: 4.523986615 | H159: 4.790548085
A160: ASFALTOS DILUÍDOS CM-30 | B160: 2021-06-01 | C160: 4.010467711 | D160: 4.479592126 | E160: 5.113041212 | F160: 4.779739905 | G160: 4.721214307 | H160: 4.764890884
A161: ASFALTOS DILUÍDOS CM-30 | B161: 2021-07-01 | C161: 4.752234128 | D161: 4.559350506 | E161: 5.004758283 | F161: 4.80272972 | G161: 4.748550678 | H161: 4.817586047
A162: ASFALTOS DILUÍDOS CM-30 | B162: 2021-08-01 | C162: 5.085284532 | D162: 4.772501255 | E162: 5.198537142 | F162: 5.244735259 | G162: 4.76131175 | H162: 5.0981692
A163: ASFALTOS DILUÍDOS CM-30 | B163: 2021-09-01 | C163: 5.110300267 | D163: 4.538072365 | E163: 5.241721185 | F163: 5.017144197 | G163: 4.862861245 | H163: 5.016958886
A164: ASFALTOS DILUÍDOS CM-30 | B164: 2021-10-01 | C164: 5.080697261 | D164: 4.66826742 | E164: 5.119544199 | F164: 5.384779065 | G164: 4.658516432 | H164: 5.021294312
A165: ASFALTOS DILUÍDOS CM-30 | B165: 2021-11-01 | C165: 5.436518753 | D165: 5.08776781 | E165: 5.150063985 | F165: 5.634257884 | G165: 5.174530131 | H165: 5.228141289
A166: ASFALTOS DILUÍDOS CM-30 | B166: 2021-12-01 | C166: 5.184291386 | D166: 4.975486975 | E166: 5.572122251 | F166: 6.135655205 | G166: 5.01180992 | H166: 5.339565801
A167: ASFALTOS DILUÍDOS CM-30 | B167: 2022-01-01 | C167: 4.928191974 | D167: 5.023555623 | E167: 6.018407512 | F167: 5.214773026 | G167: 5.481979244 | H167: 5.250789679
A168: ASFALTOS DILUÍDOS CM-30 | B168: 2022-02-01 | C168: 5.545684189 | D168: 5.708628413 | E168: 6.011065894 | F168: 4.8651 | G168: 5.763367147 | H168: 5.736057428
A169: ASFALTOS DILUÍDOS CM-30 | B169: 2022-03-01 | C169: 6.326844735 | D169: 5.644687904 | E169: 5.930807225 | F169: 6.181141143 | G169: 5.498041682 | H169: 5.922781038
A170: ASFALTOS DILUÍDOS CM-30 | B170: 2022-04-01 | C170: 5.974220681 | D170: 5.832747324 | E170: 6.206692615 | F170: 5.720329997 | G170: 6.17800291 | H170: 6.012354229
A171: ASFALTOS DILUÍDOS CM-30 | B171: 2022-05-01 | C171: 5.354015586 | D171: 5.464335309 | E171: 6.007611639 | F171: 5.995095583 | G171: 5.49095009 | H171: 5.670722744
A172: ASFALTOS DILUÍDOS CM-30 | B172: 2022-06-01 | C172: 5.802443798 | D172: 5.316964203 | E172: 5.25267889 | F172: 5.813931518 | G172: 5.644996328 | H172: 5.469498687
A173: ASFALTOS DILUÍDOS CM-30 | B173: 2022-07-01 | C173: 5.965614765 | D173: 5.829314879 | E173: 5.919099711 | F173: 5.742484775 | G173: 5.674430543 | H173: 5.862020702
A174: ASFALTOS DILUÍDOS CM-30 | B174: 2022-08-01 | C174: 6.424230463 | D174: 5.758256878 | E174: 5.752352843 | F174: 5.791905352 | G174: 5.31271724 | H174: 5.823186051
A175: ASFALTOS DILUÍDOS CM-30 | B175: 2022-09-01 | C175: 5.540097074 | D175: 5.609921619 | E175: 5.963592489 | F175: 5.302181194 | G175: 4.977929161 | H175: 5.699429921
A176: ASFALTOS DILUÍDOS CM-30 | B176: 2022-10-01 | C176: 4.785670999 | D176: 4.727521094 | E176: 5.339105147 | F176: 4.851160007 | G176: 4.532580513 | H176: 5.041661715
A177: ASFALTOS DILUÍDOS CM-30 | B177: 2022-11-01 | C177: 7.765855923 | D177: 4.775654982 | E177: 5.237626127 | F177: 4.636383138 | G177: 4.460593179 | H177: 5.074993862
A178: ASFALTOS DILUÍDOS CM-30 | B178: 2022-12-01 | C178: 4.65725 | D178: 4.966905362 | E178: 5.655161554 | F178: 4.840935672 | G178: 4.661007861 | H178: 5.11324949
A179: ASFALTOS DILUÍDOS CM-30 | B179: 2023-01-01 | C179: 4.948950319 | D179: 5.056264922 | E179: 5.359597966 | F179: 4.426497959 | G179: 4.103267888 | H179: 4.715605129
A180: ASFALTOS DILUÍDOS CM-30 | B180: 2023-02-01 | C180: 5.407494667 | D180: 4.335771195 | E180: 4.746646601 | F180: 4.674884727 | G180: 4.014547173 | H180: 4.417800736
A181: ASFALTOS DILUÍDOS CM-30 | B181: 2023-03-01 | C181: 4.99131 | D181: 4.01354912 | E181: 4.74625028 | F181: 4.08071937 | G181: 4.082484954 | H181: 4.270345723
A182: ASFALTOS DILUÍDOS CM-30 | B182: 2023-04-01 | C182: 4.438479015 | D182: 4.094201354 | E182: 5.135816186 | F182: 4.368265095 | G182: 3.859308149 | H182: 4.153818797
A183: ASFALTOS DILUÍDOS CM-30 | B183: 2023-05-01 | C183: 5.018589297 | D183: 4.506282643 | E183: 5.616638293 | F183: 4.034756925 | G183: 4.063701717 | H183: 4.686492725
A184: ASFALTOS DILUÍDOS CM-30 | B184: 2023-06-01 | C184: 4.439644526 | D184: 4.495805354 | E184: 5.228174524 | F184: 3.772028745 | G184: 4.009042073 | H184: 4.588045148
A185: ASFALTOS DILUÍDOS CM-30 | B185: 2023-07-01 | C185: 4.360399352 | D185: 4.250187634 | E185: 6.188049155 | F185: 3.699216781 | G185: 4.315773768 | H185: 4.790717553
A186: ASFALTOS DILUÍDOS CM-30 | B186: 2023-08-01 | C186: 4.043215999 | D186: 4.100901709 | E186: 5.414198228 | F186: 3.964297949 | G186: 4.055989778 | H186: 4.607810697
A187: ASFALTOS DILUÍDOS CM-30 | B187: 2023-09-01 | C187: 5.69501625 | D187: 4.358586276 | E187: 5.187252517 | F187: 4.112508656 | G187: 4.211646236 | H187: 4.748640211
A188: ASFALTOS DILUÍDOS CM-30 | B188: 2023-10-01 | C188: 5.685185 | D188: 4.294075647 | E188: 4.912919476 | F188: 4.365095101 | G188: 4.257370162 | H188: 4.609445905
A189: ASFALTOS DILUÍDOS CM-30 | B189: 2023-11-01 | C189: 4.815085397 | D189: 4.345599447 | E189: 5.404502747 | F189: 4.045271104 | G189: 4.164697405 | H189: 4.781498943
A190: ASFALTOS DILUÍDOS CM-30 | B190: 2023-12-01 | C190: 5.411492308 | D190: 4.700043896 | E190: 5.306415734 | F190: 4.313216862 | G190: 4.188732062 | H190: 4.664845353
A191: ASFALTOS DILUÍDOS CM-30 | B191: 2024-01-01 | C191: 3.716178391 | D191: 4.395163811 | E191: 4.888126947 | F191: 3.977196797 | G191: 4.057095331 | H191: 4.290228903
A192: ASFALTOS DILUÍDOS CM-30 | B192: 2024-02-01 | C192: 5.349588571 | D192: 4.281881871 | E192: 5.36118056 | F192: 4.287786155 | G192: 4.151112946 | H192: 4.366194996
A193: ASFALTOS DILUÍDOS CM-30 | B193: 2024-03-01 | C193: 6.437624165 | D193: 4.512948358 | E193: 4.994035932 | F193: 4.680610304 | G193: 4.197388123 | H193: 4.725137967
A194: ASFALTOS DILUÍDOS CM-30 | B194: 2024-04-01 | C194: 6.524010018 | D194: 5.333668875 | E194: 5.011370357 | F194: 3.991999626 | G194: 4.15116124 | H194: 4.439406986
A195: ASFALTOS DILUÍDOS CM-30 | B195: 2024-05-01 | C195: 6.61993633 | D195: *** | E195: 5.21538288 | F195: 4.24855796 | G195: 4.478170767 | H195: 4.960078568
A196: ASFALTOS DILUÍDOS CM-30 | B196: 2024-06-01 | C196: 6.461820806 | D196: 4.288169263 | E196: 4.921606124 | F196: 4.517339741 | G196: 4.897585787 | H196: 4.922850803
A197: ASFALTOS DILUÍDOS CM-30 | B197: 2024-07-01 | C197: 6.120612239 | D197: 4.599255433 | E197: 5.497451069 | F197: 4.667838533 | G197: 4.514452653 | H197: 4.962740397
A198: ASFALTOS DILUÍDOS CM-30 | B198: 2024-08-01 | C198: 4.993225349 | D198: 4.428025283 | E198: 5.661947528 | F198: 4.958688154 | G198: 4.60903985 | H198: 5.143625042
A199: ASFALTOS DILUÍDOS CM-30 | B199: 2024-09-01 | C199: 6.554494856 | D199: 4.508326987 | E199: 5.819155159 | F199: 5.012107159 | G199: 4.596016256 | H199: 5.205694528
A200: ASFALTOS DILUÍDOS CM-30 | B200: 2024-10-01 | C200: 4.99217156 | D200: 4.867223371 | E200: 5.762705278 | F200: 4.908511444 | G200: 4.687758332 | H200: 5.077992426
A201: ASFALTOS DILUÍDOS CM-30 | B201: 2024-11-01 | C201: 6.103818377 | D201: 4.655198914 | E201: 5.505517561 | F201: 4.665170771 | G201: 4.558090866 | H201: 4.839804883
A202: ASFALTOS DILUÍDOS CM-30 | B202: 2024-12-01 | C202: 5.653116406 | D202: 4.621474651 | E202: 5.960894123 | F202: 4.849592977 | G202: 4.601260181 | H202: 4.838978355
A203: ASFALTOS DILUÍDOS CM-30 | B203: 2025-01-01 | C203: 6.087525 | D203: 5.336506141 | E203: 5.738529982 | F203: 5.60387 | G203: 4.653549092 | H203: 4.948881966
A204: ASFALTOS DILUÍDOS CM-30 | B204: 2025-02-01 | C204: 4.577817305 | D204: 4.987171059 | E204: 5.962615967 | F204: 5.074821011 | G204: 4.766997534 | H204: 4.911084425
... 4924 more rows

Sheet Curva ABC (hidden)
B2: Item | C2: Descrição | D2: Total R$ | E2: % individual | F2: % acumul. | G2: Classe | I2: Onde: | J2: A <= | K2: 0.75
A3: 1 | B3: =VLOOKUP(A3,#REF!,2,0) ->  | C3: =VLOOKUP(B3,#REF!,4,0) ->  | D3: =VLOOKUP(B3,#REF!,13,0) ->  | E3: =D3/#REF! ->  | F3: =E3 ->  | G3: =IF(F3<=$K$2,"A",IF(AND(F3<=$L$3,F3>$J$3),"B",IF(F3>$K$4,"C"))) ->  | J3: 0.75 | K3: < B <= | L3: 0.95
A4: 2 | B4: =VLOOKUP(A4,#REF!,2,0) ->  | C4: =VLOOKUP(B4,#REF!,4,0) ->  | D4: =VLOOKUP(B4,#REF!,13,0) ->  | E4: =D4/#REF! ->  | F4: =F3+E4 ->  | G4: =IF(F4<=$K$2,"A",IF(AND(F4<=$L$3,F4>$J$3),"B",IF(F4>$K$4,"C"))) ->  | J4: C > | K4: 0.95
A5: 3 | B5: =VLOOKUP(A5,#REF!,2,0) ->  | C5: =VLOOKUP(B5,#REF!,4,0) ->  | D5: =VLOOKUP(B5,#REF!,13,0) ->  | E5: =D5/#REF! ->  | F5: =F4+E5 ->  | G5: =IF(F5<=$K$2,"A",IF(AND(F5<=$L$3,F5>$J$3),"B",IF(F5>$K$4,"C"))) -> 
A6: 4 | B6: =VLOOKUP(A6,#REF!,2,0) ->  | C6: =VLOOKUP(B6,#REF!,4,0) ->  | D6: =VLOOKUP(B6,#REF!,13,0) ->  | E6: =D6/#REF! -> 
A7: 5 | B7: =VLOOKUP(A7,#REF!,2,0) ->  | C7: =VLOOKUP(B7,#REF!,4,0) ->  | D7: =VLOOKUP(B7,#REF!,13,0) ->  | E7: =D7/#REF! -> 
A8: 6 | B8: =VLOOKUP(A8,#REF!,2,0) ->  | C8: =VLOOKUP(B8,#REF!,4,0) ->  | D8: =VLOOKUP(B8,#REF!,13,0) ->  | E8: =D8/#REF! -> 
A9: 7 | B9: =VLOOKUP(A9,#REF!,2,0) ->  | C9: =VLOOKUP(B9,#REF!,4,0) ->  | D9: =VLOOKUP(B9,#REF!,13,0) ->  | E9: =D9/#REF! -> 
A10: 8 | B10: =VLOOKUP(A10,#REF!,2,0) ->  | C10: =VLOOKUP(B10,#REF!,4,0) ->  | D10: =VLOOKUP(B10,#REF!,13,0) ->  | E10: =D10/#REF! -> 
A11: 9 | B11: =VLOOKUP(A11,#REF!,2,0) ->  | C11: =VLOOKUP(B11,#REF!,4,0) ->  | D11: =VLOOKUP(B11,#REF!,13,0) ->  | E11: =D11/#REF! -> 
A12: 10 | B12: =VLOOKUP(A12,#REF!,2,0) ->  | C12: =VLOOKUP(B12,#REF!,4,0) ->  | D12: =VLOOKUP(B12,#REF!,13,0) ->  | E12: =D12/#REF! -> 
A13: 11 | B13: =VLOOKUP(A13,#REF!,2,0) ->  | C13: =VLOOKUP(B13,#REF!,4,0) ->  | D13: =VLOOKUP(B13,#REF!,13,0) ->  | E13: =D13/#REF! -> 
A14: 12 | B14: =VLOOKUP(A14,#REF!,2,0) ->  | C14: =VLOOKUP(B14,#REF!,4,0) ->  | D14: =VLOOKUP(B14,#REF!,13,0) ->  | E14: =D14/#REF! -> 
A15: 13 | B15: =VLOOKUP(A15,#REF!,2,0) ->  | C15: =VLOOKUP(B15,#REF!,4,0) ->  | D15: =VLOOKUP(B15,#REF!,13,0) ->  | E15: =D15/#REF! -> 
A16: 14 | B16: =VLOOKUP(A16,#REF!,2,0) ->  | C16: =VLOOKUP(B16,#REF!,4,0) ->  | D16: =VLOOKUP(B16,#REF!,13,0) ->  | E16: =D16/#REF! -> 
A17: 15 | B17: =VLOOKUP(A17,#REF!,2,0) ->  | C17: =VLOOKUP(B17,#REF!,4,0) ->  | D17: =VLOOKUP(B17,#REF!,13,0) ->  | E17: =D17/#REF! -> 
A18: 16 | B18: =VLOOKUP(A18,#REF!,2,0) ->  | C18: =VLOOKUP(B18,#REF!,4,0) ->  | D18: =VLOOKUP(B18,#REF!,13,0) ->  | E18: =D18/#REF! -> 
A19: 17 | B19: =VLOOKUP(A19,#REF!,2,0) ->  | C19: =VLOOKUP(B19,#REF!,4,0) ->  | D19: =VLOOKUP(B19,#REF!,13,0) ->  | E19: =D19/#REF! -> 
A20: 18 | B20: =VLOOKUP(A20,#REF!,2,0) ->  | C20: =VLOOKUP(B20,#REF!,4,0) ->  | D20: =VLOOKUP(B20,#REF!,13,0) ->  | E20: =D20/#REF! -> 
A21: 19 | B21: =VLOOKUP(A21,#REF!,2,0) ->  | C21: =VLOOKUP(B21,#REF!,4,0) ->  | D21: =VLOOKUP(B21,#REF!,13,0) ->  | E21: =D21/#REF! -> 
A22: 20 | B22: =VLOOKUP(A22,#REF!,2,0) ->  | C22: =VLOOKUP(B22,#REF!,4,0) ->  | D22: =VLOOKUP(B22,#REF!,13,0) ->  | E22: =D22/#REF! -> 
A23: 21 | B23: =VLOOKUP(A23,#REF!,2,0) ->  | C23: =VLOOKUP(B23,#REF!,4,0) ->  | D23: =VLOOKUP(B23,#REF!,13,0) ->  | E23: =D23/#REF! -> 
A24: 22 | B24: =VLOOKUP(A24,#REF!,2,0) ->  | C24: =VLOOKUP(B24,#REF!,4,0) ->  | D24: =VLOOKUP(B24,#REF!,13,0) ->  | E24: =D24/#REF! -> 
A25: 23 | B25: =VLOOKUP(A25,#REF!,2,0) ->  | C25: =VLOOKUP(B25,#REF!,4,0) ->  | D25: =VLOOKUP(B25,#REF!,13,0) ->  | E25: =D25/#REF! -> 
A26: 24 | B26: =VLOOKUP(A26,#REF!,2,0) ->  | C26: =VLOOKUP(B26,#REF!,4,0) ->  | D26: =VLOOKUP(B26,#REF!,13,0) ->  | E26: =D26/#REF! -> 
A27: 25 | B27: =VLOOKUP(A27,#REF!,2,0) ->  | C27: =VLOOKUP(B27,#REF!,4,0) ->  | D27: =VLOOKUP(B27,#REF!,13,0) ->  | E27: =D27/#REF! -> 
A28: 26 | B28: =VLOOKUP(A28,#REF!,2,0) ->  | C28: =VLOOKUP(B28,#REF!,4,0) ->  | D28: =VLOOKUP(B28,#REF!,13,0) ->  | E28: =D28/#REF! ->  | F28: =F27+E28 ->  | G28: =IF(F28<=$K$2,"A",IF(AND(F28<=$L$3,F28>$J$3),"B",IF(F28>$K$4,"C"))) -> 
A29: 27 | B29: =VLOOKUP(A29,#REF!,2,0) ->  | C29: =VLOOKUP(B29,#REF!,4,0) ->  | D29: =VLOOKUP(B29,#REF!,13,0) ->  | E29: =D29/#REF! -> 
A30: 28 | B30: =VLOOKUP(A30,#REF!,2,0) ->  | C30: =VLOOKUP(B30,#REF!,4,0) ->  | D30: =VLOOKUP(B30,#REF!,13,0) ->  | E30: =D30/#REF! -> 
A31: 29 | B31: =VLOOKUP(A31,#REF!,2,0) ->  | C31: =VLOOKUP(B31,#REF!,4,0) ->  | D31: =VLOOKUP(B31,#REF!,13,0) ->  | E31: =D31/#REF! -> 
A32: 30 | B32: =VLOOKUP(A32,#REF!,2,0) ->  | C32: =VLOOKUP(B32,#REF!,4,0) ->  | D32: =VLOOKUP(B32,#REF!,13,0) ->  | E32: =D32/#REF! -> 
A33: 31 | B33: =VLOOKUP(A33,#REF!,2,0) ->  | C33: =VLOOKUP(B33,#REF!,4,0) ->  | D33: =VLOOKUP(B33,#REF!,13,0) ->  | E33: =D33/#REF! -> 
A34: 32 | B34: =VLOOKUP(A34,#REF!,2,0) ->  | C34: =VLOOKUP(B34,#REF!,4,0) ->  | D34: =VLOOKUP(B34,#REF!,13,0) ->  | E34: =D34/#REF! -> 

Sheet MATERIAL SICRO
A1: CGCIT | B1: SISTEMA DE CUSTOS REFERENCIAIS DE OBRAS - SICRO | D1: DNIT
B2: Piauí - Julho/2025
A3: Código | B3: Descrição | C3: Unidade | D3: Preço Unitário (R$)
A4: M0003 | B4: Aço CA 25 | C4: kg | D4: 6.835
A5: M0004 | B5: Aço CA 50 | C5: kg | D5: 6.68
A6: M0005 | B6: Brita 0 | C6: m³ | D6: 184.217
A7: M0006 | B7: Fibra de poliamida para concreto | C7: kg | D7: 27.9838
A8: M0007 | B8: Fibra de aço para concreto | C8: kg | D8: 17.4231
A9: M0008 | B9: Detergente líquido neutro | C9: l | D9: 4.4324
A10: M0009 | B10: Aço CP 175 RB | C10: kg | D10: 9.831
A11: M0010 | B11: Aditivo superplastificante para concreto e argamassa | C11: kg | D11: 17.2177
A12: M0011 | B12: Aditivo modificador de viscosidade para concreto e argamassa | C12: kg | D12: 11.2784
A13: M0012 | B13: Silicato de alumínio | C13: kg | D13: 2.338
A14: M0013 | B14: Grampo de ancoragem em aço CA 50 - D = 12,5 mm | C14: kg | D14: 6.3477
A15: M0014 | B15: Aço CA 60 | C15: kg | D15: 8.1648
A16: M0015 | B16: Espoleta elétrica Nº 8 - D = 6,0 mm | C16: un | D16: 19.296
A17: M0016 | B17: Grampo sargento em ferro fundido tipo C com abertura útil de 105 mm (4") | C17: un | D17: 42.463
A18: M0017 | B18: Saco de aniagem ou de ráfia de 50 kg - C = 95 cm e L = 65 cm | C18: un | D18: 2.6656
A19: M0018 | B19: Grampo pesado em aço-carbono para cabo de aço - D = 13 mm (1/2") | C19: un | D19: 18.1191
A20: M0019 | B20: Esticador em aço tipo olhal x olhal para cabo de aço - D = 13 mm | C20: un | D20: 135.199
A21: M0020 | B21: Grampo de ancoragem em aço CA 50 - D = 6,3 mm | C21: kg | D21: 7.1266
A22: M0021 | B22: Herbicida glifosato para áreas contínuas | C22: l | D22: 25.0899
A23: M0025 | B23: Adesivo plástico para tubos de PVC | C23: kg | D23: 52.3151
A24: M0026 | B24: Aditivo aglutinante para argamassa | C24: l | D24: 10.0377
A25: M0028 | B25: Areia média | C25: m³ | D25: 88.576
A26: M0029 | B26: Sílica ativa para concreto e argamassa (microssílica) | C26: kg | D26: 2.2529
A27: M0030 | B27: Aditivo plastificante e retardador de pega para concreto e argamassa | C27: kg | D27: 8.3893
A28: M0032 | B28: Adesivo de contato para laminado elastoplástico | C28: kg | D28: 47.9638
A29: M0035 | B29: Diluente tipo aguarrás para tintas e vernizes | C29: l | D29: 14.7478
A30: M0039 | B30: Gasolina comum | C30: l | D30: 5.5453
A31: M0041 | B31: Contêiner com 2 banheiros - L = 2,44 m e C = 6,09 m (1 TEU) | C31: un | D31: 103835.0185
A32: M0042 | B32: Contêiner com janela - L = 2,44 m e C = 6,09 m (1 TEU) | C32: un | D32: 44288.7879
A33: M0043 | B33: Óleo diesel | C33: l | D33: 5.4116
A34: M0044 | B34: Abrasivo de vidro com granulometria de 210 a 420 micra | C34: kg | D34: 10.9123
A35: M0045 | B35: Barreira plástica monobloco para canalização de trânsito - C = 100 cm, L = 50 cm e H = 55 cm | C35: un | D35: 446.2251
A36: M0046 | B36: Barreira plástica para canalização de trânsito - C = 60 cm, L = 45 cm e H = 60 cm | C36: un | D36: 313.2111
A37: M0047 | B37: Cone de sinalização em polietileno - H = 75 cm e base quadrada de 40 x 40 cm | C37: un | D37: 95.6171
A38: M0048 | B38: Balizador cônico refletivo em polietileno semiflexível - H = 114 cm e base octogonal de D = 40 cm | C38: un | D38: 156.499
A39: M0049 | B39: Delimitador de tráfego flexível com chumbador e duas faixas refletivas - H = 77 cm e D = 21 cm | C39: un | D39: 168.7576
A40: M0050 | B40: Aditivo natural tipo goma xantana para hidrossemeadura | C40: kg | D40: 80.2882
A41: M0051 | B41: Cilindro canalizador de tráfego em polietileno - H = 117 cm e base quadrada de 60 x 60 cm | C41: un | D41: 188.9459
A42: M0052 | B42: Fita adesiva de PVC - L = 50 mm e C = 50 m | C42: m | D42: 0.1157
A43: M0053 | B43: Tela plástica em polipropileno na cor laranja para tapume - L = 1,2 m | C43: m | D43: 1.7977
A44: M0054 | B44: Fita zebrada de cor laranja e branca - L = 7 a 8 cm | C44: m | D44: 0.0745
A45: M0055 | B45: Barreira plástica articulável modular - C = 240 cm e H = 100 cm | C45: un | D45: 1329.9706
A46: M0056 | B46: Ferramenta de corte para removedora de faixa de sinalização (Smith Cutter) | C46: un | D46: 7566.9579
A47: M0057 | B47: Contêiner com janela - L = 4,88 m e C = 6,09 m (1 TEU duplo) | C47: un | D47: 151502.037
A48: M0058 | B48: Contêiner com janela e 2 banheiros - L = 4,88 m e C = 6,09 m (1 TEU duplo) | C48: un | D48: 156517.037
A49: M0059 | B49: Contêiner com revestimento térmico, janela e banheiro - L = 2,44 m e C = 6,09 m (1 TEU) | C49: un | D49: 64248.4879
A50: M0060 | B50: Contêiner com janela - L = 2,44 m e C = 4,58 m (3/4 TEU) | C50: un | D50: 65219.5185
A51: M0065 | B51: Contêiner com janela e banheiro - L = 2,44 m e 4,58 m (3/4 TEU) | C51: un | D51: 83273.5185
A52: M0066 | B52: Contêiner com revestimento térmico, janela e banheiro - L = 2,44 m e C = 12,90 m (2 TEU) | C52: un | D52: 142976.537
A53: M0067 | B53: Tubo PEAD PE 100 PN 10 com flanges - D = 160 mm | C53: m | D53: 148.6562
A54: M0068 | B54: Caibro de pinho - L = 7,5 cm e E = 10,0 cm | C54: m | D54: 26.7857
A55: M0069 | B55: Arame farpado em aço galvanizado - D = 1,60 mm | C55: m | D55: 0.7283
A56: M0071 | B56: Contêiner com 3 janelas para guarita - L = 2,44 m e C = 3,05 m (1/2 TEU) | C56: un | D56: 51409.5321
A57: M0072 | B57: Arame liso em aço galvanizado - D = 2,10 mm (14 BWG) | C57: kg | D57: 15.5237
A58: M0073 | B58: Muda de árvore com altura de 0,30 a 0,80 m | C58: un | D58: 19.548
A59: M0074 | B59: Muda de arbusto com altura até 0,50 m | C59: un | D59: 22.5979
A60: M0075 | B60: Arame liso recozido em aço-carbono - D = 1,24 mm (18 BWG) | C60: kg | D60: 9.2649
A61: M0076 | B61: Disco de corte abrasivo para policorte - D = 300 mm | C61: un | D61: 21.1732
A62: M0080 | B62: Areia fina | C62: m³ | D62: 98.5726
A63: M0081 | B63: Areia grossa | C63: m³ | D63: 80.8117
A64: M0082 | B64: Areia média lavada | C64: m³ | D64: 93.769
A65: M0083 | B65: Argamassa pré-dosada para grauteamento | C65: kg | D65: 2.1043
A66: M0084 | B66: Argamassa pré-dosada autoadensável para grauteamento | C66: kg | D66: 2.1743
A67: M0085 | B67: Ancoragem ativa para 4 cordoalhas - D = 12,7 mm | C67: un | D67: 382.2856
A68: M0086 | B68: Ancoragem ativa para 6 cordoalhas - D = 12,7 mm | C68: un | D68: 494.7457
A69: M0087 | B69: Ancoragem ativa para 7 cordoalhas - D = 12,7 mm | C69: un | D69: 571.4852
A70: M0088 | B70: Ancoragem ativa para 8 cordoalhas - D = 12,7 mm | C70: un | D70: 740.5846
A71: M0089 | B71: Ancoragem ativa para 9 cordoalhas - D = 12,7 mm | C71: un | D71: 754.1917
A72: M0091 | B72: Ancoragem ativa para 10 cordoalhas - D = 12,7 mm | C72: un | D72: 838.2388
A73: M0092 | B73: Ancoragem ativa para 12 cordoalhas - D = 12,7 mm | C73: un | D73: 1008.2853
A74: M0093 | B74: Ancoragem ativa para 15 cordoalhas - D = 12,7 mm | C74: un | D74: 1469.997
A75: M0094 | B75: Ancoragem ativa para 19 cordoalhas - D = 12,7 mm | C75: un | D75: 1868.5391
A76: M0098 | B76: Bambu com diâmetro médio de 10 cm | C76: m | D76: 25.0201
A77: M0099 | B77: Equipamentos para a fábrica de dormentes de concreto protendido | C77: ISF | D77: 584.689
A78: M0100 | B78: Ancoragem ativa para 22 cordoalhas - D = 12,7 mm | C78: un | D78: 2419.8734
A79: M0101 | B79: Ancoragem ativa para 27 cordoalhas - D = 12,7 mm | C79: un | D79: 2959.6705
A80: M0102 | B80: Ancoragem ativa para 31 cordoalhas - D = 12,7 mm | C80: un | D80: 3008.998
A81: M0103 | B81: Aditivo acelerador de pega para concreto e argamassa projetados | C81: kg | D81: 8.7014
A82: M0104 | B82: Asfalto diluído de petróleo - CM-30 | C82: t | D82: -
A83: M0105 | B83: Ancoragem ativa para 4 cordoalhas - D = 15,2 mm | C83: un | D83: 540.5815
A84: M0106 | B84: Ancoragem ativa para 6 cordoalhas - D = 15,2 mm | C84: un | D84: 631.5327
A85: M0107 | B85: Geocomposto para drenagem | C85: m² | D85: 50.1041
A86: M0108 | B86: Ancoragem ativa para 7 cordoalhas - D = 15,2 mm | C86: un | D86: 713.7664
A87: M0109 | B87: Geodreno vertical - L = 10 cm e E = 5 mm | C87: m | D87: 5.18
A88: M0110 | B88: Ancoragem ativa para 10 cordoalhas - D = 15,2 mm | C88: un | D88: 1147.6328
A89: M0111 | B89: Ancoragem ativa para 9 cordoalhas - D = 15,2 mm | C89: un | D89: 1023.0803
A90: M0112 | B90: Disco diamantado segmentado para corte de pavimento - D = 1.000 mm | C90: un | D90: 5881.0277
A91: M0113 | B91: Ancoragem ativa para 12 cordoalhas - D = 15,2 mm | C91: un | D91: 1347.1292
A92: M0114 | B92: Disco diamantado segmentado para corte de pavimento - D = 1.500 mm | C92: un | D92: 26165.5741
A93: M0115 | B93: Biomanta vegetal de fibras de coco entrelaçadas com fios de polipropileno biodegradáveis - densidade 0,4 kg/m² | C93: m² | D93: 6.5
A94: M0116 | B94: Mangote flangeado de borracha reforçada com lonas sintéticas - C = 1,80 m e D = 0,30 m | C94: un | D94: 10555.9813
A95: M0117 | B95: Mangote flangeado de borracha reforçada com lonas sintéticas - C = 1,80 m e D = 0,40 m | C95: un | D95: 18262.0736
A96: M0118 | B96: Mangote flangeado de borracha reforçada com lonas sintéticas - C = 1,80 m e D = 0,45 m | C96: un | D96: 25385.853
A97: M0119 | B97: Mangote flangeado de borracha reforçada com lonas sintéticas - C = 1,80 m e D = 0,50 m | C97: un | D97: 30042.146
A98: M0120 | B98: Tubo PEAD PE 100 PN 8 com flanges - D = 250 mm | C98: m | D98: 327.3507
A99: M0121 | B99: Tubo PEAD PE 100 PN 8 com flanges - D = 400 mm | C99: m | D99: 2101.7656
A100: M0122 | B100: Tubo PEAD PE 100 PN 8 com flanges - D = 450 mm | C100: m | D100: 2639.8971
A101: M0123 | B101: Tubo PEAD PE 100 PN 8 com flanges - D = 500 mm | C101: m | D101: 2956.034
A102: M0124 | B102: Flutuador bipartido em polietileno com núcleo de espuma em poliuretano para tubos - D = 0,30 m | C102: un | D102: 4823.7733
A103: M0125 | B103: Flutuador bipartido em polietileno com núcleo de espuma em poliuretano para tubos - D = 0,40 m | C103: un | D103: 6672.8777
A104: M0126 | B104: Flutuador bipartido em polietileno com núcleo de espuma em poliuretano para tubos - D = 0,45 m | C104: un | D104: 7676.4675
A105: M0127 | B105: Flutuador bipartido em polietileno com núcleo de espuma em poliuretano para tubos - D = 0,50 m | C105: un | D105: 8281.1957
A106: M0128 | B106: Biomanta vegetal de fibras de palha entrelaçadas com fios de polipropileno biodegradáveis - densidade 0,6 kg/m² | C106: m² | D106: 5.9
A107: M0129 | B107: Retentor de sedimento em fibras vegetais - D = 20 cm | C107: m | D107: 66.5409
A108: M0130 | B108: Ancoragem ativa para 15 cordoalhas - D = 15,2 mm | C108: un | D108: 1789.5534
A109: M0131 | B109: Tubo PEAD corrugado com paredes estruturadas para drenagem - D = 400 mm | C109: m | D109: 247.4086
A110: M0132 | B110: Tubo PEAD corrugado com paredes estruturadas para drenagem - D = 450 mm | C110: m | D110: 311.9123
A111: M0133 | B111: Tubo PEAD corrugado com paredes estruturadas para drenagem - D = 500 mm | C111: m | D111: 407.4463
A112: M0134 | B112: Tubo PEAD corrugado com paredes estruturadas para drenagem - D = 600 mm | C112: m | D112: 593.8368
A113: M0135 | B113: Tubo PEAD corrugado com paredes estruturadas para drenagem - D = 750 mm | C113: m | D113: 840.6907
A114: M0136 | B114: Tubo PEAD corrugado com paredes estruturadas para drenagem - D = 800 mm | C114: m | D114: 886.1224
A115: M0137 | B115: Tubo PEAD corrugado com paredes estruturadas para drenagem - D = 900 mm | C115: m | D115: 1191.1433
A116: M0138 | B116: Ancoragem ativa para 19 cordoalhas - D = 15,2 mm | C116: un | D116: 2337.2214
A117: M0139 | B117: Tubo PEAD corrugado com paredes estruturadas para drenagem - D = 1.000 mm | C117: m | D117: 1555.3427
A118: M0140 | B118: Bentonita | C118: kg | D118: 3.6404
A119: M0141 | B119: Tubo PEAD corrugado com paredes estruturadas para drenagem - D = 1.050 mm | C119: m | D119: 1615.3582
A120: M0142 | B120: Tubo PEAD corrugado com paredes estruturadas para drenagem - D = 1.200 mm | C120: m | D120: 2184.9213
A121: M0143 | B121: Tubo PEAD corrugado com paredes estruturadas para drenagem - D = 1.500 mm | C121: m | D121: 2786.3984
A122: M0145 | B122: Ancoragem ativa para 22 cordoalhas - D = 15,2 mm | C122: un | D122: 3014.6317
A123: M0146 | B123: Ancoragem ativa para 27 cordoalhas - D = 15,2 mm | C123: un | D123: 3955.9977
A124: M0148 | B124: Ancoragem ativa para lajes para 1 cordoalha - D = 12,7 mm | C124: un | D124: 81.7799
A125: M0151 | B125: Ancoragem ativa para lajes para 2 cordoalhas - D = 12,7 mm | C125: un | D125: 159.3872
A126: M0152 | B126: Ancoragem ativa para lajes para 3 cordoalhas - D = 12,7 mm | C126: un | D126: 219.2865
A127: M0153 | B127: Ancoragem ativa para lajes para 4 cordoalhas - D = 12,7 mm | C127: un | D127: 301.974
A128: M0156 | B128: Bloco de concreto - L = 19 cm, A = 19 cm e C = 39 cm | C128: un | D128: 4.7
A129: M0158 | B129: Tela metálica galvanizada dobrada em L - C = 2,0 m, L = 0,4 m e H = 0,4 m | C129: un | D129: 465.7743
A130: M0160 | B130: Extintor de incêndio tipo espuma mecânica - V = 10 l | C130: un | D130: 638.0132
A131: M0161 | B131: Barra de fibra de vidro (vergalhão) - D = 25,0 mm | C131: m | D131: 58.5743
A132: M0162 | B132: Corrente de elo soldado em aço galvanizado com acabamento polido - D = 3,18 mm (1/8") | C132: m | D132: 7.3698
A133: M0163 | B133: Gonzo com aba em aço galvanizado - D = 12,7 mm (1/2") | C133: un | D133: 2.4246
A134: M0164 | B134: Tubo em aço galvanizado - E = 1,50 mm e seção de 20 x 20 mm | C134: m | D134: 11.9452
A135: M0166 | B135: Tubo em aço galvanizado - E = 2,25 mm e D = 20 mm (3/4") | C135: m | D135: 27.8456
A136: M0167 | B136: Tela de poliamida industrial - E = 0,40 mm e malha de 1,6 mm | C136: m² | D136: 14.3307
A137: M0168 | B137: Abraçadeira de poliamida - E = 3,6 mm e C = 200 mm | C137: un | D137: 0.2082
A138: M0169 | B138: Roda em aço e pneu com câmara de ar 83/203 mm (3,25"/8") para carrinho de mão | C138: un | D138: 75.155
A139: M0173 | B139: Ancoragem ativa para lajes para 1 cordoalha - D = 15,2 mm | C139: un | D139: 95.7231
A140: M0178 | B140: Ancoragem ativa para lajes para 2 cordoalhas - D = 15,2 mm | C140: un | D140: 207.6619
A141: M0181 | B141: Ancoragem ativa para lajes para 3 cordoalhas - D = 15,2 mm | C141: un | D141: 261.7385
A142: M0184 | B142: Ancoragem ativa para lajes para 4 cordoalhas - D = 15,2 mm | C142: un | D142: 363.2585
A143: M0191 | B143: Brita 1 | C143: m³ | D143: 170.2025
A144: M0192 | B144: Brita 2 | C144: m³ | D144: 159.7788
A145: M0193 | B145: Brita 3 | C145: m³ | D145: 153.0019
A146: M0194 | B146: Escória de aciaria | C146: m³ | D146: 14.7062
A147: M0198 | B147: Parafuso de cabeça chata em aço - D = 4,5 mm e bucha plástica - D = 8 mm (S8) | C147: un | D147: 0.3443
A148: M0199 | B148: Coroa de botões cruzados linha R32 - D = 43 mm (1 11/16’’) | C148: un | D148: 339.7643
A149: M0201 | B149: Coroa de botões esféricos linha T38 - D = 89 mm (3 1/2") | C149: un | D149: 869.6048
A150: M0202 | B150: Coroa de botões esféricos linha T45 - D = 76 mm (3") | C150: un | D150: 781.2902
A151: M0204 | B151: Instalações físicas para a central de pré-moldagem de dormentes de concreto protendido | C151: CMCC | D151: 1851.56
A152: M0217 | B152: Enxofre | C152: kg | D152: 3.5083
A153: M0220 | B153: Adubo à base de nitrogênio, fósforo e potássio (NPK) | C153: kg | D153: 2.8992
A154: M0222 | B154: Filer calcário | C154: kg | D154: 0.2017
A155: M0223 | B155: Sementes para hidrossemeadura | C155: kg | D155: 30.1158
A156: M0224 | B156: Guia-chapéu pré-moldada - C = 120 cm | C156: un | D156: 58.616
A157: M0225 | B157: Adubo orgânico composto | C157: kg | D157: 0.2624
A158: M0229 | B158: Gabião tipo colchão em liga de zinco e alumínio revestido com polímero de malha hexagonal - E = 0,17 m | C158: m² | D158: 171.2378
A159: M0230 | B159: Gabião tipo caixa em liga de zinco e alumínio de malha hexagonal - C = 2,00 m, L = 1,00 m e H = 0,50 m | C159: un | D159: 540.3141
A160: M0231 | B160: Gabião tipo caixa em liga de zinco e alumínio de malha hexagonal - C = 2,00 m, L = 1,00 m e H = 1,00 m | C160: un | D160: 816.0964
A161: M0232 | B161: Gabião tipo caixa em liga de zinco e alumínio revestido com polímero de malha hexagonal - C = 2,00 m, L = 1,00 m e H = 0,50 m | C161: un | D161: 663.7188
A162: M0233 | B162: Gabião tipo caixa em liga de zinco e alumínio revestido com polímero de malha hexagonal - C = 2,00 m, L = 1,00 m e H = 1,00 m | C162: un | D162: 965.8171
A163: M0234 | B163: Gabião tipo saco em liga de zinco e alumínio revestido com polímero de malha hexagonal - D = 0,65 m | C163: m³ | D163: 492.6243
A164: M0235 | B164: Gabião tipo colchão em liga de zinco e alumínio revestido com polímero de malha hexagonal - E = 0,23 m | C164: m² | D164: 179.0891
A165: M0236 | B165: Gabião tipo colchão em liga de zinco e alumínio revestido com polímero de malha hexagonal - E = 0,30 m | C165: m² | D165: 205.4272
A166: M0237 | B166: Energia elétrica | C166: kWh | D166: 1.1186
A167: M0253 | B167: Cabo de cobre flexível antichama isolado em PVC - tensão de 450/750 V e seção de 16 mm² | C167: m | D167: 14.3675
A168: M0254 | B168: Mistura gasosa de argônio e dióxido de carbono para solda MIG/MAG | C168: m³ | D168: 55.4265
A169: M0256 | B169: Tinta à base de etil silicato de zinco bicomponente para fundo preparador de pintura | C169: l | D169: 251.4673
A170: M0257 | B170: Diluente para tinta à base de etil silicato de zinco | C170: l | D170: 37.1064
A171: M0260 | B171: Cabo de cobre PP flexível isolado em PVC - tensão de 300/500 V e seção de 3 x 1,5 mm² | C171: m | D171: 4.9743
A172: M0264 | B172: Bomba de combustível industrial eletrônica simples | C172: un | D172: 30953.5435
A173: M0265 | B173: Tanque de combustível aéreo horizontal com escada para visita - capacidade de 5.000 l | C173: un | D173: 19210.3081
A174: M0266 | B174: Cabo de cobre flexível antichama isolado em PVC - tensão de 0,6/1,0 kV e seção de 240 mm² | C174: m | D174: 189.6445
A175: M0267 | B175: Módulo de torre de elevador de cremalheira | C175: un | D175: 3642.4726
A176: M0268 | B176: Módulo de ancoragem de torre de elevador de cremalheira | C176: un | D176: 2838.8312
A177: M0269 | B177: Cabo de cobre flexível antichama isolado em PVC - tensão de 0,6/1,0 kV e seção de 50 mm² | C177: m | D177: 39.6098
A178: M0284 | B178: Caibro de pinho - L = 7,5 cm e E = 7,5 cm | C178: m | D178: 20.0893
A179: M0285 | B179: Pontalete para escoramento - D = 15 cm | C179: m | D179: 7.6074
A180: M0286 | B180: Tábua - E = 2,5 cm e L = 30 cm | C180: m | D180: 17.0556
A181: M0289 | B181: Tábua - E = 2,5 cm e L = 15 cm | C181: m | D181: 8.0085
A182: M0290 | B182: Tábua - E = 2,5 cm e L = 10 cm | C182: m | D182: 5.1695
A183: M0291 | B183: Estrutura modular com 2 banheiros - L = 2,44 m e C = 6,06 m (1 TEU) | C183: un | D183: 81188.9442
A184: M0292 | B184: Estrutura modular com janela - L = 2,44 m e C = 6,06 m (1 TEU) | C184: un | D184: 66172.0635
A185: M0293 | B185: Estrutura modular com janela - L = 4,88 m e C = 6,06 m (1 TEU duplo) | C185: un | D185: 134116.8606
A186: M0294 | B186: Estrutura modular com janela e 2 banheiros - L = 4,88 m e C = 6,06 m (1 TEU duplo) | C186: un | D186: 134665.8936
A187: M0295 | B187: Estrutura modular com revestimento térmico, janela e banheiro - L = 2,44 m e C = 6,06 m (1 TEU) | C187: un | D187: 74381.6185
A188: M0296 | B188: Estrutura modular com revestimento térmico, janela e banheiro - L = 2,44 m e C = 12,19 m (2 TEU) | C188: un | D188: 141856.5791
A189: M0297 | B189: Estrutura modular com 3 janelas para guarita - L = 2,44 m e C = 3,05 m (1/2 TEU) | C189: un | D189: 41145.1367
A190: M0301 | B190: Pontalete para escoramento - D = 10 cm | C190: m | D190: 3.3827
A191: M0310 | B191: Peça de madeira - L = 7,5 cm e E = 2,5 cm | C191: m | D191: 7.1428
A192: M0311 | B192: Filtro de aspiração de ar externo com capacidade 3,58 l/s para compressor de ar respirável | C192: un | D192: 333.7865
A193: M0312 | B193: Filtro de purificação de ar comprimido com capacidade de 35 MPa para compressor de ar respirável | C193: un | D193: 317.0398
A194: M0344 | B194: Cal hidratada - a granel | C194: kg | D194: 0.5377
A195: M0345 | B195: Cal hidratada - saco | C195: kg | D195: 0.8
A196: M0346 | B196: Disco de aço para bomba de projeção via seca | C196: un | D196: 372.0742
A197: M0347 | B197: Disco de aço para bomba de projeção via úmida | C197: un | D197: 1560.3421
A198: M0348 | B198: Disco de borracha para bomba de projeção via seca | C198: un | D198: 301.3821
A199: M0349 | B199: Disco de borracha para bomba de projeção via úmida | C199: un | D199: 702.4987
A200: M0350 | B200: Bico para bomba de projeção | C200: un | D200: 296.6728
... 6292 more rows

Sheet Pessoal Sicro
A1: CGCIT | B1: SISTEMA DE CUSTOS REFERENCIAIS DE OBRAS - SICRO | G1: DNIT
A3: Piauí - Julho/2025
A4: Sem desoneração
A5: Código | B5: Descrição | C5: Unidade | D5: Salário (R$) | E5: Encargos Totais | F5: Custo (R$) | G5: Periculosidade/ Insalubridade
A6: P9801 | B6: Ajudante | C6: h | F6: 22.5682 | G6: 0
A7: P9802 | B7: Ajudante especializado | C7: h | F7: 26.2037 | G7: 0
A8: P9803 | B8: Almoxarife | C8: mês | F8: 6537.3285 | G8: 0
A9: P9804 | B9: Apontador | C9: mês | F9: 5124.1419 | G9: 0
A10: P9805 | B10: Armador | C10: h | F10: 32.8986 | G10: 0
A11: P9806 | B11: Auxiliar administrativo | C11: mês | F11: 5091.0802 | G11: 0
A12: P9807 | B12: Bombeiro hidráulico | C12: h | F12: 33.4507 | G12: 0
A13: P9808 | B13: Carpinteiro | C13: h | F13: 27.7951 | G13: 0
A14: P9809 | B14: Encarregado administrativo | C14: mês | F14: 7783.8336 | G14: 0
A15: P9810 | B15: Eletricista | C15: h | F15: 29.2891 | G15: 0
A16: P9811 | B16: Encarregado especializado | C16: mês | F16: 8281.7942 | G16: 0
A17: P9812 | B17: Engenheiro | C17: mês | F17: 27135.6365 | G17: 0
A18: P9814 | B18: Operacional | C18: mês | F18: 4267.0177 | G18: 0
A19: P9815 | B19: Jardineiro | C19: h | F19: 29.427 | G19: 0
A20: P9819 | B20: Engenheiro supervisor | C20: mês | F20: 27135.6365 | G20: 0
A21: P9821 | B21: Pedreiro | C21: h | F21: 27.7755 | G21: 0
A22: P9822 | B22: Pintor | C22: h | F22: 32.8797 | G22: 0
A23: P9823 | B23: Serralheiro | C23: h | F23: 29.3158 | G23: 0
A24: P9824 | B24: Servente | C24: h | F24: 22.1067 | G24: 0
A25: P9825 | B25: Soldador | C25: h | F25: 36.3411 | G25: 0
A26: P9826 | B26: Chefe setor de finanças | C26: mês | F26: 25003.5875 | G26: 0
A27: P9827 | B27: Vigia | C27: mês | F27: 5190.1176 | G27: 0
A28: P9830 | B28: Montador | C28: h | F28: 33.4951 | G28: 0
A29: P9833 | B29: Auxiliar de laboratório | C29: mês | F29: 6036.3052 | G29: 0
A30: P9837 | B30: Oceanógrafo | C30: mês | F30: 13314.3975 | G30: 0
A31: P9840 | B31: Encarregado geral | C31: mês | F31: 11501.5121 | G31: 0
A32: P9842 | B32: Faxineiro | C32: mês | F32: 4353.3801 | G32: 0
A33: P9843 | B33: Operador de equipamento leve | C33: h | F33: 27.6724 | G33: 0
A34: P9845 | B34: Operador de equipamento pesado | C34: h | F34: 34.2551 | G34: 0
A35: P9846 | B35: Operador de equipamento especial | C35: h | F35: 43.836 | G35: 0
A36: P9847 | B36: Perfurador de tubulão | C36: h | F36: 22.5481 | G36: 0
A37: P9848 | B37: Desenhista | C37: mês | F37: 8117.894 | G37: 0
A38: P9849 | B38: Condutor maquinista fluvial | C38: mês | F38: 5820.8436 | G38: 0
A39: P9850 | B39: Copeiro | C39: mês | F39: 4476.2176 | G39: 0
A40: P9851 | B40: Médico do trabalho | C40: mês | F40: 18672.6242 | G40: 0
A41: P9852 | B41: Blaster | C41: h | F41: 42.4395 | G41: 0
A42: P9853 | B42: Pré-marcador | C42: h | F42: 22.4341 | G42: 0
A43: P9854 | B43: Recepcionista | C43: mês | F43: 4311.0482 | G43: 0
A44: P9855 | B44: Marinheiro de máquinas | C44: mês | F44: 5466.9425 | G44: 0
A45: P9856 | B45: Marinheiro de convés | C45: h | F45: 29.463 | G45: 0
A46: P9857 | B46: Marinheiro de convés - mensalista | C46: mês | F46: 5419.4888 | G46: 0
A47: P9858 | B47: Laboratorista | C47: mês | F47: 7946.5291 | G47: 0
A48: P9859 | B48: Trabalhador de via | C48: h | F48: 22.0739 | G48: 0
A49: P9861 | B49: Selecionador de material pétreo | C49: h | F49: 22.4792 | G49: 0
A50: P9864 | B50: Engenheiro de segurança do trabalho | C50: mês | F50: 24956.0135 | G50: 0
A51: P9866 | B51: Motorista de caminhão | C51: h | F51: 29.1252 | G51: 0
A52: P9867 | B52: Técnico especializado - mensalista | C52: mês | F52: 7358.7329 | G52: 0
A53: P9869 | B53: Encarregado de obras de artes especiais | C53: mês | F53: 8281.7942 | G53: 0
A54: P9870 | B54: Motorista de veículo leve | C54: h | F54: 32.5686 | G54: 0
A55: P9871 | B55: Motorista de veículo especial | C55: h | F55: 33.8732 | G55: 0
A56: P9875 | B56: Encarregado de turma | C56: mês | F56: 5996.5848 | G56: 0
A57: P9876 | B57: Técnico de segurança do trabalho | C57: mês | F57: 7792.2539 | G57: 0
A58: P9878 | B58: Secretária | C58: mês | F58: 6830.99 | G58: 0
A59: P9880 | B59: Piloto fluvial | C59: mês | F59: 7686.6716 | G59: 0
A60: P9882 | B60: Técnico especializado | C60: h | F60: 39.832 | G60: 0
A61: P9883 | B61: Chefe do setor administrativo | C61: mês | F61: 7783.947 | G61: 0
A62: P9884 | B62: Encarregado de terraplenagem | C62: mês | F62: 8281.7942 | G62: 0
A63: P9885 | B63: Frentista de túnel | C63: h | F63: 22.9275 | G63: 0
A64: P9889 | B64: Técnico da qualidade | C64: mês | F64: 8089.3862 | G64: 0
A65: P9892 | B65: Auxiliar de blaster | C65: h | F65: 37.107 | G65: 0
A66: P9893 | B66: Encarregado de pavimentação | C66: mês | F66: 8281.7942 | G66: 0
A67: P9896 | B67: Porteiro | C67: mês | F67: 4344.2089 | G67: 0
A68: P9897 | B68: Técnico de meio ambiente | C68: mês | F68: 8048.5412 | G68: 0
A69: P9900 | B69: Comprador | C69: mês | F69: 7519.8298 | G69: 0
A70: P9901 | B70: Encarregado de superestrutura ferroviária | C70: mês | F70: 8281.7942 | G70: 0
A71: P9903 | B71: Auxiliar técnico | C71: mês | F71: 4875.3669 | G71: 0
A72: P9907 | B72: Comandante de longo curso | C72: mês | F72: 20335.0586 | G72: 0
A73: P9908 | B73: Imediato | C73: mês | F73: 16623.3997 | G73: 0
A74: P9909 | B74: Oficial de náutica | C74: mês | F74: 6857.484 | G74: 0
A75: P9910 | B75: Oficial de máquinas | C75: mês | F75: 6653.343 | G75: 0
A76: P9913 | B76: Draguista | C76: mês | F76: 6435.4692 | G76: 0
A77: P9915 | B77: Maquinista | C77: h | F77: 35.0133 | G77: 0
A78: P9916 | B78: Encarregado de conservação rodoviária | C78: mês | F78: 8281.7942 | G78: 0
A79: P9920 | B79: Mestre fluvial | C79: mês | F79: 8372.6355 | G79: 0
A80: P9921 | B80: Mergulhador raso autônomo de emergência | C80: h | F80: 40.5389 | G80: 0
A81: P9922 | B81: Mergulhador raso dependente de emergência | C81: h | F81: 42.3701 | G81: 0
A82: P9924 | B82: Mergulhador raso dependente | C82: h | F82: 58.1127 | G82: 0
A83: P9925 | B83: Mergulhador raso autônomo | C83: h | F83: 54.1204 | G83: 0
A84: P9926 | B84: Mergulhador raso auxiliar de superfície | C84: h | F84: 37.5205 | G84: 0
A85: P9927 | B85: Frentista de túnel com periculosidade | C85: h | F85: 27.4505 | G85: 0
A86: P9930 | B86: Eletricista com periculosidade | C86: h | F86: 35.7069 | G86: 0
A87: P9931 | B87: Operador de equipamento de mergulho | C87: h | F87: 57.7437 | G87: 0
A88: P9932 | B88: Operador de equipamento pesado com periculosidade | C88: h | F88: 42.3108 | G88: 0
A89: P9933 | B89: Supervisor de mergulho raso | C89: mês | F89: 10647.4163 | G89: 0
A90: P9934 | B90: Motorista de veículo especial com periculosidade | C90: h | F90: 41.8408 | G90: 0
A91: P9938 | B91: Operador de equipamento leve com periculosidade | C91: h | F91: 33.7489 | G91: 0
A92: P9939 | B92: Operador de equipamento leve com insalubridade | C92: h | F92: 35.4678 | G92: 0
A93: P9942 | B93: Marinheiro de convés com periculosidade | C93: h | F93: 36.3415 | G93: 0
A94: P9944 | B94: Operador de equipamento especial com periculosidade | C94: h | F94: 54.7914 | G94: 0
A95: P9946 | B95: Engenheiro auxiliar | C95: mês | F95: 24874.8163 | G95: 0
A96: P9947 | B96: Técnico florestal | C96: mês | F96: 8048.5412 | G96: 0
A97: P9948 | B97: Motorista de veículo leve - mensalista | C97: mês | F97: 6008.0336 | G97: 0
A98: P9949 | B98: Topógrafo | C98: mês | F98: 9340.8044 | G98: 0
A99: P9950 | B99: Auxiliar de topografia | C99: mês | F99: 6055.7508 | G99: 0
A100: P9951 | B100: Médico de câmara hiperbárica | C100: mês | F100: 21262.3001 | G100: 0
A101: P9952 | B101: Pedreiro - mensalista | C101: mês | F101: 5136.466 | G101: 0
A102: P9953 | B102: Eletricista - mensalista | C102: mês | F102: 5406.8028 | G102: 0
A103: P9954 | B103: Servente - mensalista | C103: mês | F103: 4093.0918 | G103: 0
A104: P9955 | B104: Engenheiro chefe | C104: mês | F104: 34473.2594 | G104: 0
A105: P9956 | B105: Motorista de caminhão com periculosidade | C105: h | F105: 35.6684 | G105: 0
A106: P9957 | B106: Motorista de ônibus | C106: h | F106: 35.4794 | G106: 0
A107: P9958 | B107: Motorista de ônibus - mensalista | C107: mês | F107: 6684.3694
A108: P9959 | B108: Motorista de veículo especial com periculosidade - mensalista | C108: mês | F108: 7777.9822
A109: P9972 | B109: Técnico de batimetria | C109: mês | F109: 6693.6238

Sheet Equipamentos
A1: CGCIT | B1: SISTEMA DE CUSTOS REFERENCIAIS DE OBRAS - SICRO | K1: DNIT
B2: Piauí - Julho/2025
A3: Código | B3: Descrição | C3: Valor de Aquisição (R$) | D3: Depreciação (R$/h) | E3: Oportunidade de Capital (R$/h) | F3: Seguros e Impostos (R$/h) | G3: Manutenção (R$/h) | H3: Operação (R$/h) | I3: Mão de Obra de Operação (R$/h) | J3: Custo Produtivo (R$/h) | K3: Custo Improdutivo (R$/h)
A4: E9001 | B4: Conjunto vibratório para tubos de concreto com encaixe PB e 3 jogos de fôrmas - D = 0,60 m - 2,20 kW | C4: 72294.1713 | D4: 9.6392 | E4: 1.4869 | F4: 0 | G4: 7.2294 | H4: 0 | I4: 0 | J4: 18.3555 | K4: 11.1261
A5: E9002 | B5: Conjunto vibratório para tubos de concreto com encaixe PB e 3 jogos de fôrmas - D = 0,80 m - 2,20 kW | C5: 94734.1239 | D5: 12.6312 | E5: 1.9484 | F5: 0 | G5: 9.4734 | H5: 0 | I5: 0 | J5: 24.053 | K5: 14.5796
A6: E9003 | B6: Conjunto vibratório para tubos de concreto com encaixe PB e 3 jogos de fôrmas - D = 1,00 m - 2,20 kW | C6: 99059.6987 | D6: 13.208 | E6: 2.0373 | F6: 0 | G6: 9.906 | H6: 0 | I6: 0 | J6: 25.1513 | K6: 15.2453
A7: E9004 | B7: Conjunto vibratório para tubos de concreto com encaixe PB e 3 jogos de fôrmas - D = 1,20 m - 2,20 kW | C7: 124985.1329 | D7: 16.6647 | E7: 2.5705 | F7: 0 | G7: 12.4985 | H7: 0 | I7: 0 | J7: 31.7337 | K7: 19.2352
A8: E9005 | B8: Conjunto vibratório para tubos de concreto com encaixe PB e 3 jogos de fôrmas - D = 1,50 m - 2,20 kW | C8: 147773.2112 | D8: 19.7031 | E8: 3.0392 | F8: 0 | G8: 14.7773 | H8: 0 | I8: 0 | J8: 37.5196 | K8: 22.7423
A9: E9006 | B9: Equipamento para sondagem manual | C9: 5048.1618 | D9: 0.8582 | E9: 0.109 | F9: 0 | G9: 0.5048 | H9: 0 | I9: 0 | J9: 1.472 | K9: 0.9672
A10: E9007 | B10: Bomba de pistão triplex com capacidade de 7,80 m³/h (130 l/min) - 8,20 kW | C10: 166927.9415 | D10: 16.6928 | E10: 3.2186 | F10: 0 | G10: 14.6062 | H10: 8.4313 | I10: 0 | J10: 42.9489 | K10: 19.9114
A11: E9008 | B11: Transportador manual de tubos de concreto com capacidade de 1 t | C11: 1709.1951 | D11: 1.5383 | E11: 0.0791 | F11: 0 | G11: 0.8546 | H11: 0 | I11: 0 | J11: 2.472 | K11: 1.6174
A12: E9009 | B12: Embarcação rebocadora - 268 kW | C12: 667274.0926 | D12: 7.6382 | E12: 3.8357 | F12: 0 | G12: 16.9738 | H12: 275.5587 | I12: 137.197 | J12: 441.2034 | K12: 148.6709
A13: E9010 | B13: Balança plataforma digital à bateria, com mesa de 75 x 75 cm e capacidade de 500 kg | C13: 4932.3271 | D13: 0.7398 | E13: 0.1014 | F13: 0 | G13: 0.411 | H13: 0 | I13: 0 | J13: 1.2522 | K13: 0.8412
A14: E9011 | B14: Carro manual modelo plataforma de 200 x 80 cm com capacidade de 800 kg | C14: 1865.8108 | D14: 0.3358 | E14: 0.0403 | F14: 0 | G14: 0.1866 | H14: 0 | I14: 0 | J14: 0.5627 | K14: 0.3761
A15: E9014 | B15: Deflectômetro de impacto (FWD) instalado em picape com reboque e faixa de carga de 7 a 120 kN - 147 kW | C15: 2296757.399 | D15: 183.7406 | E15: 42.513 | F15: 0 | G15: 114.8379 | H15: 0 | I15: 33.8732 | J15: 374.9647 | K15: 260.1268
A16: E9015 | B16: Elevador de obra com capacidade de 1.000 kg - 9 kW | C16: 68159.6855 | D16: 5.4528 | E16: 1.2616 | F16: 0 | G16: 4.7712 | H16: 0 | I16: 27.6724 | J16: 39.158 | K16: 34.3868
A17: E9016 | B17: Usina misturadora móvel de reciclagem a frio com sistema de espuma de asfalto - 129,40 kW | C17: 10321385.12 | D17: 1444.9939 | E17: 222.8903 | F17: 0 | G17: 1857.8493 | H17: 98.0365 | I17: 43.836 | J17: 3667.606 | K17: 1711.7202
A18: E9017 | B18: Escavadeira hidráulica sobre esteira com capacidade de 0,4 m³ - 64 kW | C18: 721221.9773 | D18: 59.3948 | E18: 13.7425 | F18: 0 | G18: 59.3948 | H18: 45.0245 | I18: 34.2551 | J18: 211.8117 | K18: 107.3924
A19: E9020 | B19: Recicladora a frio - 455 kW | C19: 5769275.826 | D19: 807.6986 | E19: 124.5875 | F19: 0 | G19: 1153.8552 | H19: 492.4556 | I19: 43.836 | J19: 2622.4329 | K19: 976.1221
A20: E9021 | B20: Grupo gerador - 456 kVA | C20: 352736.7054 | D20: 24.6916 | E20: 6.5292 | F20: 0 | G20: 17.6368 | H20: 375.2945 | I20: 0 | J20: 424.1521 | K20: 31.2208
A21: E9022 | B21: Pórtico metálico rolante com capacidade de 25 t - 30 kW | C21: 754463.8377 | D21: 37.7232 | E21: 12.9307 | F21: 0 | G21: 29.3403 | H21: 0 | I21: 27.6724 | J21: 107.6666 | K21: 78.3263
A22: E9023 | B22: Guindaste móvel sobre esteiras com dragline com capacidade de 1,9 a 2,3 m³ - 270 kW | C22: 4030618.957 | D22: 156.7463 | E22: 69.0803 | F22: 0 | G22: 223.9233 | H22: 73.0566 | I22: 43.836 | J22: 566.6425 | K22: 269.6626
A23: E9024 | B23: Misturador de nata cimento - 1,50 kW | C23: 9673.608 | D23: 1.5478 | E23: 0.2089 | F23: 0 | G23: 1.3543 | H23: 0 | I23: 27.6724 | J23: 30.7834 | K23: 29.4291
A24: E9025 | B24: Conjunto bomba e macaco hidráulico para protensão com capacidade de 7.000 kN - 15 kW | C24: 106149.0796 | D24: 6.0657 | E24: 1.8713 | F24: 0 | G24: 6.0657 | H24: 0 | I24: 43.836 | J24: 57.8387 | K24: 51.773
A25: E9026 | B25: Bomba para injeção de nata de cimento com capacidade de 2 MPa - 2,20 kW | C25: 34301.0629 | D25: 3.4301 | E25: 0.6614 | F25: 0 | G25: 3.0013 | H25: 0 | I25: 0 | J25: 7.0928 | K25: 4.0915
A26: E9028 | B26: Bomba de alta pressão para hidrojateamento com capacidade de 18 MPa - 5,20 kW | C26: 5625.84 | D26: 1.1252 | E26: 0.1302 | F26: 0 | G26: 1.2658 | H26: 10.0924 | I26: 27.6724 | J26: 40.286 | K26: 28.9278
A27: E9029 | B27: Conjunto bomba e macaco hidráulico para protensão com capacidade de 8.000 kN - 20 kW | C27: 134980.5378 | D27: 7.7132 | E27: 2.3795 | F27: 0 | G27: 7.7132 | H27: 0 | I27: 43.836 | J27: 61.6419 | K27: 53.9287
A28: E9030 | B28: Bomba de protensão com leitura digital para tensionamento de estais - 3 kW | C28: 14563.1745 | D28: 0.8322 | E28: 0.2567 | F28: 0 | G28: 0.8322 | H28: 0 | I28: 0 | J28: 1.9211 | K28: 1.0889
A29: E9031 | B29: Elevador de cremalheira com cabine simples, com capacidade de 1.500 kg e altura de até 100 m - 15 kW | C29: 338833.8764 | D29: 27.1067 | E29: 6.2718 | F29: 0 | G29: 23.7184 | H29: 0 | I29: 27.6724 | J29: 84.7693 | K29: 61.0509
A30: E9032 | B30: Equipamento para regulagem final de estais com até 37 cordoalhas - D = 15,7 mm - 20 kW | C30: 78505.1596 | D30: 4.486 | E30: 1.3839 | F30: 0 | G30: 4.486 | H30: 0 | I30: 43.836 | J30: 54.1919 | K30: 49.7059
A31: E9033 | B31: Equipamento para regulagem final de estais de 38 a 55 cordoalhas - D = 15,7 mm - 30 kW | C31: 112132.5564 | D31: 6.4076 | E31: 1.9767 | F31: 0 | G31: 6.4076 | H31: 0 | I31: 43.836 | J31: 58.6279 | K31: 52.2203
A32: E9034 | B32: Equipamento para regulagem final de estais de 56 a 73 cordoalhas - D = 15,7 mm - 40 kW | C32: 168146.2696 | D32: 9.6084 | E32: 2.9642 | F32: 0 | G32: 9.6084 | H32: 0 | I32: 43.836 | J32: 66.017 | K32: 56.4086
A33: E9035 | B33: Equipamento para regulagem final de estais de 74 a 91 cordoalhas - D = 15,7 mm - 50 kW | C33: 224160.8948 | D33: 12.8092 | E33: 3.9516 | F33: 0 | G33: 12.8092 | H33: 0 | I33: 43.836 | J33: 73.406 | K33: 60.5968
A34: E9036 | B34: Grua fixa para alturas de 60 a 102 m, com alcance de 60 m com capacidade de 1.500 kg na ponta da lança - 37 kW | C34: 3897646.107 | D34: 151.5751 | E34: 66.8013 | F34: 0 | G34: 173.2287 | H34: 0 | I34: 43.836 | J34: 435.4411 | K34: 262.2124
A35: E9038 | B35: Macaco hidráulico monocordoalha para tensionamento de estais - 3 kW | C35: 18311.0666 | D35: 1.0463 | E35: 0.3228 | F35: 0 | G35: 1.0463 | H35: 0 | I35: 43.836 | J35: 46.2514 | K35: 45.2051
A36: E9039 | B36: Máquina de solda por termofusão para tubos PEAD com gerador de 4 kW | C36: 115635.5139 | D36: 15.4181 | E36: 2.3782 | F36: 0 | G36: 15.4181 | H36: 4.1128 | I36: 43.836 | J36: 81.1632 | K36: 61.6323
A37: E9040 | B37: Serra mármore - 1,45 kW | C37: 483.8052 | D37: 0.0435 | E37: 0.009 | F37: 0 | G37: 0.0242 | H37: 0 | I37: 0 | J37: 0.0767 | K37: 0.0525
A38: E9042 | B38: Trator sobre esteiras com lâmina - 97 kW | C38: 1331380.856 | D38: 116.4958 | E38: 25.6707 | F38: 0 | G38: 166.4226 | H38: 73.4895 | I38: 34.2551 | J38: 416.3337 | K38: 176.4216
A39: E9043 | B39: Embarcação de alumínio com comprimento de 6 m e motor de popa - 18,60 kW | C39: 35099.4888 | D39: 0.4018 | E39: 0.2018 | F39: 0 | G39: 0.4464 | H39: 41.257 | I39: 42.121 | J39: 84.428 | K39: 42.7246
A40: E9044 | B40: Central de concreto com capacidade de 150 m³/h - dosadora e misturadora | C40: 1927981.252 | D40: 192.7981 | E40: 37.1739 | F40: 0 | G40: 168.6984 | H40: 0 | I40: 43.836 | J40: 442.5064 | K40: 273.808
A41: E9045 | B41: Conjunto bomba e macaco hidráulico para elevação com capacidade de 496 kN | C41: 68443.1556 | D41: 5.4755 | E41: 1.2669 | F41: 0 | G41: 5.4755 | H41: 6.3882 | I41: 43.836 | J41: 62.4421 | K41: 50.5784
A42: E9046 | B42: Conjunto bomba e macaco hidráulico para elevação com capacidade de 929 kN | C42: 86540.3694 | D42: 6.9232 | E42: 1.6019 | F42: 0 | G42: 6.9232 | H42: 6.3882 | I42: 43.836 | J42: 65.6725 | K42: 52.3611
A43: E9047 | B43: Conjunto bomba e macaco hidráulico para elevação com capacidade de 1.390 kN | C43: 119334.8915 | D43: 9.5468 | E43: 2.2089 | F43: 0 | G43: 9.5468 | H43: 6.3882 | I43: 43.836 | J43: 71.5267 | K43: 55.5917
A44: E9048 | B44: Conjunto bomba e macaco hidráulico para elevação com capacidade de 1.859 kN | C44: 138147.5928 | D44: 11.0518 | E44: 2.5571 | F44: 0 | G44: 11.0518 | H44: 6.3882 | I44: 43.836 | J44: 74.8849 | K44: 57.4449
A45: E9049 | B45: Bomba de alta pressão para hidrojateamento com capacidade de 250 MPa - 72 kW | C45: 725352.3116 | D45: 145.0705 | E45: 16.7828 | F45: 0 | G45: 163.2043 | H45: 58.4453 | I45: 27.6724 | J45: 411.1753 | K45: 189.5257
A46: E9050 | B46: Guindaste móvel sobre pneus com 2 eixos com capacidade de 18 t - 97 kW | C46: 3242326.045 | D46: 162.1163 | E46: 57.1576 | F46: 0 | G46: 208.4352 | H46: 26.2463 | I46: 33.8732 | J46: 487.8286 | K46: 253.1471
A47: E9051 | B47: Máquina levantadora e posicionadora de via - 7,40 kW | C47: 1058013.046 | D47: 84.641 | E47: 19.5838 | F47: 0 | G47: 74.0609 | H47: 11.4899 | I47: 27.6724 | J47: 217.448 | K47: 131.8972
A48: E9052 | B48: Empilhadeira a diesel com capacidade de 10 t - 82 kW | C48: 783580.8714 | D48: 62.6865 | E48: 14.5041 | F48: 0 | G48: 54.8507 | H48: 66.5627 | I48: 27.6724 | J48: 226.2764 | K48: 104.863
A49: E9053 | B49: Perfuratriz hidráulica montada em flutuante - 32 kW | C49: 610341.1544 | D49: 16.3484 | E49: 5.2676 | F49: 0 | G49: 14.5319 | H49: 17.3171 | I49: 33.7489 | J49: 87.2139 | K49: 55.3649
A50: E9054 | B50: Equipamento sobre forma-trilho para execução e acabamento de pavimento de concreto - 13,40 kW | C50: 1817038.056 | D50: 242.2717 | E50: 37.3704 | F50: 0 | G50: 151.4198 | H50: 20.806 | I50: 27.6724 | J50: 479.5403 | K50: 307.3145
A51: E9055 | B51: Guincho pneumático com capacidade de 2,5 t | C51: 538776.0635 | D51: 53.8776 | E51: 10.1574 | F51: 0 | G51: 29.932 | H51: 0 | I51: 0 | J51: 93.967 | K51: 64.035
A52: E9056 | B52: Plataforma autoelevatória de 12 x 24 m com capacidade de 150 t | C52: 847785.7684 | D52: 9.7045 | E52: 4.8733 | F52: 0 | G52: 21.5656 | H52: 0 | I52: 115.1225 | J52: 151.2659 | K52: 129.7003
A53: E9057 | B53: Batelão sem propulsão com capacidade de 66 m³ | C53: 226710.7539 | D53: 9.7162 | E53: 3.8301 | F53: 0 | G53: 16.1936 | H53: 0 | I53: 29.463 | J53: 59.2029 | K53: 43.0093
A54: E9058 | B54: Plataforma flutuante de 12 x 24 x 1,8 m com capacidade de 150 t | C54: 678053.2946 | D54: 7.7616 | E54: 3.8976 | F54: 0 | G54: 12.936 | H54: 0 | I54: 29.463 | J54: 54.0582 | K54: 41.1222
A55: E9059 | B55: Plataforma autoelevatória de 12 x 24 m montada na obra com capacidade de 150 t | C55: 847785.7684 | D55: 9.7045 | E55: 4.8733 | F55: 0 | G55: 21.5656 | H55: 0 | I55: 115.1225 | J55: 151.2659 | K55: 129.7003
A56: E9060 | B56: Perfuratriz pneumática rotopercussiva montada em flutuante com pressão de 0,70 MPa e capacidade de 2.500 gpm | C56: 41032.2086 | D56: 1.0991 | E56: 0.3541 | F56: 0 | G56: 0.977 | H56: 0 | I56: 67.4978 | J56: 69.928 | K56: 68.951
A57: E9061 | B57: Lixadeira elétrica manual angular - 2 kW | C57: 1399.0614 | D57: 0.1865 | E57: 0.0288 | F57: 0 | G57: 0.1166 | H57: 0 | I57: 0 | J57: 0.3319 | K57: 0.2153
A58: E9062 | B58: Soprador de ar quente manual - 1,60 kW | C58: 5695.6686 | D58: 0.7594 | E58: 0.1171 | F58: 0 | G58: 0.4746 | H58: 0 | I58: 0 | J58: 1.3511 | K58: 0.8765
A59: E9063 | B59: Equipamento de estabilização dinâmica da via - 300 kW | C59: 30084171.71 | D59: 1203.3669 | E59: 510.4532 | F59: 0 | G59: 1203.3669 | H59: 194.8176 | I59: 43.836 | J59: 3155.8406 | K59: 1757.6561
A60: E9064 | B60: Transportador manual gerica com capacidade de 180 l | C60: 1087.9476 | D60: 1.0879 | E60: 0.0503 | F60: 0 | G60: 0.544 | H60: 0 | I60: 0 | J60: 1.6822 | K60: 1.1382
A61: E9065 | B61: Carro controle ferroviário - 186 kW | C61: 32872501.61 | D61: 1314.9001 | E61: 557.7642 | F61: 0 | G61: 1150.5376 | H61: 120.7869 | I61: 43.836 | J61: 3187.8248 | K61: 1916.5003
A62: E9066 | B62: Grupo gerador - 14 kVA | C62: 65836.8302 | D62: 4.6086 | E62: 1.2186 | F62: 0 | G62: 3.2918 | H62: 11.3102 | I62: 0 | J62: 20.4292 | K62: 5.8272
A63: E9067 | B63: Veículo ferroviário para capina química com capacidade de 12.000 l - 115 kW | C63: 1700916.436 | D63: 68.0367 | E63: 28.8603 | F63: 0 | G63: 42.5229 | H63: 74.6801 | I63: 27.6724 | J63: 241.7724 | K63: 124.5694
A64: E9068 | B64: Perfuratriz hidráulica rotopercussiva para CCPH - 123 kW | C64: 5680737.102 | D64: 454.459 | E64: 105.1504 | F64: 0 | G64: 454.459 | H64: 99.844 | I64: 34.2551 | J64: 1148.1675 | K64: 593.8645
A65: E9069 | B65: Vibrador de imersão para concreto - 4,10 kW | C65: 4342.9857 | D65: 0.8686 | E65: 0.1005 | F65: 0 | G65: 0.5429 | H65: 7.9575 | I65: 0 | J65: 9.4695 | K65: 0.9691
A66: E9070 | B66: Ponte rolante com capacidade de 5 t e vão de até 15 m - 10 kW | C66: 414722.1054 | D66: 18.4321 | E66: 7.1079 | F66: 0 | G66: 11.5201 | H66: 0 | I66: 27.6724 | J66: 64.7325 | K66: 53.2124
A67: E9071 | B67: Transportador manual carrinho de mão com capacidade de 80 l | C67: 467.8449 | D67: 0.4678 | E67: 0.0216 | F67: 0 | G67: 0.2339 | H67: 0 | I67: 0 | J67: 0.7233 | K67: 0.4894
A68: E9072 | B68: Martelo hidráulico vibratório com unidade hidráulica - 486 kW | C68: 3419950.775 | D68: 455.9934 | E68: 70.337 | F68: 0 | G68: 398.9943 | H68: 394.5056 | I68: 43.836 | J68: 1363.6663 | K68: 570.1664
A69: E9073 | B69: Bomba de concreto rebocável com capacidade de 30 m³/h - 74 kW | C69: 504181.1401 | D69: 50.4181 | E69: 9.7212 | F69: 0 | G69: 50.4181 | H69: 76.0871 | I69: 27.6724 | J69: 214.3169 | K69: 87.8117
A70: E9074 | B70: Tanque de estocagem de asfalto com agitadores de 60.000 l | C70: 882570.0807 | D70: 117.676 | E70: 18.1515 | F70: 0 | G70: 73.5475 | H70: 0 | I70: 0 | J70: 209.375 | K70: 135.8275
A71: E9075 | B71: Trado cavadeira de 12" | C71: 160.0521 | D71: 0.08 | E71: 0.0049 | F71: 0 | G71: 0.04 | H71: 0 | I71: 0 | J71: 0.1249 | K71: 0.0849
A72: E9076 | B72: Equipamento para pintura eletrostática com cabine dupla de 7,00 kW e estufa de 80.000 kCal | C72: 164067.3587 | D72: 10.5472 | E72: 2.8923 | F72: 0 | G72: 5.8595 | H72: 0 | I72: 27.6724 | J72: 46.9714 | K72: 41.1119
A73: E9077 | B73: Perfuratriz de circulação reversa tipo Wirth ou similar com unidade hidráulica (Power Pack) - 273 kW | C73: 4851582.28 | D73: 388.1266 | E73: 89.8028 | F73: 0 | G73: 388.1266 | H73: 147.7367 | I73: 34.2551 | J73: 1048.0478 | K73: 512.1845
A74: E9078 | B74: Treliça lançadeira com capacidade de carga de 100 a 120 t e vão máximo de 45 m - 110 kW | C74: 3544605.714 | D74: 157.538 | E74: 60.7506 | F74: 0 | G74: 98.4613 | H74: 0 | I74: 43.836 | J74: 360.5859 | K74: 262.1246
A75: E9079 | B75: Bomba submersível com capacidade de 360 m³/h - 23 kW | C75: 179452.2574 | D75: 17.9452 | E75: 3.4601 | F75: 0 | G75: 15.7021 | H75: 0 | I75: 0 | J75: 37.1074 | K75: 21.4053
A76: E9080 | B76: Carrelone com capacidade máxima de 70 t | C76: 1830025.391 | D76: 82.3511 | E76: 31.051 | F76: 0 | G76: 45.7506 | H76: 0 | I76: 27.6724 | J76: 186.8251 | K76: 141.0745
A77: E9081 | B77: Fischietti simples com capacidade de 70 t | C77: 106653.5715 | D77: 4.7994 | E77: 1.8096 | F77: 0 | G77: 2.6663 | H77: 0 | I77: 0 | J77: 9.2753 | K77: 6.609
A78: E9083 | B78: Vagão fechado FLT com capacidade de 99 t | C78: 868455.3013 | D78: 13.7505 | E78: 13.8425 | F78: 0 | G78: 7.2371 | H78: 0 | I78: 0 | J78: 34.8301 | K78: 27.593
A79: E9084 | B79: Vagão tanque convencional TCT com capacidade de 97 t e 103.000 l | C79: 1264142.036 | D79: 20.0156 | E79: 20.1494 | F79: 0 | G79: 10.5345 | H79: 0 | I79: 0 | J79: 50.6995 | K79: 40.165
A80: E9085 | B80: Vagão gôndola GDE com capacidade de 93,5 t / 29 m³ | C80: 637209.8068 | D80: 10.0892 | E80: 10.1566 | F80: 0 | G80: 5.3101 | H80: 0 | I80: 0 | J80: 25.5559 | K80: 20.2458
A81: E9086 | B81: Bomba de concreto rebocável com capacidade de 41 m³/h - 74 kW | C81: 524265.2327 | D81: 52.4265 | E81: 10.1085 | F81: 0 | G81: 52.4265 | H81: 76.0871 | I81: 27.6724 | J81: 218.721 | K81: 90.2074
A82: E9089 | B82: Roçadeira costal - 1,40 kW | C82: 3280.757 | D82: 0.4921 | E82: 0.0675 | F82: 0 | G82: 0.3828 | H82: 8.5398 | I82: 0 | J82: 9.4822 | K82: 0.5596
A83: E9093 | B83: Veículo leve - 53 kW (sem motorista) | C83: 78528.066 | D83: 4.7117 | E83: 1.4536 | F83: 0.589 | G83: 4.7117 | H83: 26.4511 | I83: 0 | J83: 37.9171 | K83: 6.7543
A84: E9094 | B84: Guindaste móvel sobre pneus com 6 eixos com capacidade máxima de 350 t - 450 kW | C84: 21332095.43 | D84: 746.6233 | E84: 361.9523 | F84: 146.6582 | G84: 959.9443 | H84: 121.761 | I84: 33.8732 | J84: 2370.8123 | K84: 1289.107
A85: E9095 | B85: Guindaste móvel sobre pneus com 8 eixos com capacidade máxima de 500 t - 500 kW | C85: 36310858.01 | D85: 1270.88 | E85: 616.1045 | F85: 249.6371 | G85: 1633.9886 | H85: 135.29 | I85: 33.8732 | J85: 3939.7734 | K85: 2170.4948
A86: E9096 | B86: Minicarregadeira de pneus - 45,50 kW | C86: 407727.1291 | D86: 35.6761 | E86: 7.8615 | F86: 0 | G86: 35.6761 | H86: 61.557 | I86: 34.2551 | J86: 175.0258 | K86: 77.7927
A87: E9101 | B87: Removedora de faixas de sinalização viária - 9,69 kW | C87: 50851.893 | D87: 4.0682 | E87: 0.9413 | F87: 0 | G87: 3.5596 | H87: 18.8069 | I87: 0 | J87: 27.376 | K87: 5.0095
A88: E9102 | B88: Extrusora para sarjeta de concreto - 10,44 kW | C88: 82797.1857 | D88: 6.6238 | E88: 1.5326 | F88: 0 | G88: 5.7958 | H88: 8.4746 | I88: 27.6724 | J88: 50.0992 | K88: 35.8288
A89: E9103 | B89: Extrusora para meio-fio de concreto - 10,44 kW | C89: 68010.3198 | D89: 5.4408 | E89: 1.2589 | F89: 0 | G89: 4.7607 | H89: 8.4746 | I89: 27.6724 | J89: 47.6074 | K89: 34.3721
A90: E9105 | B90: Embarcação empurradora multipropósito - 2 x 186 kW | C90: 5421155.127 | D90: 62.0553 | E90: 31.1623 | F90: 0 | G90: 137.9008 | H90: 382.4919 | I90: 137.197 | J90: 750.8073 | K90: 230.4146
A91: E9106 | B91: Balsa de convés com capacidade de 200 t | C91: 1941056.871 | D91: 22.2191 | E91: 11.1577 | F91: 0 | G91: 37.0318 | H91: 0 | I91: 29.463 | J91: 99.8716 | K91: 62.8398
A92: E9107 | B92: Compactador manual com soquete vibratório - 2,24 kW | C92: 11620.2441 | D92: 2.324 | E92: 0.2689 | F92: 0 | G92: 2.324 | H92: 4.3475 | I92: 0 | J92: 9.2644 | K92: 2.5929
A93: E9108 | B93: Soldadora de trilho por caldeamento na via - 400 kW | C93: 10000000 | D93: 160 | E93: 160.42 | F93: 0 | G93: 200 | H93: 259.7568 | I93: 87.672 | J93: 867.8488 | K93: 408.092
A94: E9110 | B94: Escavadeira hidráulica sobre esteiras para rocha com caçamba com capacidade de 1,56 m³ - 118 kW | C94: 1195443.263 | D94: 119.5443 | E94: 23.7082 | F94: 0 | G94: 119.5443 | H94: 121.3281 | I94: 34.2551 | J94: 418.38 | K94: 177.5076
A95: E9111 | B95: Jateador abrasivo úmido com capacidade de 350 kg de abrasivo | C95: 341415.4789 | D95: 61.4548 | E95: 7.3729 | F95: 0 | G95: 61.4548 | H95: 0 | I95: 27.6724 | J95: 157.9549 | K95: 96.5001
A96: E9112 | B96: Sinalizador direcional móvel com sistema fotovoltaico de energia e montado em chassi sobre pneus | C96: 22806.0836 | D96: 2.5657 | E96: 0.4397 | F96: 0 | G96: 1.4254 | H96: 0 | I96: 0 | J96: 4.4308 | K96: 3.0054
A97: E9113 | B97: Painel de Mensagem Variável - PMV móvel, com sistema fotovoltaico de energia e montado em chassi sobre pneus | C97: 171795.5054 | D97: 19.327 | E97: 3.3124 | F97: 0 | G97: 10.7372 | H97: 0 | I97: 0 | J97: 33.3766 | K97: 22.6394
A98: E9116 | B98: Semáforo móvel com 3 lentes e bateria - D = 200 mm | C98: 8109.2439 | D98: 0.9123 | E98: 0.1564 | F98: 0 | G98: 0.5068 | H98: 0 | I98: 0 | J98: 1.5755 | K98: 1.0687
A99: E9117 | B99: Carregadeira de pneus para rocha com capacidade de 2,50 m³ - 105 kW | C99: 1001598.468 | D99: 80.0364 | E99: 18.977 | F99: 0 | G99: 80.0364 | H99: 107.9614 | I99: 34.2551 | J99: 321.2663 | K99: 133.2685
A100: E9118 | B100: Cortadora de pavimento com disco diamantado de 450 a 1.500 mm - 55,40 kW | C100: 488599.2402 | D100: 65.1466 | E100: 10.0489 | F100: 0 | G100: 65.1466 | H100: 44.9704 | I100: 27.6724 | J100: 212.9849 | K100: 102.8679
A101: E9119 | B101: Minicarregadeira sobre pneus com valetadeira - 55,40 kW | C101: 778219.565 | D101: 68.0942 | E101: 15.005 | F101: 0 | G101: 68.0942 | H101: 74.9507 | I101: 34.2551 | J101: 260.3992 | K101: 117.3543
A102: E9120 | B102: Equipamento de cravação sobre esteira para geodreno com haste para profundidade de até 20 m - 258 kW | C102: 2598970.702 | D102: 151.6066 | E102: 46.7706 | F102: 0 | G102: 151.6066 | H102: 181.5051 | I102: 27.6724 | J102: 559.1613 | K102: 226.0496
A103: E9122 | B103: Perfuratriz tipo Bottom Feed para coluna de brita - 194 kW | C103: 7326512.111 | D103: 586.121 | E103: 135.6137 | F103: 0 | G103: 586.121 | H103: 104.985 | I103: 34.2551 | J103: 1447.0958 | K103: 755.9898
A104: E9125 | B104: Veículo tipo van furgão com capacidade de 1,38 t - 100 kW | C104: 227116.4669 | D104: 11.3558 | E104: 4.0872 | F104: 1.6561 | G104: 11.3558 | H104: 27.058 | I104: 32.5686 | J104: 88.0815 | K104: 49.6677
A105: E9126 | B105: Draga backhoe com capacidade de 7 m³ - 1.000 kW | C105: 193174186.1 | D105: 5174.3086 | E105: 1667.2197 | F105: 0 | G105: 11498.4635 | H105: 1028.204 | I105: 64.7277 | J105: 19432.9235 | K105: 6906.256
A106: E9127 | B106: Escavadeira hidráulica com martelo hidráulico de 520 kg - 75 kW | C106: 901312.5766 | D106: 103.0072 | E106: 17.875 | F106: 0 | G106: 128.7589 | H106: 52.7631 | I106: 34.2551 | J106: 336.6593 | K106: 155.1373
A107: E9134 | B107: Miniônibus com capacidade para 30 passageiros - 111 kW | C107: 677579.5759 | D107: 29.0391 | E107: 11.9448 | F107: 4.8399 | G107: 43.5587 | H107: 114.1306 | I107: 35.4794 | J107: 238.9925 | K107: 81.3032
A108: E9141 | B108: Rebarbador hidráulico com bomba manual com capacidade de força de 9.000 kgf | C108: 96017.3452 | D108: 7.6814 | E108: 1.7773 | F108: 0 | G108: 4.8009 | H108: 0 | I108: 0 | J108: 14.2596 | K108: 9.4587
A109: E9144 | B109: Pórtico metálico rolante com talha com capacidade de 5 t - 10 kW | C109: 306730.9664 | D109: 13.6325 | E109: 5.257 | F109: 0 | G109: 8.5203 | H109: 0 | I109: 27.6724 | J109: 55.0822 | K109: 46.5619
A110: E9148 | B110: Macaco de protensão de fios com bomba - 3,72 kW | C110: 100936.2793 | D110: 5.7678 | E110: 1.7794 | F110: 0 | G110: 5.7678 | H110: 0 | I110: 43.836 | J110: 57.151 | K110: 51.3832
A111: E9149 | B111: Máquina de aplicação e extração de grampo elástico tipo Pandrol - 6,70 kW | C111: 273671.9416 | D111: 21.8938 | E111: 5.0657 | F111: 0 | G111: 21.8938 | H111: 10.403 | I111: 0 | J111: 59.2563 | K111: 26.9595
A112: E9151 | B112: Britador de mandíbulas móvel sobre esteiras, sem peneira, com capacidade de 140 m³/h - 170 kW | C112: 2976123.013 | D112: 158.7266 | E112: 52.0276 | F112: 0 | G112: 158.7266 | H112: 165.595 | I112: 43.836 | J112: 578.9118 | K112: 254.5902
A113: E9152 | B113: Ferramenta de fixação à pólvora de ação direta | C113: 1167.5028 | D113: 0.0992 | E113: 0.0216 | F113: 0 | G113: 0.0934 | H113: 0 | I113: 0 | J113: 0.2142 | K113: 0.1208
A114: E9153 | B114: Ferramenta de fixação à pólvora e sistema à pistão | C114: 1074.2545 | D114: 0.0913 | E114: 0.0199 | F114: 0 | G114: 0.0859 | H114: 0 | I114: 0 | J114: 0.1971 | K114: 0.1112
A115: E9154 | B115: Equipamento para selagem com material asfáltico rebocável com capacidade de 370 l - 35 kW | C115: 463653.9426 | D115: 83.4577 | E115: 10.0126 | F115: 0 | G115: 27.8192 | H115: 28.4109 | I115: 27.6724 | J115: 177.3728 | K115: 121.1427
A116: E9155 | B116: Caldeira de asfalto rebocável com capacidade de 600 l - 5,20 kW | C116: 151744.163 | D116: 22.7616 | E116: 3.1209 | F116: 0 | G116: 7.5872 | H116: 3.9396 | I116: 0 | J116: 37.4093 | K116: 25.8825
A117: E9156 | B117: Soprador de ar costal - 2,6 kW | C117: 2620.1593 | D117: 0.4192 | E117: 0.0566 | F117: 0 | G117: 0.3668 | H117: 5.0462 | I117: 0 | J117: 5.8888 | K117: 0.4758
A118: E9157 | B118: Locomotiva diesel-elétrica CC - bitola métrica - 2.237 kW | C118: 8823659.491 | D118: 141.1786 | E118: 141.5491 | F118: 0 | G118: 176.4732 | H118: 1452.6899 | I118: 35.0133 | J118: 1946.9041 | K118: 317.741
A119: E9158 | B119: Locomotiva diesel-elétrica CC - bitola larga - 2.237 kW | C119: 9213768.928 | D119: 147.4203 | E119: 147.8073 | F119: 0 | G119: 184.2754 | H119: 1452.6899 | I119: 35.0133 | J119: 1967.2062 | K119: 330.2409
A120: E9159 | B120: Vagão plataforma PNE com capacidade de 82 t - bitola métrica | C120: 756429.7062 | D120: 11.9768 | E120: 12.0569 | F120: 0 | G120: 6.3036 | H120: 0 | I120: 0 | J120: 30.3373 | K120: 24.0337
A121: E9160 | B121: Vagão plataforma PNT com capacidade de 98 t - bitola larga | C121: 986647.4429 | D121: 15.6219 | E121: 15.7263 | F121: 0 | G121: 8.2221 | H121: 0 | I121: 0 | J121: 39.5703 | K121: 31.3482
A122: E9161 | B122: Vagão fechado com porta para carga e descarga de paletes FLD com capacidade de 64 t - bitola métrica | C122: 750263.1597 | D122: 11.8792 | E122: 11.9586 | F122: 0 | G122: 6.2522 | H122: 0 | I122: 0 | J122: 30.09 | K122: 23.8378
A123: E9162 | B123: Vagão fechado com porta para carga e descarga de paletes FLT com capacidade de 99 t - bitola larga | C123: 868455.3013 | D123: 13.7505 | E123: 13.8425 | F123: 0 | G123: 7.2371 | H123: 0 | I123: 0 | J123: 34.8301 | K123: 27.593
A124: E9163 | B124: Vagão hopper aberto com descarga automática HNE com capacidade de 45 m³ - bitola métrica | C124: 904426.8226 | D124: 14.3201 | E124: 14.4158 | F124: 0 | G124: 7.5369 | H124: 0 | I124: 0 | J124: 36.2728 | K124: 28.7359
A125: E9164 | B125: Vagão hopper aberto com descarga automática HNT com capacidade de 63 m³ - bitola larga | C125: 1162201.389 | D125: 18.4015 | E125: 18.5245 | F125: 0 | G125: 9.685 | H125: 0 | I125: 0 | J125: 46.611 | K125: 36.926
A126: E9167 | B126: Equipamento para carga e descarga de TLS de até 250 m - 90 kW | C126: 2825178.974 | D126: 45.2029 | E126: 45.3215 | F126: 0 | G126: 56.5036 | H126: 58.4453 | I126: 43.836 | J126: 249.3093 | K126: 134.3604
A127: E9168 | B127: Carregadeira de pneus com implemento de garfo - 195 kW | C127: 1497410.452 | D127: 131.0234 | E127: 28.8719 | F127: 0 | G127: 131.0234 | H127: 84.421 | I127: 34.2551 | J127: 409.5948 | K127: 194.1504
A128: E9200 | B128: Carregadeira de pneus para rocha com capacidade de 2,50 m³ - 105 kW com periculosidade | C128: 1001598.468 | D128: 80.0364 | E128: 18.977 | F128: 0 | G128: 80.0364 | H128: 107.9614 | I128: 42.3108 | J128: 329.322 | K128: 141.3242
A129: E9203 | B129: Escavadeira hidráulica com martelo hidráulico de 1.700 kg - 103 kW com periculosidade | C129: 2061350.438 | D129: 235.5829 | E129: 40.881 | F129: 0 | G129: 294.4786 | H129: 72.4613 | I129: 42.3108 | J129: 685.7146 | K129: 318.7747
A130: E9204 | B130: Perfuratriz sobre esteiras - 145 kW com periculosidade | C130: 2035646.55 | D130: 162.8517 | E130: 37.6798 | F130: 0 | G130: 162.8517 | H130: 117.7023 | I130: 42.3108 | J130: 523.3963 | K130: 242.8423
A131: E9205 | B131: Equipamento de corte a plasma CNC - 12.000 x 5.500 mm - 19,5 kW | C131: 1050319.555 | D131: 84.0256 | E131: 19.4414 | F131: 0 | G131: 63.0192 | H131: 0 | I131: 0 | J131: 166.4862 | K131: 103.467
A132: E9206 | B132: Equipamento de solda MIG automática com acessórios - 14,6 kVA | C132: 89120.2863 | D132: 11.8827 | E132: 1.8329 | F132: 0 | G132: 11.8827 | H132: 0 | I132: 0 | J132: 25.5983 | K132: 13.7156
A133: E9207 | B133: Máquina de solda elétrica retificadora 425 A - 18,70 kW | C133: 8151.9548 | D133: 1.0869 | E133: 0.1677 | F133: 0 | G133: 1.0869 | H133: 0 | I133: 0 | J133: 2.3415 | K133: 1.2546
A134: E9209 | B134: Martelete perfurador/rompedor a ar comprimido de 25 kg para rocha, com insalubridade, com capacidade de 2.040 gpm | C134: 25123.6445 | D134: 3.3498 | E134: 0.5167 | F134: 0 | G134: 3.3498 | H134: 0 | I134: 35.4678 | J134: 42.6841 | K134: 39.3343
A135: E9213 | B135: Jumbo eletro-hidráulico com 3 braços - 155 kW/237 kW com periculosidade | C135: 14124149.43 | D135: 807.0943 | E135: 248.9886 | F135: 0 | G135: 1008.8678 | H135: 176.1476 | I135: 54.7914 | J135: 2295.8897 | K135: 1110.8743
A136: E9231 | B136: Maçarico lança-chamas a gás liquefeito de petróleo (GLP) | C136: 84.6749 | D136: 0.0113 | E136: 0.0017 | F136: 0 | G136: 0.0113 | H136: 0 | I136: 0 | J136: 0.0243 | K136: 0.013
A137: E9239 | B137: Miniônibus com capacidade para 30 passageiros - 111 kW (sem motorista) | C137: 677579.5759 | D137: 29.0391 | E137: 11.9448 | F137: 4.8399 | G137: 43.5587 | H137: 114.1306 | I137: 0 | J137: 203.5131 | K137: 45.8238
A138: E9240 | B138: Ônibus com capacidade para 80 passageiros - 175 kW (sem motorista) | C138: 1047824.181 | D138: 44.9068 | E138: 18.4716 | F138: 7.4845 | G138: 67.3601 | H138: 179.9357 | I138: 0 | J138: 318.1587 | K138: 70.8629
A139: E9242 | B139: Estação transmissora de superfície para televisionamento | C139: 15639.0872 | D139: 1.0054 | E139: 0.2757 | F139: 0 | G139: 0.5585 | H139: 0 | I139: 0 | J139: 1.8396 | K139: 1.2811
A140: E9243 | B140: Câmara hiperbárica com filtro, serpentina e reservatório de ar para mergulho raso - D = 1,80 m e H = 2,22 m | C140: 630642.7704 | D140: 11.0362 | E140: 10.214 | F140: 0 | G140: 15.7661 | H140: 0 | I140: 57.7437 | J140: 94.76 | K140: 78.9939
A141: E9244 | B141: Estação transmissora de superfície para comunicação sem fio | C141: 39861.4385 | D141: 2.5625 | E141: 0.7027 | F141: 0 | G141: 1.4236 | H141: 0 | I141: 0 | J141: 4.6888 | K141: 3.2652
A142: E9245 | B142: Estação transmissora de superfície para comunicação com fio | C142: 6680.9669 | D142: 0.4295 | E142: 0.1178 | F142: 0 | G142: 0.2386 | H142: 0 | I142: 0 | J142: 0.7859 | K142: 0.5473
A143: E9246 | B143: Painel de controle de ar com manômetros e pneufatômetros | C143: 12820.8993 | D143: 0.8242 | E143: 0.226 | F143: 0 | G143: 0.4579 | H143: 0 | I143: 0 | J143: 1.5081 | K143: 1.0502
A144: E9247 | B144: Sistema de Sino aberto (sinete) para mergulho até 50 m - 33,50 kW | C144: 397855.5084 | D144: 35.3649 | E144: 7.5007 | F144: 0 | G144: 35.3649 | H144: 0 | I144: 57.7437 | J144: 135.9742 | K144: 100.6093
A145: E9248 | B145: Sistema de ar comprimido para mergulho até 30 m com pressão de trabalho de 1,4 MPa - 7,46 kW | C145: 53973.3534 | D145: 4.3179 | E145: 0.999 | F145: 0 | G145: 4.3179 | H145: 6.863 | I145: 0 | J145: 16.4978 | K145: 5.3169
A146: E9249 | B146: Sistema de ar comprimido para mergulho até 50 m com pressão de trabalho de 1,7 MPa - 16,18 kW | C146: 81337.6374 | D146: 6.507 | E146: 1.5056 | F146: 0 | G146: 6.507 | H146: 14.8851 | I146: 0 | J146: 29.4047 | K146: 8.0126
A147: E9251 | B147: Fonte de plasma para corte manual - 65A - 15 kW | C147: 32637.725 | D147: 4.3517 | E147: 0.6712 | F147: 0 | G147: 4.3517 | H147: 0 | I147: 0 | J147: 9.3746 | K147: 5.0229
A148: E9252 | B148: Serra de esquadria com braço telescópico - D = 250 mm (10") - 1,80 kW | C148: 3975.0475 | D148: 0.3578 | E148: 0.0736 | F148: 0 | G148: 0.1988 | H148: 0 | I148: 0 | J148: 0.6302 | K148: 0.4314
A149: E9253 | B149: Rebordeadeira diâmetro máximo 3,00 m - 4,85 kW | C149: 70660.176 | D149: 2.8264 | E149: 1.1989 | F149: 0 | G149: 2.4731 | H149: 0 | I149: 0 | J149: 6.4984 | K149: 4.0253
A150: E9254 | B150: Dobradeira viradeira manual comprimento máximo de dobra de até 2.000 mm | C150: 18984.9921 | D150: 0.7594 | E150: 0.3221 | F150: 0 | G150: 0.6645 | H150: 0 | I150: 0 | J150: 1.746 | K150: 1.0815
A151: E9255 | B151: Fonte de plasma para corte manual - 45A - 10 kW | C151: 21604.725 | D151: 2.8806 | E151: 0.4443 | F151: 0 | G151: 2.8806 | H151: 0 | I151: 0 | J151: 6.2055 | K151: 3.3249
A152: E9256 | B152: Equipamento para pintura com cal rebocável com dois bicos aplicadores e capacidade de 2.200 l | C152: 62738.9005 | D152: 6.2739 | E152: 1.2097 | F152: 0 | G152: 6.2739 | H152: 0 | I152: 27.6724 | J152: 41.4299 | K152: 35.156
A153: E9259 | B153: Ventilador centrífugo média pressão com capacidade de 38 m³/min - 2,21 kW | C153: 17062.7553 | D153: 1.5356 | E153: 0.3158 | F153: 0 | G153: 1.0238 | H153: 0 | I153: 0 | J153: 2.8752 | K153: 1.8514
A154: E9260 | B154: Detector de gases com bomba elétrica para espaço confinado | C154: 4543 | D154: 0.3634 | E154: 0.0841 | F154: 0 | G154: 0.2272 | H154: 0 | I154: 0 | J154: 0.6747 | K154: 0.4475
A155: E9261 | B155: Equipamento de pintura com pistola airless - 0,90 kW | C155: 2290.6877 | D155: 0.4123 | E155: 0.0495 | F155: 0 | G155: 0.2291 | H155: 0 | I155: 0 | J155: 0.6909 | K155: 0.4618
A156: E9262 | B156: Escova rotativa com cerdas de aço para tratamento de superfície - 0,91 kW | C156: 20886.6219 | D156: 2.7849 | E156: 0.4296 | F156: 0 | G156: 1.7406 | H156: 0 | I156: 27.6724 | J156: 32.6275 | K156: 30.8869
A157: E9263 | B157: Tripé com guincho para espaço confinado | C157: 10081.9153 | D157: 0.8962 | E157: 0.1901 | F157: 0 | G157: 0.6721 | H157: 0 | I157: 0 | J157: 1.7584 | K157: 1.0863
A158: E9264 | B158: Respirador purificador de ar motorizado | C158: 8816.5598 | D158: 0.7053 | E158: 0.1632 | F158: 0 | G158: 0.4408 | H158: 0 | I158: 0 | J158: 1.3093 | K158: 0.8685
A159: E9265 | B159: Respirador de adução de ar tipo linha de ar comprimido para jateamento | C159: 17997.5491 | D159: 1.4398 | E159: 0.3331 | F159: 0 | G159: 0.8999 | H159: 0 | I159: 0 | J159: 2.6728 | K159: 1.7729
A160: E9267 | B160: Exaustor centrífugo alta pressão com capacidade de 35 m³/min - 1,47 kW | C160: 6288.3126 | D160: 0.5659 | E160: 0.1164 | F160: 0 | G160: 0.3773 | H160: 0 | I160: 0 | J160: 1.0596 | K160: 0.6823
A161: E9501 | B161: Ventilador axial para ventilação forçada com velocidade de saída de 32,8 m/s - D = 1.000 mm - 30 kW | C161: 458539.202 | D161: 41.2685 | E161: 8.4876 | F161: 0 | G161: 27.5124 | H161: 0 | I161: 0 | J161: 77.2685 | K161: 49.7561
A162: E9502 | B162: Bate-estaca de gravidade para 6 t - 119 kW | C162: 978437.812 | D162: 130.4584 | E162: 20.1232 | F162: 0 | G162: 97.8438 | H162: 83.7175 | I162: 34.2551 | J162: 366.398 | K162: 184.8367
A163: E9503 | B163: Guilhotina hidráulica 16 x 6.100 mm - 30 kW | C163: 1330089.006 | D163: 53.2036 | E163: 22.5683 | F163: 0 | G163: 46.5531 | H163: 0 | I163: 27.6724 | J163: 149.9974 | K163: 103.4443
A164: E9505 | B164: Prensa dobradeira capacidade 320 t - comprimento até 3.100 mm - 30 kW | C164: 930243.6667 | D164: 37.2097 | E164: 15.7839 | F164: 0 | G164: 32.5585 | H164: 0 | I164: 27.6724 | J164: 113.2245 | K164: 80.666
A165: E9507 | B165: Plotadora de recorte com computador e programa computacional | C165: 95278.0819 | D165: 14.2917 | E165: 1.9596 | F165: 0 | G165: 9.5278 | H165: 0 | I165: 0 | J165: 25.7791 | K165: 16.2513
A166: E9510 | B166: Ventilador centrífugo baixa pressão com capacidade de 58 m³/min - 3,68 kW | C166: 14574.3234 | D166: 1.3117 | E166: 0.2698 | F166: 0 | G166: 0.8745 | H166: 0 | I166: 0 | J166: 2.456 | K166: 1.5815
A167: E9511 | B167: Carregadeira de pneus com capacidade de 3,40 m³ - 195 kW | C167: 2163026.831 | D167: 189.2648 | E167: 41.7059 | F167: 0 | G167: 189.2648 | H167: 84.421 | I167: 34.2551 | J167: 538.9116 | K167: 265.2258
A168: E9512 | B168: Veículo leve - 53 kW | C168: 78528.066 | D168: 4.7117 | E168: 1.4536 | F168: 0.589 | G168: 4.7117 | H168: 26.4511 | I168: 32.5686 | J168: 70.4857 | K168: 39.3229
A169: E9513 | B169: Compressor de ar portátil de 160,46 l/s (340 PCM) - 81 kW | C169: 338802.4809 | D169: 27.1042 | E169: 6.2712 | F169: 0 | G169: 27.1042 | H169: 74.5177 | I169: 0 | J169: 134.9973 | K169: 33.3754
A170: E9514 | B170: Distribuidor de agregados sobre pneus autopropelido - 130 kW | C170: 983003.5212 | D170: 98.3004 | E170: 18.9535 | F170: 0 | G170: 86.0128 | H170: 133.6665 | I170: 34.2551 | J170: 371.1883 | K170: 151.509
A171: E9515 | B171: Escavadeira hidráulica sobre esteiras com caçamba com capacidade de 1,56 m³ - 118 kW | C171: 1195443.263 | D171: 104.6013 | E171: 23.0496 | F171: 0 | G171: 104.6013 | H171: 83.0139 | I171: 34.2551 | J171: 349.5212 | K171: 161.906
A172: E9516 | B172: Perfuratriz hidráulica sobre esteiras - 283 kW | C172: 8085309.792 | D172: 646.8248 | E172: 149.6591 | F172: 0 | G172: 646.8248 | H172: 153.1483 | I172: 34.2551 | J172: 1630.7121 | K172: 830.739
A173: E9518 | B173: Grade de 24 discos rebocável de D = 60 cm (24") | C173: 43054.9309 | D173: 2.7678 | E173: 0.759 | F173: 0 | G173: 1.5377 | H173: 0 | I173: 0 | J173: 5.0645 | K173: 3.5268
A174: E9519 | B174: Betoneira com motor a gasolina com capacidade de 600 l - 10 kW | C174: 40357.0533 | D174: 6.4571 | E174: 0.8715 | F174: 0 | G174: 4.8428 | H174: 19.4086 | I174: 27.6724 | J174: 59.2524 | K174: 35.001
A175: E9521 | B175: Grupo gerador - 3,2 kVA | C175: 3559.3744 | D175: 0.3114 | E175: 0.0686 | F175: 0 | G175: 0.2225 | H175: 4.6137 | I175: 0 | J175: 5.2162 | K175: 0.38
A176: E9522 | B176: Caldeira de asfalto rebocável com capacidade de 1.500 l - 6,5 kW | C176: 212288.6409 | D176: 31.8433 | E176: 4.3661 | F176: 0 | G176: 10.6144 | H176: 4.9246 | I176: 0 | J176: 51.7484 | K176: 36.2094
A177: E9523 | B177: Motoscraper - 304 kW | C177: 6193435.887 | D177: 330.3166 | E177: 108.2716 | F177: 0 | G177: 371.6062 | H177: 263.2202 | I177: 34.2551 | J177: 1107.6697 | K177: 472.8433
A178: E9524 | B178: Motoniveladora - 93 kW | C178: 1301890.862 | D178: 91.1324 | E178: 24.098 | F178: 0 | G178: 117.1702 | H178: 75.4918 | I178: 34.2551 | J178: 342.1475 | K178: 149.4855
A179: E9525 | B179: Ponte rolante com capacidade de 15 t e vão de até 15 m - 20 kW | C179: 3646202.178 | D179: 162.0534 | E179: 62.4919 | F179: 0 | G179: 101.2834 | H179: 0 | I179: 55.3448 | J179: 381.1735 | K179: 279.8901
A180: E9526 | B180: Retroescavadeira de pneus - capacidade da caçamba da pá-carregadeira de 0,76 m³ e da retroescavadeira de 0,29 m³ - 58 kW | C180: 484567.1363 | D180: 35.7049 | E180: 9.048 | F180: 0 | G180: 35.7049 | H180: 40.8035 | I180: 34.2551 | J180: 155.5164 | K180: 79.008
A181: E9527 | B181: Martelete perfurador/rompedor a ar comprimido de 25 kg para rocha com capacidade de 2.040 gpm | C181: 25123.6445 | D181: 3.3498 | E181: 0.5167 | F181: 0 | G181: 3.3498 | H181: 0 | I181: 27.6724 | J181: 34.8887 | K181: 31.5389
A182: E9528 | B182: Empilhadeira a diesel com capacidade de 4 t - 60 kW | C182: 568502.5632 | D182: 45.4802 | E182: 10.523 | F182: 0 | G182: 39.7952 | H182: 48.7044 | I182: 27.6724 | J182: 172.1752 | K182: 83.6756
A183: E9529 | B183: Jateador para estruturas metálicas com transportador a roletes - 22 kW | C183: 5080607.908 | D183: 812.8973 | E183: 109.7157 | F183: 0 | G183: 609.6729 | H183: 0 | I183: 27.6724 | J183: 1559.9583 | K183: 950.2854
A184: E9530 | B184: Rolo compactador liso vibratório autopropelido por pneus de 11 t - 97 kW | C184: 960990.0074 | D184: 76.8792 | E184: 17.7879 | F184: 0 | G184: 76.8792 | H184: 83.988 | I184: 34.2551 | J184: 289.7894 | K184: 128.9222
A185: E9532 | B185: Equipamento de solda MIG com acessórios - 14,6 kVA | C185: 85530.1786 | D185: 11.404 | E185: 1.7591 | F185: 0 | G185: 11.404 | H185: 0 | I185: 0 | J185: 24.5671 | K185: 13.1631
A186: E9535 | B186: Serra circular com bancada - D = 30 cm - 4 kW | C186: 7432.6277 | D186: 0.6689 | E186: 0.1376 | F186: 0 | G186: 0.3716 | H186: 0 | I186: 27.6724 | J186: 28.8505 | K186: 28.4789
A187: E9536 | B187: Embarcação de transporte de pessoal e apoio logístico - 30 kW | C187: 154150.717 | D187: 1.7645 | E187: 0.8861 | F187: 0 | G187: 1.9606 | H187: 66.5436 | I187: 42.121 | J187: 113.2758 | K187: 44.7716
A188: E9538 | B188: Conjunto vibratório para meio tubo de concreto com encaixe PB e 3 jogos de fôrmas - D = 0,30 m - 2,20 kW | C188: 16101.3915 | D188: 2.1469 | E188: 0.3312 | F188: 0 | G188: 1.6101 | H188: 0 | I188: 0 | J188: 4.0882 | K188: 2.4781
A189: E9539 | B189: Equipamento de batimetria monofeixe | C189: 108493.4418 | D189: 4.9666 | E189: 1.8438 | F189: 0 | G189: 2.7592 | H189: 0 | I189: 36.6794 | J189: 46.249 | K189: 43.4898
A190: E9540 | B190: Trator sobre esteiras com lâmina - 127 kW | C190: 1729014.188 | D190: 121.031 | E190: 32.0041 | F190: 0 | G190: 172.9014 | H190: 96.2182 | I190: 34.2551 | J190: 456.4098 | K190: 187.2902
A191: E9541 | B191: Trator sobre esteiras com lâmina - 259 kW | C191: 4841044.354 | D191: 294.6723 | E191: 87.6597 | F191: 0 | G191: 420.9604 | H191: 196.2246 | I191: 34.2551 | J191: 1033.7721 | K191: 416.5871
A192: E9543 | B192: Compressor de ar respirável com capacidade de até 35 MPa e 3,58 l/s - 5,52 kW | C192: 76048.122 | D192: 6.0838 | E192: 1.4077 | F192: 0 | G192: 6.0838 | H192: 0 | I192: 0 | J192: 13.5753 | K192: 7.4915
A193: E9544 | B193: Vassoura mecânica rebocável com largura de 2,44 m | C193: 85352.5326 | D193: 9.6022 | E193: 1.6457 | F193: 0 | G193: 6.4014 | H193: 0 | I193: 0 | J193: 17.6493 | K193: 11.2479
A194: E9545 | B194: Vibroacabadora de asfalto sobre esteiras - 97 kW | C194: 1615926.935 | D194: 141.3936 | E194: 31.1571 | F194: 0 | G194: 181.7918 | H194: 99.7358 | I194: 43.836 | J194: 497.9143 | K194: 216.3867
A195: E9547 | B195: Máquina de solda elétrica transformadora 250 A - 9,20 kW | C195: 1166.0332 | D195: 0.1555 | E195: 0.024 | F195: 0 | G195: 0.1555 | H195: 0 | I195: 0 | J195: 0.335 | K195: 0.1795
A196: E9548 | B196: Bomba centrífuga com capacidade de 7,1 a 22 m³/h - 1,50 kW | C196: 2617.8226 | D196: 0.2618 | E196: 0.0505 | F196: 0 | G196: 0.2291 | H196: 0 | I196: 0 | J196: 0.5414 | K196: 0.3123
A197: E9551 | B197: Obturador mecânico simples com extensão de 12 m | C197: 4901.4301 | D197: 0.4411 | E197: 0.0907 | F197: 0 | G197: 0.2451 | H197: 0 | I197: 0 | J197: 0.7769 | K197: 0.5318
A198: E9552 | B198: Nível ótico com capacidade de aumento de 32x | C198: 15452.7324 | D198: 1.2362 | E198: 0.286 | F198: 0 | G198: 0.7726 | H198: 0 | I198: 0 | J198: 2.2948 | K198: 1.5222
A199: E9553 | B199: Estação total eletrônica com alcance máximo de 3.000 m | C199: 51066.5361 | D199: 4.596 | E199: 0.9452 | F199: 0 | G199: 2.5533 | H199: 0 | I199: 0 | J199: 8.0945 | K199: 5.5412
A200: E9556 | B200: Compactador manual de placa vibratória - 3,00 kW | C200: 10935.4373 | D200: 2.1871 | E200: 0.253 | F200: 0 | G200: 2.1871 | H200: 5.8226 | I200: 0 | J200: 10.4498 | K200: 2.4401
... 344 more rows

Sheet INSUMOS SINAPI
A1: SINAPI - Sistema Nacional de Pesquisa de Custos e Índices da Construção Civil
A2: RELATÓRIO DE PREÇOS DE INSUMOS - ENGARGOS SOCIAIS SEM DESONERAÇÃO
A3: Mês de Referência: | B3: 08/2025 | E3: Encargos sociais sobre a mão de obra:
A4: Data de emissão: | B4: 10/09/2025 | E4: (SEM DESONERAÇÃO) | F4: PI
E5: Localidade | F5: TERESINA
A6: Origem de preço: | B6: C = COLETADO | C6: CR = COEFICIENTE DE REPRESENTATIVIDADE | E6: Horista | F6: 1.1333
A7: Preço em branco para determinado estado significa que não houve coleta mínima de preços no mês de referência | E7: Mensalista | F7: 0.7112
A9: Acessar Fichas de Especificação Técnico dos Insumos | E9: Preços Medianos (R$):
A10: Código do Insumo | B10: Descrição do Insumo | C10: Unidade | D10: Origem de Preço | E10: PI
A11: 45333 | B11: ABERTURA PARA ENCAIXE DE CUBA OU LAVATORIO EM BANCADA DE MARMORE/ GRANITO OU OUTRO TIPO DE PEDRA NATURAL | C11: UN | D11: CR | E11: 177.69
A12: 11270 | B12: ABRACADEIRA DE LATAO PARA FIXACAO DE CABO PARA-RAIO, DIMENSOES 32 X 24 X 24 MM | C12: UN | D12: CR
A13: 412 | B13: ABRACADEIRA DE NYLON PARA AMARRACAO DE CABOS, COMPRIMENTO DE *230* X *7,6* MM | C13: UN | D13: CR | E13: 1.28
A14: 414 | B14: ABRACADEIRA DE NYLON PARA AMARRACAO DE CABOS, COMPRIMENTO DE 100 X 2,5 MM | C14: UN | D14: CR | E14: 0.08
A15: 410 | B15: ABRACADEIRA DE NYLON PARA AMARRACAO DE CABOS, COMPRIMENTO DE 150 X *3,6* MM | C15: UN | D15: CR | E15: 0.19
A16: 411 | B16: ABRACADEIRA DE NYLON PARA AMARRACAO DE CABOS, COMPRIMENTO DE 200 X *4,6* MM | C16: UN | D16: C | E16: 0.25
A17: 408 | B17: ABRACADEIRA DE NYLON PARA AMARRACAO DE CABOS, COMPRIMENTO DE 390 X *4,6* MM | C17: UN | D17: CR | E17: 1.24
A18: 39131 | B18: ABRACADEIRA EM ACO PARA AMARRACAO DE ELETRODUTOS, TIPO D, COM 1 1/2" E CUNHA DE FIXACAO | C18: UN | D18: CR | E18: 5.1
A19: 394 | B19: ABRACADEIRA EM ACO PARA AMARRACAO DE ELETRODUTOS, TIPO D, COM 1 1/2" E PARAFUSO DE FIXACAO | C19: UN | D19: CR | E19: 5.17
A20: 39130 | B20: ABRACADEIRA EM ACO PARA AMARRACAO DE ELETRODUTOS, TIPO D, COM 1 1/4" E CUNHA DE FIXACAO | C20: UN | D20: CR | E20: 4.65
A21: 395 | B21: ABRACADEIRA EM ACO PARA AMARRACAO DE ELETRODUTOS, TIPO D, COM 1 1/4" E PARAFUSO DE FIXACAO | C21: UN | D21: CR | E21: 4.97
A22: 39129 | B22: ABRACADEIRA EM ACO PARA AMARRACAO DE ELETRODUTOS, TIPO D, COM 1" E CUNHA DE FIXACAO | C22: UN | D22: CR | E22: 2.87
A23: 393 | B23: ABRACADEIRA EM ACO PARA AMARRACAO DE ELETRODUTOS, TIPO D, COM 1" E PARAFUSO DE FIXACAO | C23: UN | D23: C | E23: 3
A24: 39127 | B24: ABRACADEIRA EM ACO PARA AMARRACAO DE ELETRODUTOS, TIPO D, COM 1/2" E CUNHA DE FIXACAO | C24: UN | D24: CR | E24: 2.45
A25: 392 | B25: ABRACADEIRA EM ACO PARA AMARRACAO DE ELETRODUTOS, TIPO D, COM 1/2" E PARAFUSO DE FIXACAO | C25: UN | D25: CR | E25: 2.52
A26: 39133 | B26: ABRACADEIRA EM ACO PARA AMARRACAO DE ELETRODUTOS, TIPO D, COM 2 1/2" E CUNHA DE FIXACAO | C26: UN | D26: CR | E26: 6.7
A27: 397 | B27: ABRACADEIRA EM ACO PARA AMARRACAO DE ELETRODUTOS, TIPO D, COM 2 1/2" E PARAFUSO DE FIXACAO | C27: UN | D27: CR | E27: 7.4
A28: 39132 | B28: ABRACADEIRA EM ACO PARA AMARRACAO DE ELETRODUTOS, TIPO D, COM 2" E CUNHA DE FIXACAO | C28: UN | D28: CR | E28: 5.36
A29: 396 | B29: ABRACADEIRA EM ACO PARA AMARRACAO DE ELETRODUTOS, TIPO D, COM 2" E PARAFUSO DE FIXACAO | C29: UN | D29: CR | E29: 5.74
A30: 39135 | B30: ABRACADEIRA EM ACO PARA AMARRACAO DE ELETRODUTOS, TIPO D, COM 3 1/2" E CUNHA DE FIXACAO | C30: UN | D30: CR | E30: 10.72
A31: 39134 | B31: ABRACADEIRA EM ACO PARA AMARRACAO DE ELETRODUTOS, TIPO D, COM 3" E CUNHA DE FIXACAO | C31: UN | D31: CR | E31: 8.93
A32: 398 | B32: ABRACADEIRA EM ACO PARA AMARRACAO DE ELETRODUTOS, TIPO D, COM 3" E PARAFUSO DE FIXACAO | C32: UN | D32: CR | E32: 8.23
A33: 39128 | B33: ABRACADEIRA EM ACO PARA AMARRACAO DE ELETRODUTOS, TIPO D, COM 3/4" E CUNHA DE FIXACAO | C33: UN | D33: CR | E33: 2.68
A34: 400 | B34: ABRACADEIRA EM ACO PARA AMARRACAO DE ELETRODUTOS, TIPO D, COM 3/4" E PARAFUSO DE FIXACAO | C34: UN | D34: CR | E34: 2.61
A35: 39125 | B35: ABRACADEIRA EM ACO PARA AMARRACAO DE ELETRODUTOS, TIPO D, COM 3/8" E PARAFUSO DE FIXACAO | C35: UN | D35: CR | E35: 2.68
A36: 39126 | B36: ABRACADEIRA EM ACO PARA AMARRACAO DE ELETRODUTOS, TIPO D, COM 4" E CUNHA DE FIXACAO | C36: UN | D36: CR | E36: 12.06
A37: 399 | B37: ABRACADEIRA EM ACO PARA AMARRACAO DE ELETRODUTOS, TIPO D, COM 4" E PARAFUSO DE FIXACAO | C37: UN | D37: CR | E37: 10.62
A38: 39158 | B38: ABRACADEIRA EM ACO PARA AMARRACAO DE ELETRODUTOS, TIPO ECONOMICA (GOTA), COM 8" | C38: UN | D38: CR | E38: 28.53
A39: 39141 | B39: ABRACADEIRA EM ACO PARA AMARRACAO DE ELETRODUTOS, TIPO U SIMPLES, COM 1 1/2" | C39: UN | D39: CR | E39: 2.07
A40: 39140 | B40: ABRACADEIRA EM ACO PARA AMARRACAO DE ELETRODUTOS, TIPO U SIMPLES, COM 1 1/4" | C40: UN | D40: CR | E40: 1.88
A41: 39139 | B41: ABRACADEIRA EM ACO PARA AMARRACAO DE ELETRODUTOS, TIPO U SIMPLES, COM 1" | C41: UN | D41: CR | E41: 1.56
A42: 39137 | B42: ABRACADEIRA EM ACO PARA AMARRACAO DE ELETRODUTOS, TIPO U SIMPLES, COM 1/2" | C42: UN | D42: CR | E42: 1.08
A43: 39143 | B43: ABRACADEIRA EM ACO PARA AMARRACAO DE ELETRODUTOS, TIPO U SIMPLES, COM 2 1/2" | C43: UN | D43: CR | E43: 4.27
A44: 39142 | B44: ABRACADEIRA EM ACO PARA AMARRACAO DE ELETRODUTOS, TIPO U SIMPLES, COM 2" | C44: UN | D44: CR | E44: 3.06
A45: 39144 | B45: ABRACADEIRA EM ACO PARA AMARRACAO DE ELETRODUTOS, TIPO U SIMPLES, COM 3" | C45: UN | D45: CR | E45: 4.97
A46: 39138 | B46: ABRACADEIRA EM ACO PARA AMARRACAO DE ELETRODUTOS, TIPO U SIMPLES, COM 3/4" | C46: UN | D46: CR | E46: 1.14
A47: 39136 | B47: ABRACADEIRA EM ACO PARA AMARRACAO DE ELETRODUTOS, TIPO U SIMPLES, COM 3/8" | C47: UN | D47: CR | E47: 0.76
A48: 39145 | B48: ABRACADEIRA EM ACO PARA AMARRACAO DE ELETRODUTOS, TIPO U SIMPLES, COM 4" | C48: UN | D48: CR | E48: 8.2
A49: 12615 | B49: ABRACADEIRA PVC, PARA CALHA PLUVIAL, DIAMETRO ENTRE *80 E 100* MM, PARA DRENAGEM PLUVIAL PREDIAL | C49: UN | D49: CR | E49: 11.68
